{"text_format":"1","workbook":"xlsx","n_sheets":17,"sheets":["Dane projektu","Fiszka projektu","I. Informacje o projekcie","II. Identyfikacja Wnioskodawcy","III. Analiza Finansowa","IV. Wykaz wydatków","Słowniki","V. Aspekty Finansowe","VI. Harmonogram płatności","VII. Zgodność projektu","Arkusz IZ","VIII. Wskaźniki produktu","VIII. Wskaźniki rezultatu","IX. Powiazanie projektu","X. Zakres R-F","XI. Deklaracja wnioskodawcy","XII. Załączniki"],"not_rendered":{"charts":0,"images":1,"macros":1,"external_links":4,"defined_names":117,"comments":0,"pivot_tables":0},"unopened":[],"bounds":{"document_bytes":16777216,"sheet_cells":100000,"rows_first":2000,"rows_last":500,"rows_between":2000,"halvings":0,"cell_chars":16384,"cell_head_chars":4096},"cells_cut":0,"cells_raw":0,"read":"whole","date_system":"1900"}

{"sheet":"Dane projektu","index":0,"n_rows":128,"n_cols":5,"rows_kept":128,"cut":false,"hidden":true,"merged":[[124,0,124,1],[125,0,125,1],[126,0,126,1],[127,0,127,1],[122,0,122,1],[123,0,123,1],[113,0,113,1],[114,0,114,1],[115,0,115,1],[116,0,116,1],[117,0,117,1],[118,0,118,1],[119,0,119,1],[120,0,120,1],[121,0,121,1],[33,0,33,3],[34,0,34,3],[112,0,112,1],[107,0,107,1],[108,0,108,1],[109,0,109,1],[110,0,110,1],[111,0,111,1],[102,0,102,4],[103,0,103,1],[104,0,104,1],[105,0,105,1],[106,0,106,1],[45,0,45,4],[46,0,46,1],[47,0,47,1],[48,0,48,1],[49,0,49,1],[50,0,50,1],[51,0,51,1],[52,0,52,1],[53,0,53,1],[77,0,77,1],[79,0,79,4],[25,1,25,3],[26,1,26,3],[27,1,27,3],[28,1,28,3],[29,1,29,3],[30,1,30,3],[31,1,31,3],[32,1,32,3],[30,0,32,0],[1,0,1,3],[2,0,2,3],[3,0,3,3],[4,0,4,3],[5,0,5,3],[6,0,6,3],[7,0,7,3],[8,0,8,3],[9,0,9,3],[10,0,10,3],[35,0,35,3],[36,0,36,3],[21,0,21,3],[22,0,22,3],[23,0,23,3],[24,0,26,0],[27,0,29,0],[44,0,44,4],[16,0,16,3],[17,0,17,3],[18,0,18,3],[19,0,19,3],[20,0,20,3],[11,0,11,3],[12,0,12,3],[13,0,13,3],[14,0,14,3],[15,0,15,3],[39,1,39,3],[41,1,41,3],[37,0,37,3],[38,0,38,3],[24,1,24,3],[54,0,54,1],[55,0,55,1],[56,0,56,1],[59,0,59,1],[60,0,60,1],[61,0,61,1],[62,0,62,1],[63,0,63,1],[64,0,64,1],[88,0,88,1],[92,0,92,1],[80,0,80,1],[81,0,81,1],[82,0,82,1],[83,0,83,1],[84,0,84,1],[85,0,85,1],[86,0,86,1],[89,0,89,4],[90,0,90,4],[91,0,91,1],[96,0,96,1],[93,0,93,1],[94,0,94,1],[95,0,95,1],[100,0,100,1],[98,0,98,1],[99,0,99,1],[97,0,97,1],[57,0,57,4],[58,0,58,1],[67,0,67,4],[68,0,68,4],[69,0,69,1],[70,0,70,1],[71,0,71,1],[72,0,72,1],[73,0,73,1],[74,0,74,1],[75,0,75,1],[76,0,76,1],[65,0,65,1],[66,0,66,1],[78,0,78,1],[87,0,87,1]]}
[{"$f":"CONCATENATE('II. Identyfikacja Wnioskodawcy'!A100,\" \",'II. Identyfikacja Wnioskodawcy'!G100,\"lok. \",'II. Identyfikacja Wnioskodawcy'!M100,\", \",'II. Identyfikacja Wnioskodawcy'!W97,\" \",'II. Identyfikacja Wnioskodawcy'!R97)","v":"   lok.  ,    "}]
["Nazwa Wnioskodawcy",null,null,null,{"$f":"'II. Identyfikacja Wnioskodawcy'!$P$5","v":0}]
["Tytuł projektu",null,null,null,{"$f":"'I. Informacje o projekcie'!$M$4","v":0}]
["Dział gospodarki",null,null,null,{"$f":"'I. Informacje o projekcie'!$M$7","v":0}]
["KIS",null,null,null,{"$f":"'I. Informacje o projekcie'!$P$32","v":0}]
["Sektor Strategiczny",null,null,null,{"$f":"'I. Informacje o projekcie'!#REF!","v":{"$error":"#REF!"}}]
["Województwo lokalizacji projektu",null,null,null,{"$f":"'I. Informacje o projekcie'!$A$39","v":0}]
["Forma prawna Wnioskodawcy",null,null,null,{"$f":"'II. Identyfikacja Wnioskodawcy'!$P$11","v":0}]
["NIP",null,null,null,{"$f":"'II. Identyfikacja Wnioskodawcy'!$P$8","v":0}]
["PKD działalności dotyczącej projektu",null,null,null,{"$f":"'II. Identyfikacja Wnioskodawcy'!$P$14","v":0}]
["PKD podstawowej działalności Wnioskodawcy",null,null,null,{"$f":"'II. Identyfikacja Wnioskodawcy'!P13","v":0}]
["Kraj pochodzenia kapitału",null,null,null,{"$f":"'II. Identyfikacja Wnioskodawcy'!$P$16","v":0}]
["Nazwa Krajowego Klastra Kluczowego (KKK)",null,null,null,{"$f":"'II. Identyfikacja Wnioskodawcy'!#REF!","v":{"$error":"#REF!"}}]
["Data wstąpienia do KKK",null,null,null,{"$f":"'II. Identyfikacja Wnioskodawcy'!#REF!","v":{"$error":"#REF!"}}]
["Rodzaj przedsiębiorstwa (samodzielne/ partnerskie/ powiązane)",null,null,null,{"$f":"'II. Identyfikacja Wnioskodawcy'!P19","v":0}]
["Status Przesiębiorstwa",null,null,null,{"$f":"'II. Identyfikacja Wnioskodawcy'!P50","v":0}]
["Adres siedziby firmy",null,null,null,{"$f":"CONCATENATE('II. Identyfikacja Wnioskodawcy'!A59,\" \",'II. Identyfikacja Wnioskodawcy'!G59,\"lok. \",'II. Identyfikacja Wnioskodawcy'!M59,\", \",'II. Identyfikacja Wnioskodawcy'!W56,\" \",'II. Identyfikacja Wnioskodawcy'!R56)","v":" lok. ,  "}]
["Województwo (siedziba firmy)",null,null,null,{"$f":"'II. Identyfikacja Wnioskodawcy'!A56","v":0}]
["Adres korespondencyjny",null,null,null,{"$f":"IF('II. Identyfikacja Wnioskodawcy'!$Z$93=2,'Dane projektu'!$E$17,$A$1)","v":"   lok.  ,    "}]
["Pozwolenie na budowę",null,null,null,{"$f":"IF(#REF!=1,\"TAK\",\"NIE\")","v":{"$error":"#REF!"}}]
["Natura 2000"]
["Data rozpoczecia okresu kwalifikowalności",null,null,null,{"$f":"'I. Informacje o projekcie'!$Z$18","v":"00:00:00"}]
["Data zakończenia okresu kwalifikowalności",null,null,null,{"$f":"'I. Informacje o projekcie'!$Z$19","v":"00:00:00"}]
["Kwalifikowalność VAT",null,null,null,{"$f":"'II. Identyfikacja Wnioskodawcy'!$P$15","v":0}]
["Kategoria dofinansowania - Wielkość dofinansowania %","regionalna pomoc inwestycyjna",null,null,{"$f":"'V. Aspekty Finansowe'!$N$7","v":0}]
[null," pomoc na projekty badawczo-rozwojowe",null,null,{"$f":"'V. Aspekty Finansowe'!#REF!","v":{"$error":"#REF!"}}]
[null,"pomoc de minimis",null,null,{"$f":"'V. Aspekty Finansowe'!#REF!","v":{"$error":"#REF!"}}]
["Kategoria dofinansowania - Kwota wnioskowanego dofinansowania","regionalna pomoc inwestycyjna",null,null,{"$f":"'V. Aspekty Finansowe'!$AC$7","v":0}]
[null," pomoc na projekty badawczo-rozwojowe",null,null,{"$f":"'V. Aspekty Finansowe'!#REF!","v":{"$error":"#REF!"}}]
[null,"pomoc de minimis",null,null,{"$f":"'V. Aspekty Finansowe'!#REF!","v":{"$error":"#REF!"}}]
["Finanse","Wydatki całkowite",null,null,{"$f":"'V. Aspekty Finansowe'!$U$11","v":0}]
[null,"w tym wydatki kwalifikowane",null,null,{"$f":"'V. Aspekty Finansowe'!$U$13","v":0}]
[null,"wnioskowana kwota dofinansowania",null,null,{"$f":"'V. Aspekty Finansowe'!$U$15","v":0}]
["Forma płatności"]
["Żródło finansowania"]
["Nazwa podmiotu finansującego projekt"]
["Dołączono upoważnienie dla banku do powierdzenia danych"]
["Dołączono dokument dot zewnętrznego źródła finansowania projektu"]
["Warunek finansowy"]
["Wskaźniki:","Wartość bazowa",null,null,"Wartość docelowa"]
["Wzrost zatrudnienia we wspieranych przedsiębiorstwach (O/K/M)",{"$f":"'VIII. Wskaźniki rezultatu'!$D$7","v":0},{"$f":"'VIII. Wskaźniki rezultatu'!$E$7","v":0},{"$f":"'VIII. Wskaźniki rezultatu'!$F$7","v":0},{"$f":"'VIII. Wskaźniki rezultatu'!$AK$7","v":0}]
["Liczba naukowców pracujących w ulepszonych obiektach infrastruktury badawczej",{"$f":"'VIII. Wskaźniki rezultatu'!$E$10","v":0},null,null,{"$f":"'VIII. Wskaźniki rezultatu'!$AL$10","v":0}]
[]
[]
["Wskażniki kluczowe"]
["Wskaźniki produktu"]
["Nazwa wskaźnika",null,"Jednostka miary","Wartośc bazowa","Wartość docelowa"]
[{"$f":"'VIII. Wskaźniki produktu'!$B$23","v":"Inwestycje prywatne uzupełniające wsparcie publiczne dla przedsiębiorstw (dotacje)"},null,{"$f":"'VIII. Wskaźniki produktu'!$C$23","v":"PLN"},{"$f":"'VIII. Wskaźniki produktu'!$D$23","v":0},{"$f":"'VIII. Wskaźniki produktu'!$F$23","v":0}]
[{"$f":"'VIII. Wskaźniki produktu'!$B$5","v":"Liczba przedsiębiorstw otrzymujących wsparcie (CI 1)"},null,"Przedsiębiorstwa",{"$f":"'VIII. Wskaźniki produktu'!$D$5","v":0},{"$f":"'VIII. Wskaźniki produktu'!$F$5","v":0}]
[{"$f":"'VIII. Wskaźniki produktu'!$B$11","v":"Liczba przedsiębiorstw otrzymujących dotacje w związku z pandemią COVID-19"},null,"Przedsiębiorstwa",{"$f":"'VIII. Wskaźniki produktu'!$D$11","v":0},{"$f":"'VIII. Wskaźniki produktu'!$F$11","v":0}]
[{"$f":"'VIII. Wskaźniki produktu'!$B$20","v":"Liczba przedsiębiorstw ponoszących nakłady inwestycyjne na działalność B+R"},null,{"$f":"'VIII. Wskaźniki produktu'!$C$20","v":"Szt. "},{"$f":"'VIII. Wskaźniki produktu'!$D$20","v":0},{"$f":"'VIII. Wskaźniki produktu'!$F$20","v":0}]
[{"$f":"'VIII. Wskaźniki produktu'!$B$17","v":"Liczba wspartych labolatoriów badawczych"},null,{"$f":"'VIII. Wskaźniki produktu'!$C$17","v":"Szt. "},{"$f":"'VIII. Wskaźniki produktu'!$D$17","v":0},{"$f":"'VIII. Wskaźniki produktu'!$F$17","v":0}]
[{"$f":"'VIII. Wskaźniki produktu'!$B$26","v":"Nakłady inwestycyjne na zakup aparatury naukowo-badawczej, w tym:"},null,{"$f":"'VIII. Wskaźniki produktu'!$C$26","v":"PLN"},{"$f":"'VIII. Wskaźniki produktu'!$D$26","v":0},{"$f":"'VIII. Wskaźniki produktu'!$F$26","v":0}]
[{"$f":"'VIII. Wskaźniki produktu'!$B$27","v":"środki trwałe"},null,{"$f":"'VIII. Wskaźniki produktu'!$C$27","v":"PLN"},{"$f":"'VIII. Wskaźniki produktu'!$D$27","v":0},{"$f":"'VIII. Wskaźniki produktu'!$F$27","v":0}]
[{"$f":"'VIII. Wskaźniki produktu'!$B$28","v":"wartości niematerialne i prawne"},null,{"$f":"'VIII. Wskaźniki produktu'!$C$28","v":"PLN"},{"$f":"'VIII. Wskaźniki produktu'!$D$28","v":0},{"$f":"'VIII. Wskaźniki produktu'!$F$28","v":0}]
[]
[]
["Wskaźniki rezultatu"]
["Nazwa wskaźnika",null,"Jednostka miary","Wartośc bazowa","Wartość docelowa"]
[{"$f":"'VIII. Wskaźniki rezultatu'!$A$10","v":"Liczba naukowców pracujacych w ulepszonych obiektach infrastruktury badawczej (CI 25)"},null,{"$f":"'VIII. Wskaźniki rezultatu'!$C$10","v":"EPC"},{"$f":"'VIII. Wskaźniki rezultatu'!$E$10","v":0},{"$f":"'VIII. Wskaźniki rezultatu'!$AL$10","v":0}]
[{"$f":"'VIII. Wskaźniki rezultatu'!$A$16","v":"Liczba projektów B+R realizowanych przy wykorzystaniu wspartej infrastruktury badawczej."},null,{"$f":"'VIII. Wskaźniki rezultatu'!$C$16","v":"szt."},{"$f":"'VIII. Wskaźniki rezultatu'!$E$16","v":0},{"$f":"'VIII. Wskaźniki rezultatu'!$AL$16","v":0}]
[{"$f":"'VIII. Wskaźniki rezultatu'!$A$13","v":"Liczba przedsiębiorstw korzystających ze wspartej infrastruktury badawczej."},null,{"$f":"'VIII. Wskaźniki rezultatu'!$C$13","v":"szt."},{"$f":"'VIII. Wskaźniki rezultatu'!$E$13","v":0},{"$f":"'VIII. Wskaźniki rezultatu'!$AL$13","v":0}]
["Wzrosta zatrudnienia we wspieranych przedsiebiorstwach - Kobiety",null,"EPC",0,0]
["Wzrosta zatrudnienia we wspieranych przedsiebiorstwach - Mężczyźni",null,"EPC",0,0]
[{"$f":"'VIII. Wskaźniki rezultatu'!$A$6","v":"Wzrost zatrudnienia we wspieranych przedsiębiorstwach"},null,"EPC",{"$f":"'VIII. Wskaźniki rezultatu'!$D$7","v":0},{"$f":"'VIII. Wskaźniki rezultatu'!$AK$7","v":0}]
[]
[]
["Wskażniki specyficzne dla programu"]
["Wskaźniki produktu"]
["Nazwa wskaźnika",null,"Jednostka miary","Wartośc bazowa","Wartość docelowa"]
[{"$f":"'VIII. Wskaźniki produktu'!$B$23","v":"Inwestycje prywatne uzupełniające wsparcie publiczne dla przedsiębiorstw (dotacje)"},null,{"$f":"'VIII. Wskaźniki produktu'!$C$23","v":"PLN"},{"$f":"'VIII. Wskaźniki produktu'!$D$23","v":0},{"$f":"'VIII. Wskaźniki produktu'!$F$23","v":0}]
[{"$f":"'VIII. Wskaźniki produktu'!$B$5","v":"Liczba przedsiębiorstw otrzymujących wsparcie (CI 1)"},null,"Przedsiębiorstwa",{"$f":"'VIII. Wskaźniki produktu'!$D$5","v":0},{"$f":"'VIII. Wskaźniki produktu'!$F$5","v":0}]
[{"$f":"'VIII. Wskaźniki produktu'!$B$11","v":"Liczba przedsiębiorstw otrzymujących dotacje w związku z pandemią COVID-19"},null,"Przedsiębiorstwa",{"$f":"'VIII. Wskaźniki produktu'!$D$11","v":0},{"$f":"'VIII. Wskaźniki produktu'!$F$11","v":0}]
[{"$f":"'VIII. Wskaźniki produktu'!$B$20","v":"Liczba przedsiębiorstw ponoszących nakłady inwestycyjne na działalność B+R"},null,{"$f":"'VIII. Wskaźniki produktu'!$C$20","v":"Szt. "},{"$f":"'VIII. Wskaźniki produktu'!$D$20","v":0},{"$f":"'VIII. Wskaźniki produktu'!$F$20","v":0}]
[{"$f":"'VIII. Wskaźniki produktu'!$B$17","v":"Liczba wspartych labolatoriów badawczych"},null,{"$f":"'VIII. Wskaźniki produktu'!$C$17","v":"Szt. "},{"$f":"'VIII. Wskaźniki produktu'!$D$17","v":0},{"$f":"'VIII. Wskaźniki produktu'!$F$17","v":0}]
[{"$f":"'VIII. Wskaźniki produktu'!$B$26","v":"Nakłady inwestycyjne na zakup aparatury naukowo-badawczej, w tym:"},null,{"$f":"'VIII. Wskaźniki produktu'!$C$26","v":"PLN"},{"$f":"'VIII. Wskaźniki produktu'!$D$26","v":0},{"$f":"'VIII. Wskaźniki produktu'!$F$26","v":0}]
[{"$f":"'VIII. Wskaźniki produktu'!$B$27","v":"środki trwałe"},null,{"$f":"'VIII. Wskaźniki produktu'!$C$27","v":"PLN"},{"$f":"'VIII. Wskaźniki produktu'!$D$27","v":0},{"$f":"'VIII. Wskaźniki produktu'!$F$27","v":0}]
[{"$f":"'VIII. Wskaźniki produktu'!$B$28","v":"wartości niematerialne i prawne"},null,{"$f":"'VIII. Wskaźniki produktu'!$C$28","v":"PLN"},{"$f":"'VIII. Wskaźniki produktu'!$D$28","v":0},{"$f":"'VIII. Wskaźniki produktu'!$F$28","v":0}]
[]
["Wskaźniki rezultatu"]
["Nazwa wskaźnika",null,"Jednostka miary","Wartośc bazowa","Wartość docelowa"]
[{"$f":"'VIII. Wskaźniki rezultatu'!$A$10","v":"Liczba naukowców pracujacych w ulepszonych obiektach infrastruktury badawczej (CI 25)"},null,{"$f":"'VIII. Wskaźniki rezultatu'!$C$10","v":"EPC"},{"$f":"'VIII. Wskaźniki rezultatu'!$E$10","v":0},{"$f":"'VIII. Wskaźniki rezultatu'!$AL$10","v":0}]
[{"$f":"'VIII. Wskaźniki rezultatu'!$A$16","v":"Liczba projektów B+R realizowanych przy wykorzystaniu wspartej infrastruktury badawczej."},null,{"$f":"'VIII. Wskaźniki rezultatu'!$C$16","v":"szt."},{"$f":"'VIII. Wskaźniki rezultatu'!$E$16","v":0},{"$f":"'VIII. Wskaźniki rezultatu'!$AL$16","v":0}]
[{"$f":"'VIII. Wskaźniki rezultatu'!$A$13","v":"Liczba przedsiębiorstw korzystających ze wspartej infrastruktury badawczej."},null,{"$f":"'VIII. Wskaźniki rezultatu'!$C$13","v":"szt."},{"$f":"'VIII. Wskaźniki rezultatu'!$E$13","v":0},{"$f":"'VIII. Wskaźniki rezultatu'!$AL$13","v":0}]
["Wzrosta zatrudnienia we wspieranych przedsiebiorstwach - Kobiety",null,"EPC",0,0]
["Wzrosta zatrudnienia we wspieranych przedsiebiorstwach - Mężczyźni",null,"EPC",0,0]
[{"$f":"'VIII. Wskaźniki rezultatu'!$A$6","v":"Wzrost zatrudnienia we wspieranych przedsiębiorstwach"},null,"EPC",{"$f":"'VIII. Wskaźniki rezultatu'!$D$7","v":0},{"$f":"'VIII. Wskaźniki rezultatu'!$AK$7","v":0}]
[]
[]
["Wskażniki specyficzne dla projektu"]
["Wskaźniki produktu"]
["Nazwa wskaźnika",null,"Jednostka miary","Wartośc bazowa","Wartość docelowa"]
[{"$f":"'VIII. Wskaźniki produktu'!$B$31","v":"Liczba zakupionych środków trwałych"},null,{"$f":"'VIII. Wskaźniki produktu'!$C$31","v":"Szt. "},{"$f":"'VIII. Wskaźniki produktu'!$D$31","v":0},{"$f":"'VIII. Wskaźniki produktu'!$F$31","v":0}]
[{"$f":"'VIII. Wskaźniki produktu'!$B$34","v":"Liczba zakupionych wartości niematerialnych i prawnych"},null,{"$f":"'VIII. Wskaźniki produktu'!$C$34","v":"Szt. "},{"$f":"'VIII. Wskaźniki produktu'!$D$34","v":0},{"$f":"'VIII. Wskaźniki produktu'!$F$34","v":0}]
[{"$f":"'VIII. Wskaźniki produktu'!$B$45","v":"Nie dotyczy"},null,{"$f":"'VIII. Wskaźniki produktu'!$C$45","v":"Nie dotyczy  "},{"$f":"'VIII. Wskaźniki produktu'!$D$45","v":"Nie dotyczy "},{"$f":"'VIII. Wskaźniki produktu'!$E$45","v":"Nie dotyczy "}]
[{"$f":"'VIII. Wskaźniki produktu'!$B$48","v":"Nie dotyczy"},null,{"$f":"'VIII. Wskaźniki produktu'!$C$48","v":"Nie dotyczy  "},{"$f":"'VIII. Wskaźniki produktu'!$D$48","v":"Nie dotyczy "},{"$f":"'VIII. Wskaźniki produktu'!$E$48","v":"Nie dotyczy "}]
[{"$f":"'VIII. Wskaźniki produktu'!$B$51","v":"Nie dotyczy"},null,{"$f":"'VIII. Wskaźniki produktu'!$C$51","v":"Nie dotyczy  "},{"$f":"'VIII. Wskaźniki produktu'!$D$51","v":"Nie dotyczy "},{"$f":"'VIII. Wskaźniki produktu'!$E$51","v":"Nie dotyczy "}]
[{"$f":"'VIII. Wskaźniki produktu'!$B$54","v":"Nie dotyczy"},null,{"$f":"'VIII. Wskaźniki produktu'!$C$54","v":"Nie dotyczy  "},{"$f":"'VIII. Wskaźniki produktu'!$D$54","v":"Nie dotyczy "},{"$f":"'VIII. Wskaźniki produktu'!$E$54","v":"Nie dotyczy "}]
[{"$f":"'VIII. Wskaźniki produktu'!$B$57","v":"Nie dotyczy"},null,{"$f":"'VIII. Wskaźniki produktu'!$C$57","v":"Nie dotyczy  "},{"$f":"'VIII. Wskaźniki produktu'!$D$57","v":"Nie dotyczy "},{"$f":"'VIII. Wskaźniki produktu'!$E$57","v":"Nie dotyczy "}]
[{"$f":"'VIII. Wskaźniki produktu'!$B$60","v":"Nie dotyczy"},null,{"$f":"'VIII. Wskaźniki produktu'!$C$60","v":"Nie dotyczy  "},{"$f":"'VIII. Wskaźniki produktu'!$D$60","v":"Nie dotyczy "},{"$f":"'VIII. Wskaźniki produktu'!$E$60","v":"Nie dotyczy "}]
[{"$f":"'VIII. Wskaźniki produktu'!$B$63","v":"Nie dotyczy"},null,{"$f":"'VIII. Wskaźniki produktu'!$C$63","v":"Nie dotyczy  "},{"$f":"'VIII. Wskaźniki produktu'!$D$63","v":"Nie dotyczy "},{"$f":"'VIII. Wskaźniki produktu'!$E$63","v":"Nie dotyczy "}]
[]
["Wskaźniki rezultatu"]
["Nazwa wskaźnika",null,"Jednostka miary","Wartośc bazowa","Wartość docelowa"]
[{"$f":"'VIII. Wskaźniki rezultatu'!$A$21","v":"Liczba testowanych produktów w zakresie zwalczania skutków pandemii COVID-19."},null,{"$f":"'VIII. Wskaźniki rezultatu'!$C$21","v":"Szt."},{"$f":"'VIII. Wskaźniki rezultatu'!$E$21","v":0},{"$f":"'VIII. Wskaźniki rezultatu'!$AL$21","v":0}]
[{"$f":"'VIII. Wskaźniki rezultatu'!$A$24","v":"Liczba przygotowywanych do masowej produkcji produktów w zakresie zwalczania skutków pandemii COVID-19."},null,{"$f":"'VIII. Wskaźniki rezultatu'!#REF!","v":{"$error":"#REF!"}},{"$f":"'VIII. Wskaźniki rezultatu'!$E$24","v":0},{"$f":"'VIII. Wskaźniki rezultatu'!$AL$24","v":0}]
[{"$f":"'VIII. Wskaźniki rezultatu'!#REF!","v":{"$error":"#REF!"}},null,{"$f":"'VIII. Wskaźniki rezultatu'!#REF!","v":{"$error":"#REF!"}},{"$f":"'VIII. Wskaźniki rezultatu'!#REF!","v":{"$error":"#REF!"}},{"$f":"'VIII. Wskaźniki rezultatu'!#REF!","v":{"$error":"#REF!"}}]
[{"$f":"'VIII. Wskaźniki rezultatu'!#REF!","v":{"$error":"#REF!"}},null,{"$f":"'VIII. Wskaźniki rezultatu'!#REF!","v":{"$error":"#REF!"}},{"$f":"'VIII. Wskaźniki rezultatu'!#REF!","v":{"$error":"#REF!"}},{"$f":"'VIII. Wskaźniki rezultatu'!#REF!","v":{"$error":"#REF!"}}]
[{"$f":"'VIII. Wskaźniki rezultatu'!#REF!","v":{"$error":"#REF!"}},null,{"$f":"'VIII. Wskaźniki rezultatu'!#REF!","v":{"$error":"#REF!"}},{"$f":"'VIII. Wskaźniki rezultatu'!#REF!","v":{"$error":"#REF!"}},{"$f":"'VIII. Wskaźniki rezultatu'!#REF!","v":{"$error":"#REF!"}}]
[{"$f":"'VIII. Wskaźniki rezultatu'!#REF!","v":{"$error":"#REF!"}},null,{"$f":"'VIII. Wskaźniki rezultatu'!#REF!","v":{"$error":"#REF!"}},{"$f":"'VIII. Wskaźniki rezultatu'!#REF!","v":{"$error":"#REF!"}},{"$f":"'VIII. Wskaźniki rezultatu'!#REF!","v":{"$error":"#REF!"}}]
[{"$f":"'VIII. Wskaźniki rezultatu'!#REF!","v":{"$error":"#REF!"}},null,{"$f":"'VIII. Wskaźniki rezultatu'!#REF!","v":{"$error":"#REF!"}},{"$f":"'VIII. Wskaźniki rezultatu'!#REF!","v":{"$error":"#REF!"}},{"$f":"'VIII. Wskaźniki rezultatu'!#REF!","v":{"$error":"#REF!"}}]
[{"$f":"'VIII. Wskaźniki rezultatu'!#REF!","v":{"$error":"#REF!"}},null,{"$f":"'VIII. Wskaźniki rezultatu'!#REF!","v":{"$error":"#REF!"}},{"$f":"'VIII. Wskaźniki rezultatu'!#REF!","v":{"$error":"#REF!"}},{"$f":"'VIII. Wskaźniki rezultatu'!#REF!","v":{"$error":"#REF!"}}]
[{"$f":"'VIII. Wskaźniki rezultatu'!$A$33","v":"Nie dotyczy (Wskaźnik obrazujący pozytywny wpływ projektu na środowisko i klimat poprzez sposób realizacji projektu.)"},null,{"$f":"'VIII. Wskaźniki rezultatu'!$C$30","v":"Nie dotyczy"},{"$f":"'VIII. Wskaźniki rezultatu'!$E$30","v":0},{"$f":"'VIII. Wskaźniki rezultatu'!$AL$30","v":0}]
[{"$f":"'VIII. Wskaźniki rezultatu'!$A$33","v":"Nie dotyczy (Wskaźnik obrazujący pozytywny wpływ projektu na środowisko i klimat poprzez sposób realizacji projektu.)"},null,{"$f":"'VIII. Wskaźniki rezultatu'!$C$33","v":"Nie dotyczy"},{"$f":"'VIII. Wskaźniki rezultatu'!$E$33","v":0},{"$f":"'VIII. Wskaźniki rezultatu'!$AL$33","v":0}]
[{"$f":"'VIII. Wskaźniki rezultatu'!$A$36","v":"Nie dotyczy (Wskaźnik obrazujący pozytywny wpływ projektu na środowisko i klimat poprzez rezultat projektu.)"},null,{"$f":"'VIII. Wskaźniki rezultatu'!$C$36","v":"Nie dotyczy"},{"$f":"'VIII. Wskaźniki rezultatu'!$E$36","v":0},{"$f":"'VIII. Wskaźniki rezultatu'!$AL$36","v":0}]
[{"$f":"'VIII. Wskaźniki rezultatu'!$A$39","v":"Nie dotyczy (Wskaźnik obrazujący pozytywny wpływ projektu na środowisko i klimat poprzez rezultat projektu.)"},null,{"$f":"'VIII. Wskaźniki rezultatu'!$C$39","v":"Nie dotyczy"},{"$f":"'VIII. Wskaźniki rezultatu'!$E$39","v":0},{"$f":"'VIII. Wskaźniki rezultatu'!$AL$39","v":0}]
[{"$f":"'VIII. Wskaźniki rezultatu'!$A$45","v":"Nie dotyczy (Wskaźnik obrazujący dostępność produktów/ rezultatów projektu dla osób z niepełnosprawnościami)"},null,{"$f":"'VIII. Wskaźniki rezultatu'!$C$45","v":"Nie dotyczy"},{"$f":"'VIII. Wskaźniki rezultatu'!$E$45","v":0},{"$f":"'VIII. Wskaźniki rezultatu'!$AL$45","v":0}]
[{"$f":"CONCATENATE('VIII. Wskaźniki rezultatu'!A48,\" \",'VIII. Wskaźniki rezultatu'!$A$49)","v":"Nie dotyczy (Wskaźnik obrazujący spełnienie standardu architektonicznego stanowiącego załącznik nr 2 do Wytycznych w zakresie realizacji zasady równości szans i niedyskryminacji, w tym dostępności dla osób z niepełnosprawnościami oraz zasady równości szans kobiet i mężczyzn w ramach Funduszy Unijnych na lata 2014-2020.)"},null,{"$f":"'VIII. Wskaźniki rezultatu'!$C$48","v":"Nie dotyczy"},{"$f":"'VIII. Wskaźniki rezultatu'!$E$48","v":0},{"$f":"'VIII. Wskaźniki rezultatu'!$AL$48","v":0}]
[{"$f":"_xlfn.CONCAT('VIII. Wskaźniki rezultatu'!$A$52,\" \",'VIII. Wskaźniki rezultatu'!$A$53)","v":"Nie dotyczy (Wskaźnik obrazujący spełnienie standardu architektonicznego stanowiącego załącznik nr 2 do Wytycznych w zakresie realizacji zasady równości szans i niedyskryminacji, w tym dostępności dla osób z niepełnosprawnościami oraz zasady równości szans kobiet i mężczyzn w ramach Funduszy Unijnych na lata 2014-2020.)"},null,{"$f":"'VIII. Wskaźniki rezultatu'!$C$52","v":"Nie dotyczy"},{"$f":"'VIII. Wskaźniki rezultatu'!$E$52","v":0},{"$f":"'VIII. Wskaźniki rezultatu'!$AL$52","v":0}]
[{"$f":"'VIII. Wskaźniki rezultatu'!$A$56","v":"Nie dotyczy (Wskaźnik projektu na realizację zasady równości szans  kobiet i mężczyzn)"},null,{"$f":"'VIII. Wskaźniki rezultatu'!$C$56","v":"Nie dotyczy"},{"$f":"'VIII. Wskaźniki rezultatu'!$E$56","v":0},{"$f":"'VIII. Wskaźniki rezultatu'!$AL$56","v":0}]
[{"$f":"'VIII. Wskaźniki rezultatu'!$A$59","v":"Nie dotyczy (Wskaźnik projektu na realizację zasady równości szans  kobiet i mężczyzn)"},null,{"$f":"'VIII. Wskaźniki rezultatu'!$C$59","v":"Nie dotyczy"},{"$f":"'VIII. Wskaźniki rezultatu'!$E$59","v":0},{"$f":"'VIII. Wskaźniki rezultatu'!$AL$59","v":0}]
[{"$f":"'VIII. Wskaźniki rezultatu'!$A$65","v":"Nie dotyczy"},null,{"$f":"'VIII. Wskaźniki rezultatu'!$C$65","v":"Nie dotyczy"},{"$f":"'VIII. Wskaźniki rezultatu'!$E$68","v":0},{"$f":"'VIII. Wskaźniki rezultatu'!$AL$65","v":0}]
[{"$f":"'VIII. Wskaźniki rezultatu'!$A$68","v":"Nie dotyczy"},null,{"$f":"'VIII. Wskaźniki rezultatu'!$C$68","v":"Nie dotyczy"},{"$f":"'VIII. Wskaźniki rezultatu'!$E$71","v":0},{"$f":"'VIII. Wskaźniki rezultatu'!$AL$68","v":0}]
[{"$f":"'VIII. Wskaźniki rezultatu'!$A$71","v":"Nie dotyczy"},null,{"$f":"'VIII. Wskaźniki rezultatu'!$C$71","v":"Nie dotyczy"},{"$f":"'VIII. Wskaźniki rezultatu'!$E$74","v":0},{"$f":"'VIII. Wskaźniki rezultatu'!$AL$71","v":0}]
[{"$f":"'VIII. Wskaźniki rezultatu'!$A$74","v":"Nie dotyczy"},null,{"$f":"'VIII. Wskaźniki rezultatu'!$C$74","v":"Nie dotyczy"},{"$f":"'VIII. Wskaźniki rezultatu'!$E$77","v":0},{"$f":"'VIII. Wskaźniki rezultatu'!$AL$74","v":0}]
[{"$f":"'VIII. Wskaźniki rezultatu'!$A$77","v":"Nie dotyczy"},null,{"$f":"'VIII. Wskaźniki rezultatu'!$C$77","v":"Nie dotyczy"},{"$f":"'VIII. Wskaźniki rezultatu'!$E$77","v":0},{"$f":"'VIII. Wskaźniki rezultatu'!$AL$77","v":0}]
[{"$f":"'VIII. Wskaźniki rezultatu'!$A$80","v":"Nie dotyczy"},null,{"$f":"'VIII. Wskaźniki rezultatu'!$C$80","v":"Nie dotyczy"},{"$f":"'VIII. Wskaźniki rezultatu'!$E$80","v":0},{"$f":"'VIII. Wskaźniki rezultatu'!$AL$80","v":0}]
[{"$f":"'VIII. Wskaźniki rezultatu'!$A$83","v":"Nie dotyczy"},null,{"$f":"'VIII. Wskaźniki rezultatu'!$C$83","v":"Nie dotyczy"},{"$f":"'VIII. Wskaźniki rezultatu'!$E$83","v":0},{"$f":"'VIII. Wskaźniki rezultatu'!$AL$83","v":0}]

{"sheet":"Fiszka projektu","index":1,"n_rows":81,"n_cols":33,"rows_kept":81,"cut":false,"hidden":false,"merged":[[29,0,30,32],[80,0,90,8],[81,9,90,9],[80,10,90,32],[77,9,77,13],[78,9,78,13],[79,9,79,13],[70,0,79,8],[72,9,72,13],[73,9,73,13],[74,9,74,13],[75,9,75,13],[76,9,76,13],[71,14,71,22],[70,14,70,22],[72,14,72,22],[73,14,73,22],[61,0,62,8],[63,0,64,8],[55,10,56,32],[57,10,58,32],[61,28,62,32],[61,10,62,27],[63,10,64,27],[63,28,64,32],[71,9,71,13],[69,0,69,8],[69,10,69,32],[67,0,67,10],[68,0,68,10],[67,12,67,32],[68,12,68,32],[52,0,52,32],[59,0,60,8],[54,0,54,32],[53,1,53,32],[59,28,60,32],[59,10,60,27],[75,14,75,22],[76,14,76,22],[1,0,4,32],[5,0,28,32],[33,12,35,32],[55,0,56,8],[57,0,58,8],[42,0,42,32],[33,0,35,10],[50,0,50,32],[39,0,41,15],[36,1,38,15],[36,17,38,32],[39,16,41,32],[49,0,49,32],[51,1,51,32],[77,14,77,22],[78,14,78,22],[65,0,65,32],[66,0,66,32],[79,14,79,22],[70,23,70,31],[71,23,71,32],[72,23,72,32],[73,23,73,32],[74,23,74,32],[75,23,75,32],[76,23,76,32],[77,23,77,32],[78,23,78,32],[79,23,79,32],[74,14,74,22]]}
[]
["Wniosek o dofinansowanie - COVID 19 (załącznik nr 2 do Regulaminu Konkursu) \nNabór 2/2.1/2020"]
[]
[]
[]
["\n\n\n\n\nMINISTERSTWO FUNDUSZY I POLITYKI REGIONALNEJ\nPROGRAM OPERACYJNY INTELIGENTNY ROZWÓJ\n\nWniosek o dofinansowanie realizacji projektu\n\n 2. Oś priorytetowa \n Wsparcie otoczenia i potencjału przedsiębiorstw do prowadzenia działalności B+R+I\n\nDziałanie 2.1 \nWsparcie inwestycji w infrastrukturę B+R przedsiębiorstw\nDotacja na infrastrukturę do zwalczania COVID-19"]
[]
[]
[]
[]
[]
[]
[]
[]
[]
[]
[]
[]
[]
[]
[]
[]
[]
[]
[]
[]
[]
[]
[]
[]
[]
[]
[]
["NUMER WNIOSKU O DOFINANSOWANIE*",null,null,null,null,null,null,null,null,null,null,"1.","POIR.02.01.00-00-………/20"]
[]
[]
["2.",null,null,null,null,null,null,null,null,null,null,null,null,null,null,null,"3.","POIR.02.01.00-IZ.00-00-C01/20"]
[]
[]
["DATA ZŁOŻENIA WNIOSKU*",null,null,null,null,null,null,null,null,null,null,null,null,null,null,null,"PEŁNY NR NABORU*"]
[]
[]
["* - Rubryka wypełniana przez Instytucje Organizującą Konkurs."]
[]
[]
[]
[]
[]
[]
["Fiszka projektu"]
[]
["4.","Nazwa Wnioskodawcy"]
[{"$f":"'II. Identyfikacja Wnioskodawcy'!$P$5","v":0}]
["5.","Tytuł projektu"]
[{"$f":"'I. Informacje o projekcie'!$M$4","v":0}]
["Data rozpoczęcia okresu kwalifikowalności",null,null,null,null,null,null,null,null,"6.",{"$f":"'I. Informacje o projekcie'!Z18","v":"00:00:00"}]
[]
["Data zakończenia okresu kwalifikowalności",null,null,null,null,null,null,null,null,"7.",{"$f":"'I. Informacje o projekcie'!Z19","v":"00:00:00"}]
[]
["Całkowita wartość projektu",null,null,null,null,null,null,null,null,"8.",{"$f":"'V. Aspekty Finansowe'!$U$11","v":0},null,null,null,null,null,null,null,null,null,null,null,null,null,null,null,null,null,"PLN"]
[]
["Kwota kosztów kwalifikowanych projektu",null,null,null,null,null,null,null,null,"9.",{"$f":"'V. Aspekty Finansowe'!$U$13","v":0},null,null,null,null,null,null,null,null,null,null,null,null,null,null,null,null,null,"PLN"]
[]
["Kwota dofinansowania projektu",null,null,null,null,null,null,null,null,"10.",{"$f":"'V. Aspekty Finansowe'!$U$15","v":0},null,null,null,null,null,null,null,null,null,null,null,null,null,null,null,null,null,"PLN"]
[]
["Źródło finansowania"]
["Pomoc inwestycyjna na infrastrukturę służącą do testowania i przygotowania do masowej produkcji produktów służących zwalczaniu pandemii COVID-19"]
["% wsparcia",null,null,null,null,null,null,null,null,null,null,"11.",{"$f":"'V. Aspekty Finansowe'!N7+IF('V. Aspekty Finansowe'!AC8=\"tak\",'V. Aspekty Finansowe'!M9,0)","v":0}]
["Kwota dofinansowania",null,null,null,null,null,null,null,null,null,null,"12.",{"$f":"'V. Aspekty Finansowe'!U15","v":0}]
["Kwalifikowalność VAT",null,null,null,null,null,null,null,null,"13.",{"$f":"'II. Identyfikacja Wnioskodawcy'!$P$15","v":0}]
["Miejsce realizacji projektu",null,null,null,null,null,null,null,null,null,null,null,null,null,"Główne miejsce realizacji projektu",null,null,null,null,null,null,null,null,"Pozostałe miejsce realizacji projektu",null,null,null,null,null,null,null,null,"14."]
[null,null,null,null,null,null,null,null,null,"Miejscowość",null,null,null,null,{"$f":"'I. Informacje o projekcie'!$R$39","v":0},null,null,null,null,null,null,null,null,{"$f":"'I. Informacje o projekcie'!$R$47","v":" "}]
[null,null,null,null,null,null,null,null,null,"Ulica",null,null,null,null,{"$f":"'I. Informacje o projekcie'!$A$42","v":0},null,null,null,null,null,null,null,null,{"$f":"'I. Informacje o projekcie'!$A$50","v":" "}]
[null,null,null,null,null,null,null,null,null,"Nr budynku",null,null,null,null,{"$f":"'I. Informacje o projekcie'!$G$42","v":0},null,null,null,null,null,null,null,null,{"$f":"'I. Informacje o projekcie'!$G$50","v":" "}]
[null,null,null,null,null,null,null,null,null,"Nr lokalu",null,null,null,null,{"$f":"'I. Informacje o projekcie'!$M$42","v":0},null,null,null,null,null,null,null,null,{"$f":"'I. Informacje o projekcie'!$M$50","v":" "}]
[null,null,null,null,null,null,null,null,null,"Kod pocztowy",null,null,null,null,{"$f":"'I. Informacje o projekcie'!$W$39","v":0},null,null,null,null,null,null,null,null,{"$f":"'I. Informacje o projekcie'!$W$47","v":" "}]
[null,null,null,null,null,null,null,null,null,"Poczta",null,null,null,null,{"$f":"'I. Informacje o projekcie'!$AB$39","v":0},null,null,null,null,null,null,null,null,{"$f":"'I. Informacje o projekcie'!$AB$47","v":" "}]
[null,null,null,null,null,null,null,null,null,"Gmina",null,null,null,null,{"$f":"'I. Informacje o projekcie'!$M$39","v":0},null,null,null,null,null,null,null,null,{"$f":"'I. Informacje o projekcie'!$M$47","v":" "}]
[null,null,null,null,null,null,null,null,null,"Powiat",null,null,null,null,{"$f":"'I. Informacje o projekcie'!$G$39","v":0},null,null,null,null,null,null,null,null,{"$f":"'I. Informacje o projekcie'!$G$47","v":" "}]
[null,null,null,null,null,null,null,null,null,"Województwo",null,null,null,null,{"$f":"'I. Informacje o projekcie'!$A$39","v":0},null,null,null,null,null,null,null,null,{"$f":"'I. Informacje o projekcie'!$A$47","v":" "}]
["Skrócony opis projektu\n(1000 limit znaków)",null,null,null,null,null,null,null,null,"15.",{"$f":"'I. Informacje o projekcie'!M5","v":0}]

{"sheet":"I. Informacje o projekcie","index":2,"n_rows":138,"n_cols":41,"rows_kept":138,"cut":false,"hidden":false,"merged":[[43,33,46,33],[47,33,49,33],[43,34,46,34],[43,35,46,35],[47,34,49,34],[47,35,49,35],[35,33,38,33],[39,33,41,33],[35,34,38,34],[35,35,38,35],[39,34,41,34],[39,35,41,35],[15,33,15,35],[0,0,0,32],[1,0,1,32],[3,0,3,10],[3,12,3,32],[2,0,2,32],[0,33,0,35],[4,33,5,33],[4,34,5,34],[4,35,5,35],[29,0,29,32],[8,0,8,10],[8,12,8,32],[9,12,9,32],[10,0,10,10],[10,12,10,32],[6,0,6,10],[9,0,9,10],[4,0,5,10],[4,12,5,32],[4,11,5,11],[6,12,6,32],[7,12,7,32],[7,0,7,10],[21,1,21,32],[22,0,27,32],[38,27,38,32],[39,27,39,32],[40,0,40,5],[15,0,15,32],[37,0,37,5],[11,0,11,10],[11,12,11,32],[37,6,37,11],[37,12,37,16],[37,17,37,21],[37,22,37,26],[37,27,37,32],[31,0,31,13],[20,0,20,32],[31,15,31,32],[36,0,36,5],[36,6,36,11],[36,12,36,16],[36,17,36,21],[36,22,36,26],[36,27,36,32],[33,0,33,32],[32,0,32,32],[35,0,35,32],[39,0,39,5],[39,6,39,11],[39,12,39,16],[39,17,39,21],[39,22,39,26],[38,0,38,5],[38,6,38,11],[38,12,38,16],[38,17,38,21],[38,22,38,26],[50,0,50,32],[41,0,41,5],[41,6,41,11],[41,12,41,16],[41,17,41,21],[41,22,41,26],[42,25,42,32],[40,6,40,11],[40,12,40,16],[47,27,47,32],[45,27,45,32],[46,0,46,5],[46,6,46,11],[46,12,46,16],[46,17,46,21],[46,22,46,26],[46,27,46,32],[45,0,45,5],[45,6,45,11],[47,17,47,21],[47,22,47,26],[40,17,40,21],[40,22,40,26],[40,27,40,32],[122,0,122,32],[42,0,42,23],[49,27,49,32],[49,0,49,5],[49,6,49,11],[49,12,49,16],[49,17,49,21],[49,22,49,26],[45,17,45,21],[45,22,45,26],[45,12,45,16],[44,12,44,16],[44,17,44,21],[44,22,44,26],[44,27,44,32],[48,0,48,5],[48,6,48,11],[48,12,48,16],[48,17,48,21],[48,22,48,26],[48,27,48,32],[47,0,47,5],[47,6,47,11],[47,12,47,16],[35,36,38,36],[39,36,41,36],[43,36,46,36],[47,36,49,36],[4,36,5,36],[16,0,16,23],[17,0,17,23],[19,25,19,32],[17,25,17,32],[18,0,18,23],[18,25,18,32],[16,25,16,32],[12,12,12,32],[13,0,13,10],[13,12,13,32],[14,0,14,10],[14,12,14,32],[12,0,12,10],[41,27,41,32],[43,0,43,32],[44,0,44,5],[44,6,44,11],[34,0,34,32],[19,0,19,23],[51,0,51,32],[83,1,83,32],[84,0,97,32],[99,1,99,32],[99,33,120,33],[99,34,120,34],[99,35,120,35],[99,36,120,36],[100,0,120,32],[54,1,54,32],[55,0,82,32],[53,0,53,32],[98,0,98,32],[55,33,82,33],[55,34,82,34],[55,35,82,35],[55,36,82,36],[123,0,123,32],[124,0,124,32],[125,0,125,25],[125,27,125,32],[126,0,126,32],[127,0,127,32],[128,0,128,9],[128,10,128,18],[128,19,128,25],[128,26,128,32],[129,0,129,9],[129,10,129,18],[129,19,129,25],[129,26,129,32],[129,34,130,34],[129,35,130,35],[129,36,130,36],[130,0,130,9],[130,10,130,18],[130,19,130,25],[130,26,130,32],[131,0,131,9],[131,10,131,18],[131,19,131,25],[131,26,131,32],[132,0,132,9],[132,10,132,18],[132,19,132,25],[132,26,132,32],[133,0,133,9],[133,10,133,18],[133,19,133,25],[133,26,133,32],[21,33,27,33],[21,34,27,34],[21,35,27,35],[21,36,27,36],[28,33,30,36],[32,33,34,36],[137,0,137,9],[137,10,137,18],[137,19,137,25],[137,26,137,32],[126,33,128,36],[129,33,130,33],[134,0,134,9],[134,10,134,18],[134,19,134,25],[134,26,134,32],[135,0,135,9],[135,10,135,18],[135,19,135,25],[135,26,135,32],[136,0,136,9],[136,10,136,18],[136,19,136,25],[136,26,136,32]]}
["I. INFORMACJE OGÓLNE O PROJEKCIE",null,null,null,null,null,null,null,null,null,null,null,null,null,null,null,null,null,null,null,null,null,null,null,null,null,null,null,null,null,null,null,null,"Uwagi/komentarze Ekspertów"]
["1. Informacje podstawowe o projekcie",null,null,null,null,null,null,null,null,null,null,null,null,null,null,null,null,null,null,null,null,null,null,null,null,null,null,null,null,null,null,null,null,"Ekspert od innowacyjności 1","Ekspert od innowacyjności 2","Ekspert finansowy","Uwagi MFiPR"]
[]
["Tytuł projektu",null,null,null,null,null,null,null,null,null,null,"16."]
["Skrócony opis projektu\n(1000 limit znaków)",null,null,null,null,null,null,null,null,null,null,"17."]
[]
["Rodzaj działalności gospodarczej",null,null,null,null,null,null,null,null,null,null,"18."]
["Zakres interwencji (dominujący)",null,null,null,null,null,null,null,null,null,null,"19.",{"$f":"IF(P32=Słowniki!Q6,Słowniki!G4,IF('I. Informacje o projekcie'!P32=Słowniki!Q7,Słowniki!G4,IF('I. Informacje o projekcie'!P32=Słowniki!Q8,Słowniki!G4,IF('II. Identyfikacja Wnioskodawcy'!$P$50=Słowniki!$K$19,Słowniki!$G$3,Słowniki!$G$2))))","v":"056 – Inwestycje w infrastrukturę, zdolności i wyposażenie w MŚP, związane bezpośrednio z działaniami badawczymi i innowacyjnymi"}]
["Duży projekt",null,null,null,null,null,null,null,null,null,null,"20.","NIE"]
["Duży projekt inwestycyjny",null,null,null,null,null,null,null,null,null,null,"21.","NIE"]
["Program operacyjny",null,null,null,null,null,null,null,null,null,null,"22.","Program Operacyjny Inteligentny Rozwój"]
["Oś priorytetowa",null,null,null,null,null,null,null,null,null,null,"23.","Wsparcie otoczenia i potencjału przedsiębiorstw do prowadzenia działalności B+R+I"]
["Działanie",null,null,null,null,null,null,null,null,null,null,"24.","Wsparcie inwestycji w infrastrukturę B+R przedsiębiorstw",null,null,null,null,null,null,null,null,null,null,null,null,null,null,null,null,null,null,null,null,null,null,null,null,null,null,null," "]
["Typ obszaru realizacji",null,null,null,null,null,null,null,null,null,null,"25.","07",null,null,1]
["Forma finansowania",null,null,null,null,null,null,null,null,null,null,"26.","Dotacja "]
[]
["Czy projekt został rozpoczęty przed dniem 1 lutego 2020 r.?",null,null,null,null,null,null,null,null,null,null,null,null,null,null,null,null,null,null,null,null,null,null,null,"27."]
["Data rozpoczęcia okresu kwalifikowalności\n",null,null,null,null,null,null,null,null,null,null,null,null,null,null,null,null,null,null,null,null,null,null,null,"28."]
["Data zakończenia okresu kwalifikowalności\n",null,null,null,null,null,null,null,null,null,null,null,null,null,null,null,null,null,null,null,null,null,null,null,"29."]
["Rok zakończenia okresu kwalifikowalności",null,null,null,null,null,null,null,null,null,null,null,null,null,null,null,null,null,null,null,null,null,null,null,"30."]
["Uzasadnienie konieczności przyśpieszenia realizacji projektu/ rozszerzenia jego zakresu o zakres dotyczący zwalczania pandemii COVID-19 (dotyczy projektów rozpoczętych przed dniem 1 lutego 2020 r.)"]
["31."]
[{"$f":"IF(Z17=\"tak\",\" \",\"nie dotyczy\")","v":"nie dotyczy"}]
[]
[]
[]
[]
[]
[]
["2. Klasyfikacja projektu"]
[]
["Powiązanie projektu ze Strategią Krajowych Inteligentnych Specjalizacji (KIS)",null,null,null,null,null,null,null,null,null,null,null,null,null,"32."]
[]
["3. Miejsce realizacji projektu"]
[]
["Główne miejsce realizacji projektu "]
["Województwo",null,null,null,null,null,"Powiat",null,null,null,null,null,"Gmina",null,null,null,null,"Miejscowość",null,null,null,null,"Kod pocztowy",null,null,null,null,"Poczta"]
["33.",null,null,null,null,null,"34.",null,null,null,null,null,"35.",null,null,null,null,"36.",null,null,null,null,"37.",null,null,null,null,"38."]
[]
["Ulica",null,null,null,null,null,"Nr budynku",null,null,null,null,null,"Nr lokalu",null,null,null,null,"Rodzaj lokalizacji",null,null,null,null,"Numer Księgi Wieczystej",null,null,null,null,"Podregion \n(NUTS 3)"]
["39.",null,null,null,null,null,"40.",null,null,null,null,null,"41.",null,null,null,null,"42.",null,null,null,null,"43.",null,null,null,null,"44."]
[]
["Czy projekt będzie realizowany w innym miejscu poza głównym miejscem realizacji?\n",null,null,null,null,null,null,null,null,null,null,null,null,null,null,null,null,null,null,null,null,null,null,null,"45."]
["Pozostałe miejsca realizacji projektu"]
["Województwo",null,null,null,null,null,"Powiat",null,null,null,null,null,"Gmina",null,null,null,null,"Miejscowość",null,null,null,null,"Kod pocztowy",null,null,null,null,"Poczta"]
["46.",null,null,null,null,null,"47.",null,null,null,null,null,"48.",null,null,null,null,"49.",null,null,null,null,"50.",null,null,null,null,"51."]
[{"$f":"IF($Z$43=\"nie\",\"Nie dotyczy\",\" \")","v":" "},null,null,null,null,null,{"$f":"IF($Z$43=\"nie\",\"Nie dotyczy\",\" \")","v":" "},null,null,null,null,null,{"$f":"IF($Z$43=\"nie\",\"Nie dotyczy\",\" \")","v":" "},null,null,null,null,{"$f":"IF($Z$43=\"nie\",\"Nie dotyczy\",\" \")","v":" "},null,null,null,null,{"$f":"IF($Z$43=\"nie\",\"Nie dotyczy\",\" \")","v":" "},null,null,null,null,{"$f":"IF($Z$43=\"nie\",\"Nie dotyczy\",\" \")","v":" "}]
["Ulica",null,null,null,null,null,"Nr budynku",null,null,null,null,null,"Nr lokalu",null,null,null,null,"Rodzaj lokalizacji",null,null,null,null,"Numer Księgi Wieczystej",null,null,null,null,"Podregion \n(NUTS 3)"]
["52.",null,null,null,null,null,"53.",null,null,null,null,null,"54.",null,null,null,null,"55.",null,null,null,null,"56.",null,null,null,null,"57."]
[{"$f":"IF($Z$43=\"nie\",\"Nie dotyczy\",\" \")","v":" "},null,null,null,null,null,{"$f":"IF($Z$43=\"nie\",\"Nie dotyczy\",\" \")","v":" "},null,null,null,null,null,{"$f":"IF($Z$43=\"nie\",\"Nie dotyczy\",\" \")","v":" "},null,null,null,null,{"$f":"IF($Z$43=\"nie\",\"Nie dotyczy\",\" \")","v":" "},null,null,null,null,{"$f":"IF($Z$43=\"nie\",\"Nie dotyczy\",\" \")","v":" "},null,null,null,null,{"$f":"IF($Z$43=\"nie\",\"Nie dotyczy\",\" \")","v":" "}]
[]
["4. Opis, cel i uzasadnienie realizacji projektu"]
[]
["Opis, cel i zakres planowanej inwestycji:"]
["58."]
[]
[]
[]
[]
[]
[]
[]
[]
[]
[]
[]
[]
[]
[]
[]
[]
[]
[]
[]
[]
[]
[]
[]
[]
[]
[]
[]
[]
["156.","Uzasadnienie wydatków zaplanowanych w ramach projektu :"]
[{"$f":"IF(AD53=\"Nie dotyczy\",\"Nie dotyczy\",\" \")","v":" "}]
[]
[]
[]
[]
[]
[]
[]
[]
[]
[]
[]
[]
[]
["Przewidywane efekty realizacji projektu:"]
["59."]
[]
[]
[]
[]
[]
[]
[]
[]
[]
[]
[]
[]
[]
[]
[]
[]
[]
[]
[]
[]
[]
[]
[" 1 Należy wypełnić w przypadku gdy inwestycja realizowana przez przedsiębiorcę innego niż MSP na terenie woj. mazowieckiego i jest inwestycją w rzeczowe aktywa trwałe lub wartości niematerialne i prawne związane z dywersyfikacją działalności zakładu"]
["5. Przygotowanie Wnioskodawcy do realizacji inwestycji"]
[]
["Czy projekt wymaga pozwoleń, licencji, koncesji, pozyskania zewnętrznego źródła finansowania?",null,null,null,null,null,null,null,null,null,null,null,null,null,null,null,null,null,null,null,null,null,null,null,null,null,"60.","TAK"]
[]
["Stan przygotowań – pozwolenia, licencje, koncesje, umowy"]
["Rodzaj dokumentu",null,null,null,null,null,null,null,null,null,"Status dokumentu",null,null,null,null,null,null,null,null,"Data wydania dokumentu",null,null,null,null,null,null,"Planowana data wydania dokumentu"]
["61.",null,null,null,null,null,null,null,null,null,"62.",null,null,null,null,null,null,null,null,"63.",null,null,null,null,null,null,"64."]
["Dokument potwierdzający pozyskanie zewnętrznego finansowania realizacji projektu(umowa: kredytu, leasingu, pożyczki, itp)",null,null,null,null,null,null,null,null,null,{"$f":"IF($AB126=\"nie\",\"Nie dotyczy\",\" \")","v":" "},null,null,null,null,null,null,null,null,{"$f":"IF($K131=\"nie dotyczy\",\"Nie dotyczy\",\" \")","v":" "},null,null,null,null,null,null,{"$f":"IF($K131=\"nie dotyczy\",\"Nie dotyczy\",\" \")","v":" "}]
["Dokumentacja OOŚ",null,null,null,null,null,null,null,null,null,{"$f":"IF($AB126=\"nie\",\"Nie dotyczy\",\" \")","v":" "},null,null,null,null,null,null,null,null,{"$f":"IF($K132=\"nie dotyczy\",\"Nie dotyczy\",\" \")","v":" "},null,null,null,null,null,null,{"$f":"IF($K132=\"nie dotyczy\",\"Nie dotyczy\",\" \")","v":" "}]
["Pozwolenie na budowę",null,null,null,null,null,null,null,null,null,{"$f":"IF($AB126=\"nie\",\"Nie dotyczy\",\" \")","v":" "},null,null,null,null,null,null,null,null,{"$f":"IF($K133=\"nie dotyczy\",\"Nie dotyczy\",\" \")","v":" "},null,null,null,null,null,null,{"$f":"IF($K133=\"nie dotyczy\",\"Nie dotyczy\",\" \")","v":" "}]
[{"$f":"IF($AB$126=\"nie\",\"Nie dotyczy\",\" \")","v":" "},null,null,null,null,null,null,null,null,null,{"$f":"IF($A134=\"nie dotyczy\",\"Nie dotyczy\",\" \")","v":" "},null,null,null,null,null,null,null,null,{"$f":"IF($A134=\"nie dotyczy\",\"Nie dotyczy\",\" \")","v":" "},null,null,null,null,null,null,{"$f":"IF($A134=\"nie dotyczy\",\"Nie dotyczy\",\" \")","v":" "}]
[{"$f":"IF($AB$126=\"nie\",\"Nie dotyczy\",\" \")","v":" "},null,null,null,null,null,null,null,null,null," ",null,null,null,null,null,null,null,null,{"$f":"IF($A135=\"nie dotyczy\",\"Nie dotyczy\",\" \")","v":" "},null,null,null,null,null,null," "]
[" ",null,null,null,null,null,null,null,null,null," ",null,null,null,null,null,null,null,null," ",null,null,null,null,null,null," "]
[" ",null,null,null,null,null,null,null,null,null," ",null,null,null,null,null,null,null,null," ",null,null,null,null,null,null," "]
[" ",null,null,null,null,null,null,null,null,null," ",null,null,null,null,null,null,null,null," ",null,null,null,null,null,null," "]

{"sheet":"II. Identyfikacja Wnioskodawcy","index":3,"n_rows":100,"n_cols":37,"rows_kept":100,"cut":false,"hidden":false,"merged":[[0,33,0,35],[2,33,3,35],[16,33,17,35],[94,27,94,32],[89,25,89,32],[51,0,51,32],[52,0,52,32],[50,0,50,32],[49,15,49,32],[17,0,17,32],[18,15,18,32],[14,0,14,13],[14,15,14,32],[15,0,15,13],[90,0,90,11],[90,12,90,32],[91,1,91,11],[88,0,88,11],[88,12,88,23],[88,24,88,32],[89,1,89,11],[89,13,89,23],[92,25,92,32],[91,13,91,32],[99,12,99,16],[99,17,99,21],[99,22,99,26],[99,27,99,32],[98,0,98,5],[98,6,98,11],[98,12,98,16],[98,17,98,21],[98,22,98,26],[98,27,98,32],[99,0,99,5],[99,6,99,11],[97,0,97,5],[97,6,97,11],[97,12,97,16],[97,17,97,21],[97,22,97,26],[97,27,97,32],[96,0,96,5],[96,6,96,11],[96,12,96,16],[96,17,96,21],[96,22,96,26],[96,27,96,32],[86,0,86,11],[86,12,86,32],[95,0,95,5],[95,6,95,11],[95,12,95,16],[95,17,95,21],[95,22,95,26],[95,27,95,32],[82,0,82,11],[82,12,82,32],[83,1,83,11],[83,13,83,32],[93,0,93,32],[94,0,94,5],[94,6,94,11],[94,12,94,16],[94,17,94,21],[94,22,94,26],[92,0,92,23],[87,1,87,11],[87,13,87,32],[15,15,15,32],[16,0,16,32],[57,0,57,5],[57,6,57,11],[57,12,57,16],[57,17,57,21],[57,22,57,26],[57,27,57,32],[64,0,64,22],[59,0,59,13],[59,15,59,32],[60,0,60,32],[61,0,61,32],[62,0,62,32],[63,0,63,32],[58,0,58,5],[58,6,58,11],[58,12,58,16],[58,17,58,21],[58,22,58,26],[58,27,58,32],[64,24,64,32],[18,0,18,13],[49,0,49,13],[5,0,5,13],[6,0,6,13],[6,15,6,32],[7,0,7,13],[7,15,7,32],[0,0,0,32],[1,0,1,32],[2,0,2,32],[3,0,3,32],[4,0,4,13],[4,15,4,32],[5,15,5,32],[11,0,11,13],[12,0,12,13],[13,0,13,13],[8,0,8,13],[8,15,8,32],[9,0,9,13],[10,0,10,13],[10,15,10,32],[9,15,9,32],[11,15,11,32],[12,15,12,32],[13,15,13,32],[76,1,76,11],[76,13,76,32],[77,0,77,32],[84,0,84,11],[84,12,84,23],[84,24,84,32],[85,1,85,11],[85,13,85,23],[85,25,85,32],[78,0,78,32],[80,0,80,11],[80,12,80,23],[80,24,80,32],[81,1,81,11],[81,13,81,23],[81,25,81,32],[79,0,79,22],[79,24,79,32],[74,1,74,11],[74,13,74,23],[74,25,74,32],[75,0,75,11],[75,12,75,32],[54,0,54,5],[54,6,54,11],[54,12,54,16],[54,17,54,21],[54,22,54,26],[54,27,54,32],[56,0,56,5],[56,6,56,11],[56,12,56,16],[56,17,56,21],[56,22,56,26],[56,27,56,32],[55,0,55,5],[55,6,55,11],[55,12,55,16],[55,17,55,21],[70,1,70,11],[70,13,70,23],[70,25,70,32],[73,0,73,11],[73,12,73,23],[73,24,73,32],[71,0,71,11],[71,12,71,32],[72,1,72,11],[72,13,72,32],[65,0,65,11],[65,12,65,23],[65,24,65,32],[66,1,66,11],[66,13,66,23],[66,25,66,32],[67,0,67,11],[67,12,67,32],[68,1,68,11],[68,13,68,32],[69,0,69,11],[69,12,69,23],[69,24,69,32],[53,6,53,11],[53,12,53,16],[53,17,53,21],[53,22,53,26],[53,27,53,32],[55,22,55,26],[55,27,55,32],[63,35,64,35],[60,33,62,35],[53,33,55,33],[53,34,55,34],[53,35,55,35],[56,33,58,33],[56,34,58,34],[56,35,58,35],[63,33,64,33],[63,34,64,34],[77,33,77,35],[67,35,68,35],[69,33,70,33],[69,34,70,34],[69,35,70,35],[71,33,72,33],[71,34,72,34],[71,35,72,35],[65,33,66,33],[65,34,66,34],[65,35,66,35],[67,33,68,33],[67,34,68,34],[75,33,76,33],[75,34,76,34],[75,35,76,35],[73,35,74,35],[97,33,99,33],[97,34,99,34],[97,35,99,35],[93,33,93,35],[84,33,85,33],[84,34,85,34],[84,35,85,35],[86,33,87,33],[86,34,87,34],[86,35,87,35],[88,33,89,33],[88,34,89,34],[88,35,89,35],[90,33,91,33],[90,34,91,34],[90,35,91,35],[94,33,96,33],[94,34,96,34],[94,35,96,35],[78,33,79,33],[78,34,79,34],[78,35,79,35],[80,33,81,33],[80,34,81,34],[80,35,81,35],[82,33,83,33],[82,34,83,34],[82,35,83,35],[19,33,21,36],[59,33,59,36],[53,36,55,36],[56,36,58,36],[53,0,53,5],[97,36,99,36],[75,36,76,36],[78,36,79,36],[80,36,81,36],[82,36,83,36],[84,36,85,36],[86,36,87,36],[88,36,89,36],[90,36,91,36],[94,36,96,36],[63,36,64,36],[65,36,66,36],[67,36,68,36],[69,36,70,36],[71,36,72,36],[73,36,74,36],[50,33,52,35],[73,33,74,33],[73,34,74,34],[24,8,24,11],[22,4,24,7],[22,0,24,3],[22,12,22,18],[22,19,22,25],[22,26,22,32],[24,12,24,18],[24,19,24,25],[24,26,24,32],[22,8,22,11],[19,0,20,3],[19,4,20,7],[19,8,20,11],[19,12,19,32],[20,12,20,18],[20,19,20,25],[20,26,20,32],[23,12,23,18],[23,19,23,25],[23,26,23,32],[23,8,23,11],[21,12,21,18],[21,19,21,25],[21,26,21,32],[21,8,21,11],[25,0,27,3],[25,4,27,7],[25,8,25,11],[25,12,25,18],[25,19,25,25],[25,26,25,32],[26,8,26,11],[26,12,26,18],[26,19,26,25],[26,26,26,32],[27,8,27,11],[27,12,27,18],[27,19,27,25],[27,26,27,32],[28,0,30,3],[28,4,30,7],[28,8,28,11],[28,12,28,18],[28,19,28,25],[28,26,28,32],[29,8,29,11],[29,12,29,18],[29,19,29,25],[29,26,29,32],[30,8,30,11],[30,12,30,18],[30,19,30,25],[30,26,30,32],[31,0,33,3],[31,4,33,7],[31,8,31,11],[31,12,31,18],[31,19,31,25],[31,26,31,32],[32,8,32,11],[32,12,32,18],[32,19,32,25],[32,26,32,32],[33,8,33,11],[33,12,33,18],[33,19,33,25],[33,26,33,32],[34,0,36,3],[34,4,36,7],[34,8,34,11],[34,12,34,18],[34,19,34,25],[34,26,34,32],[35,8,35,11],[35,12,35,18],[35,19,35,25],[35,26,35,32],[36,8,36,11],[36,12,36,18],[36,19,36,25],[36,26,36,32],[37,0,39,3],[37,4,39,7],[37,8,37,11],[37,12,37,18],[37,19,37,25],[37,26,37,32],[38,8,38,11],[38,12,38,18],[38,19,38,25],[38,26,38,32],[39,8,39,11],[39,12,39,18],[39,19,39,25],[39,26,39,32],[48,8,48,11],[40,0,42,3],[40,4,42,7],[40,8,40,11],[40,12,40,18],[40,19,40,25],[40,26,40,32],[41,8,41,11],[41,12,41,18],[41,19,41,25],[41,26,41,32],[42,8,42,11],[42,12,42,18],[42,19,42,25],[42,26,42,32],[48,12,48,18],[48,19,48,25],[48,26,48,32],[46,0,48,7],[43,0,45,3],[43,4,45,7],[43,8,43,11],[46,8,46,11],[46,12,46,18],[46,19,46,25],[46,26,46,32],[47,8,47,11],[47,12,47,18],[43,12,43,18],[43,19,43,25],[43,26,43,32],[44,8,44,11],[44,12,44,18],[44,19,44,25],[44,26,44,32],[45,8,45,11],[45,12,45,18],[45,19,45,25],[45,26,45,32],[47,19,47,25],[47,26,47,32]]}
["II. IDENTYFIKACJA WNIOSKODAWCY",null,null,null,null,null,null,null,null,null,null,null,null,null,null,null,null,null,null,null,null,null,null,null,null,null,null,null,null,null,null,null,null,"Uwagi/komentarze Ekspertów"]
[null,null,null,null,null,null,null,null,null,null,null,null,null,null,null,null,null,null,null,null,null,null,null,null,null,null,null,null,null,null,null,null,null,{"$f":"'I. Informacje o projekcie'!$AH$2","v":"Ekspert od innowacyjności 1"},{"$f":"'I. Informacje o projekcie'!$AI$2","v":"Ekspert od innowacyjności 2"},{"$f":"'I. Informacje o projekcie'!$AJ$2","v":"Ekspert finansowy"},{"$f":"'I. Informacje o projekcie'!$AK$2","v":"Uwagi MFiPR"}]
["1. Identyfikacja Wnioskodawcy"]
[]
["Nazwa Wnioskodawcy",null,null,null,null,null,null,null,null,null,null,null,null,null,"65."]
["Nazwa dokumentu rejestrowego ",null,null,null,null,null,null,null,null,null,null,null,null,null,"66."]
["Numer dokumentu rejestrowego",null,null,null,null,null,null,null,null,null,null,null,null,null,"67."]
["NIP Wnioskodawcy",null,null,null,null,null,null,null,null,null,null,null,null,null,68]
["REGON",null,null,null,null,null,null,null,null,null,null,null,null,null,"69."]
["Data rozpoczęcia działalności/rejestracji zgodnie z dokumentem rejestrowym",null,null,null,null,null,null,null,null,null,null,null,null,null,"70."]
["Forma prawna Wnioskodawcy",null,null,null,null,null,null,null,null,null,null,null,null,null,71]
["Forma własności",null,null,null,null,null,null,null,null,null,null,null,null,null,"72."]
["Kod PKD przeważającej działalności Wnioskodawcy",null,null,null,null,null,null,null,null,null,null,null,null,null,"73."]
["Kod PKD działalności, której dotyczy projekt",null,null,null,null,null,null,null,null,null,null,null,null,null,"74."]
["Kwalifikowalność VAT",null,null,null,null,null,null,null,null,null,null,null,null,null,"75."]
["Kraj pochodzenia kapitału zakładowego",null,null,null,null,null,null,null,null,null,null,null,null,null,"76."]
[]
["2.  Status Wnioskodawcy"]
["Rodzaj przedsiębiorstwa",null,null,null,null,null,null,null,null,null,null,null,null,null,"77."]
["Nazwa podmiotu i nr NIP",null,null,null,"Rodzaj",null,null,null,"Wielkość",null,null,null,"Rok"]
[null,null,null,null,null,null,null,null,null,null,null,null,2017,null,null,null,null,null,null,2018,null,null,null,null,null,null,2019]
["78.",null,null,null,"79.",null,null,null,"80.",null,null,null,"81.",null,null,null,null,null,null,"82.",null,null,null,null,null,null,"83."]
[{"$f":"CONCATENATE(P5,\" , NIP: \",P8)","v":" , NIP: "},null,null,null,"Wniosko-\ndawca",null,null,null,"zatrudnienie "]
[null,null,null,null,null,null,null,null,"obroty roczne"]
[null,null,null,null,null,null,null,null,"roczna suma bilansowa"]
[{"$f":"IF($P$19=\"samodzielne\",\"nie dotyczy\",\" \")","v":" "},null,null,null,{"$f":"IF($P$19=\"samodzielne\",\"nie dotyczy\",\" \")","v":" "},null,null,null,"zatrudnienie ",null,null,null,{"$f":"IF(A26=\"nie dotyczy\",0,IF(A26=\" \",0,IF(A26=0,0,\" \")))","v":0},null,null,null,null,null,null,{"$f":"IF(A26=\"nie dotyczy\",0,IF(A26=\" \",0,IF(A26=0,0,\" \")))","v":0},null,null,null,null,null,null,{"$f":"IF(A26=\"nie dotyczy\",0,IF(A26=\" \",0,IF(A26=0,0,\" \")))","v":0}]
[null,null,null,null,null,null,null,null,"obroty roczne",null,null,null,{"$f":"IF(A26=\"nie dotyczy\",0,IF(A26=\" \",0,IF(A26=0,0,\" \")))","v":0},null,null,null,null,null,null,{"$f":"IF(A26=\"nie dotyczy\",0,IF(A26=\" \",0,IF(A26=0,0,\" \")))","v":0},null,null,null,null,null,null,{"$f":"IF(A26=\"nie dotyczy\",0,IF(A26=\" \",0,IF(A26=0,0,\" \")))","v":0}]
[null,null,null,null,null,null,null,null,"roczna suma bilansowa",null,null,null,{"$f":"IF(A26=\"nie dotyczy\",0,IF(A26=\" \",0,IF(A26=0,0,\" \")))","v":0},null,null,null,null,null,null,{"$f":"IF(A26=\"nie dotyczy\",0,IF(A26=\" \",0,IF(A26=0,0,\" \")))","v":0},null,null,null,null,null,null,{"$f":"IF(A26=\"nie dotyczy\",0,IF(A26=\" \",0,IF(A26=0,0,\" \")))","v":0}]
[{"$f":"IF($P$19=\"samodzielne\",\"nie dotyczy\",\" \")","v":" "},null,null,null,{"$f":"IF($P$19=\"samodzielne\",\"nie dotyczy\",\" \")","v":" "},null,null,null,"zatrudnienie ",null,null,null,{"$f":"IF(A29=\"nie dotyczy\",0,IF(A29=\" \",0,IF(A29=0,0,\" \")))","v":0},null,null,null,null,null,null,{"$f":"IF(A29=\"nie dotyczy\",0,IF(A29=\" \",0,IF(A29=0,0,\" \")))","v":0},null,null,null,null,null,null,{"$f":"IF(A29=\"nie dotyczy\",0,IF(A29=\" \",0,IF(A29=0,0,\" \")))","v":0}]
[null,null,null,null,null,null,null,null,"obroty roczne",null,null,null,{"$f":"IF(A29=\"nie dotyczy\",0,IF(A29=\" \",0,IF(A29=0,0,\" \")))","v":0},null,null,null,null,null,null,{"$f":"IF(A29=\"nie dotyczy\",0,IF(A29=\" \",0,IF(A29=0,0,\" \")))","v":0},null,null,null,null,null,null,{"$f":"IF(A29=\"nie dotyczy\",0,IF(A29=\" \",0,IF(A29=0,0,\" \")))","v":0}]
[null,null,null,null,null,null,null,null,"roczna suma bilansowa",null,null,null,{"$f":"IF(A29=\"nie dotyczy\",0,IF(A29=\" \",0,IF(A29=0,0,\" \")))","v":0},null,null,null,null,null,null,{"$f":"IF(A29=\"nie dotyczy\",0,IF(A29=\" \",0,IF(A29=0,0,\" \")))","v":0},null,null,null,null,null,null,{"$f":"IF(A29=\"nie dotyczy\",0,IF(A29=\" \",0,IF(A29=0,0,\" \")))","v":0}]
[{"$f":"IF($P$19=\"samodzielne\",\"nie dotyczy\",\" \")","v":" "},null,null,null,{"$f":"IF($P$19=\"samodzielne\",\"nie dotyczy\",\" \")","v":" "},null,null,null,"zatrudnienie ",null,null,null,{"$f":"IF(A32=\"nie dotyczy\",0,IF(A32=\" \",0,IF(A32=0,0,\" \")))","v":0},null,null,null,null,null,null,{"$f":"IF(A32=\"nie dotyczy\",0,IF(A32=\" \",0,IF(A32=0,0,\" \")))","v":0},null,null,null,null,null,null,{"$f":"IF(A32=\"nie dotyczy\",0,IF(A32=\" \",0,IF(A32=0,0,\" \")))","v":0}]
[null,null,null,null,null,null,null,null,"obroty roczne",null,null,null,{"$f":"IF(A32=\"nie dotyczy\",0,IF(A32=\" \",0,IF(A32=0,0,\" \")))","v":0},null,null,null,null,null,null,{"$f":"IF(A32=\"nie dotyczy\",0,IF(A32=\" \",0,IF(A32=0,0,\" \")))","v":0},null,null,null,null,null,null,{"$f":"IF(A32=\"nie dotyczy\",0,IF(A32=\" \",0,IF(A32=0,0,\" \")))","v":0}]
[null,null,null,null,null,null,null,null,"roczna suma bilansowa",null,null,null,{"$f":"IF(A32=\"nie dotyczy\",0,IF(A32=\" \",0,IF(A32=0,0,\" \")))","v":0},null,null,null,null,null,null,{"$f":"IF(A32=\"nie dotyczy\",0,IF(A32=\" \",0,IF(A32=0,0,\" \")))","v":0},null,null,null,null,null,null,{"$f":"IF(A32=\"nie dotyczy\",0,IF(A32=\" \",0,IF(A32=0,0,\" \")))","v":0}]
[{"$f":"IF($P$19=\"samodzielne\",\"nie dotyczy\",\" \")","v":" "},null,null,null,{"$f":"IF($P$19=\"samodzielne\",\"nie dotyczy\",\" \")","v":" "},null,null,null,"zatrudnienie ",null,null,null,{"$f":"IF(A35=\"nie dotyczy\",0,IF(A35=\" \",0,IF(A35=0,0,\" \")))","v":0},null,null,null,null,null,null,{"$f":"IF(A35=\"nie dotyczy\",0,IF(A35=\" \",0,IF(A35=0,0,\" \")))","v":0},null,null,null,null,null,null,{"$f":"IF(A35=\"nie dotyczy\",0,IF(A35=\" \",0,IF(A35=0,0,\" \")))","v":0}]
[null,null,null,null,null,null,null,null,"obroty roczne",null,null,null,{"$f":"IF(A35=\"nie dotyczy\",0,IF(A35=\" \",0,IF(A35=0,0,\" \")))","v":0},null,null,null,null,null,null,{"$f":"IF(A35=\"nie dotyczy\",0,IF(A35=\" \",0,IF(A35=0,0,\" \")))","v":0},null,null,null,null,null,null,{"$f":"IF(A35=\"nie dotyczy\",0,IF(A35=\" \",0,IF(A35=0,0,\" \")))","v":0}]
[null,null,null,null,null,null,null,null,"roczna suma bilansowa",null,null,null,{"$f":"IF(A35=\"nie dotyczy\",0,IF(A35=\" \",0,IF(A35=0,0,\" \")))","v":0},null,null,null,null,null,null,{"$f":"IF(A35=\"nie dotyczy\",0,IF(A35=\" \",0,IF(A35=0,0,\" \")))","v":0},null,null,null,null,null,null,{"$f":"IF(A35=\"nie dotyczy\",0,IF(A35=\" \",0,IF(A35=0,0,\" \")))","v":0}]
[{"$f":"IF($P$19=\"samodzielne\",\"nie dotyczy\",\" \")","v":" "},null,null,null,{"$f":"IF($P$19=\"samodzielne\",\"nie dotyczy\",\" \")","v":" "},null,null,null,"zatrudnienie ",null,null,null,{"$f":"IF(A38=\"nie dotyczy\",0,IF(A38=\" \",0,IF(A38=0,0,\" \")))","v":0},null,null,null,null,null,null,{"$f":"IF(A38=\"nie dotyczy\",0,IF(A38=\" \",0,IF(A38=0,0,\" \")))","v":0},null,null,null,null,null,null,{"$f":"IF(A38=\"nie dotyczy\",0,IF(A38=\" \",0,IF(A38=0,0,\" \")))","v":0}]
[null,null,null,null,null,null,null,null,"obroty roczne",null,null,null,{"$f":"IF(A38=\"nie dotyczy\",0,IF(A38=\" \",0,IF(A38=0,0,\" \")))","v":0},null,null,null,null,null,null,{"$f":"IF(A38=\"nie dotyczy\",0,IF(A38=\" \",0,IF(A38=0,0,\" \")))","v":0},null,null,null,null,null,null,{"$f":"IF(A38=\"nie dotyczy\",0,IF(A38=\" \",0,IF(A38=0,0,\" \")))","v":0}]
[null,null,null,null,null,null,null,null,"roczna suma bilansowa",null,null,null,{"$f":"IF(A38=\"nie dotyczy\",0,IF(A38=\" \",0,IF(A38=0,0,\" \")))","v":0},null,null,null,null,null,null,{"$f":"IF(A38=\"nie dotyczy\",0,IF(A38=\" \",0,IF(A38=0,0,\" \")))","v":0},null,null,null,null,null,null,{"$f":"IF(A38=\"nie dotyczy\",0,IF(A38=\" \",0,IF(A38=0,0,\" \")))","v":0}]
[{"$f":"IF($P$19=\"samodzielne\",\"nie dotyczy\",\" \")","v":" "},null,null,null,{"$f":"IF($P$19=\"samodzielne\",\"nie dotyczy\",\" \")","v":" "},null,null,null,"zatrudnienie ",null,null,null,{"$f":"IF(A41=\"nie dotyczy\",0,IF(A41=\" \",0,IF(A41=0,0,\" \")))","v":0},null,null,null,null,null,null,{"$f":"IF(A41=\"nie dotyczy\",0,IF(A41=\" \",0,IF(A41=0,0,\" \")))","v":0},null,null,null,null,null,null,{"$f":"IF(A41=\"nie dotyczy\",0,IF(A41=\" \",0,IF(A41=0,0,\" \")))","v":0}]
[null,null,null,null,null,null,null,null,"obroty roczne",null,null,null,{"$f":"IF(A41=\"nie dotyczy\",0,IF(A41=\" \",0,IF(A41=0,0,\" \")))","v":0},null,null,null,null,null,null,{"$f":"IF(A41=\"nie dotyczy\",0,IF(A41=\" \",0,IF(A41=0,0,\" \")))","v":0},null,null,null,null,null,null,{"$f":"IF(A41=\"nie dotyczy\",0,IF(A41=\" \",0,IF(A41=0,0,\" \")))","v":0}]
[null,null,null,null,null,null,null,null,"roczna suma bilansowa",null,null,null,{"$f":"IF(A41=\"nie dotyczy\",0,IF(A41=\" \",0,IF(A41=0,0,\" \")))","v":0},null,null,null,null,null,null,{"$f":"IF(A41=\"nie dotyczy\",0,IF(A41=\" \",0,IF(A41=0,0,\" \")))","v":0},null,null,null,null,null,null,{"$f":"IF(A41=\"nie dotyczy\",0,IF(A41=\" \",0,IF(A41=0,0,\" \")))","v":0}]
[{"$f":"IF($P$19=\"samodzielne\",\"nie dotyczy\",\" \")","v":" "},null,null,null,{"$f":"IF($P$19=\"samodzielne\",\"nie dotyczy\",\" \")","v":" "},null,null,null,"zatrudnienie ",null,null,null,{"$f":"IF(A44=\"nie dotyczy\",0,IF(A44=\" \",0,IF(A44=0,0,\" \")))","v":0},null,null,null,null,null,null,{"$f":"IF(A44=\"nie dotyczy\",0,IF(A44=\" \",0,IF(A44=0,0,\" \")))","v":0},null,null,null,null,null,null,{"$f":"IF(A44=\"nie dotyczy\",0,IF(A44=\" \",0,IF(A44=0,0,\" \")))","v":0}]
[null,null,null,null,null,null,null,null,"obroty roczne",null,null,null,{"$f":"IF(A44=\"nie dotyczy\",0,IF(A44=\" \",0,IF(A44=0,0,\" \")))","v":0},null,null,null,null,null,null,{"$f":"IF(A44=\"nie dotyczy\",0,IF(A44=\" \",0,IF(A44=0,0,\" \")))","v":0},null,null,null,null,null,null,{"$f":"IF(A44=\"nie dotyczy\",0,IF(A44=\" \",0,IF(A44=0,0,\" \")))","v":0}]
[null,null,null,null,null,null,null,null,"roczna suma bilansowa",null,null,null,{"$f":"IF(A44=\"nie dotyczy\",0,IF(A44=\" \",0,IF(A44=0,0,\" \")))","v":0},null,null,null,null,null,null,{"$f":"IF(A44=\"nie dotyczy\",0,IF(A44=\" \",0,IF(A44=0,0,\" \")))","v":0},null,null,null,null,null,null,{"$f":"IF(A44=\"nie dotyczy\",0,IF(A44=\" \",0,IF(A44=0,0,\" \")))","v":0}]
["RAZEM",null,null,null,null,null,null,null,"zatrudnienie ",null,null,null,{"$f":"IFERROR(M23+M26+M29+M32+M35+M38+M41+M44,\"-\")","v":0},null,null,null,null,null,null,{"$f":"IFERROR(T23+T26+T29+T32+T35+T38+T41+T44,\"-\")","v":0},null,null,null,null,null,null,{"$f":"IFERROR(AA23+AA26+AA29+AA32+AA35+AA38+AA41+AA44,\"-\")","v":0}]
[null,null,null,null,null,null,null,null,"obroty roczne",null,null,null,{"$f":"IFERROR(M24+M27+M30+M33+M36+M39+M42+M45,\"-\")","v":0},null,null,null,null,null,null,{"$f":"IFERROR(T24+T27+T30+T33+T36+T39+T42+T45,\"-\")","v":0},null,null,null,null,null,null,{"$f":"IFERROR(AA24+AA27+AA30+AA33+AA36+AA39+AA42+AA45,\"-\")","v":0}]
[null,null,null,null,null,null,null,null,"roczna suma bilansowa",null,null,null,{"$f":"IFERROR(M25+M28+M31+M34+M37+M40+M43+M46,\"-\")","v":0},null,null,null,null,null,null,{"$f":"IFERROR(T25+T28+T31+T34+T37+T40+T43+T46,\"-\")","v":0},null,null,null,null,null,null,{"$f":"IFERROR(AA25+AA28+AA31+AA34+AA37+AA40+AA43+AA46,\"-\")","v":0}]
["Status Wnioskodawcy",null,null,null,null,null,null,null,null,null,null,null,null,null,"84."]
[]
["3.  Adres siedziby"]
[]
["Województwo",null,null,null,null,null,"Powiat",null,null,null,null,null,"Gmina",null,null,null,null,"Miejscowość",null,null,null,null,"Kod pocztowy",null,null,null,null,"Poczta"]
["85.",null,null,null,null,null,"86.",null,null,null,null,null,"87.",null,null,null,null,"88.",null,null,null,null,"89.",null,null,null,null,"90."]
[]
["Ulica",null,null,null,null,null,"Nr budynku",null,null,null,null,null,"Nr lokalu",null,null,null,null,"Telefon",null,null,null,null,"Faks",null,null,null,null,"Adres e-mail"]
["91.",null,null,null,null,null,"92.",null,null,null,null,null,"93.",null,null,null,null,"94.",null,null,null,null,"95.",null,null,null,null,"96."]
[]
["Adres strony internetowej Wnioskodawcy",null,null,null,null,null,null,null,null,null,null,null,null,null,"97."]
[]
["4.  Reprezentacja Wnioskodawcy oraz dane do korespondencji"]
[]
["Osoba/y upoważniona/e do podpisania wniosku "]
["Liczba osób podpisujących wniosek o dofinansowanie",null,null,null,null,null,null,null,null,null,null,null,null,null,null,null,null,null,null,null,null,null,null,"98.",1]
["1. Imię i nazwisko",null,null,null,null,null,null,null,null,null,null,null,"Stanowisko ",null,null,null,null,null,null,null,null,null,null,null,"Numer telefonu"]
["99.",null,null,null,null,null,null,null,null,null,null,null,"100.",null,null,null,null,null,null,null,null,null,null,null,"101."]
["Numer faksu",null,null,null,null,null,null,null,null,null,null,null,"Adres e-mail"]
["102.",null,null,null,null,null,null,null,null,null,null,null,"103."]
["2. Imię i nazwisko",null,null,null,null,null,null,null,null,null,null,null,"Stanowisko ",null,null,null,null,null,null,null,null,null,null,null,"Numer telefonu"]
["104.",{"$f":"IF($Y$65=1,\"Nie dotyczy\",\" \")","v":"Nie dotyczy"},null,null,null,null,null,null,null,null,null,null,"105.",{"$f":"IF($Y$65=1,\"Nie dotyczy\",\" \")","v":"Nie dotyczy"},null,null,null,null,null,null,null,null,null,null,"106.",{"$f":"IF($Y$65=1,\"Nie dotyczy\",\" \")","v":"Nie dotyczy"}]
["Numer faksu",null,null,null,null,null,null,null,null,null,null,null,"Adres e-mail"]
["107.",{"$f":"IF($Y$65=1,\"Nie dotyczy\",\" \")","v":"Nie dotyczy"},null,null,null,null,null,null,null,null,null,null,"108.",{"$f":"IF($Y$65=1,\"Nie dotyczy\",\" \")","v":"Nie dotyczy"}]
["3. Imię i nazwisko",null,null,null,null,null,null,null,null,null,null,null,"Stanowisko ",null,null,null,null,null,null,null,null,null,null,null,"Numer telefonu"]
["109.",{"$f":"IF($Y$65=3,\" \",\"Nie dotyczy\")","v":"Nie dotyczy"},null,null,null,null,null,null,null,null,null,null,"110.",{"$f":"IF($Y$65=3,\" \",\"Nie dotyczy\")","v":"Nie dotyczy"},null,null,null,null,null,null,null,null,null,null,"111.",{"$f":"IF($Y$65=3,\" \",\"Nie dotyczy\")","v":"Nie dotyczy"}]
["Numer faksu",null,null,null,null,null,null,null,null,null,null,null,"Adres e-mail"]
["112.",{"$f":"IF($Y$65=3,\" \",\"Nie dotyczy\")","v":"Nie dotyczy"},null,null,null,null,null,null,null,null,null,null,"113.",{"$f":"IF($Y$65=3,\" \",\"Nie dotyczy\")","v":"Nie dotyczy"}]
[]
["Osoba/y upoważniona/e do kontaktu "]
["Liczba osób upoważnionych do kontaktu",null,null,null,null,null,null,null,null,null,null,null,null,null,null,null,null,null,null,null,null,null,null,"114.",1]
["1. Imię i nazwisko",null,null,null,null,null,null,null,null,null,null,null,"Stanowisko ",null,null,null,null,null,null,null,null,null,null,null,"Numer telefonu"]
["115.",null,null,null,null,null,null,null,null,null,null,null,"116.",null,null,null,null,null,null,null,null,null,null,null,"117."]
["Numer faksu",null,null,null,null,null,null,null,null,null,null,null,"Adres e-mail"]
["118.",null,null,null,null,null,null,null,null,null,null,null,"119."]
["2. Imię i nazwisko",null,null,null,null,null,null,null,null,null,null,null,"Stanowisko ",null,null,null,null,null,null,null,null,null,null,null,"Numer telefonu"]
["120.",{"$f":"IF($Y$80=1,\"Nie dotyczy\",\" \")","v":"Nie dotyczy"},null,null,null,null,null,null,null,null,null,null,"121.",{"$f":"IF($Y$80=1,\"Nie dotyczy\",\" \")","v":"Nie dotyczy"},null,null,null,null,null,null,null,null,null,null,"122.",{"$f":"IF($Y$80=1,\"Nie dotyczy\",\" \")","v":"Nie dotyczy"}]
["Numer faksu",null,null,null,null,null,null,null,null,null,null,null,"Adres e-mail"]
["123.",{"$f":"IF($Y$80=1,\"Nie dotyczy\",\" \")","v":"Nie dotyczy"},null,null,null,null,null,null,null,null,null,null,"124.",{"$f":"IF($Y$80=1,\"Nie dotyczy\",\" \")","v":"Nie dotyczy"}]
["3. Imię i nazwisko",null,null,null,null,null,null,null,null,null,null,null,"Stanowisko ",null,null,null,null,null,null,null,null,null,null,null,"Numer telefonu"]
["125.",{"$f":"IF($Y$80=3,\" \",\"Nie dotyczy\")","v":"Nie dotyczy"},null,null,null,null,null,null,null,null,null,null,"126.",{"$f":"IF($Y$80=3,\" \",\"Nie dotyczy\")","v":"Nie dotyczy"},null,null,null,null,null,null,null,null,null,null,"127.",{"$f":"IF($Y$80=3,\" \",\"Nie dotyczy\")","v":"Nie dotyczy"}]
["Numer faksu",null,null,null,null,null,null,null,null,null,null,null,"Adres e-mail"]
["128.",{"$f":"IF($Y$80=3,\" \",\"Nie dotyczy\")","v":"Nie dotyczy"},null,null,null,null,null,null,null,null,null,null,"129.",{"$f":"IF($Y$80=3,\" \",\"Nie dotyczy\")","v":"Nie dotyczy"}]
["Czy adres do korespondencji jest inny niż adres siedziby?",null,null,null,null,null,null,null,null,null,null,null,null,null,null,null,null,null,null,null,null,null,null,null,"130."]
["Adres korespondencyjny Wnioskodawcy (jeśli inny niż adres siedziby) "]
["Województwo",null,null,null,null,null,"Powiat",null,null,null,null,null,"Gmina",null,null,null,null,"Miejscowość",null,null,null,null,"Kod pocztowy",null,null,null,null,"Poczta"]
["131.",null,null,null,null,null,"132.",null,null,null,null,null,"133.",null,null,null,null,"134.",null,null,null,null,"135.",null,null,null,null,"136."]
[{"$f":"IF($Z$93=\"nie\",\"Nie dotyczy\",\" \")","v":" "},null,null,null,null,null,{"$f":"IF($Z$93=\"nie\",\"Nie dotyczy\",\" \")","v":" "},null,null,null,null,null,{"$f":"IF($Z$93=\"nie\",\"Nie dotyczy\",\" \")","v":" "},null,null,null,null,{"$f":"IF($Z$93=\"nie\",\"Nie dotyczy\",\" \")","v":" "},null,null,null,null,{"$f":"IF($Z$93=\"nie\",\"Nie dotyczy\",\" \")","v":" "},null,null,null,null,{"$f":"IF($Z$93=\"nie\",\"Nie dotyczy\",\" \")","v":" "}]
["Ulica",null,null,null,null,null,"Nr budynku",null,null,null,null,null,"Nr lokalu",null,null,null,null,"Telefon",null,null,null,null,"Faks",null,null,null,null,"Adres e-mail"]
["137.",null,null,null,null,null,"138.",null,null,null,null,null,"139.",null,null,null,null,"140.",null,null,null,null,"141.",null,null,null,null,"142."]
[{"$f":"IF($Z$93=\"nie\",\"Nie dotyczy\",\" \")","v":" "},null,null,null,null,null,{"$f":"IF($Z$93=\"nie\",\"Nie dotyczy\",\" \")","v":" "},null,null,null,null,null,{"$f":"IF($Z$93=\"nie\",\"Nie dotyczy\",\" \")","v":" "},null,null,null,null,{"$f":"IF($Z$93=\"nie\",\"Nie dotyczy\",\" \")","v":" "},null,null,null,null,{"$f":"IF($Z$93=\"nie\",\"Nie dotyczy\",\" \")","v":" "},null,null,null,null,{"$f":"IF($Z$93=\"nie\",\"Nie dotyczy\",\" \")","v":" "}]

{"sheet":"III. Analiza Finansowa","index":4,"n_rows":147,"n_cols":36,"rows_kept":147,"cut":false,"hidden":false,"merged":[[146,14,151,14],[146,15,151,15],[139,1,139,3],[129,1,129,3],[131,1,131,3],[135,1,135,3],[146,0,146,13],[147,0,151,13],[104,4,104,8],[104,9,104,13],[116,1,116,3],[140,1,140,3],[141,1,141,3],[142,1,142,3],[143,1,143,3],[145,1,145,3],[137,0,137,3],[138,1,138,3],[108,1,108,3],[109,1,109,3],[110,1,110,3],[113,1,113,3],[144,1,144,3],[115,1,115,3],[0,35,0,38],[21,0,25,13],[20,0,20,13],[0,0,0,13],[0,14,0,15],[2,14,3,14],[2,15,3,15],[4,14,7,15],[21,14,25,14],[21,15,25,15],[20,14,20,15],[7,8,8,8],[1,0,1,13],[2,0,2,3],[2,5,2,8],[4,0,4,13],[19,1,19,3],[12,1,12,3],[5,0,6,13],[7,13,8,13],[119,1,119,3],[120,1,120,3],[127,1,127,3],[28,0,28,13],[102,0,102,13],[103,0,103,13],[107,0,107,3],[38,1,38,3],[42,1,42,3],[36,1,36,3],[84,1,84,3],[85,0,85,3],[86,0,86,3],[93,1,93,3],[58,1,58,3],[54,11,55,11],[54,12,55,12],[54,13,55,13],[105,0,106,3],[105,4,106,4],[105,5,106,5],[105,6,106,6],[51,0,51,13],[52,0,53,13],[7,9,8,9],[54,8,55,8],[34,1,34,3],[35,1,35,3],[44,0,44,13],[45,0,49,13],[30,8,31,8],[30,9,31,9],[30,10,31,10],[30,11,31,11],[30,12,31,12],[30,13,31,13],[7,0,7,3],[9,0,9,3],[32,0,32,3],[7,10,8,10],[18,1,18,3],[41,1,41,3],[7,11,8,11],[7,12,8,12],[95,0,95,13],[92,1,92,3],[78,1,78,3],[80,1,80,3],[76,1,76,3],[54,0,54,3],[51,14,56,15],[68,1,68,3],[59,1,59,3],[62,1,62,3],[45,15,50,15],[105,13,106,13],[89,1,89,3],[90,1,90,3],[91,1,91,3],[64,1,64,3],[56,0,56,3],[57,1,57,3],[87,1,87,3],[88,1,88,3],[69,1,69,3],[105,7,106,7],[105,8,106,8],[105,9,106,9],[105,10,106,10],[105,11,106,11],[105,12,106,12],[94,1,94,3],[96,14,100,14],[54,9,55,9],[54,10,55,10],[96,15,100,15],[95,14,95,15],[96,0,100,13],[30,4,31,4],[30,5,31,5],[30,6,31,6],[30,7,31,7],[13,1,13,3],[15,1,15,3],[10,1,10,3],[11,1,11,3],[45,14,50,14],[27,0,27,13],[29,4,29,8],[29,9,29,13],[33,1,33,3]]}
["III. ANALIZA FINANSOWA",null,null,null,null,null,null,null,null,null,null,null,null,null,"Uwagi/komentarze ",null,null,null,null,null,null,null,null,null,null,null,null,null,null,null,null,null,null,null,null,"Uwagi/komentarze Ekspertów"]
["1. Analiza sytuacji finansowej Wnioskodawcy",null,null,null,null,null,null,null,null,null,null,null,null,null,{"$f":"'I. Informacje o projekcie'!$AJ$2","v":"Ekspert finansowy"},{"$f":"'I. Informacje o projekcie'!$AK$2","v":"Uwagi MFiPR"}]
[]
[]
["1.A. SYTUACJA FINANSOWA WNIOSKODAWCÓW PROWADZĄCYCH KSIĘGĘ PRZYCHODÓW I ROZCHODÓW (KPIR) (BEZ PROJEKTU)"]
["Proszę uzupełnić podstawowe dane finansowe na podstawie dokummentów ksiegowych Wnioskodawcy za ostatnie 3 lata obrachunkowe. W przypadku braku ostatecznych danych za okres 1 kwartału 2020 r. należy zaprezentować dane wstępne. Proszę sporządzić prognozę sytuacji finansowej na okres realizacji i trwałości projektu dla działalności dotychczasowej bez projektu. Możliwe wprowadzenie danych samodzielnie bądź z wykorzystaniem wskaźnika dynamiki w kolumnie I. W przypadku niekorzystania z formuły Dynamicznego prognozowania (kolumna I), należy wprowadzić samodzielnie przygotowane dane prognozy do arkusza. Dynamika obliczana wobec danych za 2019 rok. Dane w tys. zł. W polu Komentarz proszę o scharakteryzowanie najważniejszych założeń do prognozy (zwłaszcza założenia istotnej poprawy sytuacji, osiągania strat, trudnej sytuacji, istotnej zmienności skali działalności, struktury finansowania. "]
[]
["dane w tys. zł.",null,null,null,"Dane historyczne\n2017","Dane historyczne\n2018","Dane historyczne\n2019","Dane historyczne\n31.03.2020","Zakładana rokroczna dynamika przychodów / kosztów","Prognoza\nrok n +1","Prognoza\nrok n +2","Prognoza\nrok n +3","Prognoza\nrok n +4","Prognoza\nrok n +5"]
[null,null,null,null,"Rok n-2","Rok n-1","Rok n"]
["Podsumowanie wybranych danych finansowych"]
[1,"Przychody ze sprzedaży",null,null,null,null,null,null,null,{"$f":"G11*$I11","v":0},{"$f":"J11*$I11","v":0},{"$f":"K11*$I11","v":0},{"$f":"IF('II. Identyfikacja Wnioskodawcy'!$P$50=Słowniki!$K$19,L11*$I11,\"nie dotyczy\")","v":"nie dotyczy"},{"$f":"IF('II. Identyfikacja Wnioskodawcy'!$P$50=Słowniki!$K$19,M11*$I11,\"nie dotyczy\")","v":"nie dotyczy"}]
[2,"Koszty sprzedanych towarów (bez wartości zapasu)",null,null,null,null,null,null,null,{"$f":"G12*$I12","v":0},{"$f":"J12*$I12","v":0},0,{"$f":"IF('II. Identyfikacja Wnioskodawcy'!$P$50=Słowniki!$K$19,L12*$I12,\"nie dotyczy\")","v":"nie dotyczy"},{"$f":"IF('II. Identyfikacja Wnioskodawcy'!$P$50=Słowniki!$K$19,M12*$I12,\"nie dotyczy\")","v":"nie dotyczy"}]
[3,"Marża handlowa (1-2)",null,null,{"$f":"E11-E12","v":0},{"$f":"F11-F12","v":0},0,{"$f":"H11-H12","v":0},"x",{"$f":"J11-J12","v":0},0,0,{"$f":"IF('II. Identyfikacja Wnioskodawcy'!$P$50=Słowniki!$K$19,M11-M12,\"nie dotyczy\")","v":"nie dotyczy"},{"$f":"IF('II. Identyfikacja Wnioskodawcy'!$P$50=Słowniki!$K$19,N11-N12,\"nie dotyczy\")","v":"nie dotyczy"}]
[4,"Pozostałe przychody",null,null,null,null,null,null,null,0,{"$f":"J14*$I14","v":0},0,{"$f":"IF('II. Identyfikacja Wnioskodawcy'!$P$50=Słowniki!$K$19,L14*$I14,\"nie dotyczy\")","v":"nie dotyczy"},{"$f":"IF('II. Identyfikacja Wnioskodawcy'!$P$50=Słowniki!$K$19,M14*$I14,\"nie dotyczy\")","v":"nie dotyczy"}]
[5,"Pozostałe wydatki",null,null,null,null,null,null,null,0,{"$f":"J15*$I15","v":0},0,{"$f":"IF('II. Identyfikacja Wnioskodawcy'!$P$50=Słowniki!$K$19,L15*$I15,\"nie dotyczy\")","v":"nie dotyczy"},{"$f":"IF('II. Identyfikacja Wnioskodawcy'!$P$50=Słowniki!$K$19,M15*$I15,\"nie dotyczy\")","v":"nie dotyczy"}]
[6,"Dochód (3+4-5)",null,null,{"$f":"E13+E14-E15","v":0},{"$f":"F13+F14-F15","v":0},0,0,"x",0,0,0,{"$f":"IF('II. Identyfikacja Wnioskodawcy'!$P$50=Słowniki!$K$19,M13+M14-M15,\"nie dotyczy\")","v":"nie dotyczy"},{"$f":"IF('II. Identyfikacja Wnioskodawcy'!$P$50=Słowniki!$K$19,N13+N14-N15,\"nie dotyczy\")","v":"nie dotyczy"}]
[7,"Wydatki niestanowiące kosztów podatkowych",null,null,null,null,null,null,null,{"$f":"G17*$I17","v":0},0,0,{"$f":"IF('II. Identyfikacja Wnioskodawcy'!$P$50=Słowniki!$K$19,L17*$I17,\"nie dotyczy\")","v":"nie dotyczy"},{"$f":"IF('II. Identyfikacja Wnioskodawcy'!$P$50=Słowniki!$K$19,M17*$I17,\"nie dotyczy\")","v":"nie dotyczy"}]
[8,"Zysk brutto (6-7)",null,null,{"$f":"E16-E17","v":0},{"$f":"F16-F17","v":0},0,0,"x",{"$f":"J16-J17","v":0},{"$f":"K16-K17","v":0},{"$f":"L16-L17","v":0},{"$f":"IF('II. Identyfikacja Wnioskodawcy'!$P$50=Słowniki!$K$19,M16-M17,\"nie dotyczy\")","v":"nie dotyczy"},{"$f":"IF('II. Identyfikacja Wnioskodawcy'!$P$50=Słowniki!$K$19,N16-N17,\"nie dotyczy\")","v":"nie dotyczy"}]
[9,"Środki pobrane przez właścicieli (historia w zł, prognoza - dywidenda jako % zysku brutto)",null,null,null,null,null,null,null,{"$f":"J18*$I19","v":0},{"$f":"K18*$I19","v":0},{"$f":"L18*$I19","v":0},{"$f":"IF('II. Identyfikacja Wnioskodawcy'!$P$50=Słowniki!$K$19,M18*$I19,\"nie dotyczy\")","v":"nie dotyczy"},{"$f":"IF('II. Identyfikacja Wnioskodawcy'!$P$50=Słowniki!$K$19,N18*$I19,\"nie dotyczy\")","v":"nie dotyczy"}]
[10,"Zysk pozostający w jednostce (8-9)",null,null,{"$f":"E18-E19","v":0},{"$f":"F18-F19","v":0},0,0,"x",{"$f":"J18-J19","v":0},0,0,{"$f":"IF('II. Identyfikacja Wnioskodawcy'!$P$50=Słowniki!$K$19,M18-M19,\"nie dotyczy\")","v":"nie dotyczy"},{"$f":"IF('II. Identyfikacja Wnioskodawcy'!$P$50=Słowniki!$K$19,N18-N19,\"nie dotyczy\")","v":"nie dotyczy"}]
["Komentarz:"]
[]
[]
[]
[]
[]
[]
["1.B. SYTUACJA FINANSOWA WNIOSKODAWCÓW PROWADZĄCYCH KSIĘGĘ PRZYCHODÓW I ROZCHODÓW (KPIR) ( PROJEKT I ŁĄCZNIE)"]
["Sekcja 1B obejmuje wyłącznie prognozę dla projektu oraz dla działalności połączonej obejmującej projekt plus działalność dotychczasową. Proszę wypałnić pola różowe. Dane w tys. zł."]
[null,null,null,null,"PROGNOZA WYŁĄCZNIE DLA PROJEKTU",null,null,null,null,"PROGNOZA DLA PROJEKTU I DZIAŁALNOŚCI DOTYCHCZASOWEJ"]
["dane w tys. zł.",null,null,null,"Prognoza\nrok n +1","Prognoza\nrok n +2","Prognoza\nrok n +3","Prognoza\nrok n +4","Prognoza\nrok n +5","Prognoza\nrok n +1","Prognoza\nrok n +2","Prognoza\nrok n +3","Prognoza\nrok n +4","Prognoza\nrok n +5"]
[]
["Podsumowanie wybranych danych finansowych"]
[1,"Przychody ze sprzedaży",null,null,null,null,null,{"$f":"IF('II. Identyfikacja Wnioskodawcy'!$P$50=Słowniki!$K$19,\" \",\"nie dotyczy\")","v":"nie dotyczy"},{"$f":"IF('II. Identyfikacja Wnioskodawcy'!$P$50=Słowniki!$K$19,\" \",\"nie dotyczy\")","v":"nie dotyczy"},{"$f":"E34+J11","v":0},{"$f":"F34+K11","v":0},{"$f":"G34+L11","v":0},{"$f":"IF('II. Identyfikacja Wnioskodawcy'!$P$50=Słowniki!$K$19,H34+M11,\"nie dotyczy\")","v":"nie dotyczy"},{"$f":"IF('II. Identyfikacja Wnioskodawcy'!$P$50=Słowniki!$K$19,I34+N11,\"nie dotyczy\")","v":"nie dotyczy"}]
[2,"Koszty sprzedanych towarów (bez wartości zapasu)",null,null,null,null,null,{"$f":"IF('II. Identyfikacja Wnioskodawcy'!$P$50=Słowniki!$K$19,\" \",\"nie dotyczy\")","v":"nie dotyczy"},{"$f":"IF('II. Identyfikacja Wnioskodawcy'!$P$50=Słowniki!$K$19,\" \",\"nie dotyczy\")","v":"nie dotyczy"},{"$f":"E35+J12","v":0},{"$f":"F35+K12","v":0},{"$f":"G35+L12","v":0},{"$f":"IF('II. Identyfikacja Wnioskodawcy'!$P$50=Słowniki!$K$19,H35+M12,\"nie dotyczy\")","v":"nie dotyczy"},{"$f":"IF('II. Identyfikacja Wnioskodawcy'!$P$50=Słowniki!$K$19,I35+N12,\"nie dotyczy\")","v":"nie dotyczy"}]
[3,"Marża handlowa (1-2)",null,null,{"$f":"E34-E35","v":0},{"$f":"F34-F35","v":0},{"$f":"G34-G35","v":0},{"$f":"IF('II. Identyfikacja Wnioskodawcy'!$P$50=Słowniki!$K$19,H34-H35,\"nie dotyczy\")","v":"nie dotyczy"},{"$f":"IF('II. Identyfikacja Wnioskodawcy'!$P$50=Słowniki!$K$19,I34-I35,\"nie dotyczy\")","v":"nie dotyczy"},{"$f":"J34-J35","v":0},{"$f":"K34-K35","v":0},{"$f":"L34-L35","v":0},{"$f":"IF('II. Identyfikacja Wnioskodawcy'!$P$50=Słowniki!$K$19,M34-M35,\"nie dotyczy\")","v":"nie dotyczy"},{"$f":"IF('II. Identyfikacja Wnioskodawcy'!$P$50=Słowniki!$K$19,N34-N35,\"nie dotyczy\")","v":"nie dotyczy"}]
[4,"Pozostałe przychody",null,null,null,null,null,{"$f":"IF('II. Identyfikacja Wnioskodawcy'!$P$50=Słowniki!$K$19,\" \",\"nie dotyczy\")","v":"nie dotyczy"},{"$f":"IF('II. Identyfikacja Wnioskodawcy'!$P$50=Słowniki!$K$19,\" \",\"nie dotyczy\")","v":"nie dotyczy"},{"$f":"E37+J14","v":0},0,0,{"$f":"IF('II. Identyfikacja Wnioskodawcy'!$P$50=Słowniki!$K$19,H37+M14,\"nie dotyczy\")","v":"nie dotyczy"},{"$f":"IF('II. Identyfikacja Wnioskodawcy'!$P$50=Słowniki!$K$19,I37+N14,\"nie dotyczy\")","v":"nie dotyczy"}]
[5,"Pozostałe wydatki",null,null,null,null,null,{"$f":"IF('II. Identyfikacja Wnioskodawcy'!$P$50=Słowniki!$K$19,\" \",\"nie dotyczy\")","v":"nie dotyczy"},{"$f":"IF('II. Identyfikacja Wnioskodawcy'!$P$50=Słowniki!$K$19,\" \",\"nie dotyczy\")","v":"nie dotyczy"},{"$f":"E38+J15","v":0},0,0,{"$f":"IF('II. Identyfikacja Wnioskodawcy'!$P$50=Słowniki!$K$19,H38+M15,\"nie dotyczy\")","v":"nie dotyczy"},{"$f":"IF('II. Identyfikacja Wnioskodawcy'!$P$50=Słowniki!$K$19,I38+N15,\"nie dotyczy\")","v":"nie dotyczy"}]
[6,"Dochód (3+4-5)",null,null,{"$f":"E36+E37-E38","v":0},{"$f":"F36+F37-F38","v":0},0,{"$f":"IF('II. Identyfikacja Wnioskodawcy'!$P$50=Słowniki!$K$19,H36+H37-H38,\"nie dotyczy\")","v":"nie dotyczy"},{"$f":"IF('II. Identyfikacja Wnioskodawcy'!$P$50=Słowniki!$K$19,I36+I37-I38,\"nie dotyczy\")","v":"nie dotyczy"},{"$f":"J36+J37-J38","v":0},{"$f":"K36+K37-K38","v":0},{"$f":"L36+L37-L38","v":0},{"$f":"IF('II. Identyfikacja Wnioskodawcy'!$P$50=Słowniki!$K$19,M36+M37-M38,\"nie dotyczy\")","v":"nie dotyczy"},{"$f":"IF('II. Identyfikacja Wnioskodawcy'!$P$50=Słowniki!$K$19,N36+N37-N38,\"nie dotyczy\")","v":"nie dotyczy"}]
[7,"Wydatki niestanowiące kosztów podatkowych",null,null,null,null,null,{"$f":"IF('II. Identyfikacja Wnioskodawcy'!$P$50=Słowniki!$K$19,\" \",\"nie dotyczy\")","v":"nie dotyczy"},{"$f":"IF('II. Identyfikacja Wnioskodawcy'!$P$50=Słowniki!$K$19,\" \",\"nie dotyczy\")","v":"nie dotyczy"},{"$f":"E40+J17","v":0},{"$f":"F40+K17","v":0},{"$f":"G40+L17","v":0},{"$f":"IF('II. Identyfikacja Wnioskodawcy'!$P$50=Słowniki!$K$19,H40+M17,\"nie dotyczy\")","v":"nie dotyczy"},{"$f":"IF('II. Identyfikacja Wnioskodawcy'!$P$50=Słowniki!$K$19,I40+N17,\"nie dotyczy\")","v":"nie dotyczy"}]
[8,"Zysk brutto (6-7)",null,null,{"$f":"E39-E40","v":0},{"$f":"F39-F40","v":0},0,{"$f":"IF('II. Identyfikacja Wnioskodawcy'!$P$50=Słowniki!$K$19,H39-H40,\"nie dotyczy\")","v":"nie dotyczy"},{"$f":"IF('II. Identyfikacja Wnioskodawcy'!$P$50=Słowniki!$K$19,I39-I40,\"nie dotyczy\")","v":"nie dotyczy"},{"$f":"J39-J40","v":0},{"$f":"K39-K40","v":0},{"$f":"L39-L40","v":0},{"$f":"IF('II. Identyfikacja Wnioskodawcy'!$P$50=Słowniki!$K$19,M39-M40,\"nie dotyczy\")","v":"nie dotyczy"},{"$f":"IF('II. Identyfikacja Wnioskodawcy'!$P$50=Słowniki!$K$19,N39-N40,\"nie dotyczy\")","v":"nie dotyczy"}]
[9,"Środki pobrane przez właścicieli (historia w zł, prognoza - dywidenda jako % zysku brutto)",null,null,null,null,null,{"$f":"IF('II. Identyfikacja Wnioskodawcy'!$P$50=Słowniki!$K$19,\" \",\"nie dotyczy\")","v":"nie dotyczy"},{"$f":"IF('II. Identyfikacja Wnioskodawcy'!$P$50=Słowniki!$K$19,\" \",\"nie dotyczy\")","v":"nie dotyczy"},{"$f":"E42+J19","v":0},{"$f":"F42+K19","v":0},{"$f":"G42+L19","v":0},{"$f":"IF('II. Identyfikacja Wnioskodawcy'!$P$50=Słowniki!$K$19,H42+M19,\"nie dotyczy\")","v":"nie dotyczy"},{"$f":"IF('II. Identyfikacja Wnioskodawcy'!$P$50=Słowniki!$K$19,I42+N19,\"nie dotyczy\")","v":"nie dotyczy"}]
[10,"Zysk pozostający w jednostce (8-9)",null,null,{"$f":"E41-E42","v":0},{"$f":"F41-F42","v":0},0,{"$f":"IF('II. Identyfikacja Wnioskodawcy'!$P$50=Słowniki!$K$19,H41-H42,\"nie dotyczy\")","v":"nie dotyczy"},{"$f":"IF('II. Identyfikacja Wnioskodawcy'!$P$50=Słowniki!$K$19,I41-I42,\"nie dotyczy\")","v":"nie dotyczy"},{"$f":"J41-J42","v":0},{"$f":"K41-K42","v":0},{"$f":"L41-L42","v":0},{"$f":"IF('II. Identyfikacja Wnioskodawcy'!$P$50=Słowniki!$K$19,M41-M42,\"nie dotyczy\")","v":"nie dotyczy"},{"$f":"IF('II. Identyfikacja Wnioskodawcy'!$P$50=Słowniki!$K$19,N41-N42,\"nie dotyczy\")","v":"nie dotyczy"}]
[]
["Komentarz:"]
[]
[]
[]
[]
[]
[]
["2.A. SYTUACJA FINANSOWA WNIOSKODAWCÓW PROWADZĄCYCH KSIĘGI RACHUNKOWE (PEŁNA KSIĘGOWOŚĆ) i PROGNOZA DLA DZIAŁALNOŚCI DOTYCHCZASOWEJ (BEZ PROJEKTU)"]
["Proszę uzupełnić podstawowe dane finansowe na podstawie sprawozdań finansoweych Wnioskodawcy za ostatnie 3 lata obrachunkowe. W przypadku braku ostatecznych danych za okres 1 kwartału 2020 r. należy zaprezentować dane wstępne. Proszę sporządzić prognozę sytuacji finansowej na okres realizacji i trwałości projektu dla działalności dotychczasowej bez projektu. Możliwe wprowadzenie danych samodzielnie bądź z wykorzystaniem wskaźnika dynamiki w kolumnie I. W przypadku niekorzystania z formuły Dynamicznego prognozowania (kolumna I), należy wprowadzić samodzielnie przygotowane dane prognozy do arkusza. Dynamika obliczana wobec danych za 2019 rok. Dane w tys. zł. W polu Komentarz proszę o scharakteryzowanie najważniejszych założeń do prognozy (zwłaszcza założenia istotnej poprawy sytuacji, osiągania strat, trudnej sytuacji, istotnej zmienności skali działalności, struktury finansowania. "]
[]
["dane w tys. zł.",null,null,null,"Dane historyczne\n2017","Dane historyczne\n2018","Dane historyczne\n2019","Dane historyczne\n31.03.2020","Zakładana rokroczna dynamika pozycji w kolejnych latach","Prognoza\nrok n +1","Prognoza\nrok n +2","Prognoza\nrok n +3","Prognoza\nrok n +4","Prognoza\nrok n +5"]
[null,null,null,null,"Rok n-2","Rok n-1","Rok n"]
["Podsumowanie wybranych danych finansowych"]
[1,"Przychody ze sprzedaży ogółem",null,null,null,null,null,null,null,{"$f":"G58*$I58","v":0},{"$f":"J58*$I58","v":0},{"$f":"K58*$I58","v":0},{"$f":"IF('II. Identyfikacja Wnioskodawcy'!$P$50=Słowniki!$K$19,L58*$I58,\"nie dotyczy\")","v":"nie dotyczy"},{"$f":"IF('II. Identyfikacja Wnioskodawcy'!$P$50=Słowniki!$K$19,M58*$I58,\"nie dotyczy\")","v":"nie dotyczy"}]
[2,"Koszty działalności operacyjnej",null,null,null,null,null,null,null,{"$f":"G59*$I59","v":0},{"$f":"J59*$I59","v":0},0,{"$f":"IF('II. Identyfikacja Wnioskodawcy'!$P$50=Słowniki!$K$19,L59*$I59,\"nie dotyczy\")","v":"nie dotyczy"},{"$f":"IF('II. Identyfikacja Wnioskodawcy'!$P$50=Słowniki!$K$19,M59*$I59,\"nie dotyczy\")","v":"nie dotyczy"}]
[3,"   w tym amortyzacja",null,null,null,null,null,null,null,0,{"$f":"J60*$I60","v":0},0,{"$f":"IF('II. Identyfikacja Wnioskodawcy'!$P$50=Słowniki!$K$19,L60*$I60,\"nie dotyczy\")","v":"nie dotyczy"},{"$f":"IF('II. Identyfikacja Wnioskodawcy'!$P$50=Słowniki!$K$19,M60*$I60,\"nie dotyczy\")","v":"nie dotyczy"}]
[4,"  w tym wynagrodzenia",null,null,null,null,null,null,null,{"$f":"G61*$I61","v":0},0,0,{"$f":"IF('II. Identyfikacja Wnioskodawcy'!$P$50=Słowniki!$K$19,L61*$I61,\"nie dotyczy\")","v":"nie dotyczy"},{"$f":"IF('II. Identyfikacja Wnioskodawcy'!$P$50=Słowniki!$K$19,M61*$I61,\"nie dotyczy\")","v":"nie dotyczy"}]
[5,"Zysk / strata ze sprzedaży",null,null,{"$f":"E58-E59","v":0},{"$f":"F58-F59","v":0},0,0,"x",0,0,0,{"$f":"IF('II. Identyfikacja Wnioskodawcy'!$P$50=Słowniki!$K$19,M58-M59,\"nie dotyczy\")","v":"nie dotyczy"},{"$f":"IF('II. Identyfikacja Wnioskodawcy'!$P$50=Słowniki!$K$19,N58-N59,\"nie dotyczy\")","v":"nie dotyczy"}]
[6,"Zysk / strata z działalności operacyjnej",null,null,null,null,null,null,null,{"$f":"G63*$I63","v":0},0,0,{"$f":"IF('II. Identyfikacja Wnioskodawcy'!$P$50=Słowniki!$K$19,L63*$I63,\"nie dotyczy\")","v":"nie dotyczy"},{"$f":"IF('II. Identyfikacja Wnioskodawcy'!$P$50=Słowniki!$K$19,M63*$I63,\"nie dotyczy\")","v":"nie dotyczy"}]
[7,"Odsetki z tytułu kredytów i pożyczek",null,null,null,null,null,null,null,0,0,0,{"$f":"IF('II. Identyfikacja Wnioskodawcy'!$P$50=Słowniki!$K$19,L64*$I64,\"nie dotyczy\")","v":"nie dotyczy"},{"$f":"IF('II. Identyfikacja Wnioskodawcy'!$P$50=Słowniki!$K$19,M64*$I64,\"nie dotyczy\")","v":"nie dotyczy"}]
[8,"Zysk / strata netto",null,null,null,null,null,null,null,0,0,0,{"$f":"IF('II. Identyfikacja Wnioskodawcy'!$P$50=Słowniki!$K$19,L65*$I65,\"nie dotyczy\")","v":"nie dotyczy"},{"$f":"IF('II. Identyfikacja Wnioskodawcy'!$P$50=Słowniki!$K$19,M65*$I65,\"nie dotyczy\")","v":"nie dotyczy"}]
[9,"(-) Dywidenda / (+) Dopłata do kapitału",null,null,null,null,null,null,"x",null,null,null,{"$f":"IF('II. Identyfikacja Wnioskodawcy'!$P$50=Słowniki!$K$19,\"\",\"nie dotyczy\")","v":"nie dotyczy"},{"$f":"IF('II. Identyfikacja Wnioskodawcy'!$P$50=Słowniki!$K$19,\"\",\"nie dotyczy\")","v":"nie dotyczy"}]
[10,"(-) Środki własne na finansowanie projektu",null,null,null,null,null,null,"x",null,null,null,{"$f":"IF('II. Identyfikacja Wnioskodawcy'!$P$50=Słowniki!$K$19,\"\",\"nie dotyczy\")","v":"nie dotyczy"},{"$f":"IF('II. Identyfikacja Wnioskodawcy'!$P$50=Słowniki!$K$19,\"\",\"nie dotyczy\")","v":"nie dotyczy"}]
[]
[11,"Aktywa trwałe",null,null,null,null,null,null,"x",null,null,null,{"$f":"IF('II. Identyfikacja Wnioskodawcy'!$P$50=Słowniki!$K$19,\"\",\"nie dotyczy\")","v":"nie dotyczy"},{"$f":"IF('II. Identyfikacja Wnioskodawcy'!$P$50=Słowniki!$K$19,\"\",\"nie dotyczy\")","v":"nie dotyczy"}]
[12,"Aktywa obrotowe",null,null,{"$f":"E71+E72+E73+E74","v":0},0,0,0,"x",{"$f":"J71+J72+J73+J74","v":0},{"$f":"K71+K72+K73+K74","v":0},{"$f":"L71+L72+L73+L74","v":0},{"$f":"IF('II. Identyfikacja Wnioskodawcy'!$P$50=Słowniki!$K$19,M71+M72+M73+M74,\"nie dotyczy\")","v":"nie dotyczy"},{"$f":"IF('II. Identyfikacja Wnioskodawcy'!$P$50=Słowniki!$K$19,N71+N72+N73+N74,\"nie dotyczy\")","v":"nie dotyczy"}]
[13," w tym zapasy (dla prognozy cykl w dniach)",null,null,null,null,null,null,null,{"$f":"(J59-J60)*$I71/365","v":0},{"$f":"(K59-K60)*$I71/365","v":0},{"$f":"(L59-L60)*$I71/365","v":0},{"$f":"IF('II. Identyfikacja Wnioskodawcy'!$P$50=Słowniki!$K$19,(M59-M60)*$I71/365,\"nie dotyczy\")","v":"nie dotyczy"},{"$f":"IF('II. Identyfikacja Wnioskodawcy'!$P$50=Słowniki!$K$19,(N59-N60)*$I71/365,\"nie dotyczy\")","v":"nie dotyczy"}]
[14," w tym należności handlowe (dla prognozy cykl w dniach)",null,null,null,null,null,null,null,{"$f":"J58*$I72/365","v":0},{"$f":"K58*$I72/365","v":0},{"$f":"L58*$I72/365","v":0},{"$f":"IF('II. Identyfikacja Wnioskodawcy'!$P$50=Słowniki!$K$19,(M58*$I72)/365,\"nie dotyczy\")","v":"nie dotyczy"},{"$f":"IF('II. Identyfikacja Wnioskodawcy'!$P$50=Słowniki!$K$19,(N58*$I72)/365,\"nie dotyczy\")","v":"nie dotyczy"}]
[15," w tym inwestycje krótkoterminowe (środki pieniężne)",null,null,null,null,null,null,"x",{"$f":"J85-J69-J71-J72-J74","v":0},{"$f":"K85-K69-K71-K72-K74","v":0},0,{"$f":"IF('II. Identyfikacja Wnioskodawcy'!$P$50=Słowniki!$K$19,M85-M69-M71-M72-M74,\"nie dotyczy\")","v":"nie dotyczy"},{"$f":"IF('II. Identyfikacja Wnioskodawcy'!$P$50=Słowniki!$K$19,N85-N69-N71-N72-N74,\"nie dotyczy\")","v":"nie dotyczy"}]
[16,"Krótkoterminowe rozliczenia międzyokresowe",null,null,null,null,null,null,"x",null,null,null,{"$f":"IF('II. Identyfikacja Wnioskodawcy'!$P$50=Słowniki!$K$19,\"\",\"nie dotyczy\")","v":"nie dotyczy"},{"$f":"IF('II. Identyfikacja Wnioskodawcy'!$P$50=Słowniki!$K$19,\"\",\"nie dotyczy\")","v":"nie dotyczy"}]
[17,"Aktywa razem",null,null,{"$f":"E69+E70","v":0},{"$f":"F69+F70","v":0},{"$f":"G69+G70","v":0},{"$f":"H69+H70","v":0},"x",{"$f":"J69+J70","v":0},{"$f":"K69+K70","v":0},0,{"$f":"IF('II. Identyfikacja Wnioskodawcy'!$P$50=Słowniki!$K$19,M69+M70,\"nie dotyczy\")","v":"nie dotyczy"},{"$f":"IF('II. Identyfikacja Wnioskodawcy'!$P$50=Słowniki!$K$19,N69+N70,\"nie dotyczy\")","v":"nie dotyczy"}]
[]
[18,"Kapitał własny",null,null,null,null,null,null,"x",{"$f":"G77+J65+J66+J67","v":0},{"$f":"J77+K65+K66+K67","v":0},{"$f":"K77+L65+L66+L67","v":0},{"$f":"IF('II. Identyfikacja Wnioskodawcy'!$P$50=Słowniki!$K$19,L77+M65+M66+M67,\"nie dotyczy\")","v":"nie dotyczy"},{"$f":"IF('II. Identyfikacja Wnioskodawcy'!$P$50=Słowniki!$K$19,M77+N65+N66+N67,\"nie dotyczy\")","v":"nie dotyczy"}]
[19,"Zobowiązania ogółem i rezerwy na zobowiązania",null,null,{"$f":"E79+E81","v":0},{"$f":"F79+F81","v":0},{"$f":"G79+G81","v":0},{"$f":"H79+H81","v":0},"x",{"$f":"J79+J81","v":0},0,0,{"$f":"IF('II. Identyfikacja Wnioskodawcy'!$P$50=Słowniki!$K$19,M79+M81,\"nie dotyczy\")","v":"nie dotyczy"},{"$f":"IF('II. Identyfikacja Wnioskodawcy'!$P$50=Słowniki!$K$19,N79+N81,\"nie dotyczy\")","v":"nie dotyczy"}]
[20,"Zobowiązania długoterminowe",null,null,null,null,null,null,"x"]
[21," w tym kredyty i pożyczki",null,null,null,null,null,null,"x"]
[22,"Zobowiązania krótkotermiowe",null,null,null,null,null,null,"x"]
[23,"  w tym zobowiązania z tytułu dostaw i usług (dla prognozy cykl w dniach)",null,null,null,null,null,null,null,{"$f":"(J59-J60)*$I82/365","v":0},{"$f":"(K59-K60)*$I82/365","v":0},{"$f":"(L59-L60)*$I82/365","v":0},{"$f":"IF('II. Identyfikacja Wnioskodawcy'!$P$50=Słowniki!$K$19,(M59-M60)*$I82/365,\"nie dotyczy\")","v":"nie dotyczy"},{"$f":"IF('II. Identyfikacja Wnioskodawcy'!$P$50=Słowniki!$K$19,(N59-N60)*$I82/365,\"nie dotyczy\")","v":"nie dotyczy"}]
[24,"  w tym kredyty i pożyczki",null,null,null,null,null,null,"x",null,null,null,{"$f":"IF('II. Identyfikacja Wnioskodawcy'!$P$50=Słowniki!$K$19,\"\",\"nie dotyczy\")","v":"nie dotyczy"},{"$f":"IF('II. Identyfikacja Wnioskodawcy'!$P$50=Słowniki!$K$19,\"\",\"nie dotyczy\")","v":"nie dotyczy"}]
[25,"Inne",null,null,null,null,null,null,"x",null,null,null,{"$f":"IF('II. Identyfikacja Wnioskodawcy'!$P$50=Słowniki!$K$19,\"\",\"nie dotyczy\")","v":"nie dotyczy"},{"$f":"IF('II. Identyfikacja Wnioskodawcy'!$P$50=Słowniki!$K$19,\"\",\"nie dotyczy\")","v":"nie dotyczy"}]
[26,"Pasywa ogółem",null,null,{"$f":"E77+E78+E84","v":0},{"$f":"F77+F78+F84","v":0},0,{"$f":"H77+H78+H84","v":0},"x",{"$f":"J77+J78+J84","v":0},{"$f":"K77+K78+K84","v":0},0,{"$f":"IF('II. Identyfikacja Wnioskodawcy'!$P$50=Słowniki!$K$19,M77+M78+M84,\"nie dotyczy\")","v":"nie dotyczy"},{"$f":"IF('II. Identyfikacja Wnioskodawcy'!$P$50=Słowniki!$K$19,N77+N78+N84,\"nie dotyczy\")","v":"nie dotyczy"}]
["Sprawdzenie",null,null,null,{"$f":"E75-E85","v":0},{"$f":"F75-F85","v":0},{"$f":"G75-G85","v":0},{"$f":"H75-H85","v":0},null,{"$f":"J75-J85","v":0},0,0,{"$f":"IF('II. Identyfikacja Wnioskodawcy'!$P$50=Słowniki!$K$19,M75-M85,\"nie dotyczy\")","v":"nie dotyczy"},{"$f":"IF('II. Identyfikacja Wnioskodawcy'!$P$50=Słowniki!$K$19,N75-N85,\"nie dotyczy\")","v":"nie dotyczy"}]
["Wskaźniki finansowe"]
[27,"Rentowność netto",null,null,{"$f":"IFERROR(E65/E58,\"-\")","v":"-"},{"$f":"IFERROR(F65/F58,\"-\")","v":"-"},{"$f":"IFERROR(G65/G58,\"-\")","v":"-"},{"$f":"IFERROR(H65/H58,\"-\")","v":"-"},null,{"$f":"IFERROR(J65/J58,\"-\")","v":"-"},{"$f":"IFERROR(K65/K58,\"-\")","v":"-"},{"$f":"IFERROR(L65/L58,\"-\")","v":"-"},{"$f":"IF('II. Identyfikacja Wnioskodawcy'!$P$50=Słowniki!$K$19,M65/M58,\"nie dotyczy\")","v":"nie dotyczy"},{"$f":"IF('II. Identyfikacja Wnioskodawcy'!$P$50=Słowniki!$K$19,N65/N58,\"nie dotyczy\")","v":"nie dotyczy"}]
[28,"Zwrot na aktywach (ROA)",null,null,{"$f":"IFERROR(E65/E75,\"-\")","v":"-"},{"$f":"IFERROR(F65/F75,\"-\")","v":"-"},{"$f":"IFERROR(G65/G75,\"-\")","v":"-"},{"$f":"IFERROR(H65/H75,\"-\")","v":"-"},null,{"$f":"IFERROR(J65/J75,\"-\")","v":"-"},{"$f":"IFERROR(K65/K75,\"-\")","v":"-"},{"$f":"IFERROR(L65/L75,\"-\")","v":"-"},{"$f":"IF('II. Identyfikacja Wnioskodawcy'!$P$50=Słowniki!$K$19,M65/M75,\"nie dotyczy\")","v":"nie dotyczy"},{"$f":"IF('II. Identyfikacja Wnioskodawcy'!$P$50=Słowniki!$K$19,N65/N75,\"nie dotyczy\")","v":"nie dotyczy"}]
[29,"Wskaźnik udziału kapitałów własnych",null,null,{"$f":"IFERROR(E77/E85,\"-\")","v":"-"},{"$f":"IFERROR(F77/F85,\"-\")","v":"-"},{"$f":"IFERROR(G77/G85,\"-\")","v":"-"},{"$f":"IFERROR(H77/H85,\"-\")","v":"-"},null,{"$f":"IFERROR(J77/J85,\"-\")","v":"-"},{"$f":"IFERROR(K77/K85,\"-\")","v":"-"},{"$f":"IFERROR(L77/L85,\"-\")","v":"-"},{"$f":"IF('II. Identyfikacja Wnioskodawcy'!$P$50=Słowniki!$K$19,M77/M85,\"nie dotyczy\")","v":"nie dotyczy"},{"$f":"IF('II. Identyfikacja Wnioskodawcy'!$P$50=Słowniki!$K$19,N77/N85,\"nie dotyczy\")","v":"nie dotyczy"}]
[30,"Wskaźnik zadłużenia",null,null,{"$f":"IFERROR(E78/E85,\"-\")","v":"-"},{"$f":"IFERROR(F78/F85,\"-\")","v":"-"},{"$f":"IFERROR(G78/G85,\"-\")","v":"-"},{"$f":"IFERROR(H78/H85,\"-\")","v":"-"},null,{"$f":"IFERROR(J78/J85,\"-\")","v":"-"},{"$f":"IFERROR(K78/K85,\"-\")","v":"-"},{"$f":"IFERROR(L78/L85,\"-\")","v":"-"},{"$f":"IF('II. Identyfikacja Wnioskodawcy'!$P$50=Słowniki!$K$19,M78/M85,\"nie dotyczy\")","v":"nie dotyczy"},{"$f":"IF('II. Identyfikacja Wnioskodawcy'!$P$50=Słowniki!$K$19,N78/N85,\"nie dotyczy\")","v":"nie dotyczy"}]
[31,"Wskaźnik płynności bieżącej",null,null,{"$f":"IFERROR(E70/E81,\"-\")","v":"-"},{"$f":"IFERROR(F70/F81,\"-\")","v":"-"},{"$f":"IFERROR(G70/G81,\"-\")","v":"-"},{"$f":"IFERROR(H70/H81,\"-\")","v":"-"},null,{"$f":"IFERROR(J70/J81,\"-\")","v":"-"},{"$f":"IFERROR(K70/K81,\"-\")","v":"-"},{"$f":"IFERROR(L70/L81,\"-\")","v":"-"},{"$f":"IF('II. Identyfikacja Wnioskodawcy'!$P$50=Słowniki!$K$19,M70/M81,\"nie dotyczy\")","v":"nie dotyczy"},{"$f":"IF('II. Identyfikacja Wnioskodawcy'!$P$50=Słowniki!$K$19,N70/N81,\"nie dotyczy\")","v":"nie dotyczy"}]
[32,"Wskaźnik relacji zadłużenia do EBITDA",null,null,{"$f":"IFERROR((E80+E83)/(E63+E60),\"-\")","v":"-"},{"$f":"IFERROR((F80+F83)/(F63+F60),\"-\")","v":"-"},{"$f":"IFERROR((G80+G83)/(G63+G60),\"-\")","v":"-"},{"$f":"IFERROR((H80+H83)/((H63+H60)*4),\"-\")","v":"-"},null,{"$f":"IFERROR((J80+J83)/(J63+J60),\"-\")","v":"-"},{"$f":"IFERROR((K80+K83)/(K63+K60),\"-\")","v":"-"},"-",{"$f":"IF('II. Identyfikacja Wnioskodawcy'!$P$50=Słowniki!$K$19,(M80+M83)/(M63+M60),\"nie dotyczy\")","v":"nie dotyczy"},{"$f":"IF('II. Identyfikacja Wnioskodawcy'!$P$50=Słowniki!$K$19,(N80+N83)/(N63+N60),\"nie dotyczy\")","v":"nie dotyczy"}]
[33,"Księgowy stosunek kapitału obcego do kapitału własnego przedsiębiorstwa ",null,null,{"$f":"IFERROR(E78/E77,\"-\")","v":"-"},{"$f":"IFERROR(F78/F77,\"-\")","v":"-"},{"$f":"IFERROR(G78/G77,\"-\")","v":"-"},{"$f":"IFERROR(H78/H77,\"-\")","v":"-"},null,{"$f":"IFERROR(J78/J77,\"-\")","v":"-"},{"$f":"IFERROR(K78/K77,\"-\")","v":"-"},{"$f":"IFERROR(L78/L77,\"-\")","v":"-"},{"$f":"IF('II. Identyfikacja Wnioskodawcy'!$P$50=Słowniki!$K$19,M78/M77,\"nie dotyczy\")","v":"nie dotyczy"},{"$f":"IF('II. Identyfikacja Wnioskodawcy'!$P$50=Słowniki!$K$19,N78/N77,\"nie dotyczy\")","v":"nie dotyczy"}]
[34,"Wskaźnik relacji pokrycia odsetek do EBITDA",null,null,{"$f":"IFERROR(E64/(E63+E60),\"-\")","v":"-"},{"$f":"IFERROR(F64/(F63+F60),\"-\")","v":"-"},"-",{"$f":"IFERROR(H64/(H63+H60),\"-\")","v":"-"},null,{"$f":"IFERROR(J64/(J63+J60),\"-\")","v":"-"},"-","-",{"$f":"IF('II. Identyfikacja Wnioskodawcy'!$P$50=Słowniki!$K$19,M64/(M63+M60),\"nie dotyczy\")","v":"nie dotyczy"},{"$f":"IF('II. Identyfikacja Wnioskodawcy'!$P$50=Słowniki!$K$19,N64/(N63+N60),\"nie dotyczy\")","v":"nie dotyczy"}]
["Komentarz:"]
[]
[]
[]
[]
[]
[]
["2.B. SYTUACJA FINANSOWA WNIOSKODAWCÓW PROWADZĄCYCH KSIĘGI RACHUNKOWE (PEŁNA KSIĘGOWOŚĆ) i PROGNOZA DLA DZIAŁALNOŚCI DOTYCHCZASOWEJ ( PROJEKT i DZIAŁALNOŚĆ DOTYCHCZASOWA + PROJEKT)"]
["Sekcja 2B obejmuje  prognozę dla projektu oraz dla działalności połączonej obejmującej projekt plus działalność dotychczasową. Należy uzupełnić różowe komórki.  Dla zapasów, należności i zobowiązań handlowych- proszę okreslić cykl rotacji w dniach.  Dane w tys. zł. Wskaźniki obliczane są automatycznie. "]
[null,null,null,null,"PROGNOZA WYŁĄCZNIE DLA PROJEKTU",null,null,null,null,"PROGNOZA DLA PROJEKTU I DZIAŁALNOŚCI DOTYCHCZASOWEJ"]
["dane w tys. zł.",null,null,null,"Prognoza\nrok n +1","Prognoza\nrok n +2","Prognoza\nrok n +3","Prognoza\nrok n +4","Prognoza\nrok n +5","Prognoza\nrok n +1","Prognoza\nrok n +2","Prognoza\nrok n +3","Prognoza\nrok n +4","Prognoza\nrok n +5"]
[]
["Podsumowanie wybranych danych finansowych"]
[1,"Przychody ze sprzedaży ogółem",null,null,null,null,null,null,null,{"$f":"J58+E109","v":0},0,0,{"$f":"IF('II. Identyfikacja Wnioskodawcy'!$P$50=Słowniki!$K$19,M58+H109,\"nie dotyczy\")","v":"nie dotyczy"},{"$f":"IF('II. Identyfikacja Wnioskodawcy'!$P$50=Słowniki!$K$19,N58+I109,\"nie dotyczy\")","v":"nie dotyczy"}]
[2,"Koszty działalności operacyjnej",null,null,null,null,null,null,null,0,0,0,{"$f":"IF('II. Identyfikacja Wnioskodawcy'!$P$50=Słowniki!$K$19,M59+H110,\"nie dotyczy\")","v":"nie dotyczy"},{"$f":"IF('II. Identyfikacja Wnioskodawcy'!$P$50=Słowniki!$K$19,N59+I110,\"nie dotyczy\")","v":"nie dotyczy"}]
[3,"   w tym amortyzacja",null,null,null,null,null,null,null,0,0,0,{"$f":"IF('II. Identyfikacja Wnioskodawcy'!$P$50=Słowniki!$K$19,M60+H111,\"nie dotyczy\")","v":"nie dotyczy"},{"$f":"IF('II. Identyfikacja Wnioskodawcy'!$P$50=Słowniki!$K$19,N60+I111,\"nie dotyczy\")","v":"nie dotyczy"}]
[4,"  w tym wynagrodzenia",null,null,null,null,null,null,null,0,0,0,{"$f":"IF('II. Identyfikacja Wnioskodawcy'!$P$50=Słowniki!$K$19,M61+H112,\"nie dotyczy\")","v":"nie dotyczy"},{"$f":"IF('II. Identyfikacja Wnioskodawcy'!$P$50=Słowniki!$K$19,N61+I112,\"nie dotyczy\")","v":"nie dotyczy"}]
[5,"Zysk / strata ze sprzedaży",null,null,{"$f":"E109-E110","v":0},{"$f":"F109-F110","v":0},0,{"$f":"IF('II. Identyfikacja Wnioskodawcy'!$P$50=Słowniki!$K$19,H109-H110,\"nie dotyczy\")","v":"nie dotyczy"},{"$f":"IF('II. Identyfikacja Wnioskodawcy'!$P$50=Słowniki!$K$19,I109-I110,\"nie dotyczy\")","v":"nie dotyczy"},0,0,0,{"$f":"IF('II. Identyfikacja Wnioskodawcy'!$P$50=Słowniki!$K$19,M62+H113,\"nie dotyczy\")","v":"nie dotyczy"},{"$f":"IF('II. Identyfikacja Wnioskodawcy'!$P$50=Słowniki!$K$19,N62+I113,\"nie dotyczy\")","v":"nie dotyczy"}]
[6,"Zysk / strata z działalności operacyjnej",null,null,null,null,null,null,null,0,0,0,{"$f":"IF('II. Identyfikacja Wnioskodawcy'!$P$50=Słowniki!$K$19,M63+H114,\"nie dotyczy\")","v":"nie dotyczy"},{"$f":"IF('II. Identyfikacja Wnioskodawcy'!$P$50=Słowniki!$K$19,N63+I114,\"nie dotyczy\")","v":"nie dotyczy"}]
[7,"Odsetki z tytułu kredytów i pożyczek",null,null,null,null,null,null,null,0,0,0,{"$f":"IF('II. Identyfikacja Wnioskodawcy'!$P$50=Słowniki!$K$19,M64+H115,\"nie dotyczy\")","v":"nie dotyczy"},{"$f":"IF('II. Identyfikacja Wnioskodawcy'!$P$50=Słowniki!$K$19,N64+I115,\"nie dotyczy\")","v":"nie dotyczy"}]
[8,"Zysk / strata netto",null,null,null,null,null,null,null,0,0,0,{"$f":"IF('II. Identyfikacja Wnioskodawcy'!$P$50=Słowniki!$K$19,M65+H116,\"nie dotyczy\")","v":"nie dotyczy"},{"$f":"IF('II. Identyfikacja Wnioskodawcy'!$P$50=Słowniki!$K$19,N65+I116,\"nie dotyczy\")","v":"nie dotyczy"}]
[9,"(-) Dywidenda / (+) Dopłata do kapitału",null,null,null,null,null,null,null,{"$f":"J66+E117","v":0},0,0,{"$f":"IF('II. Identyfikacja Wnioskodawcy'!$P$50=Słowniki!$K$19,M66+H117,\"nie dotyczy\")","v":"nie dotyczy"},{"$f":"IF('II. Identyfikacja Wnioskodawcy'!$P$50=Słowniki!$K$19,N66+I117,\"nie dotyczy\")","v":"nie dotyczy"}]
[10,"(+) Środki własne na finansowanie projektu",null,null,{"$f":"-J67","v":0},{"$f":"-K67","v":0},0,{"$f":"IF('II. Identyfikacja Wnioskodawcy'!$P$50=Słowniki!$K$19,-M67,\"nie dotyczy\")","v":"nie dotyczy"},{"$f":"IF('II. Identyfikacja Wnioskodawcy'!$P$50=Słowniki!$K$19,-N67,\"nie dotyczy\")","v":"nie dotyczy"},{"$f":"J67+E118","v":0},0,0,{"$f":"IF('II. Identyfikacja Wnioskodawcy'!$P$50=Słowniki!$K$19,M67+H118,\"nie dotyczy\")","v":"nie dotyczy"},{"$f":"IF('II. Identyfikacja Wnioskodawcy'!$P$50=Słowniki!$K$19,N67+I118,\"nie dotyczy\")","v":"nie dotyczy"}]
[]
[11,"Aktywa trwałe",null,null,null,null,null,null,null,{"$f":"J69+E120","v":0},0,0,{"$f":"IF('II. Identyfikacja Wnioskodawcy'!$P$50=Słowniki!$K$19,M69+H120,\"nie dotyczy\")","v":"nie dotyczy"},{"$f":"IF('II. Identyfikacja Wnioskodawcy'!$P$50=Słowniki!$K$19,N69+I120,\"nie dotyczy\")","v":"nie dotyczy"}]
[12,"Aktywa obrotowe",null,null,{"$f":"E122+E123+E124+E125","v":0},{"$f":"F122+F123+F124+F125","v":0},{"$f":"G122+G123+G124+G125","v":0},{"$f":"IF('II. Identyfikacja Wnioskodawcy'!$P$50=Słowniki!$K$19,H122+H123+H124+H125,\"nie dotyczy\")","v":"nie dotyczy"},{"$f":"IF('II. Identyfikacja Wnioskodawcy'!$P$50=Słowniki!$K$19,I122+I123+I124+I125,\"nie dotyczy\")","v":"nie dotyczy"},0,0,0,{"$f":"IF('II. Identyfikacja Wnioskodawcy'!$P$50=Słowniki!$K$19,M70+H121,\"nie dotyczy\")","v":"nie dotyczy"},{"$f":"IF('II. Identyfikacja Wnioskodawcy'!$P$50=Słowniki!$K$19,N70+I121,\"nie dotyczy\")","v":"nie dotyczy"}]
[13," w tym zapasy","Wpisz wartość cyklu:",null,{"$f":"(E110-E111)*$D122/365","v":0},{"$f":"(F110-F111)*$D122/365","v":0},{"$f":"(G110-G111)*$D122/365","v":0},{"$f":"IF('II. Identyfikacja Wnioskodawcy'!$P$50=Słowniki!$K$19,(H110-H111)*$D122/365,\"nie dotyczy\")","v":"nie dotyczy"},{"$f":"IF('II. Identyfikacja Wnioskodawcy'!$P$50=Słowniki!$K$19,(I110-I111)*$D122/365,\"nie dotyczy\")","v":"nie dotyczy"},0,0,0,{"$f":"IF('II. Identyfikacja Wnioskodawcy'!$P$50=Słowniki!$K$19,M71+H122,\"nie dotyczy\")","v":"nie dotyczy"},{"$f":"IF('II. Identyfikacja Wnioskodawcy'!$P$50=Słowniki!$K$19,N71+I122,\"nie dotyczy\")","v":"nie dotyczy"}]
[14," w tym należności handlowe","Wpisz wartość cyklu:",null,{"$f":"E109*$D123/365","v":0},{"$f":"F109*$D123/365","v":0},0,{"$f":"IF('II. Identyfikacja Wnioskodawcy'!$P$50=Słowniki!$K$19,H109*$D123/365,\"nie dotyczy\")","v":"nie dotyczy"},{"$f":"IF('II. Identyfikacja Wnioskodawcy'!$P$50=Słowniki!$K$19,I109*$D123/365,\"nie dotyczy\")","v":"nie dotyczy"},0,0,0,{"$f":"IF('II. Identyfikacja Wnioskodawcy'!$P$50=Słowniki!$K$19,M72+H123,\"nie dotyczy\")","v":"nie dotyczy"},{"$f":"IF('II. Identyfikacja Wnioskodawcy'!$P$50=Słowniki!$K$19,N72+I123,\"nie dotyczy\")","v":"nie dotyczy"}]
[15," w tym inwestycje krótkoterminowe (środki pieniężne)",null,null,{"$f":"E136-E120-E122-E123-E125","v":0},{"$f":"F136-F120-F122-F123-F125","v":0},0,{"$f":"IF('II. Identyfikacja Wnioskodawcy'!$P$50=Słowniki!$K$19,H136-H120-H122-H123-H125,\"nie dotyczy\")","v":"nie dotyczy"},{"$f":"IF('II. Identyfikacja Wnioskodawcy'!$P$50=Słowniki!$K$19,I136-I120-I122-I123-I125,\"nie dotyczy\")","v":"nie dotyczy"},{"$f":"J136-J120-J122-J123-J125","v":0},{"$f":"K136-K120-K122-K123-K125","v":0},{"$f":"L136-L120-L122-L123-L125","v":0},{"$f":"IF('II. Identyfikacja Wnioskodawcy'!$P$50=Słowniki!$K$19,M136-M120-M122-M123-M125,\"nie dotyczy\")","v":"nie dotyczy"},{"$f":"IF('II. Identyfikacja Wnioskodawcy'!$P$50=Słowniki!$K$19,N136-N120-N122-N123-N125,\"nie dotyczy\")","v":"nie dotyczy"}]
[16,"Krótkoterminowe rozliczenia międzyokresowe",null,null,null,null,null,null,null,{"$f":"J74+E125","v":0},0,0,{"$f":"IF('II. Identyfikacja Wnioskodawcy'!$P$50=Słowniki!$K$19,M74+H125,\"nie dotyczy\")","v":"nie dotyczy"},{"$f":"IF('II. Identyfikacja Wnioskodawcy'!$P$50=Słowniki!$K$19,N74+I125,\"nie dotyczy\")","v":"nie dotyczy"}]
[17,"Aktywa razem",null,null,{"$f":"E120+E121","v":0},{"$f":"F120+F121","v":0},{"$f":"G120+G121","v":0},{"$f":"IF('II. Identyfikacja Wnioskodawcy'!$P$50=Słowniki!$K$19,H120+H121,\"nie dotyczy\")","v":"nie dotyczy"},{"$f":"IF('II. Identyfikacja Wnioskodawcy'!$P$50=Słowniki!$K$19,I120+I121,\"nie dotyczy\")","v":"nie dotyczy"},0,0,0,{"$f":"IF('II. Identyfikacja Wnioskodawcy'!$P$50=Słowniki!$K$19,M75+H126,\"nie dotyczy\")","v":"nie dotyczy"},{"$f":"IF('II. Identyfikacja Wnioskodawcy'!$P$50=Słowniki!$K$19,N75+I126,\"nie dotyczy\")","v":"nie dotyczy"}]
[]
[18,"Kapitał własny",null,null,{"$f":"E117+E116+E118","v":0},{"$f":"E128+F116+F117+F118","v":0},{"$f":"F128+G116+G117+G118","v":0},{"$f":"IF('II. Identyfikacja Wnioskodawcy'!$P$50=Słowniki!$K$19,G128+H116+H117+H118,\"nie dotyczy\")","v":"nie dotyczy"},{"$f":"IF('II. Identyfikacja Wnioskodawcy'!$P$50=Słowniki!$K$19,H128+I116+I117+I118,\"nie dotyczy\")","v":"nie dotyczy"},{"$f":"J77+E128","v":0},{"$f":"K77+F128","v":0},{"$f":"L77+G128","v":0},{"$f":"IF('II. Identyfikacja Wnioskodawcy'!$P$50=Słowniki!$K$19,M77+H128,\"nie dotyczy\")","v":"nie dotyczy"},{"$f":"IF('II. Identyfikacja Wnioskodawcy'!$P$50=Słowniki!$K$19,N77+I128,\"nie dotyczy\")","v":"nie dotyczy"}]
[19,"Zobowiązania ogółem i rezerwy na zobowiązania",null,null,{"$f":"E130+E132","v":0},{"$f":"F130+F132","v":0},{"$f":"G130+G132","v":0},{"$f":"IF('II. Identyfikacja Wnioskodawcy'!$P$50=Słowniki!$K$19,H130+H132,\"nie dotyczy\")","v":"nie dotyczy"},{"$f":"IF('II. Identyfikacja Wnioskodawcy'!$P$50=Słowniki!$K$19,I130+I132,\"nie dotyczy\")","v":"nie dotyczy"},0,0,0,{"$f":"IF('II. Identyfikacja Wnioskodawcy'!$P$50=Słowniki!$K$19,M78+H129,\"nie dotyczy\")","v":"nie dotyczy"},{"$f":"IF('II. Identyfikacja Wnioskodawcy'!$P$50=Słowniki!$K$19,N78+I129,\"nie dotyczy\")","v":"nie dotyczy"}]
[20,"Zobowiązania długoterminowe",null,null,null,null,null,{"$f":"IF('II. Identyfikacja Wnioskodawcy'!$P$50=Słowniki!$K$19,\"\",\"nie dotyczy\")","v":"nie dotyczy"},{"$f":"IF('II. Identyfikacja Wnioskodawcy'!$P$50=Słowniki!$K$19,\"\",\"nie dotyczy\")","v":"nie dotyczy"},0,0,0,{"$f":"IF('II. Identyfikacja Wnioskodawcy'!$P$50=Słowniki!$K$19,M79+H130,\"nie dotyczy\")","v":"nie dotyczy"},{"$f":"IF('II. Identyfikacja Wnioskodawcy'!$P$50=Słowniki!$K$19,N79+I130,\"nie dotyczy\")","v":"nie dotyczy"}]
[21," w tym kredyty i pożyczki",null,null,null,null,null,{"$f":"IF('II. Identyfikacja Wnioskodawcy'!$P$50=Słowniki!$K$19,\"\",\"nie dotyczy\")","v":"nie dotyczy"},{"$f":"IF('II. Identyfikacja Wnioskodawcy'!$P$50=Słowniki!$K$19,\"\",\"nie dotyczy\")","v":"nie dotyczy"},0,0,0,{"$f":"IF('II. Identyfikacja Wnioskodawcy'!$P$50=Słowniki!$K$19,M80+H131,\"nie dotyczy\")","v":"nie dotyczy"},{"$f":"IF('II. Identyfikacja Wnioskodawcy'!$P$50=Słowniki!$K$19,N80+I131,\"nie dotyczy\")","v":"nie dotyczy"}]
[22,"Zobowiązania krótkotermiowe",null,null,null,null,null,{"$f":"IF('II. Identyfikacja Wnioskodawcy'!$P$50=Słowniki!$K$19,\"\",\"nie dotyczy\")","v":"nie dotyczy"},{"$f":"IF('II. Identyfikacja Wnioskodawcy'!$P$50=Słowniki!$K$19,\"\",\"nie dotyczy\")","v":"nie dotyczy"},0,0,0,{"$f":"IF('II. Identyfikacja Wnioskodawcy'!$P$50=Słowniki!$K$19,M81+H132,\"nie dotyczy\")","v":"nie dotyczy"},{"$f":"IF('II. Identyfikacja Wnioskodawcy'!$P$50=Słowniki!$K$19,N81+I132,\"nie dotyczy\")","v":"nie dotyczy"}]
[23,"  w tym zobowiązania z tytułu dostaw i usług","Wpisz wartość cyklu:",null,{"$f":"(E110-E111)*$D133/365","v":0},{"$f":"(F110-F111)*$D133/365","v":0},0,{"$f":"IF('II. Identyfikacja Wnioskodawcy'!$P$50=Słowniki!$K$19,(H110-H111)*$D133/365,\"nie dotyczy\")","v":"nie dotyczy"},{"$f":"IF('II. Identyfikacja Wnioskodawcy'!$P$50=Słowniki!$K$19,(I110-I111)*$D133/365,\"nie dotyczy\")","v":"nie dotyczy"},0,0,0,{"$f":"IF('II. Identyfikacja Wnioskodawcy'!$P$50=Słowniki!$K$19,M82+H133,\"nie dotyczy\")","v":"nie dotyczy"},{"$f":"IF('II. Identyfikacja Wnioskodawcy'!$P$50=Słowniki!$K$19,N82+I133,\"nie dotyczy\")","v":"nie dotyczy"}]
[24,"  w tym kredyty i pożyczki",null,null,null,null,null,null,null,0,0,0,{"$f":"IF('II. Identyfikacja Wnioskodawcy'!$P$50=Słowniki!$K$19,M83+H134,\"nie dotyczy\")","v":"nie dotyczy"},{"$f":"IF('II. Identyfikacja Wnioskodawcy'!$P$50=Słowniki!$K$19,N83+I134,\"nie dotyczy\")","v":"nie dotyczy"}]
[25,"Inne",null,null,null,null,null,null,null,0,0,0,{"$f":"IF('II. Identyfikacja Wnioskodawcy'!$P$50=Słowniki!$K$19,M84+H135,\"nie dotyczy\")","v":"nie dotyczy"},{"$f":"IF('II. Identyfikacja Wnioskodawcy'!$P$50=Słowniki!$K$19,N84+I135,\"nie dotyczy\")","v":"nie dotyczy"}]
[26,"Pasywa ogółem",null,null,{"$f":"E128+E129+E135","v":0},{"$f":"F128+F129+F135","v":0},{"$f":"G128+G129+G135","v":0},{"$f":"IF('II. Identyfikacja Wnioskodawcy'!$P$50=Słowniki!$K$19,H128+H129+H135,\"nie dotyczy\")","v":"nie dotyczy"},{"$f":"IF('II. Identyfikacja Wnioskodawcy'!$P$50=Słowniki!$K$19,I128+I129+I135,\"nie dotyczy\")","v":"nie dotyczy"},0,0,0,{"$f":"IF('II. Identyfikacja Wnioskodawcy'!$P$50=Słowniki!$K$19,M85+H136,\"nie dotyczy\")","v":"nie dotyczy"},{"$f":"IF('II. Identyfikacja Wnioskodawcy'!$P$50=Słowniki!$K$19,N85+I136,\"nie dotyczy\")","v":"nie dotyczy"}]
["Sprawdzenie",null,null,null,{"$f":"E126-E136","v":0},{"$f":"F126-F136","v":0},{"$f":"G126-G136","v":0},{"$f":"IF('II. Identyfikacja Wnioskodawcy'!$P$50=Słowniki!$K$19,H126-H136,\"nie dotyczy\")","v":"nie dotyczy"},{"$f":"IF('II. Identyfikacja Wnioskodawcy'!$P$50=Słowniki!$K$19,I126-I136,\"nie dotyczy\")","v":"nie dotyczy"},{"$f":"J126-J136","v":0},{"$f":"K126-K136","v":0},{"$f":"L126-L136","v":0},{"$f":"IF('II. Identyfikacja Wnioskodawcy'!$P$50=Słowniki!$K$19,M126-M136,\"nie dotyczy\")","v":"nie dotyczy"},{"$f":"IF('II. Identyfikacja Wnioskodawcy'!$P$50=Słowniki!$K$19,N126-N136,\"nie dotyczy\")","v":"nie dotyczy"}]
["Wskaźniki finansowe"]
[27,"Rentowność netto",null,null,{"$f":"IFERROR(E116/E109,\"-\")","v":"-"},"-","-",{"$f":"IF('II. Identyfikacja Wnioskodawcy'!$P$50=Słowniki!$K$19,H116/H109,\"nie dotyczy\")","v":"nie dotyczy"},{"$f":"IF('II. Identyfikacja Wnioskodawcy'!$P$50=Słowniki!$K$19,I116/I109,\"nie dotyczy\")","v":"nie dotyczy"},"-","-","-",{"$f":"IF('II. Identyfikacja Wnioskodawcy'!$P$50=Słowniki!$K$19,M116/M109,\"nie dotyczy\")","v":"nie dotyczy"},{"$f":"IF('II. Identyfikacja Wnioskodawcy'!$P$50=Słowniki!$K$19,N116/N109,\"nie dotyczy\")","v":"nie dotyczy"}]
[28,"Zwrot na aktywach (ROA)",null,null,{"$f":"IFERROR(E116/E126,\"-\")","v":"-"},"-","-",{"$f":"IF('II. Identyfikacja Wnioskodawcy'!$P$50=Słowniki!$K$19,H116/H126,\"nie dotyczy\")","v":"nie dotyczy"},{"$f":"IF('II. Identyfikacja Wnioskodawcy'!$P$50=Słowniki!$K$19,I116/I126,\"nie dotyczy\")","v":"nie dotyczy"},"-","-","-",{"$f":"IF('II. Identyfikacja Wnioskodawcy'!$P$50=Słowniki!$K$19,M116/M126,\"nie dotyczy\")","v":"nie dotyczy"},{"$f":"IF('II. Identyfikacja Wnioskodawcy'!$P$50=Słowniki!$K$19,N116/N126,\"nie dotyczy\")","v":"nie dotyczy"}]
[29,"Wskaźnik udziału kapitałów własnych",null,null,{"$f":"IFERROR(E128/E136,\"-\")","v":"-"},"-","-",{"$f":"IF('II. Identyfikacja Wnioskodawcy'!$P$50=Słowniki!$K$19,H128/H136,\"nie dotyczy\")","v":"nie dotyczy"},{"$f":"IF('II. Identyfikacja Wnioskodawcy'!$P$50=Słowniki!$K$19,I128/I136,\"nie dotyczy\")","v":"nie dotyczy"},"-","-","-",{"$f":"IF('II. Identyfikacja Wnioskodawcy'!$P$50=Słowniki!$K$19,M128/M136,\"nie dotyczy\")","v":"nie dotyczy"},{"$f":"IF('II. Identyfikacja Wnioskodawcy'!$P$50=Słowniki!$K$19,N128/N136,\"nie dotyczy\")","v":"nie dotyczy"}]
[30,"Wskaźnik zadłużenia",null,null,{"$f":"IFERROR(E129/E136,\"-\")","v":"-"},"-","-",{"$f":"IF('II. Identyfikacja Wnioskodawcy'!$P$50=Słowniki!$K$19,H129/H136,\"nie dotyczy\")","v":"nie dotyczy"},{"$f":"IF('II. Identyfikacja Wnioskodawcy'!$P$50=Słowniki!$K$19,I129/I136,\"nie dotyczy\")","v":"nie dotyczy"},"-","-","-",{"$f":"IF('II. Identyfikacja Wnioskodawcy'!$P$50=Słowniki!$K$19,M129/M136,\"nie dotyczy\")","v":"nie dotyczy"},{"$f":"IF('II. Identyfikacja Wnioskodawcy'!$P$50=Słowniki!$K$19,N129/N136,\"nie dotyczy\")","v":"nie dotyczy"}]
[31,"Wskaźnik płynności bieżącej",null,null,{"$f":"IFERROR(E121/E132,\"-\")","v":"-"},"-","-",{"$f":"IF('II. Identyfikacja Wnioskodawcy'!$P$50=Słowniki!$K$19,H121/H132,\"nie dotyczy\")","v":"nie dotyczy"},{"$f":"IF('II. Identyfikacja Wnioskodawcy'!$P$50=Słowniki!$K$19,I121/I132,\"nie dotyczy\")","v":"nie dotyczy"},"-","-","-",{"$f":"IF('II. Identyfikacja Wnioskodawcy'!$P$50=Słowniki!$K$19,M121/M132,\"nie dotyczy\")","v":"nie dotyczy"},{"$f":"IF('II. Identyfikacja Wnioskodawcy'!$P$50=Słowniki!$K$19,N121/N132,\"nie dotyczy\")","v":"nie dotyczy"}]
[32,"Wskaźnik relacji zadłużenia do EBITDA",null,null,{"$f":"IFERROR((E131+E134)/(E114+E111),\"-\")","v":"-"},{"$f":"IFERROR((F131+F134)/(F114+F111),\"-\")","v":"-"},{"$f":"IFERROR((G131+G134)/(G114+G111),\"-\")","v":"-"},{"$f":"IF('II. Identyfikacja Wnioskodawcy'!$P$50=Słowniki!$K$19,(H131+H134)/(H114+H111),\"nie dotyczy\")","v":"nie dotyczy"},{"$f":"IF('II. Identyfikacja Wnioskodawcy'!$P$50=Słowniki!$K$19,(I131+I134)/(I114+I111),\"nie dotyczy\")","v":"nie dotyczy"},{"$f":"IFERROR((J131+J134)/(J114+J111),\"-\")","v":"-"},{"$f":"IFERROR((K131+K134)/(K114+K111),\"-\")","v":"-"},{"$f":"IFERROR((L131+L134)/(L114+L111),\"-\")","v":"-"},{"$f":"IF('II. Identyfikacja Wnioskodawcy'!$P$50=Słowniki!$K$19,(M131+M134)/(M114+M111),\"nie dotyczy\")","v":"nie dotyczy"},{"$f":"IF('II. Identyfikacja Wnioskodawcy'!$P$50=Słowniki!$K$19,(N131+N134)/(N114+N111),\"nie dotyczy\")","v":"nie dotyczy"}]
[33,"Księgowy stosunek kapitału obcego do kapitału własnego przedsiębiorstwa ",null,null,{"$f":"IFERROR(E129/E128,\"-\")","v":"-"},{"$f":"IFERROR(F129/F128,\"-\")","v":"-"},"-",{"$f":"IF('II. Identyfikacja Wnioskodawcy'!$P$50=Słowniki!$K$19,H129/H128,\"nie dotyczy\")","v":"nie dotyczy"},{"$f":"IF('II. Identyfikacja Wnioskodawcy'!$P$50=Słowniki!$K$19,I129/I128,\"nie dotyczy\")","v":"nie dotyczy"},"-","-","-",{"$f":"IF('II. Identyfikacja Wnioskodawcy'!$P$50=Słowniki!$K$19,M129/M128,\"nie dotyczy\")","v":"nie dotyczy"},{"$f":"IF('II. Identyfikacja Wnioskodawcy'!$P$50=Słowniki!$K$19,N129/N128,\"nie dotyczy\")","v":"nie dotyczy"}]
[34,"Wskaźnik relacji pokrycia odsetek do EBITDA",null,null,{"$f":"IFERROR(E115/(E114+E111),0)","v":0},{"$f":"IFERROR(F115/(F114+F111),0)","v":0},0,{"$f":"IF('II. Identyfikacja Wnioskodawcy'!$P$50=Słowniki!$K$19,H115/(H114+H111),\"nie dotyczy\")","v":"nie dotyczy"},{"$f":"IF('II. Identyfikacja Wnioskodawcy'!$P$50=Słowniki!$K$19,I115/(I114+I111),\"nie dotyczy\")","v":"nie dotyczy"},{"$f":"IFERROR(J115/(J114+J111),0)","v":0},0,0,{"$f":"IF('II. Identyfikacja Wnioskodawcy'!$P$50=Słowniki!$K$19,M115/(M114+M111),\"nie dotyczy\")","v":"nie dotyczy"},{"$f":"IF('II. Identyfikacja Wnioskodawcy'!$P$50=Słowniki!$K$19,N115/(N114+N111),\"nie dotyczy\")","v":"nie dotyczy"}]
["Komentarz:"]

{"sheet":"IV. Wykaz wydatków","index":5,"n_rows":482,"n_cols":9,"rows_kept":482,"cut":false,"hidden":false,"merged":[[326,0,337,0],[328,4,334,4],[470,0,481,0],[472,4,478,4],[0,0,1,4],[0,5,0,7],[434,0,445,0],[436,4,442,4],[446,0,457,0],[448,4,454,4],[458,0,469,0],[460,4,466,4],[386,0,397,0],[388,4,394,4],[398,0,409,0],[410,0,421,0],[412,4,418,4],[422,0,433,0],[338,0,349,0],[340,4,346,4],[350,0,361,0],[352,4,358,4],[86,0,97,0],[88,4,94,4],[170,0,181,0],[172,4,178,4],[266,0,277,0],[232,4,238,4],[242,0,253,0],[244,4,250,4],[254,0,265,0],[256,4,262,4],[278,0,289,0],[280,4,286,4],[218,0,229,0],[182,0,193,0],[184,4,190,4],[194,0,205,0],[196,4,202,4],[206,0,217,0],[208,4,214,4],[220,4,226,4],[230,0,241,0],[288,1,288,2],[289,1,289,2],[181,1,181,2],[182,1,182,2],[183,1,183,2],[14,0,25,0],[16,4,22,4],[26,0,37,0],[28,4,34,4],[38,0,49,0],[40,4,46,4],[146,0,157,0],[148,4,154,4],[158,0,169,0],[160,4,166,4],[98,0,109,0],[100,4,106,4],[110,0,121,0],[112,4,118,4],[134,0,145,0],[122,0,133,0],[124,4,130,4],[111,3,111,4],[99,3,99,4],[101,1,101,2],[103,1,103,2],[105,1,105,2],[107,1,107,2],[15,3,15,4],[290,1,290,2],[291,1,291,2],[291,3,291,4],[293,1,293,2],[305,1,305,2],[307,1,307,2],[314,0,325,0],[316,4,322,4],[302,0,313,0],[290,0,301,0],[292,4,298,4],[315,1,315,2],[315,3,315,4],[317,1,317,2],[319,1,319,2],[321,1,321,2],[309,1,309,2],[311,1,311,2],[312,1,312,2],[313,1,313,2],[314,1,314,2],[304,4,310,4],[362,0,373,0],[364,4,370,4],[374,0,385,0],[376,4,382,4],[362,1,362,2],[363,1,363,2],[363,3,363,4],[365,1,365,2],[367,1,367,2],[369,1,369,2],[371,1,371,2],[372,1,372,2],[373,1,373,2],[374,1,374,2],[375,1,375,2],[384,1,384,2],[385,1,385,2],[5,1,5,2],[7,1,7,2],[9,1,9,2],[11,1,11,2],[12,1,12,2],[62,0,73,0],[64,4,70,4],[74,0,85,0],[76,4,82,4],[2,0,13,0],[4,4,10,4],[50,0,61,0],[52,4,58,4],[2,1,2,2],[3,1,3,2],[13,1,13,2],[3,3,3,4],[21,1,21,2],[23,1,23,2],[24,1,24,2],[25,1,25,2],[26,1,26,2],[14,1,14,2],[15,1,15,2],[17,1,17,2],[19,1,19,2],[35,1,35,2],[36,1,36,2],[37,1,37,2],[38,1,38,2],[39,1,39,2],[27,1,27,2],[27,3,27,4],[29,1,29,2],[31,1,31,2],[33,1,33,2],[48,1,48,2],[49,1,49,2],[50,1,50,2],[51,1,51,2],[51,3,51,4],[39,3,39,4],[41,1,41,2],[43,1,43,2],[45,1,45,2],[47,1,47,2],[61,1,61,2],[62,1,62,2],[63,1,63,2],[63,3,63,4],[65,1,65,2],[53,1,53,2],[55,1,55,2],[57,1,57,2],[59,1,59,2],[60,1,60,2],[74,1,74,2],[75,1,75,2],[75,3,75,4],[77,1,77,2],[79,1,79,2],[67,1,67,2],[69,1,69,2],[71,1,71,2],[72,1,72,2],[73,1,73,2],[87,1,87,2],[87,3,87,4],[89,1,89,2],[91,1,91,2],[93,1,93,2],[81,1,81,2],[83,1,83,2],[84,1,84,2],[85,1,85,2],[86,1,86,2],[95,1,95,2],[96,1,96,2],[97,1,97,2],[98,1,98,2],[99,1,99,2],[113,1,113,2],[115,1,115,2],[117,1,117,2],[119,1,119,2],[120,1,120,2],[108,1,108,2],[109,1,109,2],[110,1,110,2],[111,1,111,2],[127,1,127,2],[129,1,129,2],[131,1,131,2],[132,1,132,2],[133,1,133,2],[121,1,121,2],[122,1,122,2],[123,1,123,2],[123,3,123,4],[125,1,125,2],[141,1,141,2],[143,1,143,2],[144,1,144,2],[136,4,142,4],[145,1,145,2],[146,1,146,2],[134,1,134,2],[135,1,135,2],[135,3,135,4],[137,1,137,2],[139,1,139,2],[155,1,155,2],[156,1,156,2],[157,1,157,2],[158,1,158,2],[159,1,159,2],[147,1,147,2],[147,3,147,4],[149,1,149,2],[151,1,151,2],[153,1,153,2],[168,1,168,2],[169,1,169,2],[170,1,170,2],[171,1,171,2],[171,3,171,4],[159,3,159,4],[161,1,161,2],[163,1,163,2],[165,1,165,2],[167,1,167,2],[185,1,185,2],[173,1,173,2],[175,1,175,2],[177,1,177,2],[179,1,179,2],[180,1,180,2],[194,1,194,2],[195,1,195,2],[195,3,195,4],[197,1,197,2],[199,1,199,2],[187,1,187,2],[189,1,189,2],[191,1,191,2],[192,1,192,2],[193,1,193,2],[207,1,207,2],[207,3,207,4],[209,1,209,2],[211,1,211,2],[213,1,213,2],[201,1,201,2],[203,1,203,2],[204,1,204,2],[205,1,205,2],[206,1,206,2],[231,3,231,4],[219,3,219,4],[221,1,221,2],[223,1,223,2],[225,1,225,2],[227,1,227,2],[215,1,215,2],[216,1,216,2],[217,1,217,2],[218,1,218,2],[219,1,219,2],[220,3,226,3],[233,1,233,2],[235,1,235,2],[237,1,237,2],[239,1,239,2],[240,1,240,2],[228,1,228,2],[229,1,229,2],[230,1,230,2],[231,1,231,2],[247,1,247,2],[249,1,249,2],[251,1,251,2],[252,1,252,2],[253,1,253,2],[241,1,241,2],[242,1,242,2],[243,1,243,2],[243,3,243,4],[245,1,245,2],[261,1,261,2],[263,1,263,2],[264,1,264,2],[265,1,265,2],[266,1,266,2],[254,1,254,2],[255,1,255,2],[255,3,255,4],[257,1,257,2],[259,1,259,2],[267,1,267,2],[267,3,267,4],[269,1,269,2],[271,1,271,2],[273,1,273,2],[268,4,274,4],[302,1,302,2],[303,1,303,2],[303,3,303,4],[295,1,295,2],[297,1,297,2],[299,1,299,2],[300,1,300,2],[301,1,301,2],[275,1,275,2],[276,1,276,2],[277,1,277,2],[278,1,278,2],[279,1,279,2],[279,3,279,4],[281,1,281,2],[283,1,283,2],[285,1,285,2],[287,1,287,2],[339,3,339,4],[327,3,327,4],[329,1,329,2],[331,1,331,2],[333,1,333,2],[335,1,335,2],[323,1,323,2],[324,1,324,2],[325,1,325,2],[326,1,326,2],[327,1,327,2],[341,1,341,2],[343,1,343,2],[345,1,345,2],[347,1,347,2],[348,1,348,2],[336,1,336,2],[337,1,337,2],[338,1,338,2],[339,1,339,2],[355,1,355,2],[357,1,357,2],[359,1,359,2],[360,1,360,2],[361,1,361,2],[349,1,349,2],[350,1,350,2],[351,1,351,2],[351,3,351,4],[353,1,353,2],[386,1,386,2],[387,1,387,2],[387,3,387,4],[375,3,375,4],[377,1,377,2],[379,1,379,2],[381,1,381,2],[383,1,383,2],[397,1,397,2],[398,1,398,2],[399,1,399,2],[399,3,399,4],[401,1,401,2],[389,1,389,2],[391,1,391,2],[393,1,393,2],[395,1,395,2],[396,1,396,2],[400,4,406,4],[410,1,410,2],[411,1,411,2],[411,3,411,4],[413,1,413,2],[415,1,415,2],[403,1,403,2],[405,1,405,2],[407,1,407,2],[408,1,408,2],[409,1,409,2],[423,1,423,2],[423,3,423,4],[425,1,425,2],[427,1,427,2],[429,1,429,2],[417,1,417,2],[419,1,419,2],[420,1,420,2],[421,1,421,2],[422,1,422,2],[424,4,430,4],[437,1,437,2],[439,1,439,2],[441,1,441,2],[443,1,443,2],[431,1,431,2],[432,1,432,2],[433,1,433,2],[434,1,434,2],[435,1,435,2],[449,1,449,2],[451,1,451,2],[453,1,453,2],[455,1,455,2],[456,1,456,2],[444,1,444,2],[445,1,445,2],[446,1,446,2],[447,1,447,2],[463,1,463,2],[465,1,465,2],[467,1,467,2],[468,1,468,2],[469,1,469,2],[457,1,457,2],[458,1,458,2],[459,1,459,2],[459,3,459,4],[461,1,461,2],[477,1,477,2],[479,1,479,2],[480,1,480,2],[481,1,481,2],[470,1,470,2],[471,1,471,2],[471,3,471,4],[473,1,473,2],[475,1,475,2],[4,3,10,3],[16,3,22,3],[28,3,34,3],[40,3,46,3],[52,3,58,3],[64,3,70,3],[76,3,82,3],[88,3,94,3],[100,3,106,3],[112,3,118,3],[124,3,130,3],[136,3,142,3],[148,3,154,3],[160,3,166,3],[172,3,178,3],[184,3,190,3],[196,3,202,3],[208,3,214,3],[183,3,183,4],[232,3,238,3],[244,3,250,3],[256,3,262,3],[268,3,274,3],[280,3,286,3],[292,3,298,3],[304,3,310,3],[316,3,322,3],[328,3,334,3],[448,3,454,3],[460,3,466,3],[472,3,478,3],[340,3,346,3],[352,3,358,3],[364,3,370,3],[376,3,382,3],[388,3,394,3],[400,3,406,3],[412,3,418,3],[424,3,430,3],[436,3,442,3],[447,3,447,4],[435,3,435,4]]}
["IV. Wykaz wydatków",null,null,null,null,"Uwagi/komentarze Ekspertów"]
[null,null,null,null,null,{"$f":"'I. Informacje o projekcie'!$AH$2","v":"Ekspert od innowacyjności 1"},{"$f":"'I. Informacje o projekcie'!$AI$2","v":"Ekspert od innowacyjności 2"},{"$f":"'I. Informacje o projekcie'!$AJ$2","v":"Ekspert finansowy"},{"$f":"'I. Informacje o projekcie'!$AK$2","v":"Uwagi MFiPR"}]
["1.","Rodzaj wydatku",null,"143."]
[null,"Nazwa planowanego wydatku",null,"Uzasadnienie merytoryczne zakupu:"]
[null,"144.",null,"145."]
[null,"Wartość całkowita wydatku(łącznie)"]
[null,"146."]
[null,"Koszt kwalifikowany"]
[null,"147."]
[null,"Liczba sztuk/kompletów"]
[null,"148."]
[null,"Źródła ustalenia kosztu",null,"149."]
[null,"Szczegółowe składowe pozycji",null,"150."]
[null,"Treść zapytania ofertowego/ szacunku skierowanego do Oferenta (w przypadku gdy wydatek został/zostanie ponieniesiony z wyłączeniem zasady konkurencyjności na podstawie spełnienia przesłanek z pkt 7 lit. d i e podrozdziału 6.5 Wytycznych w zakresie kwalifikowalności wydatków w ramach EFRR, EFS oraz FS na lata 2014-2020 należy podać uzasadnienie).",null,"151."]
["2.","Rodzaj wydatku",null,"143."]
[null,"Nazwa planowanego wydatku",null,"Uzasadnienie merytoryczne zakupu:"]
[null,"144.",null,"145."]
[null,"Wartość całkowita wydatku(łącznie)"]
[null,"146."]
[null,"Koszt kwalifikowany"]
[null,"147."]
[null,"Liczba sztuk/kompletów"]
[null,"148."]
[null,"Źródła ustalenia kosztu",null,"149."]
[null,"Szczegółowe składowe pozycji",null,"150."]
[null,"Treść zapytania ofertowego/ szacunku skierowanego do Oferenta (w przypadku gdy wydatek został/zostanie ponieniesiony z wyłączeniem zasady konkurencyjności na podstawie spełnienia przesłanek z pkt 7 lit. d i e podrozdziału 6.5 Wytycznych w zakresie kwalifikowalności wydatków w ramach EFRR, EFS oraz FS na lata 2014-2020 należy podać uzasadnienie).",null,"151."]
["3.","Rodzaj wydatku",null,"143."]
[null,"Nazwa planowanego wydatku",null,"Uzasadnienie merytoryczne zakupu:"]
[null,"144.",null,"145."]
[null,"Wartość całkowita wydatku(łącznie)"]
[null,"146."]
[null,"Koszt kwalifikowany"]
[null,"147."]
[null,"Liczba sztuk/kompletów"]
[null,"148."]
[null,"Źródła ustalenia kosztu",null,"149."]
[null,"Szczegółowe składowe pozycji",null,"150."]
[null,"Treść zapytania ofertowego/ szacunku skierowanego do Oferenta (w przypadku gdy wydatek został/zostanie ponieniesiony z wyłączeniem zasady konkurencyjności na podstawie spełnienia przesłanek z pkt 7 lit. d i e podrozdziału 6.5 Wytycznych w zakresie kwalifikowalności wydatków w ramach EFRR, EFS oraz FS na lata 2014-2020 należy podać uzasadnienie).",null,"151."]
["4.","Rodzaj wydatku",null,"143."]
[null,"Nazwa planowanego wydatku",null,"Uzasadnienie merytoryczne zakupu:"]
[null,"144.",null,"145."]
[null,"Wartość całkowita wydatku(łącznie)"]
[null,"146."]
[null,"Koszt kwalifikowany"]
[null,"147."]
[null,"Liczba sztuk/kompletów"]
[null,"148."]
[null,"Źródła ustalenia kosztu",null,"149."]
[null,"Szczegółowe składowe pozycji",null,"150."]
[null,"Treść zapytania ofertowego/ szacunku skierowanego do Oferenta (w przypadku gdy wydatek został/zostanie ponieniesiony z wyłączeniem zasady konkurencyjności na podstawie spełnienia przesłanek z pkt 7 lit. d i e podrozdziału 6.5 Wytycznych w zakresie kwalifikowalności wydatków w ramach EFRR, EFS oraz FS na lata 2014-2020 należy podać uzasadnienie).",null,"151."]
["5.","Rodzaj wydatku",null,"143."]
[null,"Nazwa planowanego wydatku",null,"Uzasadnienie merytoryczne zakupu:"]
[null,"144.",null,"145."]
[null,"Wartość całkowita wydatku(łącznie)"]
[null,"146."]
[null,"Koszt kwalifikowany"]
[null,"147."]
[null,"Liczba sztuk/kompletów"]
[null,"148."]
[null,"Źródła ustalenia kosztu",null,"149."]
[null,"Szczegółowe składowe pozycji",null,"150."]
[null,"Treść zapytania ofertowego/ szacunku skierowanego do Oferenta (w przypadku gdy wydatek został/zostanie ponieniesiony z wyłączeniem zasady konkurencyjności na podstawie spełnienia przesłanek z pkt 7 lit. d i e podrozdziału 6.5 Wytycznych w zakresie kwalifikowalności wydatków w ramach EFRR, EFS oraz FS na lata 2014-2020 należy podać uzasadnienie).",null,"151."]
["6.","Rodzaj wydatku",null,"143."]
[null,"Nazwa planowanego wydatku",null,"Uzasadnienie merytoryczne zakupu:"]
[null,"144.",null,"145."]
[null,"Wartość całkowita wydatku(łącznie)"]
[null,"146."]
[null,"Koszt kwalifikowany"]
[null,"147."]
[null,"Liczba sztuk/kompletów"]
[null,"148."]
[null,"Źródła ustalenia kosztu",null,"149."]
[null,"Szczegółowe składowe pozycji",null,"150."]
[null,"Treść zapytania ofertowego/ szacunku skierowanego do Oferenta (w przypadku gdy wydatek został/zostanie ponieniesiony z wyłączeniem zasady konkurencyjności na podstawie spełnienia przesłanek z pkt 7 lit. d i e podrozdziału 6.5 Wytycznych w zakresie kwalifikowalności wydatków w ramach EFRR, EFS oraz FS na lata 2014-2020 należy podać uzasadnienie).",null,"151."]
["7.","Rodzaj wydatku",null,"143."]
[null,"Nazwa planowanego wydatku",null,"Uzasadnienie merytoryczne zakupu:"]
[null,"144.",null,"145."]
[null,"Wartość całkowita wydatku(łącznie)"]
[null,"146."]
[null,"Koszt kwalifikowany"]
[null,"147."]
[null,"Liczba sztuk/kompletów"]
[null,"148."]
[null,"Źródła ustalenia kosztu",null,"149."]
[null,"Szczegółowe składowe pozycji",null,"150."]
[null,"Treść zapytania ofertowego/ szacunku skierowanego do Oferenta (w przypadku gdy wydatek został/zostanie ponieniesiony z wyłączeniem zasady konkurencyjności na podstawie spełnienia przesłanek z pkt 7 lit. d i e podrozdziału 6.5 Wytycznych w zakresie kwalifikowalności wydatków w ramach EFRR, EFS oraz FS na lata 2014-2020 należy podać uzasadnienie).",null,"151."]
["8.","Rodzaj wydatku",null,"143."]
[null,"Nazwa planowanego wydatku",null,"Uzasadnienie merytoryczne zakupu:"]
[null,"144.",null,"145."]
[null,"Wartość całkowita wydatku(łącznie)"]
[null,"146."]
[null,"Koszt kwalifikowany"]
[null,"147."]
[null,"Liczba sztuk/kompletów"]
[null,"148."]
[null,"Źródła ustalenia kosztu",null,"149."]
[null,"Szczegółowe składowe pozycji",null,"150."]
[null,"Treść zapytania ofertowego/ szacunku skierowanego do Oferenta (w przypadku gdy wydatek został/zostanie ponieniesiony z wyłączeniem zasady konkurencyjności na podstawie spełnienia przesłanek z pkt 7 lit. d i e podrozdziału 6.5 Wytycznych w zakresie kwalifikowalności wydatków w ramach EFRR, EFS oraz FS na lata 2014-2020 należy podać uzasadnienie).",null,"151."]
["9.","Rodzaj wydatku",null,"143."]
[null,"Nazwa planowanego wydatku",null,"Uzasadnienie merytoryczne zakupu:"]
[null,"144.",null,"145."]
[null,"Wartość całkowita wydatku(łącznie)"]
[null,"146."]
[null,"Koszt kwalifikowany"]
[null,"147."]
[null,"Liczba sztuk/kompletów"]
[null,"148."]
[null,"Źródła ustalenia kosztu",null,"149."]
[null,"Szczegółowe składowe pozycji",null,"150."]
[null,"Treść zapytania ofertowego/ szacunku skierowanego do Oferenta (w przypadku gdy wydatek został/zostanie ponieniesiony z wyłączeniem zasady konkurencyjności na podstawie spełnienia przesłanek z pkt 7 lit. d i e podrozdziału 6.5 Wytycznych w zakresie kwalifikowalności wydatków w ramach EFRR, EFS oraz FS na lata 2014-2020 należy podać uzasadnienie).",null,"151."]
["10.","Rodzaj wydatku",null,"143."]
[null,"Nazwa planowanego wydatku",null,"Uzasadnienie merytoryczne zakupu:"]
[null,"144.",null,"145."]
[null,"Wartość całkowita wydatku(łącznie)"]
[null,"146."]
[null,"Koszt kwalifikowany"]
[null,"147."]
[null,"Liczba sztuk/kompletów"]
[null,"148."]
[null,"Źródła ustalenia kosztu",null,"149."]
[null,"Szczegółowe składowe pozycji",null,"150."]
[null,"Treść zapytania ofertowego/ szacunku skierowanego do Oferenta (w przypadku gdy wydatek został/zostanie ponieniesiony z wyłączeniem zasady konkurencyjności na podstawie spełnienia przesłanek z pkt 7 lit. d i e podrozdziału 6.5 Wytycznych w zakresie kwalifikowalności wydatków w ramach EFRR, EFS oraz FS na lata 2014-2020 należy podać uzasadnienie).",null,"151."]
["11.","Rodzaj wydatku",null,"143."]
[null,"Nazwa planowanego wydatku",null,"Uzasadnienie merytoryczne zakupu:"]
[null,"144.",null,"145."]
[null,"Wartość całkowita wydatku(łącznie)"]
[null,"146."]
[null,"Koszt kwalifikowany"]
[null,"147."]
[null,"Liczba sztuk/kompletów"]
[null,"148."]
[null,"Źródła ustalenia kosztu",null,"149."]
[null,"Szczegółowe składowe pozycji",null,"150."]
[null,"Treść zapytania ofertowego/ szacunku skierowanego do Oferenta (w przypadku gdy wydatek został/zostanie ponieniesiony z wyłączeniem zasady konkurencyjności na podstawie spełnienia przesłanek z pkt 7 lit. d i e podrozdziału 6.5 Wytycznych w zakresie kwalifikowalności wydatków w ramach EFRR, EFS oraz FS na lata 2014-2020 należy podać uzasadnienie).",null,"151."]
["12.","Rodzaj wydatku",null,"143."]
[null,"Nazwa planowanego wydatku",null,"Uzasadnienie merytoryczne zakupu:"]
[null,"144.",null,"145."]
[null,"Wartość całkowita wydatku(łącznie)"]
[null,"146."]
[null,"Koszt kwalifikowany"]
[null,"147."]
[null,"Liczba sztuk/kompletów"]
[null,"148."]
[null,"Źródła ustalenia kosztu",null,"149."]
[null,"Szczegółowe składowe pozycji",null,"150."]
[null,"Treść zapytania ofertowego/ szacunku skierowanego do Oferenta (w przypadku gdy wydatek został/zostanie ponieniesiony z wyłączeniem zasady konkurencyjności na podstawie spełnienia przesłanek z pkt 7 lit. d i e podrozdziału 6.5 Wytycznych w zakresie kwalifikowalności wydatków w ramach EFRR, EFS oraz FS na lata 2014-2020 należy podać uzasadnienie).",null,"151."]
["13.","Rodzaj wydatku",null,"143."]
[null,"Nazwa planowanego wydatku",null,"Uzasadnienie merytoryczne zakupu:"]
[null,"144.",null,"145."]
[null,"Wartość całkowita wydatku(łącznie)"]
[null,"146."]
[null,"Koszt kwalifikowany"]
[null,"147."]
[null,"Liczba sztuk/kompletów"]
[null,"148."]
[null,"Źródła ustalenia kosztu",null,"149."]
[null,"Szczegółowe składowe pozycji",null,"150."]
[null,"Treść zapytania ofertowego/ szacunku skierowanego do Oferenta (w przypadku gdy wydatek został/zostanie ponieniesiony z wyłączeniem zasady konkurencyjności na podstawie spełnienia przesłanek z pkt 7 lit. d i e podrozdziału 6.5 Wytycznych w zakresie kwalifikowalności wydatków w ramach EFRR, EFS oraz FS na lata 2014-2020 należy podać uzasadnienie).",null,"151."]
["14.","Rodzaj wydatku",null,"143."]
[null,"Nazwa planowanego wydatku",null,"Uzasadnienie merytoryczne zakupu:"]
[null,"144.",null,"145."]
[null,"Wartość całkowita wydatku(łącznie)"]
[null,"146."]
[null,"Koszt kwalifikowany"]
[null,"147."]
[null,"Liczba sztuk/kompletów"]
[null,"148."]
[null,"Źródła ustalenia kosztu",null,"149."]
[null,"Szczegółowe składowe pozycji",null,"150."]
[null,"Treść zapytania ofertowego/ szacunku skierowanego do Oferenta (w przypadku gdy wydatek został/zostanie ponieniesiony z wyłączeniem zasady konkurencyjności na podstawie spełnienia przesłanek z pkt 7 lit. d i e podrozdziału 6.5 Wytycznych w zakresie kwalifikowalności wydatków w ramach EFRR, EFS oraz FS na lata 2014-2020 należy podać uzasadnienie).",null,"151."]
["15.","Rodzaj wydatku",null,"143."]
[null,"Nazwa planowanego wydatku",null,"Uzasadnienie merytoryczne zakupu:"]
[null,"144.",null,"145."]
[null,"Wartość całkowita wydatku(łącznie)"]
[null,"146."]
[null,"Koszt kwalifikowany"]
[null,"147."]
[null,"Liczba sztuk/kompletów"]
[null,"148."]
[null,"Źródła ustalenia kosztu",null,"149."]
[null,"Szczegółowe składowe pozycji",null,"150."]
[null,"Treść zapytania ofertowego/ szacunku skierowanego do Oferenta (w przypadku gdy wydatek został/zostanie ponieniesiony z wyłączeniem zasady konkurencyjności na podstawie spełnienia przesłanek z pkt 7 lit. d i e podrozdziału 6.5 Wytycznych w zakresie kwalifikowalności wydatków w ramach EFRR, EFS oraz FS na lata 2014-2020 należy podać uzasadnienie).",null,"151."]
["16.","Rodzaj wydatku",null,"143."]
[null,"Nazwa planowanego wydatku",null,"Uzasadnienie merytoryczne zakupu:"]
[null,"144.",null,"145."]
[null,"Wartość całkowita wydatku(łącznie)"]
[null,"146."]
[null,"Koszt kwalifikowany"]
[null,"147."]
[null,"Liczba sztuk/kompletów"]
[null,"148."]
[null,"Źródła ustalenia kosztu",null,"149."]
[null,"Szczegółowe składowe pozycji",null,"150."]
[null,"Treść zapytania ofertowego/ szacunku skierowanego do Oferenta (w przypadku gdy wydatek został/zostanie ponieniesiony z wyłączeniem zasady konkurencyjności na podstawie spełnienia przesłanek z pkt 7 lit. d i e podrozdziału 6.5 Wytycznych w zakresie kwalifikowalności wydatków w ramach EFRR, EFS oraz FS na lata 2014-2020 należy podać uzasadnienie).",null,"151."]
["17.","Rodzaj wydatku",null,"143."]
[null,"Nazwa planowanego wydatku",null,"Uzasadnienie merytoryczne zakupu:"]
[null,"144.",null,"145."]
[null,"Wartość całkowita wydatku(łącznie)"]
[null,"146."]
[null,"Koszt kwalifikowany"]
[null,"147."]
[null,"Liczba sztuk/kompletów"]
[null,"148."]
[null,"Źródła ustalenia kosztu",null,"149."]
[null,"Szczegółowe składowe pozycji",null,"150."]
[null,"Treść zapytania ofertowego/ szacunku skierowanego do Oferenta (w przypadku gdy wydatek został/zostanie ponieniesiony z wyłączeniem zasady konkurencyjności na podstawie spełnienia przesłanek z pkt 7 lit. d i e podrozdziału 6.5 Wytycznych w zakresie kwalifikowalności wydatków w ramach EFRR, EFS oraz FS na lata 2014-2020 należy podać uzasadnienie).",null,"151."]
["18.","Rodzaj wydatku",null,"143."]
[null,"Nazwa planowanego wydatku",null,"Uzasadnienie merytoryczne zakupu:"]
[null,"144.",null,"145."]
[null,"Wartość całkowita wydatku(łącznie)"]
[null,"146."]
[null,"Koszt kwalifikowany"]
[null,"147."]
[null,"Liczba sztuk/kompletów"]
[null,"148."]
[null,"Źródła ustalenia kosztu",null,"149."]
[null,"Szczegółowe składowe pozycji",null,"150."]
[null,"Treść zapytania ofertowego/ szacunku skierowanego do Oferenta (w przypadku gdy wydatek został/zostanie ponieniesiony z wyłączeniem zasady konkurencyjności na podstawie spełnienia przesłanek z pkt 7 lit. d i e podrozdziału 6.5 Wytycznych w zakresie kwalifikowalności wydatków w ramach EFRR, EFS oraz FS na lata 2014-2020 należy podać uzasadnienie).",null,"151."]
["19.","Rodzaj wydatku",null,"143."]
[null,"Nazwa planowanego wydatku",null,"Uzasadnienie merytoryczne zakupu:"]
[null,"144.",null,"145."]
[null,"Wartość całkowita wydatku(łącznie)"]
[null,"146."]
[null,"Koszt kwalifikowany"]
[null,"147."]
[null,"Liczba sztuk/kompletów"]
[null,"148."]
[null,"Źródła ustalenia kosztu",null,"149."]
[null,"Szczegółowe składowe pozycji",null,"150."]
[null,"Treść zapytania ofertowego/ szacunku skierowanego do Oferenta (w przypadku gdy wydatek został/zostanie ponieniesiony z wyłączeniem zasady konkurencyjności na podstawie spełnienia przesłanek z pkt 7 lit. d i e podrozdziału 6.5 Wytycznych w zakresie kwalifikowalności wydatków w ramach EFRR, EFS oraz FS na lata 2014-2020 należy podać uzasadnienie).",null,"151."]
["20.","Rodzaj wydatku",null,"143."]
[null,"Nazwa planowanego wydatku",null,"Uzasadnienie merytoryczne zakupu:"]
[null,"144.",null,"145."]
[null,"Wartość całkowita wydatku(łącznie)"]
[null,"146."]
[null,"Koszt kwalifikowany"]
[null,"147."]
[null,"Liczba sztuk/kompletów"]
[null,"148."]
[null,"Źródła ustalenia kosztu",null,"149."]
[null,"Szczegółowe składowe pozycji",null,"150."]
[null,"Treść zapytania ofertowego/ szacunku skierowanego do Oferenta (w przypadku gdy wydatek został/zostanie ponieniesiony z wyłączeniem zasady konkurencyjności na podstawie spełnienia przesłanek z pkt 7 lit. d i e podrozdziału 6.5 Wytycznych w zakresie kwalifikowalności wydatków w ramach EFRR, EFS oraz FS na lata 2014-2020 należy podać uzasadnienie).",null,"151."]
["21.","Rodzaj wydatku",null,"143."]
[null,"Nazwa planowanego wydatku",null,"Uzasadnienie merytoryczne zakupu:"]
[null,"144.",null,"145."]
[null,"Wartość całkowita wydatku(łącznie)"]
[null,"146."]
[null,"Koszt kwalifikowany"]
[null,"147."]
[null,"Liczba sztuk/kompletów"]
[null,"148."]
[null,"Źródła ustalenia kosztu",null,"149."]
[null,"Szczegółowe składowe pozycji",null,"150."]
[null,"Treść zapytania ofertowego/ szacunku skierowanego do Oferenta (w przypadku gdy wydatek został/zostanie ponieniesiony z wyłączeniem zasady konkurencyjności na podstawie spełnienia przesłanek z pkt 7 lit. d i e podrozdziału 6.5 Wytycznych w zakresie kwalifikowalności wydatków w ramach EFRR, EFS oraz FS na lata 2014-2020 należy podać uzasadnienie).",null,"151."]
["22.","Rodzaj wydatku",null,"143."]
[null,"Nazwa planowanego wydatku",null,"Uzasadnienie merytoryczne zakupu:"]
[null,"144.",null,"145."]
[null,"Wartość całkowita wydatku(łącznie)"]
[null,"146."]
[null,"Koszt kwalifikowany"]
[null,"147."]
[null,"Liczba sztuk/kompletów"]
[null,"148."]
[null,"Źródła ustalenia kosztu",null,"149."]
[null,"Szczegółowe składowe pozycji",null,"150."]
[null,"Treść zapytania ofertowego/ szacunku skierowanego do Oferenta (w przypadku gdy wydatek został/zostanie ponieniesiony z wyłączeniem zasady konkurencyjności na podstawie spełnienia przesłanek z pkt 7 lit. d i e podrozdziału 6.5 Wytycznych w zakresie kwalifikowalności wydatków w ramach EFRR, EFS oraz FS na lata 2014-2020 należy podać uzasadnienie).",null,"151."]
["23.","Rodzaj wydatku",null,"143."]
[null,"Nazwa planowanego wydatku",null,"Uzasadnienie merytoryczne zakupu:"]
[null,"144.",null,"145."]
[null,"Wartość całkowita wydatku(łącznie)"]
[null,"146."]
[null,"Koszt kwalifikowany"]
[null,"147."]
[null,"Liczba sztuk/kompletów"]
[null,"148."]
[null,"Źródła ustalenia kosztu",null,"149."]
[null,"Szczegółowe składowe pozycji",null,"150."]
[null,"Treść zapytania ofertowego/ szacunku skierowanego do Oferenta (w przypadku gdy wydatek został/zostanie ponieniesiony z wyłączeniem zasady konkurencyjności na podstawie spełnienia przesłanek z pkt 7 lit. d i e podrozdziału 6.5 Wytycznych w zakresie kwalifikowalności wydatków w ramach EFRR, EFS oraz FS na lata 2014-2020 należy podać uzasadnienie).",null,"151."]
["24.","Rodzaj wydatku",null,"143."]
[null,"Nazwa planowanego wydatku",null,"Uzasadnienie merytoryczne zakupu:"]
[null,"144.",null,"145."]
[null,"Wartość całkowita wydatku(łącznie)"]
[null,"146."]
[null,"Koszt kwalifikowany"]
[null,"147."]
[null,"Liczba sztuk/kompletów"]
[null,"148."]
[null,"Źródła ustalenia kosztu",null,"149."]
[null,"Szczegółowe składowe pozycji",null,"150."]
[null,"Treść zapytania ofertowego/ szacunku skierowanego do Oferenta (w przypadku gdy wydatek został/zostanie ponieniesiony z wyłączeniem zasady konkurencyjności na podstawie spełnienia przesłanek z pkt 7 lit. d i e podrozdziału 6.5 Wytycznych w zakresie kwalifikowalności wydatków w ramach EFRR, EFS oraz FS na lata 2014-2020 należy podać uzasadnienie).",null,"151."]
["25.","Rodzaj wydatku",null,"143."]
[null,"Nazwa planowanego wydatku",null,"Uzasadnienie merytoryczne zakupu:"]
[null,"144.",null,"145."]
[null,"Wartość całkowita wydatku(łącznie)"]
[null,"146."]
[null,"Koszt kwalifikowany"]
[null,"147."]
[null,"Liczba sztuk/kompletów"]
[null,"148."]
[null,"Źródła ustalenia kosztu",null,"149."]
[null,"Szczegółowe składowe pozycji",null,"150."]
[null,"Treść zapytania ofertowego/ szacunku skierowanego do Oferenta (w przypadku gdy wydatek został/zostanie ponieniesiony z wyłączeniem zasady konkurencyjności na podstawie spełnienia przesłanek z pkt 7 lit. d i e podrozdziału 6.5 Wytycznych w zakresie kwalifikowalności wydatków w ramach EFRR, EFS oraz FS na lata 2014-2020 należy podać uzasadnienie).",null,"151."]
["26.","Rodzaj wydatku",null,"143."]
[null,"Nazwa planowanego wydatku",null,"Uzasadnienie merytoryczne zakupu:"]
[null,"144.",null,"145."]
[null,"Wartość całkowita wydatku(łącznie)"]
[null,"146."]
[null,"Koszt kwalifikowany"]
[null,"147."]
[null,"Liczba sztuk/kompletów"]
[null,"148."]
[null,"Źródła ustalenia kosztu",null,"149."]
[null,"Szczegółowe składowe pozycji",null,"150."]
[null,"Treść zapytania ofertowego/ szacunku skierowanego do Oferenta (w przypadku gdy wydatek został/zostanie ponieniesiony z wyłączeniem zasady konkurencyjności na podstawie spełnienia przesłanek z pkt 7 lit. d i e podrozdziału 6.5 Wytycznych w zakresie kwalifikowalności wydatków w ramach EFRR, EFS oraz FS na lata 2014-2020 należy podać uzasadnienie).",null,"151."]
["27.","Rodzaj wydatku",null,"143."]
[null,"Nazwa planowanego wydatku",null,"Uzasadnienie merytoryczne zakupu:"]
[null,"144.",null,"145."]
[null,"Wartość całkowita wydatku(łącznie)"]
[null,"146."]
[null,"Koszt kwalifikowany"]
[null,"147."]
[null,"Liczba sztuk/kompletów"]
[null,"148."]
[null,"Źródła ustalenia kosztu",null,"149."]
[null,"Szczegółowe składowe pozycji",null,"150."]
[null,"Treść zapytania ofertowego/ szacunku skierowanego do Oferenta (w przypadku gdy wydatek został/zostanie ponieniesiony z wyłączeniem zasady konkurencyjności na podstawie spełnienia przesłanek z pkt 7 lit. d i e podrozdziału 6.5 Wytycznych w zakresie kwalifikowalności wydatków w ramach EFRR, EFS oraz FS na lata 2014-2020 należy podać uzasadnienie).",null,"151."]
["28.","Rodzaj wydatku",null,"143."]
[null,"Nazwa planowanego wydatku",null,"Uzasadnienie merytoryczne zakupu:"]
[null,"144.",null,"145."]
[null,"Wartość całkowita wydatku(łącznie)"]
[null,"146."]
[null,"Koszt kwalifikowany"]
[null,"147."]
[null,"Liczba sztuk/kompletów"]
[null,"148."]
[null,"Źródła ustalenia kosztu",null,"149."]
[null,"Szczegółowe składowe pozycji",null,"150."]
[null,"Treść zapytania ofertowego/ szacunku skierowanego do Oferenta (w przypadku gdy wydatek został/zostanie ponieniesiony z wyłączeniem zasady konkurencyjności na podstawie spełnienia przesłanek z pkt 7 lit. d i e podrozdziału 6.5 Wytycznych w zakresie kwalifikowalności wydatków w ramach EFRR, EFS oraz FS na lata 2014-2020 należy podać uzasadnienie).",null,"151."]
["29.","Rodzaj wydatku",null,"143."]
[null,"Nazwa planowanego wydatku",null,"Uzasadnienie merytoryczne zakupu:"]
[null,"144.",null,"145."]
[null,"Wartość całkowita wydatku(łącznie)"]
[null,"146."]
[null,"Koszt kwalifikowany"]
[null,"147."]
[null,"Liczba sztuk/kompletów"]
[null,"148."]
[null,"Źródła ustalenia kosztu",null,"149."]
[null,"Szczegółowe składowe pozycji",null,"150."]
[null,"Treść zapytania ofertowego/ szacunku skierowanego do Oferenta (w przypadku gdy wydatek został/zostanie ponieniesiony z wyłączeniem zasady konkurencyjności na podstawie spełnienia przesłanek z pkt 7 lit. d i e podrozdziału 6.5 Wytycznych w zakresie kwalifikowalności wydatków w ramach EFRR, EFS oraz FS na lata 2014-2020 należy podać uzasadnienie).",null,"151."]
["30.","Rodzaj wydatku",null,"143."]
[null,"Nazwa planowanego wydatku",null,"Uzasadnienie merytoryczne zakupu:"]
[null,"144.",null,"145."]
[null,"Wartość całkowita wydatku(łącznie)"]
[null,"146."]
[null,"Koszt kwalifikowany"]
[null,"147."]
[null,"Liczba sztuk/kompletów"]
[null,"148."]
[null,"Źródła ustalenia kosztu",null,"149."]
[null,"Szczegółowe składowe pozycji",null,"150."]
[null,"Treść zapytania ofertowego/ szacunku skierowanego do Oferenta (w przypadku gdy wydatek został/zostanie ponieniesiony z wyłączeniem zasady konkurencyjności na podstawie spełnienia przesłanek z pkt 7 lit. d i e podrozdziału 6.5 Wytycznych w zakresie kwalifikowalności wydatków w ramach EFRR, EFS oraz FS na lata 2014-2020 należy podać uzasadnienie).",null,"151."]
["31.","Rodzaj wydatku",null,"143."]
[null,"Nazwa planowanego wydatku",null,"Uzasadnienie merytoryczne zakupu:"]
[null,"144.",null,"145."]
[null,"Wartość całkowita wydatku(łącznie)"]
[null,"146."]
[null,"Koszt kwalifikowany"]
[null,"147."]
[null,"Liczba sztuk/kompletów"]
[null,"148."]
[null,"Źródła ustalenia kosztu",null,"149."]
[null,"Szczegółowe składowe pozycji",null,"150."]
[null,"Treść zapytania ofertowego/ szacunku skierowanego do Oferenta (w przypadku gdy wydatek został/zostanie ponieniesiony z wyłączeniem zasady konkurencyjności na podstawie spełnienia przesłanek z pkt 7 lit. d i e podrozdziału 6.5 Wytycznych w zakresie kwalifikowalności wydatków w ramach EFRR, EFS oraz FS na lata 2014-2020 należy podać uzasadnienie).",null,"151."]
["32.","Rodzaj wydatku",null,"143."]
[null,"Nazwa planowanego wydatku",null,"Uzasadnienie merytoryczne zakupu:"]
[null,"144.",null,"145."]
[null,"Wartość całkowita wydatku(łącznie)"]
[null,"146."]
[null,"Koszt kwalifikowany"]
[null,"147."]
[null,"Liczba sztuk/kompletów"]
[null,"148."]
[null,"Źródła ustalenia kosztu",null,"149."]
[null,"Szczegółowe składowe pozycji",null,"150."]
[null,"Treść zapytania ofertowego/ szacunku skierowanego do Oferenta (w przypadku gdy wydatek został/zostanie ponieniesiony z wyłączeniem zasady konkurencyjności na podstawie spełnienia przesłanek z pkt 7 lit. d i e podrozdziału 6.5 Wytycznych w zakresie kwalifikowalności wydatków w ramach EFRR, EFS oraz FS na lata 2014-2020 należy podać uzasadnienie).",null,"151."]
["33.","Rodzaj wydatku",null,"143."]
[null,"Nazwa planowanego wydatku",null,"Uzasadnienie merytoryczne zakupu:"]
[null,"144.",null,"145."]
[null,"Wartość całkowita wydatku(łącznie)"]
[null,"146."]
[null,"Koszt kwalifikowany"]
[null,"147."]
[null,"Liczba sztuk/kompletów"]
[null,"148."]
[null,"Źródła ustalenia kosztu",null,"149."]
[null,"Szczegółowe składowe pozycji",null,"150."]
[null,"Treść zapytania ofertowego/ szacunku skierowanego do Oferenta (w przypadku gdy wydatek został/zostanie ponieniesiony z wyłączeniem zasady konkurencyjności na podstawie spełnienia przesłanek z pkt 7 lit. d i e podrozdziału 6.5 Wytycznych w zakresie kwalifikowalności wydatków w ramach EFRR, EFS oraz FS na lata 2014-2020 należy podać uzasadnienie).",null,"151."]
["34.","Rodzaj wydatku",null,"143."]
[null,"Nazwa planowanego wydatku",null,"Uzasadnienie merytoryczne zakupu:"]
[null,"144.",null,"145."]
[null,"Wartość całkowita wydatku(łącznie)"]
[null,"146."]
[null,"Koszt kwalifikowany"]
[null,"147."]
[null,"Liczba sztuk/kompletów"]
[null,"148."]
[null,"Źródła ustalenia kosztu",null,"149."]
[null,"Szczegółowe składowe pozycji",null,"150."]
[null,"Treść zapytania ofertowego/ szacunku skierowanego do Oferenta (w przypadku gdy wydatek został/zostanie ponieniesiony z wyłączeniem zasady konkurencyjności na podstawie spełnienia przesłanek z pkt 7 lit. d i e podrozdziału 6.5 Wytycznych w zakresie kwalifikowalności wydatków w ramach EFRR, EFS oraz FS na lata 2014-2020 należy podać uzasadnienie).",null,"151."]
["35.","Rodzaj wydatku",null,"143."]
[null,"Nazwa planowanego wydatku",null,"Uzasadnienie merytoryczne zakupu:"]
[null,"144.",null,"145."]
[null,"Wartość całkowita wydatku(łącznie)"]
[null,"146."]
[null,"Koszt kwalifikowany"]
[null,"147."]
[null,"Liczba sztuk/kompletów"]
[null,"148."]
[null,"Źródła ustalenia kosztu",null,"149."]
[null,"Szczegółowe składowe pozycji",null,"150."]
[null,"Treść zapytania ofertowego/ szacunku skierowanego do Oferenta (w przypadku gdy wydatek został/zostanie ponieniesiony z wyłączeniem zasady konkurencyjności na podstawie spełnienia przesłanek z pkt 7 lit. d i e podrozdziału 6.5 Wytycznych w zakresie kwalifikowalności wydatków w ramach EFRR, EFS oraz FS na lata 2014-2020 należy podać uzasadnienie).",null,"151."]
["36.","Rodzaj wydatku",null,"143."]
[null,"Nazwa planowanego wydatku",null,"Uzasadnienie merytoryczne zakupu:"]
[null,"144.",null,"145."]
[null,"Wartość całkowita wydatku(łącznie)"]
[null,"146."]
[null,"Koszt kwalifikowany"]
[null,"147."]
[null,"Liczba sztuk/kompletów"]
[null,"148."]
[null,"Źródła ustalenia kosztu",null,"149."]
[null,"Szczegółowe składowe pozycji",null,"150."]
[null,"Treść zapytania ofertowego/ szacunku skierowanego do Oferenta (w przypadku gdy wydatek został/zostanie ponieniesiony z wyłączeniem zasady konkurencyjności na podstawie spełnienia przesłanek z pkt 7 lit. d i e podrozdziału 6.5 Wytycznych w zakresie kwalifikowalności wydatków w ramach EFRR, EFS oraz FS na lata 2014-2020 należy podać uzasadnienie).",null,"151."]
["37.","Rodzaj wydatku",null,"143."]
[null,"Nazwa planowanego wydatku",null,"Uzasadnienie merytoryczne zakupu:"]
[null,"144.",null,"145."]
[null,"Wartość całkowita wydatku(łącznie)"]
[null,"146."]
[null,"Koszt kwalifikowany"]
[null,"147."]
[null,"Liczba sztuk/kompletów"]
[null,"148."]
[null,"Źródła ustalenia kosztu",null,"149."]
[null,"Szczegółowe składowe pozycji",null,"150."]
[null,"Treść zapytania ofertowego/ szacunku skierowanego do Oferenta (w przypadku gdy wydatek został/zostanie ponieniesiony z wyłączeniem zasady konkurencyjności na podstawie spełnienia przesłanek z pkt 7 lit. d i e podrozdziału 6.5 Wytycznych w zakresie kwalifikowalności wydatków w ramach EFRR, EFS oraz FS na lata 2014-2020 należy podać uzasadnienie).",null,"151."]
["38.","Rodzaj wydatku",null,"143."]
[null,"Nazwa planowanego wydatku",null,"Uzasadnienie merytoryczne zakupu:"]
[null,"144.",null,"145."]
[null,"Wartość całkowita wydatku(łącznie)"]
[null,"146."]
[null,"Koszt kwalifikowany"]
[null,"147."]
[null,"Liczba sztuk/kompletów"]
[null,"148."]
[null,"Źródła ustalenia kosztu",null,"149."]
[null,"Szczegółowe składowe pozycji",null,"150."]
[null,"Treść zapytania ofertowego/ szacunku skierowanego do Oferenta (w przypadku gdy wydatek został/zostanie ponieniesiony z wyłączeniem zasady konkurencyjności na podstawie spełnienia przesłanek z pkt 7 lit. d i e podrozdziału 6.5 Wytycznych w zakresie kwalifikowalności wydatków w ramach EFRR, EFS oraz FS na lata 2014-2020 należy podać uzasadnienie).",null,"151."]
["39.","Rodzaj wydatku",null,"143."]
[null,"Nazwa planowanego wydatku",null,"Uzasadnienie merytoryczne zakupu:"]
[null,"144.",null,"145."]
[null,"Wartość całkowita wydatku(łącznie)"]
[null,"146."]
[null,"Koszt kwalifikowany"]
[null,"147."]
[null,"Liczba sztuk/kompletów"]
[null,"148."]
[null,"Źródła ustalenia kosztu",null,"149."]
[null,"Szczegółowe składowe pozycji",null,"150."]
[null,"Treść zapytania ofertowego/ szacunku skierowanego do Oferenta (w przypadku gdy wydatek został/zostanie ponieniesiony z wyłączeniem zasady konkurencyjności na podstawie spełnienia przesłanek z pkt 7 lit. d i e podrozdziału 6.5 Wytycznych w zakresie kwalifikowalności wydatków w ramach EFRR, EFS oraz FS na lata 2014-2020 należy podać uzasadnienie).",null,"151."]
["40.","Rodzaj wydatku",null,"143."]
[null,"Nazwa planowanego wydatku",null,"Uzasadnienie merytoryczne zakupu:"]
[null,"144.",null,"145."]
[null,"Wartość całkowita wydatku(łącznie)"]
[null,"146."]
[null,"Koszt kwalifikowany"]
[null,"147."]
[null,"Liczba sztuk/kompletów"]
[null,"148."]
[null,"Źródła ustalenia kosztu",null,"149."]
[null,"Szczegółowe składowe pozycji",null,"150."]
[null,"Treść zapytania ofertowego/ szacunku skierowanego do Oferenta (w przypadku gdy wydatek został/zostanie ponieniesiony z wyłączeniem zasady konkurencyjności na podstawie spełnienia przesłanek z pkt 7 lit. d i e podrozdziału 6.5 Wytycznych w zakresie kwalifikowalności wydatków w ramach EFRR, EFS oraz FS na lata 2014-2020 należy podać uzasadnienie).",null,"151."]

{"sheet":"Słowniki","index":6,"n_rows":770,"n_cols":25,"rows_kept":770,"cut":false,"hidden":true,"merged":[]}
["Krajowa Inteligentna Specjalizacja",null,null,null,null,null,"Zakres Interwencji",null,"Województwo",null,"Wykształcenie",null,"Nie dotyczy",null,"formwsp"]
["KIS 1. ZDROWE SPOŁECZEŃSTWO",null,"utworzenie CBR",null,"Formy zatrudnienia",null,"056 – Inwestycje w infrastrukturę, zdolności i wyposażenie w MŚP, związane bezpośrednio z działaniami badawczymi i innowacyjnymi","dolnośląskie","dolnośląskie",null,"wykształcenie wyższe",null,"Pozyskany",null,"współpraca w ramach umowy wieloletniej",null,"KIS 1. ZDROWE SPOŁECZEŃSTWO",null,"nie uwzględnia przedsięwzięć mogących znacząco oddziaływać na środowisko, dla których, wymagane jest lub może być wymagane sporządzenie raportu o oddziaływaniu na środowisko, ani przedsięwzięć mogących znacząco oddziaływać na wyznaczony lub potencjalny obszar Natura 2000",null,"nie ma prawnej możliwości odzyskania lub odliczenia poniesionego ostatecznie kosztu podatku VAT i w związku z tym wnioskuje o refundację części poniesionego w ramach projektu podatku VAT. Jednocześnie zobowiązuję się do zwrotu zrefundowanej w ramach projektu części poniesionego podatku VAT, jeżeli zainstnieją przesłanki umożliwiające odzyskanie lub odliczenie tego podatku",null,"projekt zostanie rozpoczęty po dniu 31 stycznia 2020 r.",null,"nie znajduje się w trudnej sytuacji w rozumieniu unijnych przepisów dotyczących pomocy państwa (w szczególności rozporządzenia Komisji (UE) Nr 651/2014 z dnia 17 czerwca 2014 r. uznającego niektóre rodzaje pomocy za zgodne z rynkiem wewnętrznym w zastosowaniu art. 107 i 108 Traktatu)."]
["KIS 2. INNOWACYJNE TECHNOLOGIE, PROCESY I PRODUKTY SEKTORA ROLNO-SPOŻYWCZEGO I LEŚNO-DRZEWNEGO",null,"rozwój CBR",null,"umowa o prace na czas nieokreślony",null,"057 – Inwestycje w infrastrukturę, zdolności i wyposażenie w dużych przedsiębiorstwach, związane bezpośrednio z działaniami badawczymi i innowacyjnymi","kujawsko-pomorskie","kujawsko-pomorskie",null,"brak wyższego wykształcenia",null,"W trakcie pozyskiwania",null,"współpraca w określonym czasie na potrzeby realizacji projektu",null,"KIS 2. INNOWACYJNE TECHNOLOGIE, PROCESY I PRODUKTY SEKTORA ROLNO-SPOŻYWCZEGO I LEŚNO-DRZEWNEGO",null,"uwzględnia przedsięwzięcia mogące znacząco oddziaływać na środowisko, dla których, wymagane jest sporządzenie raportu o oddziaływaniu na środowisko",null,"nie ma prawnej możliwości odzyskania lub odliczenia poniesionego ostatecznie kosztu podatku VAT , jednak nie wnioskuje oraz nie będzie w przyszłości wnioskować o refundację jakiejkolwiek części poniesionego w ramach projektu podatku VAT",null,"projekt został rozpoczęty po dniu 31 stycznia 2020 r. - przed złożeniem Wniosku o dofinansowanie",null,"nie znajdowałem się w trudnej sytuacji w rozumieniu unijnych przepisów dotyczących pomocy państwa (w szczególności rozporządzenia Komisji (UE) Nr 651/2014 z dnia 17 czerwca 2014 r. uznającego niektóre rodzaje pomocy za zgodne z rynkiem wewnętrznym w zastosowaniu art. 107 i 108 Traktatu), według stanu na dzień 31 grudnia 2019 r., ale po tym dniu znalazłem się w trudnej sytuacji w rozumieniu ww. przepisu z powodu wystąpienia pandemii COVID-19."]
["KIS 3. BIOTECHNOLOGICZNE I CHEMICZNE PROCESY, BIOPRODUKTY I PRODUKTY CHEMII SPECJALISTYCZNEJ ORAZ INŻYNIERII ŚRODOWISKA",null,null,null,"umowa o prace na czas okreslony",null,"065 - Infrastruktura na potrzeby badań i rozwoju, transfer technologii i współpraca w przedsiębiorstwach koncentrujących się na gospodarce niskoemisyjnej i odporności na zmiany klimatu","lubelskie","lubelskie",null,null,null,null,null,"płatny staż pracownika B+R z danej jednostki naukowej",null,"KIS 3. BIOTECHNOLOGICZNE I CHEMICZNE PROCESY, BIOPRODUKTY  I PRODUKTY CHEMII SPECJALISTYCZNEJ ORAZ INŻYNIERII ŚRODOWISKA",null,"uwzględnia przedsięwzięcia mogące potencjalnie znacząco oddziaływać na środowisko, dla których, sporządzenie raportu o oddziaływaniu na środowisko może być wymagane",null,"będzie mógł odzyskać lub odliczyć koszt podatku VAT poniesiony w związku z realizacją działań objętych wnioskiem",null,"projekt został rozpoczęty przed dniem 1 lutego 2020 r., a koszty kwalifikowane dotyczą wyłącznie dodatkowych kosztów związanych z działaniami przyspieszającymi realizację projektu lub rozszerzeniem jego zakresu i zostały poniesione po dniu 1 lutego 2020 r."]
["KIS 4. WYSOKOSPRAWNE, NISKOEMISYJNE I ZINTEGROWANE UKŁADY WYTWARZANIA, MAGAZYNOWANIA, PRZESYŁU I DYSTRYBUCJI ENERGII",null,"TAK, stanowią barierę",null,"umowa na czas wykonywania określonej pracy",null,null,"lubuskie","lubuskie",null,"Rodzaj podmiotu OB.",null,null,null,"zakup usług B+R",null,"KIS 4. WYSOKOSPRAWNE, NISKOEMISYJNE I ZINTEGROWANE UKŁADY WYTWARZANIA, MAGAZYNOWANIA, PRZESYŁU I DYSTRYBUCJI ENERGII ",null,"uwzględnia przedsięwzięcia mogące znacząco oddziaływać na obszar Natura 2000",null,"jest małym podatnikiem rozliczającym się kasowo"]
["KIS 5. INTELIGENTNE I ENERGOOSZCZĘDNE BUDOWNICTWO",null,"NIE, nie stanowią bariery",null,"umowa zlecenie",null,"Własność intelektualna","łódzkie","łódzkie",null,"organizacja badawcza/ jednostka naukowa",null,null,null,"usługi na wykonanie określonego zadania prowadzącego do praktycznych rezultatów",null,"KIS 5. INTELIGENTNE I ENERGOOSZCZĘDNE BUDOWNICTWO",null,"uwzględnia przedsięwzięcia mogące znacząco oddziaływać na potencjalny obszar Natura 2000"]
["KIS 6. ROZWIĄZANIA TRANSPORTOWE PRZYJAZNE ŚRODOWISKU",null,null,null,"umowa o dzieło",null,"patent na wynalazek","małopolskie","małopolskie",null,"MSP",null,null,null,"nie dotyczy",null,"KIS 6. ROZWIĄZANIA TRANSPORTOWE PRZYJAZNE ŚRODOWISKU"]
["KIS 7. GOSPODARKA O OBIEGU ZAMKNIĘTYM – WODA, SUROWCE KOPALNE, ODPADY",null,"NEUTRALNY",null,"kontrakt",null,"prawo ochronne na wzór użytkowy","mazowieckie","mazowieckie",null,"NGO",null,null,null,null,null,"KIS 7. GOSPODARKA O OBIEGU ZAMKNIĘTYM – WODA, SUROWCE KOPALNE, ODPADY"]
["KIS 8. WIELOFUNKCYJNE MATERIAŁY I KOMPOZYTY O ZAAWANSOWANYCH WŁAŚCIWOŚCIACH, W TYM NANOPROCESY I NANOPRODUKTY ",null,"POZYTYWNY",null,"inne",null,"prawo używania oznaczenia geograficznego","opolskie","opolskie",null,"Nie dotyczy",null,null,null,null,null,"KIS 8. WIELOFUNKCYJNE MATERIAŁY I KOMPOZYTY O ZAAWANSOWANYCH WŁAŚCIWOŚCIACH, W TYM NANOPROCESY I NANOPRODUKTY "]
["KIS 9. SENSORY (W TYM BIOSENSORY) I INTELIGENTNE SIECI SENSOROWE",null,null,null,null,null,"prawa autorskie","podkarpackie","podkarpackie",null,null,null,null,null,null,null,"KIS 9.  ELEKTRONIKA I FOTONIKA"]
["KIS 10. INTELIGENTNE SIECI I TECHNOLOGIE INFORMACYJNO-KOMUNIKACYJNE ORAZ GEOINFORMACYJNE",null,null,null,null,null,"nie jest konieczne dysponowanie prawami własności intelektualnej","podlaskie","podlaskie",null,null,null,null,null,null,null,"KIS 10. INTELIGENTNE SIECI I TECHNOLOGIE INFORMACYJNO-KOMUNIKACYJNE ORAZ GEOINFORMACYJNE"]
["KIS 11. ELEKTRONIKA DRUKOWANA, ORGANICZNA I ELASTYCZNA",null,null,null,null,null,null,"pomorskie","pomorskie",null,"Rodzaj przedsiębiorstwa",null,null,null,null,null,"KIS 11. ELEKTRONIKA DRUKOWANA, ORGANICZNA I ELASTYCZNA"]
["KIS 12. AUTOMATYZACJA I ROBOTYKA PROCESÓW TECHNOLOGICZNYCH",null,null,null,null,null,null,"śląskie","śląskie",null,"samodzielne","samodzielne",null,null,null,null,"KIS 12. AUTOMATYZACJA I ROBOTYKA PROCESÓW TECHNOLOGICZNYCH  "]
["KIS 13. FOTONIKA",null,"TAK/NIE/N/d",null,"Dokument rejestrowy",null,"Rodzaje płatnosci","świętokrzyskie","świętokrzyskie",null,"partnerskie","partnerskie",null,null,null,null,"KIS 13. INTELIGENTNE TECHNOLOGIE KREACYJNE"]
["KIS 14. INTELIGENTNE TECHNOLOGIE KREACYJNE",null,"TAK","TAK","Dokument rejestrowy KRS",null,"R","warmińsko-mazurskie","warmińsko-mazurskie",null,"powiązane","powiązane",null,null,null,null,"KIS 14. INNOWACYJNE TECHNOLOGIE MORSKIE W ZAKRESIE SPECJALISTYCZNYCH JEDNOSTEK PŁYWAJĄCYCH, KONSTRUKCJI MORSKICH I PRZYBRZEŻNYCH ORAZ LOGISTYKI OPARTEJ O TRANSPORT MORSKI I ŚRÓDLĄDOWY"]
["KIS 15. INNOWACYJNE TECHNOLOGIE MORSKIE W ZAKRESIE SPECJALISTYCZNYCH JEDNOSTEK PŁYWAJĄCYCH, KONSTRUKCJI MORSKICH I PRZYBRZEŻNYCH ORAZ LOGISTYKI OPARTEJ O TRANSPORT MORSKI I ŚRÓDLĄDOWY",null,"NIE","NIE","Dokument rejestrowy CEiDG",null,"Z","wielkopolskie","wielkopolskie",null,"mikro","partnerskie/powiązane"]
[null,null,"N/d","N/d",null,null,"RZ","zachodniopomorskie","zachodniopomorskie",null,"małe"]
["SOR",null,null,null,null,null,null,null,"Nie dotyczy",null,"średnie"]
["SEKTOR PRODUKCJI ŚRODKÓW TRANSPORTU (NP. E-BUSY, POJAZDY SZYNOWE, STATKI SPECJALISTYCZNE)",null,null,null,null,null,null,null,null,null,"inne niż MSP"]
["ELEKTRONIKA PROFESJONALNA (NP. INTELIGENTNE LICZNIKI ENERGII, FALOWNIK, ŁADOWARKI DO SAMOCHODÓW, SENSORY)",null,"NUTS 3",null,"Formy współpracy z jednostkami badawczymi",null,"miejski"]
["SEKTOR SPECJALISTYCZNYCH TECHNOLOGII TELEINFORMATYCZNYCH (NP. FINTECH, AUTOMATYKA MASZYN I BUDYNKÓW, CYBERBEZPIECZEŃSTWO, GRY KOMPUTEROWE, BIOINFORMATYKA)",null,"Bialski - PL811",null,"współpraca w ramach umowy wieloletniej",null,"wiejski",null,"TAK",null,1]
["SEKTOR LOTNICZO-KOSMICZNY (NP. DRONY,ELEMENTY SATELITÓW)",null,"Białostocki - PL841",null,"współpraca w określonym czasie na potrzeby realizacji wspólnego projektu",null,"miejsko-wiejski",null,"NIE",null,2]
["SEKTOR PRODUKCJI LEKÓW, WYROBÓW MEDYCZNYCH I NOWOCZESNYCH USŁUG MEDYCZNYCH (NP. E- MEDYCYNA, WYROBY MEDYCZNE, TERAPIE, LEKI BIOPODOBNE)",null,"Bielski - PL225",null,"płatny staż pracownika B+R z danej jednostki naukowej",null,"Nie dotyczy",null,"CZĘŚCIOWO",null,3]
["SEKTOR SYSTEMÓW WYDOBYWCZYCH (NP. INTELIGENTNA KOPALNIA)",null,"Bydgosko-toruński - PL613",null,"zakup usług B+R w jednostkach naukowych"]
["SEKTOR ODZYSKU MATERIAŁOWEGO SUROWCÓW",null,"Bytomski - PL228",null,"usługi na wykonanie określonego zadania prowadzącego do praktycznych rezultatów"]
["SEKTOR EKOBUDOWNICTWA (NP. BUDYNKI PASYWNE, PIKOENERGETYKA, BUDOWNICTWO DREWNIANE)",null,"Chełmsko-zamojski - PL812",null,"Nie dotyczy"]
["SEKTOR ŻYWNOŚCI WYSOKIEJ JAKOŚCI",null,"Chojnicki - PL637"]
["Nie dotyczy",null,"Ciechanowski - PL922"]
[null,null,"Częstochowski - PL224"]
["DZIAŁALNOŚĆ GOSPODARCZA",null,"Elbląski - PL621"]
["1 - Rolnictwo i leśnictwo",null,"Ełcki - PL623"]
["2 - Rybołówstwo i akwakultura",null,"Gdański - PL634"]
["3 - Produkcja artykułów spożywczych i napojów",null,"Gliwicki - PL229"]
["4 - Wytwarzanie tekstyliów i wyrobów włókienniczych",null,"Gorzowski - PL431"]
["5 - Produkcja sprzętu transportowego",null,"Grudziądzki - PL616"]
["6 - Produkcja komputerów, wyrobów elektronicznych i optycznych",null,"Inowrocławski - PL617"]
["7 - Pozostałe nieokreślone branże przemysłu wytwórczego",null,"Jeleniogórski - PL515"]
["8 - Budownictwo",null,"Kaliski - PL416"]
["9 - Górnictwo i kopalnictwo (w tym wydobycie surowców energetycznych)",null,"Katowicki - PL22A"]
["10 - Energia elektryczna, paliwa gazowe, para wodna, gorąca woda i powietrze do układów klimatyzacyjnych",null,"Kielecki - PL721"]
["11 - Dostawa wody, gospodarowanie ściekami i odpadami oraz działalność związana z rekultywacją",null,"Koniński - PL414"]
["12 - Transport i składowanie",null,"Koszaliński - PL426"]
["13 - Działania informacyjno-komunikacyjne, w tym telekomunikacja, usługi informacyjne, programowanie, doradztwo i działalność pokrewna",null,"Krakowski - PL214"]
["14 - Handel hurtowy i detaliczny",null,"Krośnieński - PL821"]
["15 - Turystyka oraz działalność związana z zakwaterowaniem i usługami gastronomicznymi",null,"Legnicko-głogowski - PL516"]
["16 - Działalność finansowa i ubezpieczeniowa",null,"Leszczyński - PL417"]
["17 - Obsługa nieruchomości, wynajem i usługi związane z prowadzeniem działalności gospodarczej",null,"Lubelski - PL814"]
["18 - Administracja publiczna",null,"Łomżyński - PL842"]
["19 - Edukacja",null,"Łódzki - PL712"]
["20 - Opieka zdrowotna",null,"Miasto Kraków - PL213"]
["21 - Działalność w zakresie opieki społecznej, usługi komunalne, społeczne i indywidualne",null,"Miasto Łódź - PL711"]
["22 - Działalność związana ze środowiskiem naturalnym i zmianami klimatu",null,"Miasto Poznań - PL415"]
["23 - Sztuka, rozrywka, sektor kreatywny i rekreacja",null,"Miasto Szczecin - PL424"]
["24 - Inne niewyszczególnione usługi",null,"Miasto Warszawa - PL911"]
[null,null,"Miasto Wrocław - PL514"]
["PKD",null,"Nowosądecki - PL218"]
["01.11.Z - Uprawa zbóż, roślin strączkowych i roślin oleistych na nasiona, z wyłączeniem ryżu",null,"Nowotarski - PL219"]
["01.12.Z - Uprawa ryżu",null,"Nyski - PL523"]
["01.13.Z - Uprawa warzyw, włączając melony oraz uprawa roślin korzeniowych i roślin bulwiastych",null,"Olsztyński - PL622"]
["01.14.Z - Uprawa trzciny cukrowej",null,"Opolski - PL524"]
["01.15.Z - Uprawa tytoniu",null,"Ostrołęcki - PL924"]
["01.16.Z - Uprawa roślin włóknistych",null,"Oświęcimski - PL21A"]
["01.19.Z - Pozostałe uprawy rolne inne niż wieloletnie",null,"Pilski - PL411"]
["01.21.Z - Uprawa winogron",null,"Piotrkowski - PL713"]
["01.22.Z - Uprawa drzew i krzewów owocowych tropikalnych i podzwrotnikowych",null,"Płocki - PL923"]
["01.23.Z - Uprawa drzew i krzewów owocowych cytrusowych",null,"Poznański - PL418"]
["01.24.Z - Uprawa drzew i krzewów owocowych ziarnkowych i pestkowych",null,"Przemyski - PL822"]
["01.25.Z - Uprawa pozostałych drzew i krzewów owocowych oraz orzechów",null,"Puławski - PL815"]
["01.26.Z - Uprawa drzew oleistych",null,"Radomski - PL921"]
["01.27.Z - Uprawa roślin wykorzystywanych do produkcji napojów",null,"Rybnicki - PL227"]
["01.28.Z - Uprawa roślin przyprawowych i aromatycznych oraz roślin wykorzystywanych do produkcji leków i wyrobów farmaceutycznych",null,"Rzeszowski - PL823"]
["01.29.Z - Uprawa pozostałych roślin wieloletnich",null,"Sandomiersko-jędrzejowski - PL722"]
["01.30.Z - Rozmnażanie roślin",null,"Siedlecki - PL925"]
["01.41.Z - Chów i hodowla bydła mlecznego",null,"Sieradzki - PL714"]
["01.42.Z - Chów i hodowla pozostałego bydła i bawołów",null,"Skierniewicki - PL715"]
["01.43.Z - Chów i hodowla koni i pozostałych zwierząt koniowatych",null,"Słupski - PL636"]
["01.44.Z - Chów i hodowla wielbłądów i zwierząt wielbłądowatych",null,"Sosnowiecki - PL22B"]
["01.45.Z - Chów i hodowla owiec i kóz",null,"Starogardzki - PL638"]
["01.46.Z - Chów i hodowla świń",null,"Suwalski - PL843"]
["01.47.Z - Chów i hodowla drobiu",null,"Szczecinecko-pyrzycki - PL427"]
["01.49.Z - Chów i hodowla pozostałych zwierząt",null,"Szczeciński - PL428"]
["01.50.Z - Uprawy rolne połączone z chowem i hodowlą zwierząt (działalność mieszana)",null,"Świecki - PL618"]
["01.61.Z - Działalność usługowa wspomagająca produkcję roślinną",null,"Tarnobrzeski - PL824"]
["01.62.Z - Działalność usługowa wspomagająca chów i hodowlę zwierząt gospodarskich",null,"Tarnowski - PL217"]
["01.63.Z - Działalność usługowa następująca po zbiorach",null,"Trójmiejski - PL633"]
["01.64.Z - Obróbka nasion dla celów rozmnażania roślin",null,"Tyski - PL22C"]
["01.70.Z - Łowiectwo i pozyskiwanie zwierząt łownych, włączając działalność usługową",null,"Wałbrzyski - PL517"]
["02.10.Z - Gospodarka leśna i pozostała działalność leśna, z wyłączeniem pozyskiwania produktów leśnych",null,"Warszawski wschodni - PL912"]
["02.20.Z - Pozyskiwanie drewna",null,"Warszawski zachodni - PL913"]
["02.30.Z - Pozyskiwanie dziko rosnących produktów leśnych, z wyłączeniem drewna",null,"Włocławski - PL619"]
["02.40.Z - Działalność usługowa związana z leśnictwem",null,"Wrocławski - PL518"]
["03.11.Z - Rybołówstwo w wodach morskich",null,"Zielonogórski - PL432"]
["03.12.Z - Rybołówstwo w wodach śródlądowych",null,"Żyrardowski - PL926"]
["03.21.Z - Chów i hodowla ryb oraz pozostałych organizmów wodnych w wodach morskich",null,"Nie dotyczy"]
["03.22.Z - Chów i hodowla ryb oraz pozostałych organizmów wodnych w wodach śródlądowych"]
["05.10.Z - Wydobywanie węgla kamiennego"]
["05.20.Z - Wydobywanie węgla brunatnego (lignitu)"]
["06.10.Z - Górnictwo ropy naftowej"]
["06.20.Z - Górnictwo gazu ziemnego"]
["07.10.Z - Górnictwo rud żelaza"]
["07.21.Z - Górnictwo rud uranu i toru"]
["07.29.Z - Górnictwo pozostałych rud metali nieżelaznych"]
["08.11.Z - Wydobywanie kamieni ozdobnych oraz kamienia dla potrzeb budownictwa, skał wapiennych, gipsu, kredy i łupków"]
["08.12.Z - Wydobywanie żwiru i piasku; wydobywanie gliny i kaolinu"]
["08.91.Z - Wydobywanie minerałów dla przemysłu chemicznego oraz do produkcji nawozów"]
["08.92.Z - Wydobywanie torfu"]
["08.93.Z - Wydobywanie soli"]
["08.99.Z - Pozostałe górnictwo i wydobywanie, gdzie indziej niesklasyfikowane"]
["09.10.Z - Działalność usługowa wspomagająca eksploatację złóż ropy naftowej i gazu ziemnego"]
["09.90.Z - Działalność usługowa wspomagająca pozostałe górnictwo i wydobywanie"]
["10.11.Z - Przetwarzanie i konserwowanie mięsa, z wyłączeniem mięsa z drobiu"]
["10.12.Z - Przetwarzanie i konserwowanie mięsa z drobiu"]
["10.13.Z - Produkcja wyrobów z mięsa, włączając wyroby z mięsa drobiowego"]
["10.20.Z - Przetwarzanie i konserwowanie ryb, skorupiaków i mięczaków"]
["10.31.Z - Przetwarzanie i konserwowanie ziemniaków"]
["10.32.Z - Produkcja soków z owoców i warzyw"]
["10.39.Z - Pozostałe przetwarzanie i konserwowanie owoców i warzyw"]
["10.41.Z - Produkcja olejów i pozostałych tłuszczów płynnych"]
["10.42.Z - Produkcja margaryny i podobnych tłuszczów jadalnych"]
["10.51.Z - Przetwórstwo mleka i wyrób serów"]
["10.52.Z - Produkcja lodów"]
["10.61.Z - Wytwarzanie produktów przemiału zbóż"]
["10.62.Z - Wytwarzanie skrobi i wyrobów skrobiowych"]
["10.71.Z - Produkcja pieczywa; produkcja świeżych wyrobów ciastkarskich i ciastek"]
["10.72.Z - Produkcja sucharów i herbatników; produkcja konserwowanych wyrobów ciastkarskich i ciastek"]
["10.73.Z - Produkcja makaronów, klusek, kuskusu i podobnych wyrobów mącznych"]
["10.81.Z - Produkcja cukru"]
["10.82.Z - Produkcja kakao, czekolady i wyrobów cukierniczych"]
["10.83.Z - Przetwórstwo herbaty i kawy"]
["10.84.Z - Produkcja przypraw"]
["10.85.Z - Wytwarzanie gotowych posiłków i dań"]
["10.86.Z - Produkcja artykułów spożywczych homogenizowanych i żywności dietetycznej"]
["10.89.Z - Produkcja pozostałych artykułów spożywczych, gdzie indziej niesklasyfikowana"]
["10.91.Z - Produkcja gotowej paszy dla zwierząt gospodarskich"]
["10.92.Z - Produkcja gotowej karmy dla zwierząt domowych"]
["11.01.Z - Destylowanie, rektyfikowanie i mieszanie alkoholi"]
["11.02.Z - Produkcja win gronowych"]
["11.03.Z - Produkcja cydru i pozostałych win owocowych"]
["11.04.Z - Produkcja pozostałych niedestylowanych napojów fermentowanych"]
["11.05.Z - Produkcja piwa"]
["11.06.Z - Produkcja słodu"]
["11.07.Z - Produkcja napojów bezalkoholowych; produkcja wód mineralnych i pozostałych wód butelkowanych"]
["12.00.Z - PRODUKCJA WYROBÓW TYTONIOWYCH"]
["13.10.A - Produkcja przędzy bawełnianej"]
["13.10.B - Produkcja przędzy wełnianej"]
["13.10.C - Produkcja przędzy z włókien chemicznych"]
["13.10.D - Produkcja przędzy z pozostałych włókien tekstylnych, włączając produkcję nici"]
["13.20.A - Produkcja tkanin bawełnianych"]
["13.20.B - Produkcja tkanin wełnianych"]
["13.20.C - Produkcja tkanin z włókien chemicznych"]
["13.20.D - Produkcja pozostałych tkanin"]
["13.30.Z - Wykończanie wyrobów włókienniczych"]
["13.91.Z - Produkcja dzianin metrażowych"]
["13.92.Z - Produkcja gotowych wyrobów tekstylnych"]
["13.93.Z - Produkcja dywanów i chodników"]
["13.94.Z - Produkcja wyrobów powroźniczych, lin, szpagatów i wyrobów sieciowych"]
["13.95.Z - Produkcja włóknin i wyrobów wykonanych z włóknin, z wyłączeniem odzieży"]
["13.96.Z - Produkcja pozostałych technicznych i przemysłowych wyrobów tekstylnych"]
["13.99.Z - Produkcja pozostałych wyrobów tekstylnych, gdzie indziej niesklasyfikowana"]
["14.11.Z - Produkcja odzieży skórzanej"]
["14.12.Z - Produkcja odzieży roboczej"]
["14.13.Z - Produkcja pozostałej odzieży wierzchniej"]
["14.14.Z - Produkcja bielizny"]
["14.19.Z - Produkcja pozostałej odzieży i dodatków do odzieży"]
["14.20.Z - Produkcja wyrobów futrzarskich"]
["14.31.Z - Produkcja wyrobów pończoszniczych"]
["14.39.Z - Produkcja pozostałej odzieży dzianej"]
["15.11.Z - Wyprawa skór, garbowanie; wyprawa i barwienie skór futerkowych"]
["15.12.Z - Produkcja toreb bagażowych, toreb ręcznych i podobnych wyrobów kaletniczych; produkcja wyrobów rymarskich"]
["15.20.Z - Produkcja obuwia"]
["16.10.Z - Produkcja wyrobów tartacznych"]
["16.21.Z - Produkcja arkuszy fornirowych i płyt wykonanych na bazie drewna"]
["16.22.Z - Produkcja gotowych parkietów podłogowych"]
["16.23.Z - Produkcja pozostałych wyrobów stolarskich i ciesielskich dla budownictwa"]
["16.24.Z - Produkcja opakowań drewnianych"]
["16.29.Z - Produkcja pozostałych wyrobów z drewna; produkcja wyrobów z korka, słomy i materiałów używanych do wyplatania"]
["17.11.Z - Produkcja masy włóknistej"]
["17.12.Z - Produkcja papieru i tektury"]
["17.21.Z - Produkcja papieru falistego i tektury falistej oraz opakowań z papieru i tektury"]
["17.22.Z - Produkcja artykułów gospodarstwa domowego, toaletowych i sanitarnych"]
["17.23.Z - Produkcja artykułów piśmiennych"]
["17.24.Z - Produkcja tapet"]
["17.29.Z - Produkcja pozostałych wyrobów z papieru i tektury"]
["18.11.Z - Drukowanie gazet"]
["18.12.Z - Pozostałe drukowanie"]
["18.13.Z - Działalność usługowa związana z przygotowywaniem do druku"]
["18.14.Z - Introligatorstwo i podobne usługi"]
["18.20.Z - Reprodukcja zapisanych nośników informacji"]
["19.10.Z - Wytwarzanie i przetwarzanie koksu"]
["19.20.Z - Wytwarzanie i przetwarzanie produktów rafinacji ropy naftowej"]
["20.11.Z - Produkcja gazów technicznych"]
["20.12.Z - Produkcja barwników i pigmentów"]
["20.13.Z - Produkcja pozostałych podstawowych chemikaliów nieorganicznych"]
["20.14.Z - Produkcja pozostałych podstawowych chemikaliów organicznych"]
["20.15.Z - Produkcja nawozów i związków azotowych"]
["20.16.Z - Produkcja tworzyw sztucznych w formach podstawowych"]
["20.17.Z - Produkcja kauczuku syntetycznego w formach podstawowych"]
["20.20.Z - Produkcja pestycydów i pozostałych środków agrochemicznych"]
["20.30.Z - Produkcja farb, lakierów i podobnych powłok, farb drukarskich i mas uszczelniających"]
["20.41.Z - Produkcja mydła i detergentów, środków myjących i czyszczących"]
["20.42.Z - Produkcja wyrobów kosmetycznych i toaletowych"]
["20.51.Z - Produkcja materiałów wybuchowych"]
["20.52.Z - Produkcja klejów"]
["20.53.Z - Produkcja olejków eterycznych"]
["20.59.Z - Produkcja pozostałych wyrobów chemicznych, gdzie indziej niesklasyfikowana"]
["20.60.Z - Produkcja włókien chemicznych"]
["21.10.Z - Produkcja podstawowych substancji farmaceutycznych"]
["21.20.Z - Produkcja leków i pozostałych wyrobów farmaceutycznych"]
["22.11.Z - Produkcja opon i dętek z gumy; bieżnikowanie i regenerowanie opon z gumy"]
["22.19.Z - Produkcja pozostałych wyrobów z gumy"]
["22.21.Z - Produkcja płyt, arkuszy, rur i kształtowników z tworzyw sztucznych"]
["22.22.Z - Produkcja opakowań z tworzyw sztucznych"]
["22.23.Z - Produkcja wyrobów dla budownictwa z tworzyw sztucznych"]
["22.29.Z - Produkcja pozostałych wyrobów z tworzyw sztucznych"]
["23.11.Z - Produkcja szkła płaskiego"]
["23.12.Z - Kształtowanie i obróbka szkła płaskiego"]
["23.13.Z - Produkcja szkła gospodarczego"]
["23.14.Z - Produkcja włókien szklanych"]
["23.19.Z - Produkcja i obróbka pozostałego szkła, włączając szkło techniczne"]
["23.20.Z - Produkcja wyrobów ogniotrwałych"]
["23.31.Z - Produkcja ceramicznych kafli i płytek"]
["23.32.Z - Produkcja cegieł, dachówek i materiałów budowlanych, z wypalanej gliny"]
["23.41.Z - Produkcja ceramicznych wyrobów stołowych i ozdobnych"]
["23.42.Z - Produkcja ceramicznych wyrobów sanitarnych"]
["23.43.Z - Produkcja ceramicznych izolatorów i osłon izolacyjnych"]
["23.44.Z - Produkcja pozostałych technicznych wyrobów ceramicznych"]
["23.49.Z - Produkcja pozostałych wyrobów ceramicznych"]
["23.51.Z - Produkcja cementu"]
["23.52.Z - Produkcja wapna i gipsu"]
["23.61.Z - Produkcja wyrobów budowlanych z betonu"]
["23.62.Z - Produkcja wyrobów budowlanych z gipsu"]
["23.63.Z - Produkcja masy betonowej prefabrykowanej"]
["23.64.Z - Produkcja zaprawy murarskiej"]
["23.65.Z - Produkcja cementu wzmocnionego włóknem"]
["23.69.Z - Produkcja pozostałych wyrobów z betonu, gipsu i cementu"]
["23.70.Z - Cięcie, formowanie i wykańczanie kamienia"]
["23.91.Z - Produkcja wyrobów ściernych"]
["23.99.Z - Produkcja pozostałych wyrobów z mineralnych surowców niemetalicznych, gdzie indziej niesklasyfikowana"]
["24.10.Z - Produkcja surówki, żelazostopów, żeliwa i stali oraz wyrobów hutniczych"]
["24.20.Z - Produkcja rur, przewodów, kształtowników zamkniętych i łączników, ze stali"]
["24.31.Z - Produkcja prętów ciągnionych na zimno"]
["24.32.Z - Produkcja wyrobów płaskich walcowanych na zimno"]
["24.33.Z - Produkcja wyrobów formowanych na zimno"]
["24.34.Z - Produkcja drutu"]
["24.41.Z - Produkcja metali szlachetnych"]
["24.42.A - Produkcja aluminium hutniczego"]
["24.42.B - Produkcja wyrobów z aluminium i stopów aluminium"]
["24.43.Z - Produkcja ołowiu, cynku i cyny"]
["24.44.Z - Produkcja miedzi"]
["24.45.Z - Produkcja pozostałych metali nieżelaznych"]
["24.46.Z - Wytwarzanie paliw jądrowych"]
["24.51.Z - Odlewnictwo żeliwa"]
["24.52.Z - Odlewnictwo staliwa"]
["24.53.Z - Odlewnictwo metali lekkich"]
["24.54.A - Odlewnictwo miedzi i stopów miedzi"]
["24.54.B - Odlewnictwo pozostałych metali nieżelaznych, gdzie indziej niesklasyfikowane"]
["25.11.Z - Produkcja konstrukcji metalowych i ich części"]
["25.12.Z - Produkcja metalowych elementów stolarki budowlanej"]
["25.21.Z - Produkcja grzejników i kotłów centralnego ogrzewania"]
["25.29.Z - Produkcja pozostałych zbiorników, cystern i pojemników metalowych"]
["25.30.Z - Produkcja wytwornic pary, z wyłączeniem kotłów do centralnego ogrzewania gorącą wodą"]
["25.40.Z - Produkcja broni i amunicji"]
["25.50.Z - Kucie, prasowanie, wytłaczanie i walcowanie metali; metalurgia proszków"]
["25.61.Z - Obróbka metali i nakładanie powłok na metale"]
["25.62.Z - Obróbka mechaniczna elementów metalowych"]
["25.71.Z - Produkcja wyrobów nożowniczych i sztućców"]
["25.72.Z - Produkcja zamków i zawiasów"]
["25.73.Z - Produkcja narzędzi"]
["25.91.Z - Produkcja pojemników metalowych"]
["25.92.Z - Produkcja opakowań z metali "]
["25.93.Z - Produkcja wyrobów z drutu, łańcuchów i sprężyn"]
["25.94.Z - Produkcja złączy i śrub"]
["25.99.Z - Produkcja pozostałych gotowych wyrobów metalowych, gdzie indziej niesklasyfikowana"]
["26.11.Z - Produkcja elementów elektronicznych"]
["26.12.Z - Produkcja elektronicznych obwodów drukowanych"]
["26.20.Z - Produkcja komputerów i urządzeń peryferyjnych"]
["26.30.Z - Produkcja sprzętu (tele)komunikacyjnego"]
["26.40.Z - Produkcja elektronicznego sprzętu powszechnego użytku"]
["26.51.Z - Produkcja instrumentów i przyrządów pomiarowych, kontrolnych i nawigacyjnych"]
["26.52.Z - Produkcja zegarków i zegarów"]
["26.60.Z - Produkcja urządzeń napromieniowujących, sprzętu elektromedycznego i elektroterapeutycznego"]
["26.70.Z - Produkcja instrumentów optycznych i sprzętu fotograficznego"]
["26.80.Z - Produkcja magnetycznych i optycznych niezapisanych nośników informacji"]
["27.11.Z - Produkcja elektrycznych silników, prądnic i transformatorów"]
["27.12.Z - Produkcja aparatury rozdzielczej i sterowniczej energii elektrycznej"]
["27.20.Z - Produkcja baterii i akumulatorów"]
["27.31.Z - Produkcja kabli światłowodowych"]
["27.32.Z - Produkcja pozostałych elektronicznych i elektrycznych przewodów i kabli"]
["27.33.Z - Produkcja sprzętu instalacyjnego"]
["27.40.Z - Produkcja elektrycznego sprzętu oświetleniowego"]
["27.51.Z - Produkcja elektrycznego sprzętu gospodarstwa domowego"]
["27.52.Z - Produkcja nieelektrycznego sprzętu gospodarstwa domowego"]
["27.90.Z - Produkcja pozostałego sprzętu elektrycznego"]
["28.11.Z - Produkcja silników i turbin, z wyłączeniem silników lotniczych, samochodowych i motocyklowych"]
["28.12.Z - Produkcja sprzętu i wyposażenia do napędu hydraulicznego i pneumatycznego"]
["28.13.Z - Produkcja pozostałych pomp i sprężarek"]
["28.14.Z - Produkcja pozostałych kurków i zaworów"]
["28.15.Z - Produkcja łożysk, kół zębatych, przekładni zębatych i elementów napędowych"]
["28.21.Z - Produkcja pieców, palenisk i palników piecowych"]
["28.22.Z - Produkcja urządzeń dźwigowych i chwytaków"]
["28.23.Z - Produkcja maszyn i sprzętu biurowego, z wyłączeniem komputerów i urządzeń peryferyjnych"]
["28.24.Z - Produkcja narzędzi ręcznych mechanicznych"]
["28.25.Z - Produkcja przemysłowych urządzeń chłodniczych i wentylacyjnych"]
["28.29.Z - Produkcja pozostałych maszyn ogólnego przeznaczenia, gdzie indziej niesklasyfikowana"]
["28.30.Z - Produkcja maszyn dla rolnictwa i leśnictwa"]
["28.41.Z - Produkcja maszyn do obróbki metalu"]
["28.49.Z - Produkcja pozostałych narzędzi mechanicznych"]
["28.91.Z - Produkcja maszyn dla metalurgii"]
["28.92.Z - Produkcja maszyn dla górnictwa i do wydobywania oraz budownictwa"]
["28.93.Z - Produkcja maszyn stosowanych w przetwórstwie żywności, tytoniu i produkcji napojów"]
["28.94.Z - Produkcja maszyn dla przemysłu tekstylnego, odzieżowego i skórzanego"]
["28.95.Z - Produkcja maszyn dla przemysłu papierniczego"]
["28.96.Z - Produkcja maszyn do obróbki gumy lub tworzyw sztucznych oraz wytwarzania wyrobów z tych materiałów"]
["28.99.Z - Produkcja pozostałych maszyn specjalnego przeznaczenia, gdzie indziej niesklasyfikowana"]
["29.10.A - Produkcja silników do pojazdów samochodowych (z wyłączeniem motocykli) oraz do ciągników rolniczych"]
["29.10.B - Produkcja samochodów osobowych"]
["29.10.C - Produkcja autobusów"]
["29.10.D - Produkcja pojazdów samochodowych przeznaczonych do przewozu towarów"]
["29.10.E - Produkcja pozostałych pojazdów samochodowych, z wyłączeniem motocykli"]
["29.20.Z - Produkcja nadwozi do pojazdów silnikowych; produkcja przyczep i naczep"]
["29.31.Z - Produkcja wyposażenia elektrycznego i elektronicznego do pojazdów silnikowych"]
["29.32.Z - Produkcja pozostałych części i akcesoriów do pojazdów silnikowych, z wyłączeniem motocykli"]
["30.11.Z - Produkcja statków i konstrukcji pływających"]
["30.12.Z - Produkcja łodzi wycieczkowych i sportowych"]
["30.20.Z - Produkcja lokomotyw kolejowych oraz taboru szynowego"]
["30.30.Z - Produkcja statków powietrznych, statków kosmicznych i podobnych maszyn"]
["30.40.Z - Produkcja wojskowych pojazdów bojowych"]
["30.91.Z - Produkcja motocykli"]
["30.92.Z - Produkcja rowerów i wózków inwalidzkich"]
["30.99.Z - Produkcja pozostałego sprzętu transportowego, gdzie indziej niesklasyfikowana"]
["31.01.Z - Produkcja mebli biurowych i sklepowych"]
["31.02.Z - Produkcja mebli kuchennych"]
["31.03.Z - Produkcja materaców"]
["31.09.Z - Produkcja pozostałych mebli"]
["32.11.Z - Produkcja monet"]
["32.12.Z - Produkcja wyrobów jubilerskich i podobnych"]
["32.13.Z - Produkcja sztucznej biżuterii i wyrobów podobnych"]
["32.20.Z - Produkcja instrumentów muzycznych"]
["32.30.Z - Produkcja sprzętu sportowego"]
["32.40.Z - Produkcja gier i zabawek"]
["32.50.Z - Produkcja urządzeń, instrumentów oraz wyrobów medycznych, włączając dentystyczne"]
["32.91.Z - Produkcja mioteł, szczotek i pędzli"]
["32.99.Z - Produkcja pozostałych wyrobów, gdzie indziej niesklasyfikowana"]
["33.11.Z - Naprawa i konserwacja metalowych wyrobów gotowych"]
["33.12.Z - Naprawa i konserwacja maszyn"]
["33.13.Z - Naprawa i konserwacja urządzeń elektronicznych i optycznych"]
["33.14.Z - Naprawa i konserwacja urządzeń elektrycznych"]
["33.15.Z - Naprawa i konserwacja statków i łodzi"]
["33.16.Z - Naprawa i konserwacja statków powietrznych i statków kosmicznych"]
["33.17.Z - Naprawa i konserwacja pozostałego sprzętu transportowego"]
["33.19.Z - Naprawa i konserwacja pozostałego sprzętu i wyposażenia"]
["33.20.Z - Instalowanie maszyn przemysłowych, sprzętu i wyposażenia"]
["35.11.Z - Wytwarzanie energii elektrycznej"]
["35.12.Z - Przesyłanie energii elektrycznej"]
["35.13.Z - Dystrybucja energii elektrycznej"]
["35.14.Z - Handel energią elektryczną"]
["35.21.Z - Wytwarzanie paliw gazowych"]
["35.22.Z - Dystrybucja paliw gazowych w systemie sieciowym"]
["35.23.Z - Handel paliwami gazowymi w systemie sieciowym"]
["35.30.Z - Wytwarzanie i zaopatrywanie w parę wodną, gorącą wodę i powietrze do układów klimatyzacyjnych"]
["36.00.Z - POBÓR, UZDATNIANIE I DOSTARCZANIE WODY"]
["37.00.Z - ODPROWADZANIE I OCZYSZCZANIE ŚCIEKÓW"]
["38.11.Z - Zbieranie odpadów innych niż niebezpieczne"]
["38.12.Z - Zbieranie odpadów niebezpiecznych"]
["38.21.Z - Obróbka i usuwanie odpadów innych niż niebezpieczne"]
["38.22.Z - Przetwarzanie i unieszkodliwianie odpadów niebezpiecznych"]
["38.31.Z - Demontaż wyrobów zużytych"]
["38.32.Z - Odzysk surowców z materiałów segregowanych"]
["39.00.Z - DZIAŁALNOŚĆ ZWIĄZANA Z REKULTYWACJĄ I POZOSTAŁA DZIAŁALNOŚĆ USŁUGOWA ZWIĄZANA Z GOSPODARKĄ ODPADAMI"]
["41.10.Z - Realizacja projektów budowlanych związanych ze wznoszeniem budynków"]
["41.20.Z - Roboty budowlane związane ze wznoszeniem budynków mieszkalnych i niemieszkalnych"]
["42.11.Z - Roboty związane z budową dróg i autostrad"]
["42.12.Z - Roboty związane z budową dróg szynowych i kolei podziemnej"]
["42.13.Z - Roboty związane z budową mostów i tuneli"]
["42.21.Z - Roboty związane z budową rurociągów przesyłowych i sieci rozdzielczych"]
["42.22.Z - Roboty związane z budową linii telekomunikacyjnych i elektroenergetycznych"]
["42.91.Z - Roboty związane z budową obiektów inżynierii wodnej"]
["42.99.Z - Roboty związane z budową pozostałych obiektów inżynierii lądowej i wodnej, gdzie indziej niesklasyfikowane"]
["43.11.Z - Rozbiórka i burzenie obiektów budowlanych"]
["43.12.Z - Przygotowanie terenu pod budowę"]
["43.13.Z - Wykonywanie wykopów i wierceń geologiczno-inżynierskich"]
["43.21.Z - Wykonywanie instalacji elektrycznych"]
["43.22.Z - Wykonywanie instalacji wodno-kanalizacyjnych, cieplnych, gazowych i klimatyzacyjnych"]
["43.29.Z - Wykonywanie pozostałych instalacji budowlanych"]
["43.31.Z - Tynkowanie"]
["43.32.Z - Zakładanie stolarki budowlanej"]
["43.33.Z - Posadzkarstwo; tapetowanie i oblicowywanie ścian"]
["43.34.Z - Malowanie i szklenie"]
["43.39.Z - Wykonywanie pozostałych robót budowlanych wykończeniowych"]
["43.91.Z - Wykonywanie konstrukcji i pokryć dachowych"]
["43.99.Z - Pozostałe specjalistyczne roboty budowlane, gdzie indziej niesklasyfikowane"]
["45.11.Z - Sprzedaż hurtowa i detaliczna samochodów osobowych i furgonetek"]
["45.19.Z - Sprzedaż hurtowa i detaliczna pozostałych pojazdów samochodowych, z wyłączeniem motocykli"]
["45.20.Z - Konserwacja i naprawa pojazdów samochodowych, z wyłączeniem motocykli"]
["45.31.Z - Sprzedaż hurtowa części i akcesoriów do pojazdów samochodowych, z wyłączeniem motocykli"]
["45.32.Z - Sprzedaż detaliczna części i akcesoriów do pojazdów samochodowych, z wyłączeniem motocykli"]
["45.40.Z - Sprzedaż hurtowa i detaliczna motocykli, ich naprawa i konserwacja oraz sprzedaż hurtowa i detaliczna części i akcesoriów do nich"]
["46.11.Z - Działalność agentów zajmujących się sprzedażą płodów rolnych, żywych zwierząt, surowców dla przemysłu tekstylnego i półproduktów"]
["46.12.Z - Działalność agentów zajmujących się sprzedażą paliw, rud, metali i chemikaliów przemysłowych"]
["46.13.Z - Działalność agentów zajmujących się sprzedażą drewna i materiałów budowlanych"]
["46.14.Z - Działalność agentów zajmujących się sprzedażą maszyn, urządzeń przemysłowych, statków i samolotów"]
["46.15.Z - Działalność agentów zajmujących się sprzedażą mebli, artykułów gospodarstwa domowego i drobnych wyrobów metalowych"]
["46.16.Z - Działalność agentów zajmujących się sprzedażą wyrobów tekstylnych, odzieży, wyrobów futrzarskich, obuwia i artykułów skórzanych"]
["46.17.Z - Działalność agentów zajmujących się sprzedażą żywności, napojów i wyrobów tytoniowych"]
["46.18.Z - Działalność agentów specjalizujących się w sprzedaży pozostałych określonych towarów"]
["46.19.Z - Działalność agentów zajmujących się sprzedażą towarów różnego rodzaju"]
["46.21.Z - Sprzedaż hurtowa zboża, nieprzetworzonego tytoniu, nasion i pasz dla zwierząt"]
["46.22.Z - Sprzedaż hurtowa kwiatów i roślin"]
["46.23.Z - Sprzedaż hurtowa żywych zwierząt"]
["46.24.Z - Sprzedaż hurtowa skór"]
["46.31.Z - Sprzedaż hurtowa owoców i warzyw"]
["46.32.Z - Sprzedaż hurtowa mięsa i wyrobów z mięsa"]
["46.33.Z - Sprzedaż hurtowa mleka, wyrobów mleczarskich, jaj, olejów i tłuszczów jadalnych"]
["46.34.A - Sprzedaż hurtowa napojów alkoholowych"]
["46.34.B - Sprzedaż hurtowa napojów bezalkoholowych"]
["46.35.Z - Sprzedaż hurtowa wyrobów tytoniowych"]
["46.36.Z - Sprzedaż hurtowa cukru, czekolady, wyrobów cukierniczych i piekarskich"]
["46.37.Z - Sprzedaż hurtowa herbaty, kawy, kakao i przypraw"]
["46.38.Z - Sprzedaż hurtowa pozostałej żywności, włączając ryby, skorupiaki i mięczaki"]
["46.39.Z - Sprzedaż hurtowa niewyspecjalizowana żywności, napojów i wyrobów tytoniowych"]
["46.41.Z - Sprzedaż hurtowa wyrobów tekstylnych"]
["46.42.Z - Sprzedaż hurtowa odzieży i obuwia"]
["46.43.Z - Sprzedaż hurtowa elektrycznych artykułów użytku domowego"]
["46.44.Z - Sprzedaż hurtowa wyrobów porcelanowych, ceramicznych i szklanych oraz środków czyszczących"]
["46.45.Z - Sprzedaż hurtowa perfum i kosmetyków"]
["46.46.Z - Sprzedaż hurtowa wyrobów farmaceutycznych i medycznych"]
["46.47.Z - Sprzedaż hurtowa mebli, dywanów i sprzętu oświetleniowego"]
["46.48.Z - Sprzedaż hurtowa zegarków, zegarów i biżuterii"]
["46.49.Z - Sprzedaż hurtowa pozostałych artykułów użytku domowego"]
["46.51.Z - Sprzedaż hurtowa komputerów, urządzeń peryferyjnych i oprogramowania"]
["46.52.Z - Sprzedaż hurtowa sprzętu elektronicznego i telekomunikacyjnego oraz części do niego"]
["46.61.Z - Sprzedaż hurtowa maszyn i urządzeń rolniczych oraz dodatkowego wyposażenia"]
["46.62.Z - Sprzedaż hurtowa obrabiarek"]
["46.63.Z - Sprzedaż hurtowa maszyn wykorzystywanych w górnictwie, budownictwie oraz inżynierii lądowej i wodnej"]
["46.64.Z - Sprzedaż hurtowa maszyn dla przemysłu tekstylnego oraz maszyn do szycia i maszyn dziewiarskich"]
["46.65.Z - Sprzedaż hurtowa mebli biurowych"]
["46.66.Z - Sprzedaż hurtowa pozostałych maszyn i urządzeń biurowych"]
["46.69.Z - Sprzedaż hurtowa pozostałych maszyn i urządzeń"]
["46.71.Z - Sprzedaż hurtowa paliw i produktów pochodnych"]
["46.72.Z - Sprzedaż hurtowa metali i rud metali"]
["46.73.Z - Sprzedaż hurtowa drewna, materiałów budowlanych i wyposażenia sanitarnego"]
["46.74.Z - Sprzedaż hurtowa wyrobów metalowych oraz sprzętu i dodatkowego wyposażenia hydraulicznego i grzejnego"]
["46.75.Z - Sprzedaż hurtowa wyrobów chemicznych"]
["46.76.Z - Sprzedaż hurtowa pozostałych półproduktów"]
["46.77.Z - Sprzedaż hurtowa odpadów i złomu"]
["46.90.Z - Sprzedaż hurtowa niewyspecjalizowana"]
["47.11.Z - Sprzedaż detaliczna prowadzona w niewyspecjalizowanych sklepach z przewagą żywności, napojów i wyrobów tytoniowych"]
["47.19.Z - Pozostała sprzedaż detaliczna prowadzona w niewyspecjalizowanych sklepach"]
["47.21.Z - Sprzedaż detaliczna owoców i warzyw prowadzona w wyspecjalizowanych sklepach"]
["47.22.Z - Sprzedaż detaliczna mięsa i wyrobów z mięsa prowadzona w wyspecjalizowanych sklepach"]
["47.23.Z - Sprzedaż detaliczna ryb, skorupiaków i mięczaków prowadzona w wyspecjalizowanych sklepach"]
["47.24.Z - Sprzedaż detaliczna pieczywa, ciast, wyrobów ciastkarskich i cukierniczych prowadzona w wyspecjalizowanych sklepach"]
["47.25.Z - Sprzedaż detaliczna napojów alkoholowych i bezalkoholowych prowadzona w wyspecjalizowanych sklepach"]
["47.26.Z - Sprzedaż detaliczna wyrobów tytoniowych prowadzona w wyspecjalizowanych sklepach"]
["47.29.Z - Sprzedaż detaliczna pozostałej żywności prowadzona w wyspecjalizowanych sklepach"]
["47.30.Z - Sprzedaż detaliczna paliw do pojazdów silnikowych na stacjach paliw"]
["47.41.Z - Sprzedaż detaliczna komputerów, urządzeń peryferyjnych i oprogramowania prowadzona w wyspecjalizowanych sklepach"]
["47.42.Z - Sprzedaż detaliczna sprzętu telekomunikacyjnego prowadzona w wyspecjalizowanych sklepach"]
["47.43.Z - Sprzedaż detaliczna sprzętu audiowizualnego prowadzona w wyspecjalizowanych sklepach"]
["47.51.Z - Sprzedaż detaliczna wyrobów tekstylnych prowadzona w wyspecjalizowanych sklepach"]
["47.52.Z - Sprzedaż detaliczna drobnych wyrobów metalowych, farb i szkła prowadzona w wyspecjalizowanych sklepach"]
["47.53.Z - Sprzedaż detaliczna dywanów, chodników i innych pokryć podłogowych oraz pokryć ściennych prowadzona w wyspecjalizowanych sklepach"]
["47.54.Z - Sprzedaż detaliczna elektrycznego sprzętu gospodarstwa domowego prowadzona w wyspecjalizowanych sklepach"]
["47.59.Z - Sprzedaż detaliczna mebli, sprzętu oświetleniowego i pozostałych artykułów użytku domowego prowadzona w wyspecjalizowanych sklepach"]
["47.61.Z - Sprzedaż detaliczna książek prowadzona w wyspecjalizowanych sklepach"]
["47.62.Z - Sprzedaż detaliczna gazet i artykułów piśmiennych prowadzona w wyspecjalizowanych sklepach"]
["47.63.Z - Sprzedaż detaliczna nagrań dźwiękowych i audiowizualnych prowadzona w wyspecjalizowanych sklepach"]
["47.64.Z - Sprzedaż detaliczna sprzętu sportowego prowadzona w wyspecjalizowanych sklepach"]
["47.65.Z - Sprzedaż detaliczna gier i zabawek prowadzona w wyspecjalizowanych sklepach"]
["47.71.Z - Sprzedaż detaliczna odzieży prowadzona w wyspecjalizowanych sklepach"]
["47.72.Z - Sprzedaż detaliczna obuwia i wyrobów skórzanych prowadzona w wyspecjalizowanych sklepach"]
["47.73.Z - Sprzedaż detaliczna wyrobów farmaceutycznych prowadzona w wyspecjalizowanych sklepach"]
["47.74.Z - Sprzedaż detaliczna wyrobów medycznych, włączając ortopedyczne, prowadzona w wyspecjalizowanych sklepach"]
["47.75.Z - Sprzedaż detaliczna kosmetyków i artykułów toaletowych prowadzona w wyspecjalizowanych sklepach"]
["47.76.Z - Sprzedaż detaliczna kwiatów, roślin, nasion, nawozów, żywych zwierząt domowych, karmy dla zwierząt domowych prowadzona w wyspecjalizowanych sklepach"]
["47.77.Z - Sprzedaż detaliczna zegarków, zegarów i biżuterii prowadzona w wyspecjalizowanych sklepach"]
["47.78.Z - Sprzedaż detaliczna pozostałych nowych wyrobów prowadzona w wyspecjalizowanych sklepach"]
["47.79.Z - Sprzedaż detaliczna artykułów używanych prowadzona w wyspecjalizowanych sklepach"]
["47.81.Z - Sprzedaż detaliczna żywności, napojów i wyrobów tytoniowych prowadzona na straganach i targowiskach"]
["47.82.Z - Sprzedaż detaliczna wyrobów tekstylnych, odzieży i obuwia prowadzona na straganach i targowiskach"]
["47.89.Z - Sprzedaż detaliczna pozostałych wyrobów prowadzona na straganach i targowiskach"]
["47.91.Z - Sprzedaż detaliczna prowadzona przez domy sprzedaży wysyłkowej lub Internet"]
["47.99.Z - Pozostała sprzedaż detaliczna prowadzona poza siecią sklepową, straganami i targowiskami"]
["49.10.Z - Transport kolejowy pasażerski międzymiastowy"]
["49.20.Z - Transport kolejowy towarów"]
["49.31.Z - Transport lądowy pasażerski, miejski i podmiejski"]
["49.32.Z - Działalność taksówek osobowych"]
["49.39.Z - Pozostały transport lądowy pasażerski, gdzie indziej niesklasyfikowany"]
["49.41.Z - Transport drogowy towarów"]
["49.42.Z - Działalność usługowa związana z przeprowadzkami"]
["49.50.A - Transport rurociągami paliw gazowych"]
["49.50.B - Transport rurociągowy pozostałych towarów"]
["50.10.Z - Transport morski i przybrzeżny pasażerski"]
["50.20.Z - Transport morski i przybrzeżny towarów"]
["50.30.Z - Transport wodny śródlądowy pasażerski "]
["50.40.Z - Transport wodny śródlądowy towarów"]
["51.10.Z - Transport lotniczy pasażerski"]
["51.21.Z - Transport lotniczy towarów"]
["51.22.Z - Transport kosmiczny"]
["52.10.A - Magazynowanie i przechowywanie paliw gazowych"]
["52.10.B - Magazynowanie i przechowywanie pozostałych towarów"]
["52.21.Z - Działalność usługowa wspomagająca transport lądowy"]
["52.22.A - Działalność usługowa wspomagająca transport morski"]
["52.22.B - Działalność usługowa wspomagająca transport śródlądowy"]
["52.23.Z - Działalność usługowa wspomagająca transport lotniczy"]
["52.24.A - Przeładunek towarów w portach morskich"]
["52.24.B - Przeładunek towarów w portach śródlądowych"]
["52.24.C - Przeładunek towarów w pozostałych punktach przeładunkowych"]
["52.29.A - Działalność morskich agencji transportowych"]
["52.29.B - Działalność śródlądowych agencji transportowych"]
["52.29.C - Działalność pozostałych agencji transportowych"]
["53.10.Z - Działalność pocztowa objęta obowiązkiem świadczenia usług powszechnych (operatora publicznego)"]
["53.20.Z - Pozostała działalność pocztowa i kurierska"]
["55.10.Z - Hotele i podobne obiekty zakwaterowania"]
["55.20.Z - Obiekty noclegowe turystyczne i miejsca krótkotrwałego zakwaterowania"]
["55.30.Z - Pola kempingowe (włączając pola dla pojazdów kempingowych) i pola namiotowe"]
["55.90.Z - Pozostałe zakwaterowanie"]
["56.10.A - Restauracje i inne stałe placówki gastronomiczne"]
["56.10.B - Ruchome placówki gastronomiczne"]
["56.21.Z - Przygotowywanie i dostarczanie żywności dla odbiorców zewnętrznych (katering)"]
["56.29.Z - Pozostała usługowa działalność gastronomiczna"]
["56.30.Z - Przygotowywanie i podawanie napojów"]
["58.11.Z - Wydawanie książek"]
["58.12.Z - Wydawanie wykazów oraz list (np. adresowych, telefonicznych)"]
["58.13.Z - Wydawanie gazet"]
["58.14.Z - Wydawanie czasopism i pozostałych periodyków"]
["58.19.Z - Pozostała działalność wydawnicza"]
["58.21.Z - Działalność wydawnicza w zakresie gier komputerowych"]
["58.29.Z - Działalność wydawnicza w zakresie pozostałego oprogramowania"]
["59.11.Z - Działalność związana z produkcją filmów, nagrań wideo i programów telewizyjnych"]
["59.12.Z - Działalność postprodukcyjna związana z filmami, nagraniami wideo i programami telewizyjnymi"]
["59.13.Z - Działalność związana z dystrybucją filmów, nagrań wideo i programów telewizyjnych"]
["59.14.Z - Działalność związana z projekcją filmów"]
["59.20.Z - Działalność w zakresie nagrań dźwiękowych i muzycznych"]
["60.10.Z - Nadawanie programów radiofonicznych"]
["60.20.Z - Nadawanie programów telewizyjnych ogólnodostępnych i abonamentowych"]
["61.10.Z - Działalność w zakresie telekomunikacji przewodowej"]
["61.20.Z - Działalność w zakresie telekomunikacji bezprzewodowej, z wyłączeniem telekomunikacji satelitarnej"]
["61.30.Z - Działalność w zakresie telekomunikacji satelitarnej"]
["61.90.Z - Działalność w zakresie pozostałej telekomunikacji"]
["62.01.Z - Działalność związana z oprogramowaniem"]
["62.02.Z - Działalność związana z doradztwem w zakresie informatyki"]
["62.03.Z - Działalność związana z zarządzaniem urządzeniami informatycznymi"]
["62.09.Z - Pozostała działalność usługowa w zakresie technologii informatycznych i komputerowych"]
["63.11.Z - Przetwarzanie danych; zarządzanie stronami internetowymi (hosting) i podobna działalność"]
["63.12.Z - Działalność portali internetowych"]
["63.91.Z - Działalność agencji informacyjnych"]
["63.99.Z - Pozostała działalność usługowa w zakresie informacji, gdzie indziej niesklasyfikowana"]
["64.11.Z - Działalność banku centralnego"]
["64.19.Z - Pozostałe pośrednictwo pieniężne"]
["64.20.Z - Działalność holdingów finansowych"]
["64.30.Z - Działalność trustów, funduszów i podobnych instytucji finansowych"]
["64.91.Z - Leasing finansowy"]
["64.92.Z - Pozostałe formy udzielania kredytów"]
["64.99.Z - Pozostała finansowa działalność usługowa, gdzie indziej niesklasyfikowana, z wyłączeniem ubezpieczeń i funduszów emerytalnych"]
["65.11.Z - Ubezpieczenia na życie"]
["65.12.Z - Pozostałe ubezpieczenia osobowe oraz ubezpieczenia majątkowe"]
["65.20.Z - Reasekuracja"]
["65.30.Z - Fundusze emerytalne"]
["66.11.Z - Zarządzanie rynkami finansowymi"]
["66.12.Z - Działalność maklerska związana z rynkiem papierów wartościowych i towarów giełdowych"]
["66.19.Z - Pozostała działalność wspomagająca usługi finansowe, z wyłączeniem ubezpieczeń i funduszów emerytalnych"]
["66.21.Z - Działalność związana z oceną ryzyka i szacowaniem poniesionych strat"]
["66.22.Z - Działalność agentów i brokerów ubezpieczeniowych"]
["66.29.Z - Pozostała działalność wspomagająca ubezpieczenia i fundusze emerytalne"]
["66.30.Z - Działalność związana z zarządzaniem funduszami"]
["68.10.Z - Kupno i sprzedaż nieruchomości na własny rachunek"]
["68.20.Z - Wynajem i zarządzanie nieruchomościami własnymi lub dzierżawionymi"]
["68.31.Z - Pośrednictwo w obrocie nieruchomościami"]
["68.32.Z - Zarządzanie nieruchomościami wykonywane na zlecenie"]
["69.10.Z - Działalność prawnicza"]
["69.20.Z - Działalność rachunkowo-księgowa; doradztwo podatkowe"]
["70.10.Z - Działalność firm centralnych (head offices) i holdingów, z wyłączeniem holdingów finansowych"]
["70.21.Z - Stosunki międzyludzkie (public relations) i komunikacja"]
["70.22.Z - Pozostałe doradztwo w zakresie prowadzenia działalności gospodarczej i zarządzania"]
["71.11.Z - Działalność w zakresie architektury"]
["71.12.Z - Działalność w zakresie inżynierii i związane z nią doradztwo techniczne"]
["71.20.A - Badania i analizy związane z jakością żywności"]
["71.20.B - Pozostałe badania i analizy techniczne"]
["72.11.Z - Badania naukowe i prace rozwojowe w dziedzinie biotechnologii"]
["72.19.Z - Badania naukowe i prace rozwojowe w dziedzinie pozostałych nauk przyrodniczych i technicznych"]
["72.20.Z - Badania naukowe i prace rozwojowe w dziedzinie nauk społecznych i humanistycznych"]
["73.11.Z - Działalność agencji reklamowych"]
["73.12.A - Pośrednictwo w sprzedaży czasu i miejsca na cele reklamowe w radio i telewizji"]
["73.12.B - Pośrednictwo w sprzedaży miejsca na cele reklamowe w mediach drukowanych"]
["73.12.C - Pośrednictwo w sprzedaży miejsca na cele reklamowe w mediach elektronicznych (Internet)"]
["73.12.D - Pośrednictwo w sprzedaży miejsca na cele reklamowe w pozostałych mediach"]
["73.20.Z - Badanie rynku i opinii publicznej"]
["74.10.Z - Działalność w zakresie specjalistycznego projektowania"]
["74.20.Z - Działalność fotograficzna"]
["74.30.Z - Działalność związana z tłumaczeniami"]
["74.90.Z - Pozostała działalność profesjonalna, naukowa i techniczna, gdzie indziej niesklasyfikowana"]
["75.00.Z - DZIAŁALNOŚĆ WETERYNARYJNA"]
["77.11.Z - Wynajem i dzierżawa samochodów osobowych i furgonetek"]
["77.12.Z - Wynajem i dzierżawa pozostałych pojazdów samochodowych, z wyłączeniem motocykli"]
["77.21.Z - Wypożyczanie i dzierżawa sprzętu rekreacyjnego i sportowego"]
["77.22.Z - Wypożyczanie kaset wideo, płyt CD, DVD itp."]
["77.29.Z - Wypożyczanie i dzierżawa pozostałych artykułów użytku osobistego i domowego"]
["77.31.Z - Wynajem i dzierżawa maszyn i urządzeń rolniczych"]
["77.32.Z - Wynajem i dzierżawa maszyn i urządzeń budowlanych"]
["77.33.Z - Wynajem i dzierżawa maszyn i urządzeń biurowych, włączając komputery"]
["77.34.Z - Wynajem i dzierżawa środków transportu wodnego"]
["77.35.Z - Wynajem i dzierżawa środków transportu lotniczego"]
["77.39.Z - Wynajem i dzierżawa pozostałych maszyn, urządzeń oraz dóbr materialnych, gdzie indziej niesklasyfikowane"]
["77.40.Z - Dzierżawa własności intelektualnej i podobnych produktów, z wyłączeniem prac chronionych prawem autorskim"]
["78.10.Z - Działalność związana z wyszukiwaniem miejsc pracy i pozyskiwaniem pracowników"]
["78.20.Z - Działalność agencji pracy tymczasowej"]
["78.30.Z - Pozostała działalność związana z udostępnianiem pracowników"]
["79.11.A - Działalność agentów turystycznych"]
["79.11.B - Działalność pośredników turystycznych"]
["79.12.Z - Działalność organizatorów turystyki"]
["79.90.A - Działalność pilotów wycieczek i przewodników turystycznych"]
["79.90.B - Działalność w zakresie informacji turystycznej"]
["79.90.C - Pozostała działalność usługowa w zakresie rezerwacji, gdzie indziej niesklasyfikowana"]
["80.10.Z - Działalność ochroniarska, z wyłączeniem obsługi systemów bezpieczeństwa"]
["80.20.Z - Działalność ochroniarska w zakresie obsługi systemów bezpieczeństwa"]
["80.30.Z - Działalność detektywistyczna"]
["81.10.Z - Działalność pomocnicza związana z utrzymaniem porządku w budynkach"]
["81.21.Z - Niespecjalistyczne sprzątanie budynków i obiektów przemysłowych"]
["81.22.Z - Specjalistyczne sprzątanie budynków i obiektów przemysłowych"]
["81.29.Z - Pozostałe sprzątanie"]
["81.30.Z - Działalność usługowa związana z zagospodarowaniem terenów zieleni"]
["82.11.Z - Działalność usługowa związana z administracyjną obsługą biura"]
["82.19.Z - Wykonywanie fotokopii, przygotowywanie dokumentów i pozostała specjalistyczna działalność wspomagająca prowadzenie biura"]
["82.20.Z - Działalność centrów telefonicznych (call center)"]
["82.30.Z - Działalność związana z organizacją targów, wystaw i kongresów"]
["82.91.Z - Działalność świadczona przez agencje inkasa i biura kredytowe"]
["82.92.Z - Działalność związana z pakowaniem"]
["82.99.Z - Pozostała działalność wspomagająca prowadzenie działalności gospodarczej, gdzie indziej niesklasyfikowana"]
["84.11.Z - Kierowanie podstawowymi rodzajami działalności publicznej"]
["84.12.Z - Kierowanie w zakresie działalności związanej z ochroną zdrowia, edukacją, kulturą oraz pozostałymi usługami społecznymi, z wyłączeniem zabezpieczeń społecznych"]
["84.13.Z - Kierowanie w zakresie efektywności gospodarowania"]
["84.21.Z - Sprawy zagraniczne"]
["84.22.Z - Obrona narodowa"]
["84.23.Z - Wymiar sprawiedliwości"]
["84.24.Z - Bezpieczeństwo państwa, porządek i bezpieczeństwo publiczne"]
["84.25.Z - Ochrona przeciwpożarowa"]
["84.30.Z - Obowiązkowe zabezpieczenia społeczne"]
["85.10.Z - Placówki wychowania przedszkolnego"]
["85.20.Z - Szkoły podstawowe"]
["85.31.A - Gimnazja"]
["85.31.B - Licea ogólnokształcące"]
["85.32.A - Technika"]
["85.32.B - Branżowe szkoły I stopnia"]
["85.32.C - Szkoły specjalne przysposabiające do pracy"]
["85.32.D - Branżowe szkoły II stopnia"]
["85.41.A - Szkoły policealne"]
["85.41.B - Kolegia pracowników służb społecznych"]
["85.41.C - Placówki doskonalenia nauczycieli"]
["85.42.Z - Szkoły wyższe"]
["85.51.Z - Pozaszkolne formy edukacji sportowej oraz zajęć sportowych i rekreacyjnych"]
["85.52.Z - Pozaszkolne formy edukacji artystycznej"]
["85.53.Z - Pozaszkolne formy edukacji z zakresu nauki jazdy i pilotażu"]
["85.59.A - Nauka języków obcych"]
["85.59.B - Pozostałe pozaszkolne formy edukacji, gdzie indziej niesklasyfikowane"]
["85.60.Z - Działalność wspomagająca edukację"]
["86.10.Z - Działalność szpitali"]
["86.21.Z - Praktyka lekarska ogólna"]
["86.22.Z - Praktyka lekarska specjalistyczna"]
["86.23.Z - Praktyka lekarska dentystyczna"]
["86.90.A - Działalność fizjoterapeutyczna"]
["86.90.B - Działalność pogotowia ratunkowego"]
["86.90.C - Praktyka pielęgniarek i położnych"]
["86.90.D - Działalność paramedyczna"]
["86.90.E - Pozostała działalność w zakresie opieki zdrowotnej, gdzie indziej niesklasyfikowana"]
["87.10.Z - Pomoc społeczna z zakwaterowaniem zapewniająca opiekę pielęgniarską"]
["87.20.Z - Pomoc społeczna z zakwaterowaniem dla osób z zaburzeniami psychicznymi"]
["87.30.Z - Pomoc społeczna z zakwaterowaniem dla osób w podeszłym wieku i osób niepełnosprawnych"]
["87.90.Z - Pozostała pomoc społeczna z zakwaterowaniem"]
["88.10.Z - Pomoc społeczna bez zakwaterowania dla osób w podeszłym wieku i osób niepełnosprawnych"]
["88.91.Z - Opieka dzienna nad dziećmi"]
["88.99.Z - Pozostała pomoc społeczna bez zakwaterowania, gdzie indziej niesklasyfikowana"]
["90.01.Z - Działalność związana z wystawianiem przedstawień artystycznych"]
["90.02.Z - Działalność wspomagająca wystawianie przedstawień artystycznych"]
["90.03.Z - Artystyczna i literacka działalność twórcza"]
["90.04.Z - Działalność obiektów kulturalnych"]
["91.01.A - Działalność bibliotek"]
["91.01.B - Działalność archiwów"]
["91.02.Z - Działalność muzeów"]
["91.03.Z - Działalność historycznych miejsc i budynków oraz podobnych atrakcji turystycznych"]
["91.04.Z - Działalność ogrodów botanicznych i zoologicznych oraz obszarów i obiektów ochrony przyrody"]
["92.00.Z - DZIAŁALNOŚĆ ZWIĄZANA Z GRAMI LOSOWYMI I ZAKŁADAMI WZAJEMNYMI"]
["93.11.Z - Działalność obiektów sportowych"]
["93.12.Z - Działalność klubów sportowych"]
["93.13.Z - Działalność obiektów służących poprawie kondycji fizycznej"]
["93.19.Z - Pozostała działalność związana ze sportem"]
["93.21.Z - Działalność wesołych miasteczek i parków rozrywki"]
["93.29.Z - Pozostała działalność rozrywkowa i rekreacyjna"]
["94.11.Z - Działalność organizacji komercyjnych i pracodawców"]
["94.12.Z - Działalność organizacji profesjonalnych"]
["94.20.Z - Działalność związków zawodowych"]
["94.91.Z - Działalność organizacji religijnych"]
["94.92.Z - Działalność organizacji politycznych"]
["94.99.Z - Działalność pozostałych organizacji członkowskich, gdzie indziej niesklasyfikowana"]
["95.11.Z - Naprawa i konserwacja komputerów i urządzeń peryferyjnych"]
["95.12.Z - Naprawa i konserwacja sprzętu (tele)komunikacyjnego"]
["95.21.Z - Naprawa i konserwacja elektronicznego sprzętu powszechnego użytku"]
["95.22.Z - Naprawa i konserwacja urządzeń gospodarstwa domowego oraz sprzętu użytku domowego i ogrodniczego"]
["95.23.Z - Naprawa obuwia i wyrobów skórzanych"]
["95.24.Z - Naprawa i konserwacja mebli i wyposażenia domowego"]
["95.25.Z - Naprawa zegarów, zegarków oraz biżuterii"]
["95.29.Z - Naprawa pozostałych artykułów użytku osobistego i domowego"]
["96.01.Z - Pranie i czyszczenie wyrobów włókienniczych i futrzarskich"]
["96.02.Z - Fryzjerstwo i pozostałe zabiegi kosmetyczne"]
["96.03.Z - Pogrzeby i działalność pokrewna"]
["96.04.Z - Działalność usługowa związana z poprawą kondycji fizycznej"]
["96.09.Z - Pozostała działalność usługowa, gdzie indziej niesklasyfikowana"]
["97.00.Z - GOSPODARSTWA DOMOWE ZATRUDNIAJĄCE PRACOWNIKÓW"]
["98.10.Z - Gospodarstwa domowe produkujące wyroby na własne potrzeby"]
["98.20.Z - Gospodarstwa domowe świadczące usługi na własne potrzeby"]
["99.00.Z - ORGANIZACJE I ZESPOŁY EKSTERYTORIALNE"]
[]
["Forma Własności"]
["Własność Skarbu Państwa"]
["Własność państwowych osób prawnych"]
["Własność jednostek samorządu terytorialnego lub samorządowych osób prawnych"]
["Własność krajowych osób fizycznych"]
["Własność pozostałych krajowych jednostek prywatnych"]
["Własność osób zagranicznych"]
[]
["Krajowe klastry kluczowe","KKK 2020"]
["Klaster Lifescience Kraków, reprezentowany przez Fundację Klaster LifeScience Kraków","Klaster Dolina Lotnicza, reprezentowany przez Stowarzyszenie Grupy Przedsiębiorców Przemysłu Lotniczego „Dolina Lotnicza”"]
["MedSilesie - Śląska Sieć Wyrobów Medycznych, reprezentowany przez Górnośląską Agencję Przedsiębiorczości i Rozwoju Sp. z o.o.","Klaster Obróbki Metali, reprezentowany przez Centrum Promocji Innowacji i Rozwoju"]
["NUTRIBIOMED Klaster, reprezentowany przez Wrocławski Park Technologiczny S. A.","Mazowiecki Klaster ICT, reprezentowany przez Stowarzyszenie Rozwoju Społeczno-Gospodarczego „Wiedza”"]
["Śląski Klaster Lotniczy, reprezentowany przez Federację Firm Lotniczych Bielsko","Polski Klaster Budowlany, reprezentowany przez Polskie Stowarzyszenie Doradcze i Konsultingowe"]
["Wschodni Klaster ICT, reprezentowany przez Wschodnią Agencję Rozwoju Sp. z o.o.","Bydgoski Klaster Przemysłowy, reprezentowany przez Bydgoski Klaster Przemysłowy"]
["Klaster Gospodarki Odpadowej i Recyklingu, reprezentowany przez Centrum Kooperacji Recyklingu - not for profit system Sp. z o.o.","Klaster \"Polska Grupa Motoryzacyjna\", reprezentowany przez Stowarzyszenie Polska Grupa Motoryzacyjna"]
["Klaster Zrównoważona Infrastruktura, reprezentowany przez Instytut Doradztwa Sp. z.o.o.","Klaster Gospodarki Odpadowej i Recyklingu, reprezentowany przez Centrum Kooperacji Recyklingu - not for profit system Sp. z o.o."]
["Klaster Logistyczno-Transportowy Północ-Południe, reprezentowany przez Zarząd Nadbałtyckich Inicjatyw Klastrowych Sp. z o.o.","Klaster LifeScience Kraków, reprezentowany przez Fundację Klaster LifeScience Kraków"]
["Bydgoski Klaster Przemysłowy, reprezentowany przez Bydgoski Klaster Przemysłowy","Klaster Logistyczno Transportowy Północ-Południe, reprezentowany przez Zarząd Nadbałtyckich Inicjatyw Klastrowych Sp. z o.o."]
["Klaster Dolina Lotnicza, reprezentowany przez Stowarzyszenie Grupy Przedsiębiorców Przemysłu Lotniczego „Dolina Lotnicza”","Klaster Zrównoważona Infrastruktura, reprezentowany przez Instytut Doradztwa Sp. z o.o."]
["Klaster Obróbki Metali, reprezentowany przez Centrum Promocji Innowacji i Rozwoju","Pomorski Klaster ICT Interizon, reprezentowany przez Fundację Interizon"]
["Mazowiecki Klaster ICT, reprezentowany przez Stowarzyszenie Rozwoju Społeczno-Gospodarczego „Wiedza”","Silesia Automotive & Advanced Manufacturing, reprezentowany przez Katowicką Specjalną Strefę Ekonomiczną S.A."]
["Polski Klaster Budowlany, reprezentowany przez Polskie Stowarzyszenie Doradcze i Konsultingowe","Śląski Klaster Lotniczy, reprezentowany przez Federację Firm Lotniczych BIELSKO"]
["Nie dotyczy","Wschodni Klaster ICT, reprezentowany przez Wschodnią Agencję Rozwoju Sp. z o.o."]
[null,"Zachodniopomorski Klaster Chemiczny Zielona Chemia, reprezentowany przez  Stowarzyszenie Zachodniopomorski Klaster Chemiczny Zielona Chemia"]
["Nazwa zadania","Nie dotyczy"]
["Nabycie albo wytworzenie środków trwałych innych niż prawo użytkowania wieczystego gruntu oraz nieruchomości"]
["Nabycie wartości niematerialnych i prawnych"]
["Nabycie robót i materiałów budowlanych"]
["Koszt nabycia nieruchomości zabudowanych i niezabudowanych"]
["Raty spłaty kapitału nieruchomości zabudowanych i niezabudowanych"]
["Raty spłaty kapitału środków trwałych innych niż nieruchomości "]
["Usługi doradcze"]
["Koszty wiedzy technicznej"]
["Koszty Materiałów"]
[]
["Kategoria kosztów"]
["Nabycie albo wytworzenie środków trwałych innych niż prawo użytkowania wieczystego gruntu oraz nieruchomości - regiony słabiej rozwinięte"," - regiony słabiej rozwinięte"]
["Nabycie wartości niematerialnych i prawnych - regiony słabiej rozwinięte"," - regiony lepiej rozwinięte"]
["Nabycie robót i materiałów budowlanych - regiony słabiej rozwinięte"]
["Koszt nabycia nieruchomości zabudowanych i niezabudowanych - regiony słabiej rozwinięte"]
["Raty spłaty kapitału nieruchomości zabudowanych i niezabudowanych - regiony słabiej rozwinięte"]
["Raty spłaty kapitału środków trwałych innych niż nieruchomości  - regiony słabiej rozwinięte"]
["Usługi doradcze - regiony słabiej rozwinięte"]
["Koszty wiedzy technicznej - regiony słabiej rozwinięte"]
["Koszty Materiałów - regiony słabiej rozwinięte"]
["Nabycie albo wytworzenie środków trwałych innych niż prawo użytkowania wieczystego gruntu oraz nieruchomości - regiony lepiej rozwinięte"]
["Nabycie wartości niematerialnych i prawnych - regiony lepiej rozwinięte"]
["Nabycie robót i materiałów budowlanych - regiony lepiej rozwinięte"]
["Koszt nabycia nieruchomości zabudowanych i niezabudowanych - regiony lepiej rozwinięte"]
["Raty spłaty kapitału nieruchomości zabudowanych i niezabudowanych - regiony lepiej rozwinięte"]
["Raty spłaty kapitału środków trwałych innych niż nieruchomości  - regiony lepiej rozwinięte"]
["Usługi doradcze - regiony lepiej rozwinięte"]
["Koszty wiedzy technicznej - regiony lepiej rozwinięte"]
["Koszty Materiałów - regiony lepiej rozwinięte"]
[]
["Kolumna1"]
["T"]
["N"]

{"sheet":"V. Aspekty Finansowe","index":7,"n_rows":55,"n_cols":37,"rows_kept":55,"cut":false,"hidden":false,"merged":[[52,1,52,32],[22,0,22,18],[24,0,24,18],[25,20,25,25],[18,0,18,32],[11,0,11,18],[46,1,46,32],[53,1,53,32],[9,0,9,32],[49,1,49,32],[50,1,50,32],[17,0,17,32],[19,26,19,32],[19,19,19,25],[19,0,19,18],[51,1,51,32],[25,3,25,18],[48,1,48,32],[30,27,30,32],[47,1,47,32],[35,0,35,18],[35,20,35,25],[35,27,35,32],[36,0,36,18],[0,33,1,35],[3,33,6,33],[3,34,6,34],[3,35,6,35],[0,0,0,32],[1,0,1,32],[4,22,4,32],[4,17,4,21],[4,12,4,16],[4,0,4,11],[3,0,3,32],[6,0,6,11],[6,17,6,26],[40,0,40,32],[36,20,36,25],[38,19,38,25],[30,0,30,18],[30,20,30,25],[31,20,31,32],[22,20,22,25],[34,27,34,32],[29,0,29,18],[27,0,27,18],[27,20,27,25],[27,27,27,32],[22,27,22,32],[23,0,23,18],[21,0,21,18],[41,1,43,32],[41,0,43,0],[37,26,37,32],[34,0,34,1],[33,20,33,32],[54,1,54,32],[34,3,34,18],[39,0,39,26],[39,28,39,32],[45,0,45,26],[33,0,33,18],[34,20,34,25],[36,27,36,32],[28,0,28,18],[28,20,28,25],[31,0,31,18],[32,0,32,18],[32,20,32,25],[32,27,32,32],[37,19,37,25],[38,26,38,32],[41,33,43,33],[41,34,43,34],[41,35,43,35],[41,36,43,36],[9,33,9,36],[16,33,18,36],[45,28,45,32],[29,20,29,32],[28,27,28,32],[25,27,25,32],[10,20,10,32],[11,20,11,32],[12,20,12,32],[13,20,13,32],[14,20,14,32],[15,20,15,32],[16,0,16,32],[21,20,21,25],[21,27,21,32],[24,27,24,32],[10,0,10,18],[23,20,23,25],[12,0,12,18],[13,0,13,18],[3,36,6,36],[25,0,25,1],[20,0,20,18],[20,19,20,25],[20,26,20,32],[26,0,26,18],[26,19,26,25],[26,26,26,32],[6,28,6,32],[5,13,5,16],[5,18,5,21],[5,23,5,32],[5,1,5,11],[6,13,6,16],[24,20,24,25],[7,0,7,26],[23,27,23,32],[8,0,8,11],[7,28,7,32],[8,28,8,32],[8,17,8,26],[8,12,8,16],[15,0,15,18],[14,0,14,18]]}
["V. ASPEKTY FINANSOWE",null,null,null,null,null,null,null,null,null,null,null,null,null,null,null,null,null,null,null,null,null,null,null,null,null,null,null,null,null,null,null,null,"Uwagi/komentarze Ekspertów"]
["1. Planowane kwoty wydatków"]
[null,null,null,null,null,null,null,null,null,null,null,null,null,null,null,null,null,null,null,null,null,null,null,null,null,null,null,null,null,null,null,null,null,{"$f":"'I. Informacje o projekcie'!$AH$2","v":"Ekspert od innowacyjności 1"},{"$f":"'I. Informacje o projekcie'!$AI$2","v":"Ekspert od innowacyjności 2"},{"$f":"'I. Informacje o projekcie'!$AJ$2","v":"Ekspert finansowy"},{"$f":"'I. Informacje o projekcie'!$AK$2","v":"Uwagi MFiPR"}]
["Pomoc inwestycyjna na infrastrukturę służącą do testowania i przygotowania do masowej produkcji produktów służących zwalczaniu pandemii COVID-19"]
["Wydatki całkowite (w PLN)",null,null,null,null,null,null,null,null,null,null,null,"Stawka VAT",null,null,null,null,"Czy VAT jest kwalifikowany?",null,null,null,null,"Wydatki kwalifikowane (w PLN)"]
["152.",{"$f":"'X. Zakres R-F'!D86","v":0},null,null,null,null,null,null,null,null,null,null,"153.",null,null,null,null,"154.",null,null,null,null,"155.",{"$f":"'X. Zakres R-F'!E86","v":0}]
["Wielkość dofinansowania w % 1",null,null,null,null,null,null,null,null,null,null,null,"156.",null,null,null,null,"Wnioskowana kwota dofinansowania 2",null,null,null,null,null,null,null,null,null,"157.",{"$f":"IF($AC$8=\"tak\",$X$6*'V. Aspekty Finansowe'!N7,'X. Zakres R-F'!F86)","v":0}]
["Czy Wnioskodawca deklaruje zakończenie realizacji projektu w terminie 2 miesięcy od daty otrzymania pomocy tym samym ubiega się o zwiększenie intensywności wsparcia zgodnie z par. 9 ust. 5 rozporządzenia COVID-19 o 15 pkt procentowych?",null,null,null,null,null,null,null,null,null,null,null,null,null,null,null,null,null,null,null,null,null,null,null,null,null,null,"158."]
["Wielkość dofinansowania w % 1",null,null,null,null,null,null,null,null,null,null,null,{"$f":"IF(AC8=\"tak\",0.15,\"n/d\")","v":"n/d"},null,null,null,null,"Wnioskowana kwota dofinansowania 2",null,null,null,null,null,null,null,null,null,"159.",{"$f":"IF(AC8=\"tak\",'X. Zakres R-F'!F86-'V. Aspekty Finansowe'!AC7,0)","v":0}]
["Podsumowanie budżetu"]
["Wartość wydatków całkowitych na realizację projektu (w PLN) 3",null,null,null,null,null,null,null,null,null,null,null,null,null,null,null,null,null,null,"160.",{"$f":"$B$6","v":0}]
["wartość podatku VAT",null,null,null,null,null,null,null,null,null,null,null,null,null,null,null,null,null,null,"161."]
["Wartość wydatków kwalifikowanych (w PLN) 4",null,null,null,null,null,null,null,null,null,null,null,null,null,null,null,null,null,null,"162.",{"$f":"$X$6","v":0}]
["wartość podatku VAT 5",null,null,null,null,null,null,null,null,null,null,null,null,null,null,null,null,null,null,"163."]
["Wnioskowana kwota dofinansowania (w PLN) 6",null,null,null,null,null,null,null,null,null,null,null,null,null,null,null,null,null,null,"164.",{"$f":"$AC$7+$AC$9","v":0}]
["wartość podatku VAT 7",null,null,null,null,null,null,null,null,null,null,null,null,null,null,null,null,null,null,"165."]
[]
["2. Zdolność finansowa Wnioskodawcy"]
[]
["Źródła finansowania projektu",null,null,null,null,null,null,null,null,null,null,null,null,null,null,null,null,null,null,"Wydatki\ncałkowite \n(w PLN)",null,null,null,null,null,null,"Wydatki kwalifikowane \n(w PLN)"]
["I. Środki publiczne, w tym:",null,null,null,null,null,null,null,null,null,null,null,null,null,null,null,null,null,null,{"$f":"SUM(U22:Z26)","v":0},null,null,null,null,null,null,{"$f":"SUM(AB22:AG26)","v":0}]
["1. Wnioskowana kwota dofinansowania w ramach działania ",null,null,null,null,null,null,null,null,null,null,null,null,null,null,null,null,null,null,"166.",{"$f":"$U$15","v":0},null,null,null,null,null,"167.",{"$f":"$U$15","v":0}]
["2. Inne środki publiczne stanowiące pomoc państwa, w tym:",null,null,null,null,null,null,null,null,null,null,null,null,null,null,null,null,null,null,"168.",{"$f":"U24+U25+U26","v":0},null,null,null,null,null,"169.",{"$f":"AB24+AB25+AB26","v":0}]
["a) budżet państwa",null,null,null,null,null,null,null,null,null,null,null,null,null,null,null,null,null,null,"170.",null,null,null,null,null,null,"171."]
["b) budżet jednostek samorządu terytorialnego",null,null,null,null,null,null,null,null,null,null,null,null,null,null,null,null,null,null,"172.",null,null,null,null,null,null,"173."]
["c) inne:",null,"286.",{"$f":"IF(U26+AB26<>0,\"Uzupełnij\",\"Nie dotyczy\")","v":"Nie dotyczy"},null,null,null,null,null,null,null,null,null,null,null,null,null,null,null,"174.",null,null,null,null,null,null,"175."]
["II. Źródła finansowania inne niż środki publiczne, w tym:",null,null,null,null,null,null,null,null,null,null,null,null,null,null,null,null,null,null,{"$f":"SUM(U28,U29,U31,U33,U35)","v":0},null,null,null,null,null,null,{"$f":"SUM(AB28,AB29,AB31,AB33,AB35)","v":0}]
["1. Własne",null,null,null,null,null,null,null,null,null,null,null,null,null,null,null,null,null,null,"176.",null,null,null,null,null,null,"177."]
["2. Kredyt inwestycyjny",null,null,null,null,null,null,null,null,null,null,null,null,null,null,null,null,null,null,"178.",null,null,null,null,null,null,"179."]
["Nazwa instytucji finansującej kredyt inwestycyjny",null,null,null,null,null,null,null,null,null,null,null,null,null,null,null,null,null,null,"180.",{"$f":"IF(U29+AB29<>0,\"Uzupełnij\",\"Nie dotyczy\")","v":"Nie dotyczy"}]
["3. Leasing",null,null,null,null,null,null,null,null,null,null,null,null,null,null,null,null,null,null,"181.",null,null,null,null,null,null,182]
["Nazwa instytucji finansującej leasing",null,null,null,null,null,null,null,null,null,null,null,null,null,null,null,null,null,null,"183.",{"$f":"IF(U31+AB31<>0,\"Uzupełnij\",\"Nie dotyczy\")","v":"Nie dotyczy"}]
["4. Fundusz inwestycyjny ",null,null,null,null,null,null,null,null,null,null,null,null,null,null,null,null,null,null,"184.",null,null,null,null,null,null,"185."]
["Nazwa funduszu inwestycyjnego",null,null,null,null,null,null,null,null,null,null,null,null,null,null,null,null,null,null,"186.",{"$f":"IF(U33+AB33<>0,\"Uzupełnij\",\"Nie dotyczy\")","v":"Nie dotyczy"}]
["5. Inne: ",null,"300.",{"$f":"IF(U35+AB35<>0,\"Uzupełnij\",\"Nie dotyczy\")","v":"Nie dotyczy"},null,null,null,null,null,null,null,null,null,null,null,null,null,null,null,"187.",null,null,null,null,null,null,"188."]
["III. Razem (suma poz. I. Pkt 1 i 2 oraz poz. II pkt 1-5)",null,null,null,null,null,null,null,null,null,null,null,null,null,null,null,null,null,null,"189.",{"$f":"$U$11","v":0},null,null,null,null,null,"190.",{"$f":"$U$13","v":0}]
["Udział kredytu ze środków EBI  w środkach gwarantowanych przez Wnioskodawcę (w PLN)",null,null,null,null,null,null,null,null,null,null,null,null,null,null,null,null,null,null,"191.",null,null,null,null,null,null,"192."]
[null,null,null,null,null,null,null,null,null,null,null,null,null,null,null,null,null,null,null,{"$f":"IF($T$21+$T$27=$U$36,\" \",\"Pozostało do rozdysponowania\")","v":" "},null,null,null,null,null,null,{"$f":"IF($AA$21+$AA$27=$AB$36,\" \",\"Pozostało do rozdysponowania\")","v":" "}]
[null,null,null,null,null,null,null,null,null,null,null,null,null,null,null,null,null,null,null,{"$f":"IF($T$38<>\" \",$U$36-$T$27-$T$21,\" \")","v":" "},null,null,null,null,null,null,{"$f":"IF($AA$38<>\" \",$AB$36-$AA$27-$AA$21,\" \")","v":" "}]
["Czy zakupiona infrastruktura będzie udostępniana przedsiębiorcom na bardziej korzystnych warunkach,  w zamian za sfinansowanie co najmniej 10% kosztów inwestycji w infrastrukturę?",null,null,null,null,null,null,null,null,null,null,null,null,null,null,null,null,null,null,null,null,null,null,null,null,null,null,"193."]
["Warunki/zasady przyznania preferencyjnego dostępu innym podmiotom:"]
["194.",{"$f":"IF(AC40=\"nie\",\"nie dotyczy\",\" \")","v":" "}]
[]
[]
[]
["Deklarowana data przekazania do MFiPR dokumentu potwierdzającego pozyskanie zewnętrznego finansowania realizacji projektu(umowa: kredytu, leasingu, pożyczki, itp) 8",null,null,null,null,null,null,null,null,null,null,null,null,null,null,null,null,null,null,null,null,null,null,null,null,null,null,"195.",{"$f":"IF(U28+U22<>T21,\" \",\"nie dotyczy\")","v":"nie dotyczy"}]
[]
[1,"Należy podać intensywność pomocy inwestycyjnej na infrastrukturę służącą do testowania i przygotowania do masowej produkcji produktów służących zwalczaniu pandemii COVID-19."]
[2,"Iloczyn wartości wskazanych w kolumnie: „Wydatki kwalifikowane (w PLN)” i „Wielkość dofinansowania w %”."]
[3,"Kwota wydatków całkowitych."]
[4,"Kwota wydatków kwalifikowanych."]
[5,"Podać wyłącznie wówczas gdy podatek VAT jest kwalifikowany."]
[6,"Wnioskowana kwota dofinansowania."]
[7,"Podać wyłącznie wówczas gdy podatek VAT jest kwalifikowany."]
[8,"Do momentu przekazania IZ dokumentów potwierdzających pozyskanie zewnętrznego finansowania, IZ nie będzie realizować wniosków o płatności refundacyjne bądź zaliczkowe."]

{"sheet":"VI. Harmonogram płatności","index":8,"n_rows":39,"n_cols":38,"rows_kept":39,"cut":false,"hidden":false,"merged":[[0,0,0,32],[38,1,38,32],[0,34,1,36],[3,0,3,5],[3,6,3,11],[3,12,3,17],[3,18,3,22],[3,23,3,27],[3,28,3,32],[1,0,1,32],[2,0,2,5],[2,6,2,11],[2,12,2,17],[2,18,2,22],[2,23,2,27],[2,28,2,32],[36,6,36,11],[36,12,36,17],[36,18,36,22],[35,0,35,5],[35,6,35,11],[35,12,35,17],[35,18,35,22],[4,28,4,32],[5,23,5,27],[5,28,5,32],[33,23,33,27],[32,1,32,5],[32,6,32,11],[37,12,37,17],[37,18,37,22],[37,6,37,11],[5,6,5,11],[5,12,5,17],[5,18,5,22],[33,18,33,22],[32,12,32,17],[32,18,32,22],[24,18,24,22],[35,23,35,27],[35,28,35,32],[34,1,34,5],[34,6,34,11],[34,12,34,17],[34,18,34,22],[34,23,34,27],[34,28,34,32],[32,28,32,32],[4,1,4,5],[4,6,4,11],[4,12,4,17],[4,18,4,22],[5,1,5,5],[33,1,33,5],[33,6,33,11],[33,12,33,17],[4,23,4,27],[32,23,32,27],[22,1,22,5],[22,6,22,11],[22,12,22,17],[22,18,22,22],[22,23,22,27],[10,12,10,17],[10,18,10,22],[10,23,10,27],[25,1,25,5],[25,6,25,11],[25,12,25,17],[25,18,25,22],[25,23,25,27],[12,1,12,5],[31,1,31,5],[31,6,31,11],[31,12,31,17],[31,18,31,22],[31,23,31,27],[31,28,31,32],[33,28,33,32],[30,28,30,32],[30,1,30,5],[30,6,30,11],[30,12,30,17],[30,18,30,22],[30,23,30,27],[22,28,22,32],[23,1,23,5],[23,6,23,11],[23,12,23,17],[23,18,23,22],[23,23,23,27],[23,28,23,32],[24,1,24,5],[24,6,24,11],[24,12,24,17],[24,23,24,27],[24,28,24,32],[21,28,21,32],[20,1,20,5],[20,6,20,11],[20,12,20,17],[20,18,20,22],[20,23,20,27],[20,28,20,32],[21,1,21,5],[21,6,21,11],[21,12,21,17],[21,18,21,22],[21,23,21,27],[19,28,19,32],[18,1,18,5],[18,6,18,11],[18,12,18,17],[18,18,18,22],[18,23,18,27],[18,28,18,32],[19,1,19,5],[19,6,19,11],[19,12,19,17],[19,18,19,22],[19,23,19,27],[17,28,17,32],[16,1,16,5],[16,6,16,11],[16,12,16,17],[16,18,16,22],[16,23,16,27],[16,28,16,32],[17,1,17,5],[17,6,17,11],[17,12,17,17],[17,18,17,22],[17,23,17,27],[15,28,15,32],[14,1,14,5],[14,6,14,11],[14,12,14,17],[14,18,14,22],[14,23,14,27],[14,28,14,32],[15,1,15,5],[15,6,15,11],[15,12,15,17],[15,18,15,22],[15,23,15,27],[13,28,13,32],[6,1,6,5],[6,6,6,11],[6,12,6,17],[6,18,6,22],[6,23,6,27],[6,28,6,32],[7,1,7,5],[7,6,7,11],[7,12,7,17],[7,18,7,22],[7,23,7,27],[12,6,12,11],[12,12,12,17],[12,18,12,22],[12,23,12,27],[12,28,12,32],[13,1,13,5],[13,6,13,11],[13,12,13,17],[13,18,13,22],[13,23,13,27],[26,23,26,27],[25,28,25,32],[7,28,7,32],[9,28,9,32],[8,1,8,5],[8,6,8,11],[8,12,8,17],[8,18,8,22],[8,23,8,27],[8,28,8,32],[9,1,9,5],[9,6,9,11],[9,12,9,17],[9,18,9,22],[9,23,9,27],[11,28,11,32],[10,1,10,5],[10,6,10,11],[10,28,10,32],[11,1,11,5],[11,6,11,11],[11,12,11,17],[11,18,11,22],[11,23,11,27],[3,34,3,37],[28,28,28,32],[29,1,29,5],[29,6,29,11],[29,12,29,17],[29,18,29,22],[29,23,29,27],[29,28,29,32],[28,1,28,5],[28,6,28,11],[28,12,28,17],[28,18,28,22],[28,23,28,27],[26,28,26,32],[27,1,27,5],[27,6,27,11],[27,12,27,17],[27,18,27,22],[27,23,27,27],[27,28,27,32],[26,1,26,5],[26,6,26,11],[26,12,26,17],[26,18,26,22]]}
["VI. HARMONOGRAM PŁATNOŚCI",null,null,null,null,null,null,null,null,null,null,null,null,null,null,null,null,null,null,null,null,null,null,null,null,null,null,null,null,null,null,null,null,null,"Uwagi/komentarze Ekspertów"]
[]
["Przewidywana data złożenia wniosku o płatność",null,null,null,null,null,"Kwota poniesionych wydatków całkowitych \n(w PLN)\n",null,null,null,null,null,"Kwota poniesionych wydatków kwalifikowanych \n(w PLN)\n",null,null,null,null,null,"Wartość wnioskowanego dofinansowania \n(w PLN)\n",null,null,null,null,"Oznaczenie rodzaju wniosku o płatność 9",null,null,null,null,"% wnioskowanego dofinansowania (wykazać tylko dla zaliczki)",null,null,null,null,null,{"$f":"'I. Informacje o projekcie'!$AH$2","v":"Ekspert od innowacyjności 1"},{"$f":"'I. Informacje o projekcie'!$AI$2","v":"Ekspert od innowacyjności 2"},{"$f":"'I. Informacje o projekcie'!$AJ$2","v":"Ekspert finansowy"},{"$f":"'I. Informacje o projekcie'!$AK$2","v":"Uwagi MFiPR"}]
["196.",null,null,null,null,null,"197.",null,null,null,null,null,"198.",null,null,null,null,null,"199.",null,null,null,null,"200.",null,null,null,null,"201."]
[1,null,null,null,null,null,null,null,null,null,null,null,null,null,null,null,null,null,null,null,null,null,null,null,null,null,null,null,{"$f":"IF(X5=\"Z\",$S5/$S$36,\" \")","v":" "}]
[null,null,null,null,null,null,null,null,null,null,null,null,null,null,null,null,null,null,null,null,null,null,null,null,null,null,null,null," "]
[null,null,null,null,null,null,null,null,null,null,null,null,null,null,null,null,null,null,null,null,null,null,null,null,null,null,null,null," "]
[null,null,null,null,null,null,null,null,null,null,null,null,null,null,null,null,null,null,null,null,null,null,null,null,null,null,null,null," "]
[null,null,null,null,null,null,null,null,null,null,null,null,null,null,null,null,null,null,null,null,null,null,null,null,null,null,null,null," "]
[null,null,null,null,null,null,null,null,null,null,null,null,null,null,null,null,null,null,null,null,null,null,null,null,null,null,null,null," "]
[null,null,null,null,null,null,null,null,null,null,null,null,null,null,null,null,null,null,null,null,null,null,null,null,null,null,null,null," "]
[null,null,null,null,null,null,null,null,null,null,null,null,null,null,null,null,null,null,null,null,null,null,null,null,null,null,null,null," "]
[null,null,null,null,null,null,null,null,null,null,null,null,null,null,null,null,null,null,null,null,null,null,null,null,null,null,null,null," "]
[null,null,null,null,null,null,null,null,null,null,null,null,null,null,null,null,null,null,null,null,null,null,null,null,null,null,null,null," "]
[null,null,null,null,null,null,null,null,null,null,null,null,null,null,null,null,null,null,null,null,null,null,null,null,null,null,null,null," "]
[null,null,null,null,null,null,null,null,null,null,null,null,null,null,null,null,null,null,null,null,null,null,null,null,null,null,null,null," "]
[null,null,null,null,null,null,null,null,null,null,null,null,null,null,null,null,null,null,null,null,null,null,null,null,null,null,null,null," "]
[null,null,null,null,null,null,null,null,null,null,null,null,null,null,null,null,null,null,null,null,null,null,null,null,null,null,null,null," "]
[null,null,null,null,null,null,null,null,null,null,null,null,null,null,null,null,null,null,null,null,null,null,null,null,null,null,null,null," "]
[null,null,null,null,null,null,null,null,null,null,null,null,null,null,null,null,null,null,null,null,null,null,null,null,null,null,null,null," "]
[null,null,null,null,null,null,null,null,null,null,null,null,null,null,null,null,null,null,null,null,null,null,null,null,null,null,null,null," "]
[null,null,null,null,null,null,null,null,null,null,null,null,null,null,null,null,null,null,null,null,null,null,null,null,null,null,null,null," "]
[null,null,null,null,null,null,null,null,null,null,null,null,null,null,null,null,null,null,null,null,null,null,null,null,null,null,null,null," "]
[null,null,null,null,null,null,null,null,null,null,null,null,null,null,null,null,null,null,null,null,null,null,null,null,null,null,null,null," "]
[null,null,null,null,null,null,null,null,null,null,null,null,null,null,null,null,null,null,null,null,null,null,null,null,null,null,null,null," "]
[null,null,null,null,null,null,null,null,null,null,null,null,null,null,null,null,null,null,null,null,null,null,null,null,null,null,null,null," "]
[null,null,null,null,null,null,null,null,null,null,null,null,null,null,null,null,null,null,null,null,null,null,null,null,null,null,null,null," "]
[null,null,null,null,null,null,null,null,null,null,null,null,null,null,null,null,null,null,null,null,null,null,null,null,null,null,null,null," "]
[null,null,null,null,null,null,null,null,null,null,null,null,null,null,null,null,null,null,null,null,null,null,null,null,null,null,null,null," "]
[null,null,null,null,null,null,null,null,null,null,null,null,null,null,null,null,null,null,null,null,null,null,null,null,null,null,null,null," "]
[null,null,null,null,null,null,null,null,null,null,null,null,null,null,null,null,null,null,null,null,null,null,null,null,null,null,null,null," "]
[null,null,null,null,null,null,null,null,null,null,null,null,null,null,null,null,null,null,null,null,null,null,null,null,null,null,null,null," "]
[null,null,null,null,null,null,null,null,null,null,null,null,null,null,null,null,null,null,null,null,null,null,null,null,null,null,null,null," "]
[null,null,null,null,null,null,null,null,null,null,null,null,null,null,null,null,null,null,null,null,null,null,null,null,null,null,null,null," "]
[null,{"$f":"'I. Informacje o projekcie'!Z19+30","v":"1900-01-30"},null,null,null,null,null,null,null,null,null,null,null,null,null,null,null,null,null,null,null,null,null,"PK"]
["RAZEM",null,null,null,null,null,{"$f":"'V. Aspekty Finansowe'!U11","v":0},null,null,null,null,null,{"$f":"'V. Aspekty Finansowe'!U13","v":0},null,null,null,null,null,{"$f":"'V. Aspekty Finansowe'!U15","v":0},null,null,null,null,"n/d",null,null,null,null,{"$f":"SUM(AC5:AG35)","v":0}]
[null,null,null,null,null,null,{"$f":"IF(SUM(G5:L35)=G36,\" \",\"POZOSTAŁO DO ROZDYSPONOWANIA\")","v":" "},null,null,null,null,null,{"$f":"IF(SUM(M5:R35)=M36,\" \",\"POZOSTAŁO DO ROZDYSPONOWANIA\")","v":" "},null,null,null,null,null,{"$f":"IF(SUM(S5:W35)=S36,\" \",\"POZOSTAŁO DO ROZDYSPONOWANIA\")","v":" "}]
[null,null,null,null,null,null,{"$f":"IF(G37=\"POZOSTAŁO DO ROZDYSPONOWANIA\",G36-SUM(G5:L35),\" \")","v":" "},null,null,null,null,null,{"$f":"IF(M37=\"POZOSTAŁO DO ROZDYSPONOWANIA\",M36-SUM(M5:R35),\" \")","v":" "},null,null,null,null,null,{"$f":"IF(S37=\"POZOSTAŁO DO ROZDYSPONOWANIA\",S36-SUM(S5:W35),\" \")","v":" "}]
[9,"Należy wpisać: refundacja (R), zaliczka (Z), rozliczenie zaliczki (RZ), płatność końcowa (PK)."]

{"sheet":"VII. Zgodność projektu","index":9,"n_rows":70,"n_cols":38,"rows_kept":70,"cut":false,"hidden":false,"merged":[[29,0,36,32],[26,0,26,13],[26,15,26,32],[27,0,27,13],[27,15,27,32],[28,1,28,32],[68,33,76,33],[41,33,52,33],[65,15,65,32],[52,0,52,13],[52,15,52,32],[3,33,13,33],[0,0,0,32],[1,0,1,32],[3,1,3,32],[4,0,11,32],[13,0,13,13],[13,15,13,32],[2,0,2,32],[79,0,85,32],[69,0,76,32],[56,0,63,32],[42,0,49,32],[17,0,24,32],[39,0,39,13],[39,15,39,32],[53,0,53,13],[53,15,53,32],[66,0,66,13],[66,15,66,32],[67,0,67,13],[67,15,67,32],[68,1,68,32],[51,0,51,32],[65,0,65,13],[68,34,76,34],[68,35,76,35],[68,36,76,36],[55,34,63,34],[55,35,63,35],[55,36,63,36],[3,35,11,35],[3,36,11,36],[0,34,0,36],[41,34,49,34],[41,35,49,35],[41,36,49,36],[16,34,24,34],[16,35,24,35],[16,36,24,36],[3,34,11,34],[28,34,36,34],[28,35,36,35],[28,36,36,36],[16,1,16,32],[14,0,14,13],[14,15,14,32],[15,0,15,13],[15,15,15,32],[16,33,25,33],[12,0,12,32],[37,0,37,32],[50,0,50,32],[64,0,64,32],[55,33,65,33],[55,1,55,32],[38,0,38,13],[38,15,38,32],[41,1,41,32],[40,0,40,13],[40,15,40,32],[54,0,54,13],[54,15,54,32],[25,0,25,13],[25,15,25,32],[68,37,76,37],[3,37,11,37],[16,37,24,37],[28,37,36,37],[41,37,49,37],[55,37,63,37]]}
["VII. ZGODNOŚĆ PROJEKTU Z POLITYKAMI HORYZONTALNYMI UNII EUROPEJSKIEJ",null,null,null,null,null,null,null,null,null,null,null,null,null,null,null,null,null,null,null,null,null,null,null,null,null,null,null,null,null,null,null,null,null,"Uwagi/komentarze Ekspertów"]
[null,null,null,null,null,null,null,null,null,null,null,null,null,null,null,null,null,null,null,null,null,null,null,null,null,null,null,null,null,null,null,null,null,null,{"$f":"'I. Informacje o projekcie'!$AH$2","v":"Ekspert od innowacyjności 1"},{"$f":"'I. Informacje o projekcie'!$AI$2","v":"Ekspert od innowacyjności 2"},{"$f":"'I. Informacje o projekcie'!$AJ$2","v":"Ekspert finansowy"},{"$f":"'I. Informacje o projekcie'!$AK$2","v":"Uwagi MFiPR"}]
["Wpływ projektu na realizację zasady równości szans i niedyskryminacji, w tym dostępności dla osób z niepełnosprawnościami "]
["202.","Uzasadnienie wpływu projektu na realizację zasady równości szans i niedyskryminacji, w tym dostępności dla osób z niepełnosprawnościami:"]
[]
[]
[]
[]
[]
[]
[]
[]
[]
["Czy produkty/rezultaty projektu będą dostępne dla osób z niepełnosprawnościami?\n",null,null,null,null,null,null,null,null,null,null,null,null,null,"203."]
["Nazwa wskaźnika nr 1",null,null,null,null,null,null,null,null,null,null,null,null,null,"204.",{"$f":"IF($P$14=\"tak\",\"Uzupełnij nazwę wskaźnika\",\"Nie dotyczy\")","v":"Nie dotyczy"},null,null,null,null,null,null,null,null,null,null,null,null,null,null,null,null,null,"Przejdź do wskaźnika"]
["Nazwa wskaźnika nr 2",null,null,null,null,null,null,null,null,null,null,null,null,null,"205.",{"$f":"IF($P$14=\"tak\",\"Uzupełnij nazwę wskaźnika\",\"Nie dotyczy\")","v":"Nie dotyczy"},null,null,null,null,null,null,null,null,null,null,null,null,null,null,null,null,null,"Przejdź do wskaźnika"]
["206.","Uzasadnienie dostępności produkty/rezultaty/infrastruktura dla osób z niepełnosprawnościami:"]
[{"$f":"IF($P$14=\"tak\",\"Uzupełnij uzasadnienie, jednostkę miary i wartości wskaźnika w arkuszu VIII. Wskaźniki rezultatu\",\"Nie dotyczy\")","v":"Nie dotyczy"}]
[]
[]
[]
[]
[]
[]
[]
["Czy w ramach realizacji projektu planowana jest budowa lub adaptacja budynku, na cele przewidziane w paragrafie 9 ust. 1 rozporządzenia COVID-19, spełniajacego standard architektoniczny stanowiący załącznik nr 2 do Wytycznych w zakresie realizacji zasady równości szans i niedyskryminacji, w tym dostępności dla osób z niepełnosprawnościami oraz zasady równości szans kobiet i mężczyzn w ramach Funduszy Unijnych na lata 2014-2020?\n",null,null,null,null,null,null,null,null,null,null,null,null,null,"207."]
["Nazwa wskaźnika nr 1",null,null,null,null,null,null,null,null,null,null,null,null,null,"208.",{"$f":"IF($P$26=\"tak\",\"Uzupełnij nazwę wskaźnika\",\"Nie dotyczy\")","v":"Nie dotyczy"},null,null,null,null,null,null,null,null,null,null,null,null,null,null,null,null,null,"Przejdź do wskaźnika"]
["Nazwa wskaźnika nr 2",null,null,null,null,null,null,null,null,null,null,null,null,null,"209.",{"$f":"IF($P$26=\"tak\",\"Uzupełnij nazwę wskaźnika\",\"Nie dotyczy\")","v":"Nie dotyczy"},null,null,null,null,null,null,null,null,null,null,null,null,null,null,null,null,null,"Przejdź do wskaźnika"]
["210.","Uzasadnienie spełniania standardu architektonicznego: "]
[{"$f":"IF($P$26=\"tak\",\"Uzupełnij uzasadnienie, jednostkę miary i wartości wskaźnika w arkuszu VIII. Wskaźniki rezultatu\",\"Nie dotyczy\")","v":"Nie dotyczy"}]
[]
[]
[]
[]
[]
[]
[]
[]
["Wpływ projektu na realizację zasady równości szans kobiet i mężczyzn",null,null,null,null,null,null,null,null,null,null,null,null,null,"211."]
["Nazwa wskaźnika nr 1",null,null,null,null,null,null,null,null,null,null,null,null,null,"212.",{"$f":"IF($P$39=\"pozytywny\",\"Uzupełnij nazwę wskaźnika\",\"Nie dotyczy\")","v":"Nie dotyczy"},null,null,null,null,null,null,null,null,null,null,null,null,null,null,null,null,null,"Przejdź do wskaźnika"]
["Nazwa wskaźnika nr 2",null,null,null,null,null,null,null,null,null,null,null,null,null,"213.",{"$f":"IF($P$39=\"pozytywny\",\"Uzupełnij nazwę wskaźnika\",\"Nie dotyczy\")","v":"Nie dotyczy"},null,null,null,null,null,null,null,null,null,null,null,null,null,null,null,null,null,"Przejdź do wskaźnika"]
["214.","Uzasadnienie wpływu projektu na realizację zasady równości szans kobiet i mężczyzn: "]
[{"$f":"IF($P$39=\"pozytywny\",\"Uzupełnij uzasadnienie, jednostkę miary i wartości wskaźnika w arkuszu VIII. Wskaźniki rezultatu\",IF($P$39=\"neutralny\",\"Uzupełnij uzasadnienie dlaczego projekt nie jest w stanie zrealizować jakichkolwiek działań w zakresie realizacji zasady równości szans kobiet i mężczyzn\",\"Nie dotyczy\"))","v":"Nie dotyczy"}]
[]
[]
[]
[]
[]
[]
[]
[]
["Wpływ projektu na realizację zasady zrównoważonego rozwoju"]
["Projekt będzie miał pozytywny wpływ na realizację zasady zrównoważonego rozwoju poprzez sposób realizacji projektu ",null,null,null,null,null,null,null,null,null,null,null,null,null,"215."]
["Nazwa wskaźnika nr 1",null,null,null,null,null,null,null,null,null,null,null,null,null,"216.",{"$f":"IF($P$53=\"tak\",\"Uzupełnij nazwę wskaźnika\",\"Nie dotyczy\")","v":"Nie dotyczy"},null,null,null,null,null,null,null,null,null,null,null,null,null,null,null,null,null,"Przejdź do wskaźnika"]
["Nazwa wskaźnika nr 2",null,null,null,null,null,null,null,null,null,null,null,null,null,"217.",{"$f":"IF($P$53=\"tak\",\"Uzupełnij nazwę wskaźnika\",\"Nie dotyczy\")","v":"Nie dotyczy"},null,null,null,null,null,null,null,null,null,null,null,null,null,null,null,null,null,"Przejdź do wskaźnika"]
["218.","Uzasadnienie:"]
[{"$f":"IF($P$53=\"tak\",\"Uzupełnij uzasadnienie, jednostkę miary i wartości wskaźnika w arkuszu VIII. Wskaźniki rezultatu\",\"Nie dotyczy\")","v":"Nie dotyczy"}]
[]
[]
[]
[]
[]
[]
[]
[]
["Projekt będzie miał pozytywny wpływ na realizację zasady zrównoważonego rozwoju poprzez rezultat projektu ",null,null,null,null,null,null,null,null,null,null,null,null,null,"219."]
["Nazwa wskaźnika nr 1",null,null,null,null,null,null,null,null,null,null,null,null,null,"220.",{"$f":"IF($P$66=\"tak\",\"Uzupełnij nazwę wskaźnika\",\"Nie dotyczy\")","v":"Nie dotyczy"},null,null,null,null,null,null,null,null,null,null,null,null,null,null,null,null,null,"Przejdź do wskaźnika"]
["Nazwa wskaźnika nr 2",null,null,null,null,null,null,null,null,null,null,null,null,null,"221.",{"$f":"IF($P$66=\"tak\",\"Uzupełnij nazwę wskaźnika\",\"Nie dotyczy\")","v":"Nie dotyczy"},null,null,null,null,null,null,null,null,null,null,null,null,null,null,null,null,null,"Przejdź do wskaźnika"]
["222.","Uzasadnienie:"]
[{"$f":"IF($P$66=\"tak\",\"Uzupełnij uzasadnienie, jednostkę miary i wartości wskaźnika w arkuszu VIII. Wskaźniki rezultatu\",\"Nie dotyczy\")","v":"Nie dotyczy"}]

{"sheet":"Arkusz IZ","index":10,"n_rows":5,"n_cols":187,"rows_kept":5,"cut":false,"hidden":true,"merged":[[1,1,3,1],[1,2,3,2],[1,3,3,3],[1,4,3,4],[1,5,3,5],[1,6,3,6],[1,13,3,13],[1,14,3,14],[1,15,3,15],[1,19,3,19],[1,20,3,20],[1,21,3,21],[1,22,3,22],[1,31,3,31],[1,16,3,16],[1,17,3,17],[1,18,3,18],[1,7,3,7],[1,8,2,8],[1,9,3,9],[1,10,3,10],[1,11,3,11],[1,12,3,12],[1,23,3,23],[1,24,3,24],[1,25,2,27],[1,28,2,30],[1,32,3,32],[1,33,3,33],[2,108,3,108],[1,34,3,34],[1,36,1,39],[1,42,3,42],[1,43,3,43],[1,44,3,44],[1,81,3,81],[1,57,2,59],[1,60,2,62],[1,63,2,65],[2,46,2,47],[2,48,2,49],[1,66,2,70],[1,71,2,75],[1,76,2,80],[2,56,3,56],[2,35,3,35],[1,45,1,55],[1,158,3,158],[1,159,3,159],[1,160,3,160],[1,161,3,161],[1,127,1,136],[1,137,3,137],[2,87,3,87],[2,88,3,88],[2,89,3,89],[2,90,3,90],[2,98,3,98],[2,99,3,99],[2,100,3,100],[2,101,3,101],[2,102,3,102],[2,103,3,103],[2,91,3,91],[2,93,3,93],[2,94,3,94],[2,95,3,95],[2,96,3,96],[2,184,3,184],[1,162,3,162],[1,163,3,163],[1,164,1,186],[1,149,3,149],[1,138,3,138],[1,139,3,139],[1,140,3,140],[1,141,3,141],[1,142,3,142],[1,143,3,143],[2,185,3,185],[2,186,3,186],[2,178,3,178],[2,179,3,179],[2,180,3,180],[2,181,3,181],[2,182,3,182],[2,183,3,183],[2,172,3,172],[2,173,3,173],[2,175,3,175],[2,169,3,169],[2,176,3,176],[2,177,3,177],[2,127,2,129],[2,130,2,132],[2,133,2,136],[2,164,3,164],[2,165,3,165],[2,167,3,167],[1,150,3,150],[1,151,3,151],[1,152,3,152],[1,153,3,153],[1,154,3,154],[1,155,3,155],[1,144,3,144],[1,145,3,145],[1,146,3,146],[1,147,3,147],[1,148,3,148],[2,168,3,168],[2,170,3,170],[1,82,3,82],[1,83,3,83],[1,84,3,84],[1,85,3,85],[1,86,3,86],[1,87,1,96],[1,97,1,100],[1,101,1,111],[2,174,3,174],[2,97,3,97],[2,112,2,114],[2,115,2,118],[2,110,3,110],[2,111,3,111],[2,119,2,122],[2,36,3,36],[2,37,3,37],[2,38,3,38],[2,39,3,39],[2,50,2,51],[2,52,2,53],[2,54,2,55],[2,40,3,40],[2,41,3,41],[2,123,2,126],[2,106,3,106],[2,107,3,107],[2,171,3,171],[1,156,3,156],[1,157,3,157],[1,112,1,126],[2,109,3,109],[2,104,3,104],[2,105,3,105]]}
[null,"LP. ","Nr wniosku","Pracownik","Data wpływu wniosku ","Nr sprawy w EZD",null,"Status projektu","Nazwa Wnioskodawcy","Tytuł projektu","Klasyfikacja Projektu: Dział gospodarki- opis","KIS",null,"Województwo lokalizacja projektu ","Forma prawna Wnioskodawcy","REGON","NIP","Rodzaj dokumentu rejestrowego","Nr dokumentu rejestrowego","PKD podstawowej działalności Wnioskodawcy","Działalność dotycząca projektu  (PKD) ","Kraj pochodzenia kapitału","Rodzaj przedsiębiorstwa (samodzielne/partnerskie/powiązane)","Status przedsiębiorstwa ","Województwo (siedziba firmy)","Adres siedziby firmy ulica nr budynku/nr lokalu","Adres siedziby firmy miejscowość","Adres siedziby firmy kod pocztowy + poczta","Adres korespondencyjny firmy ulica nr bud/ nr lok","Adres korespondencyjny firmy miejscowość","Adres korespondencyjny firmy kod pocztowy + poczta",null,"Termin rozpoczęcia realizacji projektu","Termin zakończenia realizacji projektu","Kwalifikowalność VAT",null,"Pomoc regionalna % dofinansowania","WC pomoc regionalna","WK pomoc regionalna ","WKD pomoc regionalna",null,null,null,null,null,null,null,null,null,null,null,null,null,null,null,null,null,"Adresat Imię i Nazwisko","Adresat Stanowisko","Adresat płeć","Adresat Imię i Nazwisko","Adresat Stanowisko","Adresat płeć","Adresat Imię i Nazwisko","Adresat Stanowisko","Adresat płeć","Osoba do kontaktu Imię i Nazwisko","Osoba do kontaktu Stanowisko","Osoba do kontaktu e-mail","Osoba do kontaktu płeć","Osoba do kontaktu tel","Osoba do kontaktu Imię i Nazwisko","Osoba do kontaktu Stanowisko","Osoba do kontaktu e-mail","Osoba do kontaktu płeć","Osoba do kontaktu tel","Osoba do kontaktu Imię i Nazwisko","Osoba do kontaktu Stanowisko","Osoba do kontaktu e-mail","Osoba do kontaktu płeć","Osoba do kontaktu tel",null,null,null,null,null,null," ",null,null,null,null,null,null," ",null,null,null,null,null,null,null,null,null,null,null,null,null,null,null,null,null,"Umowa Pomoc regionalna % dofinansowania","Umowa B + R % dofinansowania","Umowa De minimis % dofinansowania","Umowa WC pomoc regionalna","Umowa WC B + R","Umowa WC De minimis","Umowa KD Razem","Umowa WK pomoc regionalna ","Umowa WK B + R","Umowa WK De minimis","Umowa KD Razem","Umowa KD pomoc regionalna","Umowa KD B + R","Umowa KD De minimis","Umowa KD Razem","Słownie Umowa WC pomoc regionalna","Słownie Umowa WC B + R","Słownie Umowa WC De minimis","Słownie Umowa WK pomoc regionalna ","Słownie Umowa WK B + R","Słownie Umowa WK De minimis","Słownie Umowa KD pomoc regionalna","Słownie Umowa KD B + R","Słownie Umowa KD De minimis","Słownie Umowa KD RAZEM",null,null,null,null,null,null,"Data podpisania pisma o wyniku oceny merytorycznej","Data wysłania pisma o wyniku weryfikacji merytorycznej","Data odbioru przez Wnioskodawcę pisma o wyniku weryfikacji merytorycznej ","Termin na przekazanie dokumentacji do zawarcia umowy","Data otrzymania skanów dokumentacji od Wnioskodawcy","Data przekazania oryginałów dokumentcji przez Wnioskodawcę","Data przekazania projektu umowy do DBR",null,"Data zwrotu prafowanego projektu umowy z DBR",null,"Warunek finansowy","Planowana data podpisania projektu umowy","Czy umowa została podpisana","Data podpisania umowy","Powód z jakiego umowa nie została podpisana (jeśli dotyczy)?","Czy zachodzi konieczność wystawienia zaświadczenia \nDE MINIMIS","Jeżeli była taka konieczność, to czy zaświadczenie DE MINIMIS zostało wydane.","Weryfikacja w \nSUDOP/Schrimp","Data wpisania umowy do \nSL","Czy umowa została wpisana do SL","Data wpisania do SHRIMpa"]
[null,"LP. ","Nr wniosku","Pracownik","Data złożenia wniosku","Nr sprawy w EZD","Nr koszulki EZD","Status projektu",true,"Tytuł projektu","Klasyfikacja Projektu: Dział gospodarki- opis","KIS",{"$f":"'I. Informacje o projekcie'!A8","v":"Zakres interwencji (dominujący)"},"Województwo lokalizacja projektu ","Forma prawna Wnioskodawcy","REGON","NIP","Rodzaj dokumentu rejestrowego","Nr dokumentu rejestrowego","PKD podstawowej działalności Wnioskodawcy","Działalność dotycząca projektu  (PKD) ","Kraj pochodzenia kapitału","Rodzaj przedsiębiorstwa (samodzielne/partnerskie/powiązane)","Status przedsiębiorstwa ","Województwo (siedziba firmy)","Adres siedziby firmy",null,null,"Adres korespondencyjny firmy",null,null,{"$f":"'I. Informacje o projekcie'!A17","v":"Czy projekt został rozpoczęty przed dniem 1 lutego 2020 r.?"},"Termin rozpoczęcia realizacji projektu","Termin zakończenia realizacji projektu","Kwalifikowalność VAT",null,"ASPEKTY FINANSOWE",null,null,null,null,null,"pozwolenie na budowę","Dokumentacja OOŚ","Natura 2000","Wskaźniki",null,null,null,null,null,null,null,null,null,null,null,"Osoba do kontaktu (adresat w piśmie)",null,null,"Osoba do kontaktu (adresat w piśmie)",null,null,"Osoba do kontaktu (adresat w piśmie)",null,null,"Osoba do kontaktu",null,null,null,null,"Osoba do kontaktu",null,null,null,null,"Osoba do kontaktu",null,null,null,null,"Czy załączono \nOświadczenie o zgodności wersji elektronicznej z wersją papierową","Forma płatności","Źródło finansowania","Nazwa podmiotu finansującego projekt","Dołaczono upoważnienia dla banku do ","Dołączono dokument dot. zewnętrznego źródła finansowania projektu","Weryfikacja formalna",null,null,null,null,null,null,null,null,null,"Eksperci oceniający projekt",null,null,null,"Ocena merytoryczna",null,null,null,null,null,null,null,null,null,null,"Zatwierdzone kwoty przez Ekspertów",null,null,null,null,null,null,null,null,null,null,null,null,null,null,"Zatwierdzone kwoty przez Ekspertów (słownie)",null,null,null,null,null,null,null,null,null,"Wartość nakładów na działalność B+R (I kryterium rozstrzygające) (PLN)","Udział środków własnych w kosztach kwalifikowanych projektu (II kryterium rozstrzygające)     (%)","Poziom bezrobocia na obszarze gdzie realizowana jest inwestycja (III kryterium rozstrzygające)        ( %) ","Data zatwierdzenia listy ocenionych projektów","Data publikacji listy zatwierdzonych projektów","Wynik weryfikacji merytorycznej\n(powtórzenie)","Data podpisania pisma o wyniku oceny merytorycznej","Data wysłania pisma o wyniku weryfikacji merytorycznej","Data odbioru przez Wnioskodawcę pisma o wyniku weryfikacji merytorycznej ","Termin na przekazanie dokumentacji do zawarcia umowy","Data otrzymania skanów dokumentacji od Wnioskodawcy","Data przekazania oryginałów dokumentcji przez Wnioskodawcę","Data przekazania projektu umowy do DBR","Czy projekt umowy został przekazany do DBR","Data zwrotu prafowanego projektu umowy z DBR","Czy projekt umowy został zwrócony przez DBR","Warunek finansowy","Planowana data podpisania projektu umowy","Czy umowa została podpisana","Data podpisania umowy","Powód z jakiego umowa nie została podpisana (jeśli dotyczy)?","Czy zachodzi konieczność wystawienia zaświadczenia \nDE MINIMIS","Jeżeli była taka konieczność, to czy zaświadczenie DE MINIMIS zostało wydane.","Weryfikacja w \nSUDOP/Schrimp","Data wpisania umowy do \nSL","Czy umowa została wpisana do SL","Data wpisania do SHRIMpa","PROCEDURA ODWOŁAWCZA"]
[null,null,null,null,null,null,null,null,null,null,null,null,null,null,null,null,null,null,null,null,null,null,null,null,null,null,null,null,null,null,null,null,null,null,null,"Czy wniskodawca deklaruje zakończenie projektu w ciągu 2 msc","Poziom intensywnosci wsparcia %","WYDATKI CAŁKOWITE","WYDATKI KWALIFIKOWANE","WNIOSKOWANA KWOTA DOFINANSOWANIA","Deklarowana data przekazania dokumentacji potwierdzającej zewnętrzne finansowanie projektu","Czy infrastruktura projektu będzie udostępniana na preferencyjnych zasadach?",null,null,null,{"$f":"'VIII. Wskaźniki produktu'!B37","v":"Wartość dotacji na B+R w obszarze tworzenia leków i szczepionek przeciw COVID-19"},"Wzrost zatrudnienia we wspieranych przedsiębiorostwach",null,"Liczba naukowców pracujących w ulepszonych obiektach infrastruktury badawczej",null,{"$f":"'VIII. Wskaźniki rezultatu'!A21","v":"Liczba testowanych produktów w zakresie zwalczania skutków pandemii COVID-19."},null,{"$f":"'VIII. Wskaźniki rezultatu'!A24","v":"Liczba przygotowywanych do masowej produkcji produktów w zakresie zwalczania skutków pandemii COVID-19."},null,{"$f":"'VIII. Wskaźniki rezultatu'!A27","v":"Liczba produktów w zakresie zwalczania  skutków pandemii COVID-19 wprowadzonych na rynek w wyniku realizacji projektu."},null,"E-mail firmowy",null,null,null,null,null,null,null,null,null,null,null,null,null,null,null,null,null,null,null,null,null,null,null,null,null,null,null,null,null,null,"Rezygancja po złożeniu wniosku a przed weryfikacją formalną","Wynik pierwszej weryfikacji formalnej ","Data podpisania pisma o negatywnym wyniku weryfikacji formalnej","Data złożenia poprawionego wniosku po weryfikacji warunków formalnych","Czy załączono \nOświadczenie o zgodności wersji elektronicznej z wersją papierową","Weryfikacja (uzupełnienia)","Wynik uzupełniającej weryfikacji warunków formalnych","Ostateczny wynik weryfikacji warunków formalnych","Data dokonanej oceny spełnienia warunków formalnych","KTO PODPISAŁ PISMO","Ekspert wiodący dla projektu","Ekspert nr 2","Ekspert nr 3","Ekspert nr 4","Data pisma z uwagami ekspertów do Wnioskodawcy","KTO PODPISAŁ PISMO","Data złożenia poprawionego wniosku po uwagach ekspertów/\nREZYGNACJA","Czy załączono \nOświadczenie o zgodności wersji elektronicznej z wersją papierową","Data oceny merytorycznej","Sekretarz KOP","Wynik oceny ","Końcowa liczba przyznanych punktów","Niespełnione kryterium obligatoryjne","Kryterium fakultatywne w którym nie otrzymano max liczby pkt","Czy dokonano korekty kwot wskazanych w WoD","Kategoria dofinansowania - Wielkość dofinansowania %",null,null,"WYDATKI CAŁKOWITE",null,null,null,"WYDATKI KWALIFIKOWANE",null,null,null,"KWOTA DOFINANSOWANIA",null,null,null,"WYDATKI CAŁKOWITE",null,null,"WYDATKI KWALIFIKOWANE",null,null,"KWOTA DOFINANSOWANIA",null,null,null,null,null,null,null,null,null,null,null,null,null,null,null,null,null,null,null,null,null,null,null,null,null,null,null,null,null,null,"Czy w ramach projektu złożono protest","Wynik rozpatrzenia protestu IP","PROCEDURA ODWOŁAWCZA","Data złożenia wniosku w wyniku pozytywnego rozparzenia protestu","Wynik ostatecznej oceny formalnej ","Data dokonania ostatecznej oceny formalnej","Rezygnacje po ocenie formalnej","Wynik oceny merytorycznej ","Data przeprowadzonej oceny merytorycznej","Wynik ostatecznej oceny merytorycznej przeprowadzonej na posiedzeniu  KK ","Rekomendowane   do wsparcia przez KK","Liczba uzyskanych punktów","Kryterium roztrzygające NUTS (w %)","Nr listy rankingowej","Data zatwierdzenia listy rankingowej przez IZ","Rekomendowane do wsparcia przez IZ","Rekomendowane   do wsparcia po procedurze odwoławczej/w wyniku zwiększenia alokacji","Liczba uzyskanych punktów w wyniku procedury odwoławczej","Nr suplementu do listy rankingowej","Data zatwierdzenia przez IZ suplementu do listy  rankingowej ","Ostatecznie zatwierdzone  przez IZ","Ostateczna liczba uzyskanych punktów","Rezygnacje             po zatwierdzeniu do wsparcia, a przed podpisaniem umowy o dofinansowanie"]
["Ranking",null,null,null,null,null,null,null,"Nazwa Wnioskodawcy",null,null,null,null,null,null,null,null,null,null,null,null,null,null,null,null,"ulica nr budynku/nr lokalu","miejscowość","kod pocztowy + poczta","ulica nr budynku/nr lokalu","miejscowość","kod pocztowy + poczta",null,null,null,null,null,null,null,null,null,null,null,null,null,null,"docelowa","bazowa","docelowa","bazowa","docelowa","bazowa","docelowa","bazowa","docelowa","bazowa","docelowa",null,"Imię i nazwisko","Stanowisko","Płeć","Imię i nazwisko","Stanowisko","Płeć","Imię i nazwisko","Stanowisko","Płeć","Imię i nazwisko","Stanowisko","E-mail","Płeć","tel","Imię i nazwisko","Stanowisko","E-mail","Płeć","tel","Imię i nazwisko","Stanowisko","E-mail","Płeć","tel",null,null,null,null,null,null,null,null,null,null,null,"I ręka",null,null,null,null,null,null,null,null,null,null,null,null,null,null,null,null,null,null,null," regionalna pomoc inwestycyjna"," pomoc na projekty badawczo-rozwojowe","pomoc de minimis"," regionalna pomoc inwestycyjna"," pomoc na projekty badawczo-rozwojowe","pomoc de minimis","RAZEM"," regionalna pomoc inwestycyjna"," pomoc na projekty badawczo-rozwojowe","pomoc de minimis","RAZEM"," regionalna pomoc inwestycyjna"," pomoc na projekty badawczo-rozwojowe","pomoc de minimis","RAZEM"," regionalna pomoc inwestycyjna"," pomoc na projekty badawczo-rozwojowe","pomoc de minimis"," regionalna pomoc inwestycyjna"," pomoc na projekty badawczo-rozwojowe","pomoc de minimis"," regionalna pomoc inwestycyjna"," pomoc na projekty badawczo-rozwojowe","pomoc de minimis","RAZEM",null,null,null,null,null,null,null,null,null,null,null,null,null,null,null,null,null,null,null,null,null,null,null,null,null,null,null,null,null,"Data rozpatrzenia przez IP"]
[null,null,null,null,null,null,null,null,{"$f":"'II. Identyfikacja Wnioskodawcy'!$P$5","v":0},{"$f":"'I. Informacje o projekcie'!$M$4","v":0},{"$f":"'I. Informacje o projekcie'!$M$7","v":0},{"$f":"'I. Informacje o projekcie'!$P$32","v":0},{"$f":"'I. Informacje o projekcie'!M8","v":"056 – Inwestycje w infrastrukturę, zdolności i wyposażenie w MŚP, związane bezpośrednio z działaniami badawczymi i innowacyjnymi"},{"$f":"'I. Informacje o projekcie'!$A$39","v":0},{"$f":"'II. Identyfikacja Wnioskodawcy'!$P$11","v":0},{"$f":"'II. Identyfikacja Wnioskodawcy'!$P$9","v":0},{"$f":"'II. Identyfikacja Wnioskodawcy'!$P$8","v":0},{"$f":"'II. Identyfikacja Wnioskodawcy'!$P$6","v":0},{"$f":"'II. Identyfikacja Wnioskodawcy'!$P$7","v":0},{"$f":"'II. Identyfikacja Wnioskodawcy'!$P$13","v":0},{"$f":"'II. Identyfikacja Wnioskodawcy'!$P$14","v":0},{"$f":"'II. Identyfikacja Wnioskodawcy'!$P$16","v":0},{"$f":"'II. Identyfikacja Wnioskodawcy'!$P$19","v":0},{"$f":"'II. Identyfikacja Wnioskodawcy'!$P$50","v":0},{"$f":"'II. Identyfikacja Wnioskodawcy'!$A$56","v":0},{"$f":"IF('II. Identyfikacja Wnioskodawcy'!$A$59=\"n/d\",\"n/d\",CONCATENATE(\"ul. \",'II. Identyfikacja Wnioskodawcy'!$A$59,\" \",'II. Identyfikacja Wnioskodawcy'!$G$59,IF('II. Identyfikacja Wnioskodawcy'!$M$59=\"n/d\",\" \",\"/\"),IF('II. Identyfikacja Wnioskodawcy'!$M$59=\"n/d\",\" \",'II. Identyfikacja Wnioskodawcy'!$M$59)))","v":"ul.  /"},{"$f":"IF('II. Identyfikacja Wnioskodawcy'!$A$59=\"n/d\",CONCATENATE('II. Identyfikacja Wnioskodawcy'!$R$56,\" \",'II. Identyfikacja Wnioskodawcy'!$G$59,IF('II. Identyfikacja Wnioskodawcy'!$M$59=\"n/d\",\" \",\"/\"),IF('II. Identyfikacja Wnioskodawcy'!$M$59=\"n/d\",\" \",'II. Identyfikacja Wnioskodawcy'!$M$59)),'II. Identyfikacja Wnioskodawcy'!$R$56)","v":0},{"$f":"CONCATENATE('II. Identyfikacja Wnioskodawcy'!$W$56,\" \",'II. Identyfikacja Wnioskodawcy'!$AB$56)","v":" "},{"$f":"IF('II. Identyfikacja Wnioskodawcy'!$Z$93=\"nie\",$Z$5,CONCATENATE(\"ul. \",'II. Identyfikacja Wnioskodawcy'!$A$100,\" \",'II. Identyfikacja Wnioskodawcy'!$G$100,IF('II. Identyfikacja Wnioskodawcy'!$M$100=\"n/d\",\" \",\"/\"),IF('II. Identyfikacja Wnioskodawcy'!$M$100=\"n/d\",\" \",'II. Identyfikacja Wnioskodawcy'!$M$100)))","v":"ul.    / "},{"$f":"IF('II. Identyfikacja Wnioskodawcy'!$Z$93=\"nie\",$AA$5,'II. Identyfikacja Wnioskodawcy'!$R$97)","v":" "},{"$f":"IF('II. Identyfikacja Wnioskodawcy'!$Z$93=\"nie\",$AB$5,CONCATENATE('II. Identyfikacja Wnioskodawcy'!$W$97,\" \",'II. Identyfikacja Wnioskodawcy'!$AB$97))","v":"   "},{"$f":"'I. Informacje o projekcie'!Z17","v":0},{"$f":"'I. Informacje o projekcie'!$Z$18","v":"00:00:00"},{"$f":"'I. Informacje o projekcie'!$Z$19","v":"00:00:00"},{"$f":"'II. Identyfikacja Wnioskodawcy'!$P$15","v":0},{"$f":"'V. Aspekty Finansowe'!$AC$8","v":0},{"$f":"'V. Aspekty Finansowe'!$N$7+IF('V. Aspekty Finansowe'!AC8=\"tak\",'V. Aspekty Finansowe'!M9,0)","v":0},{"$f":"'V. Aspekty Finansowe'!$B$6","v":0},{"$f":"'V. Aspekty Finansowe'!$X$6","v":0},{"$f":"'V. Aspekty Finansowe'!$AC$7","v":0},{"$f":"'V. Aspekty Finansowe'!AC46","v":"nie dotyczy"},{"$f":"'V. Aspekty Finansowe'!AC40","v":0},{"$f":"'I. Informacje o projekcie'!K133","v":" "},{"$f":"'I. Informacje o projekcie'!K132","v":" "},null,{"$f":"'VIII. Wskaźniki produktu'!F37","v":0},{"$f":"'VIII. Wskaźniki rezultatu'!$D$7","v":0},{"$f":"'VIII. Wskaźniki rezultatu'!$AK$7","v":0},{"$f":"'VIII. Wskaźniki rezultatu'!$E$10","v":0},{"$f":"'VIII. Wskaźniki rezultatu'!$AL$10","v":0},{"$f":"'VIII. Wskaźniki rezultatu'!E21","v":0},{"$f":"'VIII. Wskaźniki rezultatu'!AL21","v":0},{"$f":"'VIII. Wskaźniki rezultatu'!E24","v":0},{"$f":"'VIII. Wskaźniki rezultatu'!AL24","v":0},{"$f":"'VIII. Wskaźniki rezultatu'!E27","v":0},{"$f":"'VIII. Wskaźniki rezultatu'!AL27","v":0},{"$f":"'II. Identyfikacja Wnioskodawcy'!$AB$59","v":0},{"$f":"'II. Identyfikacja Wnioskodawcy'!$B$67","v":0},{"$f":"'II. Identyfikacja Wnioskodawcy'!$N$67","v":0},null,{"$f":"'II. Identyfikacja Wnioskodawcy'!$B$71","v":"Nie dotyczy"},{"$f":"'II. Identyfikacja Wnioskodawcy'!$N$71","v":"Nie dotyczy"},null,{"$f":"'II. Identyfikacja Wnioskodawcy'!$B$75","v":"Nie dotyczy"},{"$f":"'II. Identyfikacja Wnioskodawcy'!$N$75","v":"Nie dotyczy"},null,{"$f":"'II. Identyfikacja Wnioskodawcy'!$B$82","v":0},{"$f":"'II. Identyfikacja Wnioskodawcy'!$N$82","v":0},{"$f":"'II. Identyfikacja Wnioskodawcy'!$N$84","v":0},null,{"$f":"'II. Identyfikacja Wnioskodawcy'!$Z$82","v":0},{"$f":"'II. Identyfikacja Wnioskodawcy'!$B$86","v":"Nie dotyczy"},{"$f":"'II. Identyfikacja Wnioskodawcy'!$N$86","v":"Nie dotyczy"},{"$f":"'II. Identyfikacja Wnioskodawcy'!$N$88","v":"Nie dotyczy"},null,{"$f":"'II. Identyfikacja Wnioskodawcy'!$Z$86","v":"Nie dotyczy"},{"$f":"'II. Identyfikacja Wnioskodawcy'!$B$90","v":"Nie dotyczy"},{"$f":"'II. Identyfikacja Wnioskodawcy'!$N$90","v":"Nie dotyczy"},{"$f":"'II. Identyfikacja Wnioskodawcy'!$N$92","v":"Nie dotyczy"},null,{"$f":"'II. Identyfikacja Wnioskodawcy'!$Z$90","v":"Nie dotyczy"}]

{"sheet":"VIII. Wskaźniki produktu","index":11,"n_rows":126,"n_cols":24,"rows_kept":126,"cut":false,"hidden":false,"merged":[[44,9,46,9],[19,7,21,7],[22,7,24,7],[19,8,21,8],[44,7,46,7],[7,7,9,7],[7,8,9,8],[7,9,9,9],[13,9,15,9],[10,7,12,7],[16,7,18,7],[36,7,38,7],[36,8,38,8],[36,9,38,9],[13,7,15,7],[13,8,15,8],[33,9,35,9],[33,7,35,7],[30,7,32,7],[30,9,32,9],[25,9,29,9],[25,7,29,7],[25,8,29,8],[19,9,21,9],[4,9,6,9],[10,8,12,8],[10,9,12,9],[4,7,6,7],[4,8,6,8],[12,1,12,5],[8,1,8,5],[9,1,9,5],[14,1,14,5],[15,1,15,5],[16,9,18,9],[22,8,24,8],[22,9,24,9],[0,0,0,5],[0,7,2,9],[3,4,3,5],[17,1,17,5],[6,1,6,5],[5,1,5,5],[11,1,11,5],[18,1,18,5],[30,8,32,8],[16,8,18,8],[44,8,46,8],[44,4,44,5],[32,1,32,5],[23,1,23,5],[24,1,24,5],[28,1,28,5],[31,1,31,5],[42,4,42,5],[39,0,39,5],[34,1,34,5],[35,1,35,5],[40,3,40,5],[20,1,20,5],[21,1,21,5],[29,1,29,5],[33,8,35,8],[37,1,37,5],[38,1,38,5],[45,1,45,5],[46,1,46,5],[40,0,40,1],[41,0,41,5],[62,9,64,9],[63,1,63,5],[64,1,64,5],[62,4,62,5],[56,8,58,8],[56,9,58,9],[57,1,57,5],[58,1,58,5],[59,7,61,7],[59,8,61,8],[59,9,61,9],[60,1,60,5],[61,1,61,5],[59,4,59,5],[56,7,58,7],[56,4,56,5],[62,7,64,7],[62,8,64,8],[62,10,64,10],[4,10,6,10],[10,10,12,10],[16,10,18,10],[19,10,21,10],[22,10,24,10],[25,10,29,10],[30,10,32,10],[33,10,35,10],[44,10,46,10],[47,10,49,10],[50,10,52,10],[53,10,55,10],[56,10,58,10],[59,10,61,10],[7,10,9,10],[13,10,15,10],[36,10,38,10],[50,9,52,9],[51,1,51,5],[52,1,52,5],[53,7,55,7],[53,8,55,8],[53,9,55,9],[54,1,54,5],[55,1,55,5],[48,1,48,5],[47,6,49,6],[49,1,49,5],[50,8,52,8],[47,4,47,5],[50,4,50,5],[53,4,53,5],[50,7,52,7],[47,9,49,9],[47,8,49,8],[47,7,49,7]]}
["VIII. WSKAŹNIKI REALIZACJI PROJEKTU",null,null,null,null,null,null,"Uwagi/komentarze Ekspertów"]
[]
[null,"Wskaźniki produktu"]
[null,"Nazwa wskaźnika ","Jednostka miary","Wartość bazowa","Wartość docelowa",null,null,{"$f":"'I. Informacje o projekcie'!$AH$2","v":"Ekspert od innowacyjności 1"},{"$f":"'I. Informacje o projekcie'!$AI$2","v":"Ekspert od innowacyjności 2"},{"$f":"'I. Informacje o projekcie'!$AJ$2","v":"Ekspert finansowy"},{"$f":"'I. Informacje o projekcie'!$AK$2","v":"Uwagi MFiPR"}]
[null,"Liczba przedsiębiorstw otrzymujących wsparcie (CI 1)","Szt. ",0,"223."]
["224.","Uzasadnienie dla doboru wskaźnika produktu, sposób obliczania oraz uzasadnienie wartości docelowej:"]
[]
[null,"Liczba przedsiębiorstw otrzymujących dotacje (CI 2)","Szt. ",0,"225."]
["226.","Uzasadnienie dla doboru wskaźnika produktu, sposób obliczania oraz uzasadnienie wartości docelowej:"]
[]
[null,"Liczba przedsiębiorstw otrzymujących dotacje w związku z pandemią COVID-19","Szt. ",0,"227."]
["228.","Uzasadnienie dla doboru wskaźnika produktu, sposób obliczania oraz uzasadnienie wartości docelowej:"]
[]
[null,"Wartość wydatków kwalifikowalnych przeznaczonych na działania związane z pandemią COVID-19.","Szt. ",0,"229.",{"$f":"'V. Aspekty Finansowe'!U13","v":0}]
["230.","Uzasadnienie dla doboru wskaźnika produktu, sposób obliczania oraz uzasadnienie wartości docelowej:"]
[]
[null,"Liczba wspartych labolatoriów badawczych","Szt. ",0,"231."]
["232.","Uzasadnienie dla doboru wskaźnika produktu, sposób obliczania oraz uzasadnienie wartości docelowej:"]
[]
[null,"Liczba przedsiębiorstw ponoszących nakłady inwestycyjne na działalność B+R","Szt. ",0,"233."]
["234.","Uzasadnienie dla doboru wskaźnika produktu, sposób obliczania oraz uzasadnienie wartości docelowej:"]
[]
[null,"Inwestycje prywatne uzupełniające wsparcie publiczne dla przedsiębiorstw (dotacje)","PLN",0,"235.",{"$f":"'V. Aspekty Finansowe'!$U$11-'V. Aspekty Finansowe'!$U$15","v":0}]
["236.","Uzasadnienie dla doboru wskaźnika produktu, sposób obliczania oraz uzasadnienie wartości docelowej:"]
[]
[null,"Nakłady inwestycyjne na zakup aparatury naukowo-badawczej, w tym:","PLN",{"$f":"SUM(D27:D28)","v":0},"237.",{"$f":"SUM(F27:F28)","v":0}]
[null,"środki trwałe","PLN",0,"238."]
[null,"wartości niematerialne i prawne","PLN",0,"239."]
["240.","Uzasadnienie dla doboru wskaźnika produktu, sposób obliczania oraz uzasadnienie wartości docelowej:"]
[]
[null,"Liczba zakupionych środków trwałych","Szt. ",0,"241."]
["242.","Uzasadnienie dla doboru wskaźnika produktu, sposób obliczania oraz uzasadnienie wartości docelowej:"]
[]
[null,"Liczba zakupionych wartości niematerialnych i prawnych","Szt. ",0,"243."]
["244.","Uzasadnienie dla doboru wskaźnika produktu, sposób obliczania oraz uzasadnienie wartości docelowej:"]
[]
[null,"Wartość dotacji na B+R w obszarze tworzenia leków i szczepionek przeciw COVID-19","PLN",0,"245."]
["246.","Uzasadnienie dla doboru wskaźnika produktu, sposób obliczania oraz uzasadnienie wartości docelowej:"]
[]
[]
["Czy chcesz dodać inne wskaźniki produktu?",null,"247."]
["Inne wskaźniki produktu"]
[null,"Nazwa wskaźnika ","Jednostka miary","Wartość bazowa","Wartość docelowa"]
["248.",null,"249.","250.","251."]
[null,{"$f":"IF($D$41=\"tak\",\"Uzupełnij nazwę wskaźnika\",\"Nie dotyczy\")","v":"Nie dotyczy"},{"$f":"IF(B$45=\"nie dotyczy\",\"Nie dotyczy  \",\"Uzupełnij jednostkę miary\")","v":"Nie dotyczy  "},{"$f":"IF($B45=\"nie dotyczy\",\"Nie dotyczy \",\"Uzupełnij wartość bazową\")","v":"Nie dotyczy "},{"$f":"IF($B45=\"nie dotyczy\",\"Nie dotyczy \",\"Uzupełnij wartość docelową\")","v":"Nie dotyczy "}]
[null,"Uzasadnienie dla doboru wskaźnika produktu, sposób obliczania oraz uzasadnienie wartości docelowej:"]
[null,{"$f":"IF($B45=\"nie dotyczy\",\"Nie dotyczy\",\"Uzupełnij uzasadnienie\")","v":"Nie dotyczy"},{"$f":"IF($B$45<>0,\"  \",\"Nie dotyczy\")","v":"  "},{"$f":"IF($B$45<>0,\"  \",\"Nie dotyczy\")","v":"  "},{"$f":"IF($B$45<>0,\"  \",\"Nie dotyczy\")","v":"  "},{"$f":"IF($B$45<>0,\"  \",\"Nie dotyczy\")","v":"  "}]
[null,{"$f":"IF($D$41=\"tak\",\"Uzupełnij nazwę wskaźnika\",\"Nie dotyczy\")","v":"Nie dotyczy"},{"$f":"IF(B48=\"nie dotyczy\",\"Nie dotyczy  \",\"Uzupełnij jednostkę miary\")","v":"Nie dotyczy  "},{"$f":"IF($B48=\"nie dotyczy\",\"Nie dotyczy \",\"Uzupełnij wartość bazową\")","v":"Nie dotyczy "},{"$f":"IF($B48=\"nie dotyczy\",\"Nie dotyczy \",\"Uzupełnij wartość docelową\")","v":"Nie dotyczy "}]
[null,"Uzasadnienie dla doboru wskaźnika produktu, sposób obliczania oraz uzasadnienie wartości docelowej:"]
[null,{"$f":"IF($B48=\"nie dotyczy\",\"Nie dotyczy\",\"Uzupełnij uzasadnienie\")","v":"Nie dotyczy"},{"$f":"IF($B$45<>0,\"  \",\"Nie dotyczy\")","v":"  "},{"$f":"IF($B$45<>0,\"  \",\"Nie dotyczy\")","v":"  "},{"$f":"IF($B$45<>0,\"  \",\"Nie dotyczy\")","v":"  "},{"$f":"IF($B$45<>0,\"  \",\"Nie dotyczy\")","v":"  "}]
[null,{"$f":"IF($D$41=\"tak\",\"Uzupełnij nazwę wskaźnika\",\"Nie dotyczy\")","v":"Nie dotyczy"},{"$f":"IF(B$45=\"nie dotyczy\",\"Nie dotyczy  \",\"Uzupełnij jednostkę miary\")","v":"Nie dotyczy  "},{"$f":"IF($B51=\"nie dotyczy\",\"Nie dotyczy \",\"Uzupełnij wartość bazową\")","v":"Nie dotyczy "},{"$f":"IF($B51=\"nie dotyczy\",\"Nie dotyczy \",\"Uzupełnij wartość docelową\")","v":"Nie dotyczy "}]
[null,"Uzasadnienie dla doboru wskaźnika produktu, sposób obliczania oraz uzasadnienie wartości docelowej:"]
[null,{"$f":"IF($B51=\"nie dotyczy\",\"Nie dotyczy\",\"Uzupełnij uzasadnienie\")","v":"Nie dotyczy"},{"$f":"IF($B$45<>0,\"  \",\"Nie dotyczy\")","v":"  "},{"$f":"IF($B$45<>0,\"  \",\"Nie dotyczy\")","v":"  "},{"$f":"IF($B$45<>0,\"  \",\"Nie dotyczy\")","v":"  "},{"$f":"IF($B$45<>0,\"  \",\"Nie dotyczy\")","v":"  "}]
[null,{"$f":"IF($D$41=\"tak\",\"Uzupełnij nazwę wskaźnika\",\"Nie dotyczy\")","v":"Nie dotyczy"},{"$f":"IF(B$45=\"nie dotyczy\",\"Nie dotyczy  \",\"Uzupełnij jednostkę miary\")","v":"Nie dotyczy  "},{"$f":"IF($B54=\"nie dotyczy\",\"Nie dotyczy \",\"Uzupełnij wartość bazową\")","v":"Nie dotyczy "},{"$f":"IF($B54=\"nie dotyczy\",\"Nie dotyczy \",\"Uzupełnij wartość docelową\")","v":"Nie dotyczy "}]
[null,"Uzasadnienie dla doboru wskaźnika produktu, sposób obliczania oraz uzasadnienie wartości docelowej:"]
[null,{"$f":"IF($B54=\"nie dotyczy\",\"Nie dotyczy\",\"Uzupełnij uzasadnienie\")","v":"Nie dotyczy"},{"$f":"IF($B$45<>0,\"  \",\"Nie dotyczy\")","v":"  "},{"$f":"IF($B$45<>0,\"  \",\"Nie dotyczy\")","v":"  "},{"$f":"IF($B$45<>0,\"  \",\"Nie dotyczy\")","v":"  "},{"$f":"IF($B$45<>0,\"  \",\"Nie dotyczy\")","v":"  "}]
[null,{"$f":"IF($D$41=\"tak\",\"Uzupełnij nazwę wskaźnika\",\"Nie dotyczy\")","v":"Nie dotyczy"},{"$f":"IF(B$45=\"nie dotyczy\",\"Nie dotyczy  \",\"Uzupełnij jednostkę miary\")","v":"Nie dotyczy  "},{"$f":"IF($B57=\"nie dotyczy\",\"Nie dotyczy \",\"Uzupełnij wartość bazową\")","v":"Nie dotyczy "},{"$f":"IF($B57=\"nie dotyczy\",\"Nie dotyczy \",\"Uzupełnij wartość docelową\")","v":"Nie dotyczy "}]
[null,"Uzasadnienie dla doboru wskaźnika produktu, sposób obliczania oraz uzasadnienie wartości docelowej:"]
[null,{"$f":"IF($B57=\"nie dotyczy\",\"Nie dotyczy\",\"Uzupełnij uzasadnienie\")","v":"Nie dotyczy"},{"$f":"IF($B$45<>0,\"  \",\"Nie dotyczy\")","v":"  "},{"$f":"IF($B$45<>0,\"  \",\"Nie dotyczy\")","v":"  "},{"$f":"IF($B$45<>0,\"  \",\"Nie dotyczy\")","v":"  "},{"$f":"IF($B$45<>0,\"  \",\"Nie dotyczy\")","v":"  "}]
[null,{"$f":"IF($D$41=\"tak\",\"Uzupełnij nazwę wskaźnika\",\"Nie dotyczy\")","v":"Nie dotyczy"},{"$f":"IF(B$45=\"nie dotyczy\",\"Nie dotyczy  \",\"Uzupełnij jednostkę miary\")","v":"Nie dotyczy  "},{"$f":"IF($B60=\"nie dotyczy\",\"Nie dotyczy \",\"Uzupełnij wartość bazową\")","v":"Nie dotyczy "},{"$f":"IF($B60=\"nie dotyczy\",\"Nie dotyczy \",\"Uzupełnij wartość docelową\")","v":"Nie dotyczy "}]
[null,"Uzasadnienie dla doboru wskaźnika produktu, sposób obliczania oraz uzasadnienie wartości docelowej:"]
[null,{"$f":"IF($B60=\"nie dotyczy\",\"Nie dotyczy\",\"Uzupełnij uzasadnienie\")","v":"Nie dotyczy"},{"$f":"IF($B$45<>0,\"  \",\"Nie dotyczy\")","v":"  "},{"$f":"IF($B$45<>0,\"  \",\"Nie dotyczy\")","v":"  "},{"$f":"IF($B$45<>0,\"  \",\"Nie dotyczy\")","v":"  "},{"$f":"IF($B$45<>0,\"  \",\"Nie dotyczy\")","v":"  "}]
[null,{"$f":"IF($D$41=\"tak\",\"Uzupełnij nazwę wskaźnika\",\"Nie dotyczy\")","v":"Nie dotyczy"},{"$f":"IF(B$45=\"nie dotyczy\",\"Nie dotyczy  \",\"Uzupełnij jednostkę miary\")","v":"Nie dotyczy  "},{"$f":"IF($B63=\"nie dotyczy\",\"Nie dotyczy \",\"Uzupełnij wartość bazową\")","v":"Nie dotyczy "},{"$f":"IF($B63=\"nie dotyczy\",\"Nie dotyczy \",\"Uzupełnij wartość docelową\")","v":"Nie dotyczy "}]
[null,"Uzasadnienie dla doboru wskaźnika produktu, sposób obliczania oraz uzasadnienie wartości docelowej:"]
[null,{"$f":"IF($B63=\"nie dotyczy\",\"Nie dotyczy\",\"Uzupełnij uzasadnienie\")","v":"Nie dotyczy"},{"$f":"IF($B$45<>0,\"  \",\"Nie dotyczy\")","v":"  "},{"$f":"IF($B$45<>0,\"  \",\"Nie dotyczy\")","v":"  "},{"$f":"IF($B$45<>0,\"  \",\"Nie dotyczy\")","v":"  "},{"$f":"IF($B$45<>0,\"  \",\"Nie dotyczy\")","v":"  "}]
[]
[]
[]
[]
[]
[]
[]
[]
[]
[]
[]
[]
[]
[]
[]
[]
[]
[]
[]
[]
[]
[]
[]
[]
[]
[]
[]
[]
[]
[]
[]
[]
[]
[]
[]
[]
[]
[]
[]
[]
[]
[]
[]
[]
[]
[]
[]
[]
[]
[]
[]
[]
[]
[]
[]
[]
[]
[]
[]
[]
[null,null,null,null,null,null,null,null,null,null,null,null,null,null,null,null,null,null,null,null,null,null,null,2]

{"sheet":"VIII. Wskaźniki rezultatu","index":12,"n_rows":85,"n_cols":45,"rows_kept":85,"cut":false,"hidden":false,"merged":[[29,40,31,40],[32,40,34,40],[29,41,31,41],[29,42,31,42],[29,43,31,43],[35,41,37,41],[35,42,37,42],[32,41,34,41],[32,42,34,42],[32,43,34,43],[35,43,37,43],[35,40,37,40],[67,21,67,23],[67,9,67,11],[67,12,67,14],[66,2,66,38],[61,41,63,41],[61,42,63,42],[67,15,67,17],[67,24,67,26],[67,27,67,29],[67,40,69,40],[64,39,66,39],[67,39,69,39],[68,0,68,38],[69,2,69,38],[67,30,67,32],[67,33,67,35],[67,18,67,20],[67,0,67,1],[67,6,67,8],[64,21,64,23],[67,4,67,5],[67,37,67,38],[64,12,64,14],[64,15,64,17],[38,43,40,43],[41,41,43,41],[41,42,43,42],[42,0,42,38],[41,33,41,35],[41,6,41,8],[41,40,43,40],[41,9,41,11],[38,41,40,41],[38,42,40,42],[38,21,38,23],[39,0,39,38],[38,24,38,26],[38,27,38,29],[38,30,38,32],[43,2,43,38],[38,18,38,20],[41,0,41,1],[41,43,43,43],[64,37,64,38],[59,0,59,38],[64,30,64,32],[64,33,64,35],[64,40,66,40],[63,0,63,38],[64,6,64,8],[64,24,64,26],[64,27,64,29],[64,18,64,20],[65,0,65,38],[64,0,64,1],[61,0,61,38],[64,4,64,5],[58,40,60,40],[58,21,58,23],[58,0,58,1],[58,27,58,29],[58,4,58,5],[58,6,58,8],[64,9,64,11],[62,0,62,8],[62,10,62,38],[60,2,60,38],[44,43,46,43],[47,43,49,43],[67,41,69,41],[67,42,69,42],[47,41,49,41],[47,42,49,42],[44,41,46,41],[44,42,46,42],[55,41,57,41],[55,42,57,42],[64,41,66,41],[64,42,66,42],[55,43,57,43],[58,41,60,41],[58,42,60,42],[58,43,60,43],[61,43,63,43],[67,43,69,43],[64,43,66,43],[90,41,92,41],[90,42,92,42],[90,43,92,43],[85,41,86,41],[85,42,86,42],[85,43,86,43],[87,41,89,41],[87,42,89,42],[87,43,89,43],[16,0,16,38],[15,41,17,41],[15,42,17,42],[15,43,17,43],[15,40,17,40],[15,0,15,1],[20,43,22,43],[23,41,25,41],[23,42,25,42],[23,43,25,43],[20,41,22,41],[20,42,22,42],[12,24,12,26],[12,12,12,14],[12,27,12,29],[12,30,12,32],[15,21,15,23],[14,2,14,38],[15,12,15,14],[5,42,8,42],[6,33,6,35],[6,3,6,5],[5,41,8,41],[5,36,5,38],[6,15,6,17],[6,18,6,20],[9,41,11,41],[12,37,12,38],[9,6,9,8],[5,12,5,14],[6,21,6,23],[6,24,6,26],[6,27,6,29],[7,0,7,38],[8,2,8,38],[6,30,6,32],[5,43,8,43],[5,40,8,40],[9,9,9,11],[12,4,12,5],[15,27,15,29],[18,0,18,38],[19,41,19,43],[9,42,11,42],[9,43,11,43],[13,0,13,38],[10,0,10,38],[12,42,14,42],[12,43,14,43],[12,41,14,41],[12,0,12,1],[9,12,9,14],[9,15,9,17],[9,33,9,35],[12,40,14,40],[9,0,9,1],[12,15,12,17],[12,18,12,20],[15,37,15,38],[15,9,15,11],[32,24,32,26],[32,30,32,32],[32,12,32,14],[47,40,50,40],[51,40,54,40],[51,27,52,29],[35,33,35,35],[38,4,38,5],[38,6,38,8],[38,15,38,17],[35,6,35,8],[35,4,35,5],[44,40,46,40],[45,0,45,38],[46,2,46,38],[38,0,38,1],[38,33,38,35],[38,9,38,11],[38,12,38,14],[51,30,52,32],[41,24,41,26],[41,27,41,29],[41,18,41,20],[44,33,44,35],[32,9,32,11],[32,18,32,20],[32,21,32,23],[29,15,29,17],[29,24,29,26],[29,9,29,11],[29,12,29,14],[29,6,29,8],[35,15,35,17],[35,24,35,26],[33,0,33,38],[29,27,29,29],[29,18,29,20],[29,21,29,23],[29,30,29,32],[29,33,29,35],[34,2,34,38],[32,33,32,35],[32,0,32,1],[35,0,35,1],[32,37,32,38],[32,27,32,29],[32,4,32,5],[32,6,32,8],[44,21,44,23],[44,24,44,26],[44,27,44,29],[44,30,44,32],[44,18,44,20],[47,9,48,11],[35,27,35,29],[35,9,35,11],[35,12,35,14],[35,30,35,32],[37,2,37,38],[38,37,38,38],[47,24,48,26],[40,2,40,38],[36,0,36,38],[57,2,57,38],[58,30,58,32],[51,2,52,2],[51,3,52,3],[50,2,50,38],[44,4,44,5],[44,6,44,8],[44,37,44,38],[49,0,49,38],[47,30,48,32],[47,18,48,20],[47,4,48,5],[47,15,48,17],[47,3,48,3],[47,12,48,14],[44,0,44,1],[47,21,48,23],[44,9,44,11],[47,6,48,8],[47,27,48,29],[47,2,48,2],[47,36,48,36],[47,37,48,38],[48,0,48,1],[55,24,55,26],[55,9,55,11],[55,12,55,14],[51,9,52,11],[51,4,52,5],[51,6,52,8],[53,0,53,38],[55,30,55,32],[55,33,55,35],[58,33,58,35],[58,37,58,38],[51,12,52,14],[51,15,52,17],[51,18,52,20],[55,15,55,17],[55,4,55,5],[58,9,58,11],[58,12,58,14],[58,15,58,17],[58,18,58,20],[55,18,55,20],[56,0,56,38],[55,27,55,29],[58,24,58,26],[54,2,54,38],[51,36,52,36],[51,37,52,38],[51,33,52,35],[51,21,52,23],[51,24,52,26],[55,37,55,38],[55,0,55,1],[55,6,55,8],[1,0,1,38],[2,41,3,41],[23,0,23,1],[23,18,23,20],[23,21,23,23],[23,33,23,35],[23,15,23,17],[23,24,23,26],[23,37,23,38],[20,18,20,20],[20,30,20,32],[20,33,20,35],[20,24,20,26],[20,27,20,29],[23,4,23,5],[20,6,20,8],[23,6,23,8],[19,0,19,38],[12,21,12,23],[12,33,12,35],[12,9,12,11],[15,30,15,32],[15,33,15,35],[12,6,12,8],[0,41,1,43],[9,18,9,20],[9,21,9,23],[9,24,9,26],[9,27,9,29],[9,30,9,32],[4,0,4,38],[6,9,6,11],[6,12,6,14],[2,21,2,23],[2,24,2,26],[2,27,2,29],[2,30,2,32],[2,33,2,35],[2,36,3,38],[2,3,3,5],[2,9,2,11],[2,12,2,14],[9,40,11,40],[5,9,5,11],[11,2,11,38],[0,0,0,38],[2,0,3,1],[2,6,2,8],[55,40,57,40],[35,18,35,20],[35,21,35,23],[35,37,35,38],[38,40,40,40],[29,37,29,38],[20,40,22,40],[20,9,20,11],[20,12,20,14],[20,15,20,17],[23,40,25,40],[23,9,23,11],[23,12,23,14],[25,2,25,38],[47,33,48,35],[41,4,41,5],[32,15,32,17],[44,12,44,14],[44,15,44,17],[41,37,41,38],[41,30,41,32],[41,15,41,17],[41,21,41,23],[55,21,55,23],[31,2,31,38],[29,4,29,5],[29,0,29,1],[30,0,30,38],[26,27,26,29],[26,30,26,32],[26,33,26,35],[26,37,26,38],[2,42,3,42],[3,9,3,11],[3,12,3,14],[3,15,3,17],[3,18,3,20],[3,21,3,23],[3,24,3,26],[3,27,3,29],[3,30,3,32],[3,33,3,35],[15,6,15,8],[17,2,17,38],[15,18,15,20],[15,15,15,17],[15,24,15,26],[15,4,15,5],[5,21,5,23],[5,2,6,2],[5,30,5,32],[6,36,6,38],[5,33,5,35],[5,27,5,29],[5,15,5,17],[5,18,5,20],[6,6,6,8],[5,24,5,26],[5,0,6,1],[50,41,54,41],[50,42,54,42],[50,43,54,43],[2,40,3,40],[23,27,23,29],[24,0,24,38],[23,30,23,32],[20,21,20,23],[21,0,21,38],[20,0,20,1],[20,4,20,5],[20,37,20,38],[22,2,22,38],[51,0,51,1],[52,0,52,1],[47,0,47,1],[41,12,41,14],[2,43,3,43],[9,37,9,38],[9,4,9,5],[2,15,2,17],[2,18,2,20],[3,6,3,8],[2,2,3,2],[82,27,82,29],[82,30,82,32],[82,33,82,35],[82,37,82,38],[82,39,84,39],[82,40,84,40],[82,41,84,41],[82,42,84,42],[79,30,79,32],[79,33,79,35],[79,37,79,38],[79,39,81,39],[79,40,81,40],[79,41,81,41],[79,42,81,42],[73,30,73,32],[73,33,73,35],[73,37,73,38],[73,39,75,39],[73,40,75,40],[73,41,75,41],[73,42,75,42],[26,40,28,40],[82,43,84,43],[83,0,83,38],[84,2,84,38],[82,0,82,1],[82,4,82,5],[82,6,82,8],[82,9,82,11],[82,12,82,14],[82,15,82,17],[82,18,82,20],[82,21,82,23],[82,24,82,26],[79,0,79,1],[79,4,79,5],[79,6,79,8],[79,9,79,11],[79,12,79,14],[79,15,79,17],[79,18,79,20],[79,21,79,23],[79,24,79,26],[79,43,81,43],[80,0,80,38],[81,2,81,38],[76,0,76,1],[76,4,76,5],[76,6,76,8],[76,9,76,11],[76,12,76,14],[76,15,76,17],[76,18,76,20],[76,21,76,23],[76,24,76,26],[76,27,76,29],[76,30,76,32],[76,33,76,35],[76,37,76,38],[76,39,78,39],[76,40,78,40],[76,41,78,41],[76,42,78,42],[76,43,78,43],[77,0,77,38],[78,2,78,38],[79,27,79,29],[73,0,73,1],[73,4,73,5],[73,6,73,8],[73,9,73,11],[73,12,73,14],[73,15,73,17],[73,18,73,20],[73,21,73,23],[73,24,73,26],[73,43,75,43],[74,0,74,38],[75,2,75,38],[70,0,70,1],[70,4,70,5],[70,6,70,8],[70,9,70,11],[70,12,70,14],[70,15,70,17],[70,18,70,20],[70,21,70,23],[70,24,70,26],[70,27,70,29],[70,30,70,32],[70,33,70,35],[70,37,70,38],[70,39,72,39],[70,40,72,40],[70,41,72,41],[70,42,72,42],[70,43,72,43],[71,0,71,38],[72,2,72,38],[73,27,73,29],[20,44,22,44],[23,44,25,44],[29,44,31,44],[26,44,28,44],[2,44,3,44],[5,44,8,44],[9,44,11,44],[12,44,14,44],[15,44,17,44],[32,44,34,44],[35,44,37,44],[38,44,40,44],[41,44,43,44],[44,44,46,44],[47,44,49,44],[50,44,54,44],[55,44,57,44],[58,44,60,44],[87,44,89,44],[90,44,92,44],[61,44,63,44],[64,44,66,44],[67,44,69,44],[70,44,72,44],[73,44,75,44],[76,44,78,44],[79,44,81,44],[82,44,84,44],[85,44,86,44],[26,41,28,41],[26,42,28,42],[26,43,28,43],[27,0,27,38],[28,2,28,38],[26,0,26,1],[26,4,26,5],[26,6,26,8],[26,9,26,11],[26,12,26,14],[26,15,26,17],[26,18,26,20],[26,21,26,23],[26,24,26,26]]}
["Wskaźniki rezultatu",null,null,null,null,null,null,null,null,null,null,null,null,null,null,null,null,null,null,null,null,null,null,null,null,null,null,null,null,null,null,null,null,null,null,null,null,null,null,null,null,"Uwagi/komentarze Ekspertów"]
["Wskaźniki należy wykazywać w wartości bazowej, w latach realizacji projektu i w latach trwałości oraz wartości docelowej!\nWskaźniki rezultatu, wyliczane są w sposób narastający!"]
["Nazwa wskaźnika",null,"Jednostka miary","Wartość bazowa",null,null,"n-4",null,null,"n-3",null,null,"n-2",null,null,"n-1",null,null,"w roku zakończenia projektu (n)",null,null,"rok po zakończeniu projektu (n+1)",null,null,"2 lata po zakończeniu projektu (n+2)",null,null,"3 lata po zakończeniu projektu (n+3)",null,null,"4 lata po zakończeniu projektu (n+4)",null,null,"5 lat po zakończeniu projektu (n+5)",null,null,"Wartość docelowa",null,null,null,"Uwagi dodatkowe",{"$f":"'I. Informacje o projekcie'!$AH$2","v":"Ekspert od innowacyjności 1"},{"$f":"'I. Informacje o projekcie'!$AI$2","v":"Ekspert od innowacyjności 2"},{"$f":"'I. Informacje o projekcie'!$AJ$2","v":"Ekspert finansowy"},{"$f":"'I. Informacje o projekcie'!$AK$2","v":"Uwagi MFiPR"}]
[null,null,null,null,null,null,{"$f":"IF($S$4-4<2019,\"Nie dotyczy\",$S$4-4)","v":"Nie dotyczy"},null,null,{"$f":"IF($S$4-3<2019,\"Nie dotyczy\",$S$4-3)","v":"Nie dotyczy"},null,null,{"$f":"IF($S$4-2<2019,\"Nie dotyczy\",$S$4-2)","v":"Nie dotyczy"},null,null,{"$f":"IF($S$4-1<2019,\"Nie dotyczy\",$S$4-1)","v":"Nie dotyczy"},null,null,{"$f":"'I. Informacje o projekcie'!Z20","v":0},null,null,{"$f":"S4+1","v":1},null,null,{"$f":"S4+2","v":2},null,null,{"$f":"S4+3","v":3},null,null,{"$f":"IF('II. Identyfikacja Wnioskodawcy'!$P$50<>Słowniki!$K$19,\"Nie dotyczy\",S4+4)","v":"Nie dotyczy"},null,null,{"$f":"IF('II. Identyfikacja Wnioskodawcy'!$P$50<>Słowniki!$K$19,\"Nie dotyczy\",S4+5)","v":"Nie dotyczy"},null,null,null,null,null,null,null,{"$f":"'I. Informacje o projekcie'!$AH$2","v":"Ekspert od innowacyjności 1"},{"$f":"'I. Informacje o projekcie'!$AI$2","v":"Ekspert od innowacyjności 2"},{"$f":"'I. Informacje o projekcie'!$AJ$2","v":"Ekspert finansowy"},{"$f":"'I. Informacje o projekcie'!$AJ$2","v":"Ekspert finansowy"}]
["Wskaźniki obligatoryjne dla każdego wnioskodawcy"]
["Wzrost zatrudnienia we wspieranych przedsiębiorstwach",null,"EPC","252.\n",null,null,null,null,null,null,null,null,null,null,null,null,null,null,null,null,null,null,null,null,null,null,null,null,null,null,null,null,null,null,null,null,"253."]
[null,null,null,{"$f":"E7+F7","v":0},null,null,{"$f":"IF(G$4=\"Nie dotyczy\",0,\" \")","v":0},null,null,{"$f":"IF(J$4=\"Nie dotyczy\",0,\" \")","v":0},null,null,{"$f":"IF(M$4=\"Nie dotyczy\",0,\" \")","v":0},null,null,{"$f":"IF(P$4=\"Nie dotyczy\",0,\" \")","v":0},null,null,{"$f":"IF(S$4=\"Nie dotyczy\",0,\" \")","v":" "},null,null,{"$f":"IF(V$4=\"Nie dotyczy\",0,\" \")","v":" "},null,null,{"$f":"IF(Y$4=\"Nie dotyczy\",0,\" \")","v":" "},null,null,{"$f":"IF(AB$4=\"Nie dotyczy\",0,\" \")","v":" "},null,null,{"$f":"IF(AE$4=\"Nie dotyczy\",0,\" \")","v":0},null,null,{"$f":"IF(AH$4=\"Nie dotyczy\",0,\" \")","v":0}]
["Uzasadnienie dla doboru wskaźnika rezultatu, (metodologia, sposób obliczenia oraz uzasadnienie i weryfikacja wartości docelowych dla wskaźnika rezultatu."]
["254.","Uzasadnienie:"]
["Liczba naukowców pracujacych w ulepszonych obiektach infrastruktury badawczej (CI 25)",null,"EPC","255.",0,null,{"$f":"IF(G$4=\"Nie dotyczy\",0,\" \")","v":0},null,null,{"$f":"IF(J$4=\"Nie dotyczy\",0,\" \")","v":0},null,null,{"$f":"IF(M$4=\"Nie dotyczy\",0,\" \")","v":0},null,null,0,null,null," ",null,null,{"$f":"IF(V$4=\"Nie dotyczy\",0,\" \")","v":" "},null,null,{"$f":"IF(Y$4=\"Nie dotyczy\",0,\" \")","v":" "},null,null,{"$f":"IF(AB$4=\"Nie dotyczy\",0,\" \")","v":" "},null,null,{"$f":"IF(AE$4=\"Nie dotyczy\",0,\" \")","v":0},null,null,{"$f":"IF(AH$4=\"Nie dotyczy\",0,\" \")","v":0},null,null,"256."]
["Uzasadnienie dla doboru wskaźnika rezultatu, (metodologia, sposób obliczenia oraz uzasadnienie i weryfikacja wartości docelowych dla wskaźnika rezultatu. "]
["257.",{"$f":"$B$9","v":"Uzasadnienie:"}]
["Liczba przedsiębiorstw korzystających ze wspartej infrastruktury badawczej.",null,"szt.","258.",0,null,{"$f":"IF(G$4=\"Nie dotyczy\",0,\" \")","v":0},null,null,{"$f":"IF(J$4=\"Nie dotyczy\",0,\" \")","v":0},null,null,{"$f":"IF(M$4=\"Nie dotyczy\",0,\" \")","v":0},null,null,{"$f":"IF(P$4=\"Nie dotyczy\",0,\" \")","v":0},null,null,{"$f":"IF(S$4=\"Nie dotyczy\",0,\" \")","v":" "},null,null,{"$f":"IF(V$4=\"Nie dotyczy\",0,\" \")","v":" "},null,null,{"$f":"IF(Y$4=\"Nie dotyczy\",0,\" \")","v":" "},null,null,{"$f":"IF(AB$4=\"Nie dotyczy\",0,\" \")","v":" "},null,null,{"$f":"IF(AE$4=\"Nie dotyczy\",0,\" \")","v":0},null,null,{"$f":"IF(AH$4=\"Nie dotyczy\",0,\" \")","v":0},null,null,"259."]
["Uzasadnienie dla doboru wskaźnika rezultatu, (metodologia, sposób obliczenia oraz uzasadnienie i weryfikacja wartości docelowych dla wskaźnika rezultatu."]
["260.",{"$f":"$B$9","v":"Uzasadnienie:"}]
["Liczba projektów B+R realizowanych przy wykorzystaniu wspartej infrastruktury badawczej.",null,"szt.","261.",0,null,{"$f":"IF(G$4=\"Nie dotyczy\",0,\" \")","v":0},null,null,{"$f":"IF(J$4=\"Nie dotyczy\",0,\" \")","v":0},null,null,{"$f":"IF(M$4=\"Nie dotyczy\",0,\" \")","v":0},null,null,{"$f":"IF(P$4=\"Nie dotyczy\",0,\" \")","v":0},null,null,{"$f":"IF(S$4=\"Nie dotyczy\",0,\" \")","v":" "},null,null,{"$f":"IF(V$4=\"Nie dotyczy\",0,\" \")","v":" "},null,null,{"$f":"IF(Y$4=\"Nie dotyczy\",0,\" \")","v":" "},null,null,{"$f":"IF(AB$4=\"Nie dotyczy\",0,\" \")","v":" "},null,null,{"$f":"IF(AE$4=\"Nie dotyczy\",0,\" \")","v":0},null,null,{"$f":"IF(AH$4=\"Nie dotyczy\",0,\" \")","v":0},null,null,"262."]
["Uzasadnienie dla doboru wskaźnika rezultatu, (metodologia, sposób obliczenia oraz uzasadnienie i weryfikacja wartości docelowych dla wskaźnika rezultatu. "]
["263.",{"$f":"$B$9","v":"Uzasadnienie:"}]
[]
["Inne wskaźniki rezultatu"]
["Liczba testowanych produktów w zakresie zwalczania skutków pandemii COVID-19.",null,"Szt.","264.",0,null,{"$f":"IF(G$4=\"Nie dotyczy\",0,\" \")","v":0},null,null,{"$f":"IF(J$4=\"Nie dotyczy\",0,\" \")","v":0},null,null,{"$f":"IF(M$4=\"Nie dotyczy\",0,\" \")","v":0},null,null,{"$f":"IF(P$4=\"Nie dotyczy\",0,\" \")","v":0},null,null,{"$f":"IF(S$4=\"Nie dotyczy\",0,\" \")","v":" "},null,null,{"$f":"IF(V$4=\"Nie dotyczy\",0,\" \")","v":" "},null,null,{"$f":"IF(Y$4=\"Nie dotyczy\",0,\" \")","v":" "},null,null,{"$f":"IF(AB$4=\"Nie dotyczy\",0,\" \")","v":" "},null,null,{"$f":"IF(AE$4=\"Nie dotyczy\",0,\" \")","v":0},null,null,{"$f":"IF(AH$4=\"Nie dotyczy\",0,\" \")","v":0},null,null,"265.",null,null,null,"Wskaźnik nie jest obligatoryjny, w sytuacji gdy Wnioskodawca nie zamierza w ramach projektu testować produktów w zakresie zwalczania lub przeciwdziałania skutkom pandemii COVID-19. Należy wpisać w poszczególne lata oraz w kolumnie „wartość docelowa” wartości zerowe.\n"]
["Uzasadnienie dla doboru wskaźnika rezultatu, (metodologia, sposób obliczenia oraz uzasadnienie i weryfikacja wartości docelowych dla wskaźnika rezultatu. Należy wskazać również nazwę dokumentu źródłowego dostępnego u przedsiębiorcy na podstawie, którego wnioskodawca przedstawił wartość bazową wskaźnika)"]
["266.",{"$f":"$B$9","v":"Uzasadnienie:"}]
["Liczba przygotowywanych do masowej produkcji produktów w zakresie zwalczania skutków pandemii COVID-19.",null,"Szt.","267.",0,null,{"$f":"IF(G$4=\"Nie dotyczy\",0,\" \")","v":0},null,null,{"$f":"IF(J$4=\"Nie dotyczy\",0,\" \")","v":0},null,null,{"$f":"IF(M$4=\"Nie dotyczy\",0,\" \")","v":0},null,null,{"$f":"IF(P$4=\"Nie dotyczy\",0,\" \")","v":0},null,null,{"$f":"IF(S$4=\"Nie dotyczy\",0,\" \")","v":" "},null,null,{"$f":"IF(V$4=\"Nie dotyczy\",0,\" \")","v":" "},null,null,{"$f":"IF(Y$4=\"Nie dotyczy\",0,\" \")","v":" "},null,null,{"$f":"IF(AB$4=\"Nie dotyczy\",0,\" \")","v":" "},null,null,{"$f":"IF(AE$4=\"Nie dotyczy\",0,\" \")","v":0},null,null,{"$f":"IF(AH$4=\"Nie dotyczy\",0,\" \")","v":0},null,null,"268.",null,null,null,"Wskaźnik nie jest obligatoryjny, w sytuacji gdy Wnioskodawca nie zamierza w ramach projektu przygotowywać do masowej produkcji produktów w zakresie zwalczania lub przeciwdziałania skutkom pandemii COVID-19. Należy wpisać w poszczególne lata oraz w kolumnie „wartość docelowa” wartości zerowe.\n"]
["Uzasadnienie dla doboru wskaźnika rezultatu, (metodologia, sposób obliczenia oraz uzasadnienie i weryfikacja wartości docelowych dla wskaźnika rezultatu. Należy wskazać również nazwę dokumentu źródłowego dostępnego u przedsiębiorcy na podstawie, którego wnioskodawca przedstawił wartość bazową wskaźnika)"]
["269.",{"$f":"$B$9","v":"Uzasadnienie:"}]
["Liczba produktów w zakresie zwalczania  skutków pandemii COVID-19 wprowadzonych na rynek w wyniku realizacji projektu.",null,"Szt.","270.",0,null,{"$f":"IF(G$4=\"Nie dotyczy\",0,\" \")","v":0},null,null,{"$f":"IF(J$4=\"Nie dotyczy\",0,\" \")","v":0},null,null,{"$f":"IF(M$4=\"Nie dotyczy\",0,\" \")","v":0},null,null,{"$f":"IF(P$4=\"Nie dotyczy\",0,\" \")","v":0},null,null,{"$f":"IF(S$4=\"Nie dotyczy\",0,\" \")","v":" "},null,null,{"$f":"IF(V$4=\"Nie dotyczy\",0,\" \")","v":" "},null,null,{"$f":"IF(Y$4=\"Nie dotyczy\",0,\" \")","v":" "},null,null,{"$f":"IF(AB$4=\"Nie dotyczy\",0,\" \")","v":" "},null,null,{"$f":"IF(AE$4=\"Nie dotyczy\",0,\" \")","v":0},null,null,{"$f":"IF(AH$4=\"Nie dotyczy\",0,\" \")","v":0},null,null,"271.",null,null,null,"Wskaźnik obligatoryjny.\n"]
["Uzasadnienie dla doboru wskaźnika rezultatu, (metodologia, sposób obliczenia oraz uzasadnienie i weryfikacja wartości docelowych dla wskaźnika rezultatu. Należy wskazać również nazwę dokumentu źródłowego dostępnego u przedsiębiorcy na podstawie, którego wnioskodawca przedstawił wartość bazową wskaźnika)"]
["272.",{"$f":"$B$9","v":"Uzasadnienie:"}]
[{"$f":"CONCATENATE('VII. Zgodność projektu'!$P$54,\" (Wskaźnik obrazujący pozytywny wpływ projektu na środowisko i klimat poprzez sposób realizacji projektu.)\")","v":"Nie dotyczy (Wskaźnik obrazujący pozytywny wpływ projektu na środowisko i klimat poprzez sposób realizacji projektu.)"},null,{"$f":"IF('VII. Zgodność projektu'!$P$54=\"nie dotyczy\",\"Nie dotyczy\",\"Uzupełnij jednostkę miary\")","v":"Nie dotyczy"},"273.",{"$f":"IF('VII. Zgodność projektu'!$P$54=\"Nie dotyczy\",0,\" \")","v":0},null,{"$f":"IF('VII. Zgodność projektu'!$P$54=\"Nie dotyczy\",0,IF(G$4=\"nie dotyczy\",0,\" \"))","v":0},null,null,{"$f":"IF('VII. Zgodność projektu'!$P$54=\"Nie dotyczy\",0,IF(J$4=\"nie dotyczy\",0,\" \"))","v":0},null,null,{"$f":"IF('VII. Zgodność projektu'!$P$54=\"Nie dotyczy\",0,IF(M$4=\"nie dotyczy\",0,\" \"))","v":0},null,null,{"$f":"IF('VII. Zgodność projektu'!$P$54=\"Nie dotyczy\",0,IF(P$4=\"nie dotyczy\",0,\" \"))","v":0},null,null,{"$f":"IF('VII. Zgodność projektu'!$P$54=\"Nie dotyczy\",0,IF(S$4=\"nie dotyczy\",0,\" \"))","v":0},null,null,{"$f":"IF('VII. Zgodność projektu'!$P$54=\"Nie dotyczy\",0,IF(V$4=\"nie dotyczy\",0,\" \"))","v":0},null,null,{"$f":"IF('VII. Zgodność projektu'!$P$54=\"Nie dotyczy\",0,IF(Y$4=\"nie dotyczy\",0,\" \"))","v":0},null,null,{"$f":"IF('VII. Zgodność projektu'!$P$54=\"Nie dotyczy\",0,IF(AB$4=\"nie dotyczy\",0,\" \"))","v":0},null,null,{"$f":"IF('VII. Zgodność projektu'!$P$54=\"Nie dotyczy\",0,IF(AE$4=\"nie dotyczy\",0,\" \"))","v":0},null,null,{"$f":"IF('VII. Zgodność projektu'!$P$54=\"Nie dotyczy\",0,IF(AH$4=\"nie dotyczy\",0,\" \"))","v":0},null,null,"274.",{"$f":"IF('VII. Zgodność projektu'!$P$54=\"Nie dotyczy\",0,\" \")","v":0},null,"Powrót do cz. VII Zgodność projektu","Wskaźnik obligatoryjny w przypadku deklaracji pozytywnego wpływu projektu na realizację zasady zrównoważonego rozwoju odpowiednio poprzez sposób realizacji projektu. Wnioskodawca wpisuje wskaźnik, który jest najbardziej odpowiedni z punktu widzenia wpływu projektu na środowisko i klimat. Należy wypełnić albo wpisać w poszczególne lata oraz \nw kolumnie „wartość docelowa” wartości zerowe.\n"]
["Uzasadnienie dla doboru wskaźnika rezultatu, (metodologia, sposób obliczenia oraz uzasadnienie i weryfikacja wartości docelowych dla wskaźnika rezultatu. Należy wskazać również nazwę dokumentu źródłowego dostępnego u przedsiębiorcy na podstawie, którego wnioskodawca przedstawił wartość bazową wskaźnika)"]
["275.",{"$f":"$B$9","v":"Uzasadnienie:"},{"$f":"IF('VII. Zgodność projektu'!$P$54=\"nie dotyczy\",\"Nie dotyczy\",\" \")","v":"Nie dotyczy"}]
[{"$f":"CONCATENATE('VII. Zgodność projektu'!$P$55,\" (Wskaźnik obrazujący pozytywny wpływ projektu na środowisko i klimat poprzez sposób realizacji projektu.)\")","v":"Nie dotyczy (Wskaźnik obrazujący pozytywny wpływ projektu na środowisko i klimat poprzez sposób realizacji projektu.)"},null,{"$f":"IF('VII. Zgodność projektu'!$P$55=\"nie dotyczy\",\"Nie dotyczy\",\"Uzupełnij jednostkę miary\")","v":"Nie dotyczy"},"276.",{"$f":"IF('VII. Zgodność projektu'!$P$55=\"Nie dotyczy\",0,\" \")","v":0},null,{"$f":"IF('VII. Zgodność projektu'!$P$55=\"Nie dotyczy\",0,IF(G$4=\"nie dotyczy\",0,\" \"))","v":0},null,null,{"$f":"IF('VII. Zgodność projektu'!$P$55=\"Nie dotyczy\",0,IF(J$4=\"nie dotyczy\",0,\" \"))","v":0},null,null,{"$f":"IF('VII. Zgodność projektu'!$P$55=\"Nie dotyczy\",0,IF(M$4=\"nie dotyczy\",0,\" \"))","v":0},null,null,{"$f":"IF('VII. Zgodność projektu'!$P$55=\"Nie dotyczy\",0,IF(P$4=\"nie dotyczy\",0,\" \"))","v":0},null,null,{"$f":"IF('VII. Zgodność projektu'!$P$55=\"Nie dotyczy\",0,IF(S$4=\"nie dotyczy\",0,\" \"))","v":0},null,null,{"$f":"IF('VII. Zgodność projektu'!$P$55=\"Nie dotyczy\",0,IF(V$4=\"nie dotyczy\",0,\" \"))","v":0},null,null,{"$f":"IF('VII. Zgodność projektu'!$P$55=\"Nie dotyczy\",0,IF(Y$4=\"nie dotyczy\",0,\" \"))","v":0},null,null,{"$f":"IF('VII. Zgodność projektu'!$P$55=\"Nie dotyczy\",0,IF(AB$4=\"nie dotyczy\",0,\" \"))","v":0},null,null,{"$f":"IF('VII. Zgodność projektu'!$P$55=\"Nie dotyczy\",0,IF(AE$4=\"nie dotyczy\",0,\" \"))","v":0},null,null,{"$f":"IF('VII. Zgodność projektu'!$P$55=\"Nie dotyczy\",0,IF(AH$4=\"nie dotyczy\",0,\" \"))","v":0},null,null,"277.",{"$f":"IF('VII. Zgodność projektu'!$P$55=\"Nie dotyczy\",0,\" \")","v":0},null,"Powrót do cz. VII Zgodność projektu","Wskaźnik obligatoryjny w przypadku deklaracji pozytywnego wpływu projektu na realizację zasady zrównoważonego rozwoju odpowiednio poprzez sposób realizacji projektu. Wnioskodawca wpisuje wskaźnik, który jest najbardziej odpowiedni z punktu widzenia wpływu projektu na środowisko i klimat. Należy wypełnić albo wpisać w poszczególne lata oraz \nw kolumnie „wartość docelowa” wartości zerowe.\n"]
["Uzasadnienie dla doboru wskaźnika rezultatu, (metodologia, sposób obliczenia oraz uzasadnienie i weryfikacja wartości docelowych dla wskaźnika rezultatu. Należy wskazać również nazwę dokumentu źródłowego dostępnego u przedsiębiorcy na podstawie, którego wnioskodawca przedstawił wartość bazową wskaźnika)"]
["278.",{"$f":"$B$9","v":"Uzasadnienie:"},{"$f":"IF('VII. Zgodność projektu'!$P$55=\"nie dotyczy\",\"Nie dotyczy\",\" \")","v":"Nie dotyczy"}]
[{"$f":"CONCATENATE('VII. Zgodność projektu'!$P$67,\" (Wskaźnik obrazujący pozytywny wpływ projektu na środowisko i klimat poprzez rezultat projektu.)\")","v":"Nie dotyczy (Wskaźnik obrazujący pozytywny wpływ projektu na środowisko i klimat poprzez rezultat projektu.)"},null,{"$f":"IF('VII. Zgodność projektu'!$P$67=\"nie dotyczy\",\"Nie dotyczy\",\"Uzupełnij jednostkę miary\")","v":"Nie dotyczy"},"279.",{"$f":"IF('VII. Zgodność projektu'!$P$67=\"Nie dotyczy\",0,\" \")","v":0},null,{"$f":"IF('VII. Zgodność projektu'!$P$67=\"Nie dotyczy\",0,IF(G$4=\"nie dotyczy\",0,\" \"))","v":0},null,null,{"$f":"IF('VII. Zgodność projektu'!$P$67=\"Nie dotyczy\",0,IF(J$4=\"nie dotyczy\",0,\" \"))","v":0},null,null,{"$f":"IF('VII. Zgodność projektu'!$P$67=\"Nie dotyczy\",0,IF(M$4=\"nie dotyczy\",0,\" \"))","v":0},null,null,{"$f":"IF('VII. Zgodność projektu'!$P$67=\"Nie dotyczy\",0,IF(P$4=\"nie dotyczy\",0,\" \"))","v":0},null,null,{"$f":"IF('VII. Zgodność projektu'!$P$67=\"Nie dotyczy\",0,IF(S$4=\"nie dotyczy\",0,\" \"))","v":0},null,null,{"$f":"IF('VII. Zgodność projektu'!$P$67=\"Nie dotyczy\",0,IF(V$4=\"nie dotyczy\",0,\" \"))","v":0},null,null,{"$f":"IF('VII. Zgodność projektu'!$P$67=\"Nie dotyczy\",0,IF(Y$4=\"nie dotyczy\",0,\" \"))","v":0},null,null,{"$f":"IF('VII. Zgodność projektu'!$P$67=\"Nie dotyczy\",0,IF(AB$4=\"nie dotyczy\",0,\" \"))","v":0},null,null,{"$f":"IF('VII. Zgodność projektu'!$P$67=\"Nie dotyczy\",0,IF(AE$4=\"nie dotyczy\",0,\" \"))","v":0},null,null,{"$f":"IF('VII. Zgodność projektu'!$P$67=\"Nie dotyczy\",0,IF(AH$4=\"nie dotyczy\",0,\" \"))","v":0},null,null,"280.",{"$f":"IF('VII. Zgodność projektu'!$P$67=\"Nie dotyczy\",0,\" \")","v":0},null,"Powrót do cz. VII Zgodność projektu","Wskaźnik obligatoryjny w przypadku deklaracji pozytywnego wpływu projektu na realizację zasady zrównoważonego rozwoju odpowiednio poprzez rezultat projektu. Wnioskodawca wpisuje wskaźnik, który jest najbardziej odpowiedni z punktu widzenia wpływu projektu na środowisko i klimat. Należy wypełnić albo wpisać w poszczególne lata oraz w kolumnie „wartość docelowa” wartości zerowe."]
["Uzasadnienie dla doboru wskaźnika rezultatu, (metodologia, sposób obliczenia oraz uzasadnienie i weryfikacja wartości docelowych dla wskaźnika rezultatu. Należy wskazać również nazwę dokumentu źródłowego dostępnego u przedsiębiorcy na podstawie, którego wnioskodawca przedstawił wartość bazową wskaźnika)"]
["281.",{"$f":"$B$9","v":"Uzasadnienie:"},{"$f":"IF('VII. Zgodność projektu'!$P$67=\"nie dotyczy\",\"Nie dotyczy\",\" \")","v":"Nie dotyczy"}]
[{"$f":"CONCATENATE('VII. Zgodność projektu'!$P$68,\" (Wskaźnik obrazujący pozytywny wpływ projektu na środowisko i klimat poprzez rezultat projektu.)\")","v":"Nie dotyczy (Wskaźnik obrazujący pozytywny wpływ projektu na środowisko i klimat poprzez rezultat projektu.)"},null,{"$f":"IF('VII. Zgodność projektu'!$P$68=\"nie dotyczy\",\"Nie dotyczy\",\"Uzupełnij jednostkę miary\")","v":"Nie dotyczy"},"282.",{"$f":"IF('VII. Zgodność projektu'!$P$68=\"Nie dotyczy\",0,\" \")","v":0},null,{"$f":"IF('VII. Zgodność projektu'!$P$68=\"Nie dotyczy\",0,IF(G$4=\"nie dotyczy\",0,\" \"))","v":0},null,null,{"$f":"IF('VII. Zgodność projektu'!$P$68=\"Nie dotyczy\",0,IF(J$4=\"nie dotyczy\",0,\" \"))","v":0},null,null,{"$f":"IF('VII. Zgodność projektu'!$P$68=\"Nie dotyczy\",0,IF(M$4=\"nie dotyczy\",0,\" \"))","v":0},null,null,{"$f":"IF('VII. Zgodność projektu'!$P$68=\"Nie dotyczy\",0,IF(P$4=\"nie dotyczy\",0,\" \"))","v":0},null,null,{"$f":"IF('VII. Zgodność projektu'!$P$68=\"Nie dotyczy\",0,IF(S$4=\"nie dotyczy\",0,\" \"))","v":0},null,null,{"$f":"IF('VII. Zgodność projektu'!$P$68=\"Nie dotyczy\",0,IF(V$4=\"nie dotyczy\",0,\" \"))","v":0},null,null,{"$f":"IF('VII. Zgodność projektu'!$P$68=\"Nie dotyczy\",0,IF(Y$4=\"nie dotyczy\",0,\" \"))","v":0},null,null,{"$f":"IF('VII. Zgodność projektu'!$P$68=\"Nie dotyczy\",0,IF(AB$4=\"nie dotyczy\",0,\" \"))","v":0},null,null,{"$f":"IF('VII. Zgodność projektu'!$P$68=\"Nie dotyczy\",0,IF(AE$4=\"nie dotyczy\",0,\" \"))","v":0},null,null,{"$f":"IF('VII. Zgodność projektu'!$P$68=\"Nie dotyczy\",0,IF(AH$4=\"nie dotyczy\",0,\" \"))","v":0},null,null,"283.",{"$f":"IF('VII. Zgodność projektu'!$P$68=\"Nie dotyczy\",0,\" \")","v":0},null,"Powrót do cz. VII Zgodność projektu","Wskaźnik obligatoryjny w przypadku deklaracji pozytywnego wpływu projektu na realizację zasady zrównoważonego rozwoju odpowiednio poprzez rezultat projektu. Wnioskodawca wpisuje wskaźnik, który jest najbardziej odpowiedni z punktu widzenia wpływu projektu na środowisko i klimat. Należy wypełnić albo wpisać w poszczególne lata oraz w kolumnie „wartość docelowa” wartości zerowe."]
["Uzasadnienie dla doboru wskaźnika rezultatu, (metodologia, sposób obliczenia oraz uzasadnienie i weryfikacja wartości docelowych dla wskaźnika rezultatu. Należy wskazać również nazwę dokumentu źródłowego dostępnego u przedsiębiorcy na podstawie, którego wnioskodawca przedstawił wartość bazową wskaźnika)"]
["284.",{"$f":"$B$9","v":"Uzasadnienie:"},{"$f":"IF('VII. Zgodność projektu'!$P$68=\"nie dotyczy\",\"Nie dotyczy\",\" \")","v":"Nie dotyczy"}]
[{"$f":"CONCATENATE('VII. Zgodność projektu'!$P$15,\" (Wskaźnik obrazujący dostępność produktów/ rezultatów projektu dla osób z niepełnosprawnościami)\")","v":"Nie dotyczy (Wskaźnik obrazujący dostępność produktów/ rezultatów projektu dla osób z niepełnosprawnościami)"},null,{"$f":"IF('VII. Zgodność projektu'!$P$15=\"nie dotyczy\",\"Nie dotyczy\",\"Uzupełnij jednostkę miary\")","v":"Nie dotyczy"},"285.",{"$f":"IF('VII. Zgodność projektu'!$P$15=\"Nie dotyczy\",0,\" \")","v":0},null,{"$f":"IF('VII. Zgodność projektu'!$P$15=\"Nie dotyczy\",0,IF(G$4=\"nie dotyczy\",0,\" \"))","v":0},null,null,{"$f":"IF('VII. Zgodność projektu'!$P$15=\"Nie dotyczy\",0,IF(J$4=\"nie dotyczy\",0,\" \"))","v":0},null,null,{"$f":"IF('VII. Zgodność projektu'!$P$15=\"Nie dotyczy\",0,IF(M$4=\"nie dotyczy\",0,\" \"))","v":0},null,null,{"$f":"IF('VII. Zgodność projektu'!$P$15=\"Nie dotyczy\",0,IF(P$4=\"nie dotyczy\",0,\" \"))","v":0},null,null,{"$f":"IF('VII. Zgodność projektu'!$P$15=\"Nie dotyczy\",0,IF(S$4=\"nie dotyczy\",0,\" \"))","v":0},null,null,{"$f":"IF('VII. Zgodność projektu'!$P$15=\"Nie dotyczy\",0,IF(V$4=\"nie dotyczy\",0,\" \"))","v":0},null,null,{"$f":"IF('VII. Zgodność projektu'!$P$15=\"Nie dotyczy\",0,IF(Y$4=\"nie dotyczy\",0,\" \"))","v":0},null,null,{"$f":"IF('VII. Zgodność projektu'!$P$15=\"Nie dotyczy\",0,IF(AB$4=\"nie dotyczy\",0,\" \"))","v":0},null,null,{"$f":"IF('VII. Zgodność projektu'!$P$15=\"Nie dotyczy\",0,IF(AE$4=\"nie dotyczy\",0,\" \"))","v":0},null,null,{"$f":"IF('VII. Zgodność projektu'!$P$15=\"Nie dotyczy\",0,IF(AH$4=\"nie dotyczy\",0,\" \"))","v":0},null,null,"286.",{"$f":"IF('VII. Zgodność projektu'!$P$15=\"Nie dotyczy\",0,\" \")","v":0},null,"Powrót do cz. VII Zgodność projektu","Wskaźnik obligatoryjny w przypadku deklaracji dostępności dla osób niepełnosprawnych. Wnioskodawca wpisuje wskaźnik samodzielnie. Należy wypełnić albo wpisać w poszczególne lata oraz w kolumnie „wartość docelowa” wartości zerowe."]
["Uzasadnienie dla doboru wskaźnika rezultatu, (metodologia, sposób obliczenia oraz uzasadnienie i weryfikacja wartości docelowych dla wskaźnika rezultatu. Należy wskazać również nazwę dokumentu źródłowego dostępnego u przedsiębiorcy na podstawie, którego wnioskodawca przedstawił wartość bazową wskaźnika)"]
["287.",{"$f":"$B$9","v":"Uzasadnienie:"},{"$f":"IF('VII. Zgodność projektu'!$P$15=\"nie dotyczy\",\"Nie dotyczy\",\" \")","v":"Nie dotyczy"}]
[{"$f":"CONCATENATE('VII. Zgodność projektu'!$P$16,\" (Wskaźnik obrazujący dostępność produktów/ rezultatów projektu dla osób z niepełnosprawnościami)\")","v":"Nie dotyczy (Wskaźnik obrazujący dostępność produktów/ rezultatów projektu dla osób z niepełnosprawnościami)"},null,{"$f":"IF('VII. Zgodność projektu'!$P$16=\"nie dotyczy\",\"Nie dotyczy\",\"Uzupełnij jednostkę miary\")","v":"Nie dotyczy"},"288.",{"$f":"IF('VII. Zgodność projektu'!$P$16=\"Nie dotyczy\",0,\" \")","v":0},null,{"$f":"IF('VII. Zgodność projektu'!$P$16=\"Nie dotyczy\",0,IF(G$4=\"nie dotyczy\",0,\" \"))","v":0},null,null,{"$f":"IF('VII. Zgodność projektu'!$P$16=\"Nie dotyczy\",0,IF(J$4=\"nie dotyczy\",0,\" \"))","v":0},null,null,{"$f":"IF('VII. Zgodność projektu'!$P$16=\"Nie dotyczy\",0,IF(M$4=\"nie dotyczy\",0,\" \"))","v":0},null,null,{"$f":"IF('VII. Zgodność projektu'!$P$16=\"Nie dotyczy\",0,IF(P$4=\"nie dotyczy\",0,\" \"))","v":0},null,null,{"$f":"IF('VII. Zgodność projektu'!$P$16=\"Nie dotyczy\",0,IF(S$4=\"nie dotyczy\",0,\" \"))","v":0},null,null,{"$f":"IF('VII. Zgodność projektu'!$P$16=\"Nie dotyczy\",0,IF(V$4=\"nie dotyczy\",0,\" \"))","v":0},null,null,{"$f":"IF('VII. Zgodność projektu'!$P$16=\"Nie dotyczy\",0,IF(Y$4=\"nie dotyczy\",0,\" \"))","v":0},null,null,{"$f":"IF('VII. Zgodność projektu'!$P$16=\"Nie dotyczy\",0,IF(AB$4=\"nie dotyczy\",0,\" \"))","v":0},null,null,{"$f":"IF('VII. Zgodność projektu'!$P$16=\"Nie dotyczy\",0,IF(AE$4=\"nie dotyczy\",0,\" \"))","v":0},null,null,{"$f":"IF('VII. Zgodność projektu'!$P$16=\"Nie dotyczy\",0,IF(AH$4=\"nie dotyczy\",0,\" \"))","v":0},null,null,"289.",{"$f":"IF('VII. Zgodność projektu'!$P$16=\"Nie dotyczy\",0,\" \")","v":0},null,"Powrót do cz. VII Zgodność projektu","Wskaźnik obligatoryjny w przypadku deklaracji dostępności dla osób niepełnosprawnych. Wnioskodawca wpisuje wskaźnik samodzielnie. Należy wypełnić albo wpisać w poszczególne lata oraz w kolumnie „wartość docelowa” wartości zerowe."]
["Uzasadnienie dla doboru wskaźnika rezultatu, (metodologia, sposób obliczenia oraz uzasadnienie i weryfikacja wartości docelowych dla wskaźnika rezultatu. Należy wskazać również nazwę dokumentu źródłowego dostępnego u przedsiębiorcy na podstawie, którego wnioskodawca przedstawił wartość bazową wskaźnika)"]
["290.",{"$f":"$B$9","v":"Uzasadnienie:"},{"$f":"IF('VII. Zgodność projektu'!$P$16=\"nie dotyczy\",\"Nie dotyczy\",\" \")","v":"Nie dotyczy"}]
[{"$f":"'VII. Zgodność projektu'!$P$27","v":"Nie dotyczy"},null,{"$f":"IF($A$48=\"nie dotyczy\",\"Nie dotyczy\",\"Uzupełnij jednostkę miary\")","v":"Nie dotyczy"},"291.",{"$f":"IF($A$48=\"nie dotyczy\",0,\" \")","v":0},null,{"$f":"IF($A$48=\"nie dotyczy\",0,IF(G$4=\"nie dotyczy\",0,\" \"))","v":0},null,null,{"$f":"IF($A$48=\"nie dotyczy\",0,IF(J$4=\"nie dotyczy\",0,\" \"))","v":0},null,null,{"$f":"IF($A$48=\"nie dotyczy\",0,IF(M$4=\"nie dotyczy\",0,\" \"))","v":0},null,null,{"$f":"IF($A$48=\"nie dotyczy\",0,IF(P$4=\"nie dotyczy\",0,\" \"))","v":0},null,null,{"$f":"IF($A$48=\"nie dotyczy\",0,IF(S$4=\"nie dotyczy\",0,\" \"))","v":0},null,null,{"$f":"IF($A$48=\"nie dotyczy\",0,IF(V$4=\"nie dotyczy\",0,\" \"))","v":0},null,null,{"$f":"IF($A$48=\"nie dotyczy\",0,IF(Y$4=\"nie dotyczy\",0,\" \"))","v":0},null,null,{"$f":"IF($A$48=\"nie dotyczy\",0,IF(AB$4=\"nie dotyczy\",0,\" \"))","v":0},null,null,{"$f":"IF($A$48=\"nie dotyczy\",0,IF(AE$4=\"nie dotyczy\",0,\" \"))","v":0},null,null,{"$f":"IF($A$48=\"nie dotyczy\",0,IF(AH$4=\"nie dotyczy\",0,\" \"))","v":0},null,null,"292.",{"$f":"IF($A$48=\"nie dotyczy\",0,\" \")","v":0},null,null,"Wskaźnik obligatoryjny w przypadku budowy CBR lub adaptacji budynku na cele CBR. Wnioskodawca wpisuje wskaźnik samodzielnie. Należy wypełnić albo wpisać w poszczególne lata oraz w kolumnie „wartość docelowa” wartości zerowe.\n"]
["(Wskaźnik obrazujący spełnienie standardu architektonicznego stanowiącego załącznik nr 2 do Wytycznych w zakresie realizacji zasady równości szans i niedyskryminacji, w tym dostępności dla osób z niepełnosprawnościami oraz zasady równości szans kobiet i mężczyzn w ramach Funduszy Unijnych na lata 2014-2020.)",null,null,null,null,null,null,null,null,null,null,null,null,null,null,null,null,null,null,null,null,null,null,null,null,null,null,null,null,null,null,null,null,null,null,null,null,null,null,"Powrót do cz. VII Zgodność projektu"]
["Uzasadnienie dla doboru wskaźnika rezultatu, (metodologia, sposób obliczenia oraz uzasadnienie i weryfikacja wartości docelowych dla wskaźnika rezultatu. Należy wskazać również nazwę dokumentu źródłowego dostępnego u przedsiębiorcy na podstawie, którego wnioskodawca przedstawił wartość bazową wskaźnika)"]
["293.",{"$f":"$B$9","v":"Uzasadnienie:"},{"$f":"IF($A$48=\"nie dotyczy\",\"Nie dotyczy\",\" \")","v":"Nie dotyczy"}]
[{"$f":"'VII. Zgodność projektu'!$P$28","v":"Nie dotyczy"},null,{"$f":"IF($A$52=\"nie dotyczy\",\"Nie dotyczy\",\"Uzupełnij jednostkę miary\")","v":"Nie dotyczy"},"294.",{"$f":"IF($A$52=\"nie dotyczy\",0,\" \")","v":0},null,{"$f":"IF($A$52=\"nie dotyczy\",0,IF(G$4=\"nie dotyczy\",0,\" \"))","v":0},null,null,{"$f":"IF($A$52=\"nie dotyczy\",0,IF(J$4=\"nie dotyczy\",0,\" \"))","v":0},null,null,{"$f":"IF($A$52=\"nie dotyczy\",0,IF(M$4=\"nie dotyczy\",0,\" \"))","v":0},null,null,{"$f":"IF($A$52=\"nie dotyczy\",0,IF(P$4=\"nie dotyczy\",0,\" \"))","v":0},null,null,{"$f":"IF($A$52=\"nie dotyczy\",0,IF(S$4=\"nie dotyczy\",0,\" \"))","v":0},null,null,{"$f":"IF($A$52=\"nie dotyczy\",0,IF(V$4=\"nie dotyczy\",0,\" \"))","v":0},null,null,{"$f":"IF($A$52=\"nie dotyczy\",0,IF(Y$4=\"nie dotyczy\",0,\" \"))","v":0},null,null,{"$f":"IF($A$52=\"nie dotyczy\",0,IF(AB$4=\"nie dotyczy\",0,\" \"))","v":0},null,null,{"$f":"IF($A$52=\"nie dotyczy\",0,IF(AE$4=\"nie dotyczy\",0,\" \"))","v":0},null,null,{"$f":"IF($A$52=\"nie dotyczy\",0,IF(AH$4=\"nie dotyczy\",0,\" \"))","v":0},null,null,"295.",{"$f":"IF($A$52=\"nie dotyczy\",0,\" \")","v":0},null,null,"Wskaźnik obligatoryjny w przypadku budowy CBR lub adaptacji budynku na cele CBR. Wnioskodawca wpisuje wskaźnik samodzielnie. Należy wypełnić albo wpisać w poszczególne lata oraz w kolumnie „wartość docelowa” wartości zerowe.\n"]
["(Wskaźnik obrazujący spełnienie standardu architektonicznego stanowiącego załącznik nr 2 do Wytycznych w zakresie realizacji zasady równości szans i niedyskryminacji, w tym dostępności dla osób z niepełnosprawnościami oraz zasady równości szans kobiet i mężczyzn w ramach Funduszy Unijnych na lata 2014-2020.)",null,null,null,null,null,null,null,null,null,null,null,null,null,null,null,null,null,null,null,null,null,null,null,null,null,null,null,null,null,null,null,null,null,null,null,null,null,null,"Powrót do cz. VII Zgodność projektu"]
["Uzasadnienie dla doboru wskaźnika rezultatu, (metodologia, sposób obliczenia oraz uzasadnienie i weryfikacja wartości docelowych dla wskaźnika rezultatu. Należy wskazać również nazwę dokumentu źródłowego dostępnego u przedsiębiorcy na podstawie, którego wnioskodawca przedstawił wartość bazową wskaźnika)"]
["296.",{"$f":"$B$9","v":"Uzasadnienie:"},{"$f":"IF($A$52=\"nie dotyczy\",\"Nie dotyczy\",\" \")","v":"Nie dotyczy"}]
[{"$f":"CONCATENATE('VII. Zgodność projektu'!$P$40,\" (Wskaźnik projektu na realizację zasady równości szans  kobiet i mężczyzn)\")","v":"Nie dotyczy (Wskaźnik projektu na realizację zasady równości szans  kobiet i mężczyzn)"},null,{"$f":"IF('VII. Zgodność projektu'!$P$40=\"nie dotyczy\",\"Nie dotyczy\",\"Uzupełnij jednostkę miary\")","v":"Nie dotyczy"},"297.",{"$f":"IF('VII. Zgodność projektu'!$P$40=\"Nie dotyczy\",0,\" \")","v":0},null,{"$f":"IF('VII. Zgodność projektu'!$P$40=\"Nie dotyczy\",0,IF(G$4=\"nie dotyczy\",0,\" \"))","v":0},null,null,{"$f":"IF('VII. Zgodność projektu'!$P$40=\"Nie dotyczy\",0,IF(J$4=\"nie dotyczy\",0,\" \"))","v":0},null,null,{"$f":"IF('VII. Zgodność projektu'!$P$40=\"Nie dotyczy\",0,IF(M$4=\"nie dotyczy\",0,\" \"))","v":0},null,null,{"$f":"IF('VII. Zgodność projektu'!$P$40=\"Nie dotyczy\",0,IF(P$4=\"nie dotyczy\",0,\" \"))","v":0},null,null,{"$f":"IF('VII. Zgodność projektu'!$P$40=\"Nie dotyczy\",0,IF(S$4=\"nie dotyczy\",0,\" \"))","v":0},null,null,{"$f":"IF('VII. Zgodność projektu'!$P$40=\"Nie dotyczy\",0,IF(V$4=\"nie dotyczy\",0,\" \"))","v":0},null,null,{"$f":"IF('VII. Zgodność projektu'!$P$40=\"Nie dotyczy\",0,IF(Y$4=\"nie dotyczy\",0,\" \"))","v":0},null,null,{"$f":"IF('VII. Zgodność projektu'!$P$40=\"Nie dotyczy\",0,IF(AB$4=\"nie dotyczy\",0,\" \"))","v":0},null,null,{"$f":"IF('VII. Zgodność projektu'!$P$40=\"Nie dotyczy\",0,IF(AE$4=\"nie dotyczy\",0,\" \"))","v":0},null,null,{"$f":"IF('VII. Zgodność projektu'!$P$40=\"Nie dotyczy\",0,IF(AH$4=\"nie dotyczy\",0,\" \"))","v":0},null,null,"298.",{"$f":"IF('VII. Zgodność projektu'!$P$40=\"Nie dotyczy\",0,\" \")","v":0},null,"Powrót do cz. VII Zgodność projektu","Wskaźnik obligatoryjny w przypadku deklaracji pozytywnego wpływu projektu na realizację zasady równości szans kobiet i mężczyzn . Należy wypełnić albo wpisać w poszczególne lata oraz w kolumnie „wartość docelowa” wartości zerowe."]
["Uzasadnienie dla doboru wskaźnika rezultatu, (metodologia, sposób obliczenia oraz uzasadnienie i weryfikacja wartości docelowych dla wskaźnika rezultatu. Należy wskazać również nazwę dokumentu źródłowego dostępnego u przedsiębiorcy na podstawie, którego wnioskodawca przedstawił wartość bazową wskaźnika)"]
["299.",{"$f":"$B$9","v":"Uzasadnienie:"},{"$f":"IF('VII. Zgodność projektu'!$P$40=\"nie dotyczy\",\"Nie dotyczy\",\" \")","v":"Nie dotyczy"}]
[{"$f":"CONCATENATE('VII. Zgodność projektu'!$P$41,\" (Wskaźnik projektu na realizację zasady równości szans  kobiet i mężczyzn)\")","v":"Nie dotyczy (Wskaźnik projektu na realizację zasady równości szans  kobiet i mężczyzn)"},null,{"$f":"IF('VII. Zgodność projektu'!$P$41=\"nie dotyczy\",\"Nie dotyczy\",\"Uzupełnij jednostkę miary\")","v":"Nie dotyczy"},"300.",{"$f":"IF('VII. Zgodność projektu'!$P$41=\"Nie dotyczy\",0,\" \")","v":0},null,{"$f":"IF('VII. Zgodność projektu'!$P$41=\"Nie dotyczy\",0,IF(G$4=\"nie dotyczy\",0,\" \"))","v":0},null,null,{"$f":"IF('VII. Zgodność projektu'!$P$41=\"Nie dotyczy\",0,IF(J$4=\"nie dotyczy\",0,\" \"))","v":0},null,null,{"$f":"IF('VII. Zgodność projektu'!$P$41=\"Nie dotyczy\",0,IF(M$4=\"nie dotyczy\",0,\" \"))","v":0},null,null,{"$f":"IF('VII. Zgodność projektu'!$P$41=\"Nie dotyczy\",0,IF(P$4=\"nie dotyczy\",0,\" \"))","v":0},null,null,{"$f":"IF('VII. Zgodność projektu'!$P$41=\"Nie dotyczy\",0,IF(S$4=\"nie dotyczy\",0,\" \"))","v":0},null,null,{"$f":"IF('VII. Zgodność projektu'!$P$41=\"Nie dotyczy\",0,IF(V$4=\"nie dotyczy\",0,\" \"))","v":0},null,null,{"$f":"IF('VII. Zgodność projektu'!$P$41=\"Nie dotyczy\",0,IF(Y$4=\"nie dotyczy\",0,\" \"))","v":0},null,null,{"$f":"IF('VII. Zgodność projektu'!$P$41=\"Nie dotyczy\",0,IF(AB$4=\"nie dotyczy\",0,\" \"))","v":0},null,null,{"$f":"IF('VII. Zgodność projektu'!$P$41=\"Nie dotyczy\",0,IF(AE$4=\"nie dotyczy\",0,\" \"))","v":0},null,null,{"$f":"IF('VII. Zgodność projektu'!$P$41=\"Nie dotyczy\",0,IF(AH$4=\"nie dotyczy\",0,\" \"))","v":0},null,null,"301.",{"$f":"IF('VII. Zgodność projektu'!$P$41=\"Nie dotyczy\",0,\" \")","v":0},null,"Powrót do cz. VII Zgodność projektu","Wskaźnik obligatoryjny w przypadku deklaracji pozytywnego wpływu projektu na realizację zasady równości szans kobiet i mężczyzn . Należy wypełnić albo wpisać w poszczególne lata oraz w kolumnie „wartość docelowa” wartości zerowe."]
["Uzasadnienie dla doboru wskaźnika rezultatu, (metodologia, sposób obliczenia oraz uzasadnienie i weryfikacja wartości docelowych dla wskaźnika rezultatu. Należy wskazać również nazwę dokumentu źródłowego dostępnego u przedsiębiorcy na podstawie, którego wnioskodawca przedstawił wartość bazową wskaźnika)"]
["302.",{"$f":"$B$9","v":"Uzasadnienie:"},{"$f":"IF('VII. Zgodność projektu'!$P$41=\"nie dotyczy\",\"Nie dotyczy\",\" \")","v":"Nie dotyczy"}]
[]
["Czy chcesz dodać inne wskaźniki rezultatu?",null,null,null,null,null,null,null,null,"303."]
["Wskaźniki fakultatywne"]
[{"$f":"IF($K$63=\"tak\",\"Uzupełnij nazwę wskaźnika\",\"Nie dotyczy\")","v":"Nie dotyczy"},null,{"$f":"IF($A$65=\"nie dotyczy\",\"Nie dotyczy\",\"Uzupełnij jednostkę miary\")","v":"Nie dotyczy"},"304.",{"$f":"IF($A$65=\"nie dotyczy\",0,\" \")","v":0},null,{"$f":"IF($A$65=\"nie dotyczy\",0,IF(G$4=\"nie dotyczy\",0,\" \"))","v":0},null,null,{"$f":"IF($A$65=\"nie dotyczy\",0,IF(J$4=\"nie dotyczy\",0,\" \"))","v":0},null,null,{"$f":"IF($A$65=\"nie dotyczy\",0,IF(M$4=\"nie dotyczy\",0,\" \"))","v":0},null,null,{"$f":"IF($A$65=\"nie dotyczy\",0,IF(P$4=\"nie dotyczy\",0,\" \"))","v":0},null,null,{"$f":"IF($A$65=\"nie dotyczy\",0,IF(S$4=\"nie dotyczy\",0,\" \"))","v":0},null,null,{"$f":"IF($A$65=\"nie dotyczy\",0,IF(V$4=\"nie dotyczy\",0,\" \"))","v":0},null,null,{"$f":"IF($A$65=\"nie dotyczy\",0,IF(Y$4=\"nie dotyczy\",0,\" \"))","v":0},null,null,{"$f":"IF($A$65=\"nie dotyczy\",0,IF(AB$4=\"nie dotyczy\",0,\" \"))","v":0},null,null,{"$f":"IF($A$65=\"nie dotyczy\",0,IF(AE$4=\"nie dotyczy\",0,\" \"))","v":0},null,null,{"$f":"IF($A$65=\"nie dotyczy\",0,IF(AH$4=\"nie dotyczy\",0,\" \"))","v":0},null,null,"305.",{"$f":"IF($A$65=\"nie dotyczy\",0,\" \")","v":0},null,null,"Należy wskazać nazwę wskaźnika, określić jednostkę miary, wartości wskaźnika oraz podać uzasadnienie."]
["Uzasadnienie dla doboru wskaźnika rezultatu, (metodologia, sposób obliczenia oraz uzasadnienie i weryfikacja wartości docelowych dla wskaźnika rezultatu. Należy wskazać również nazwę dokumentu źródłowego dostępnego u przedsiębiorcy na podstawie, którego wnioskodawca przedstawił wartość bazową wskaźnika)"]
["306.",{"$f":"$B$9","v":"Uzasadnienie:"},{"$f":"IF($A$65=\"nie dotyczy\",\"Nie dotyczy\",\" \")","v":"Nie dotyczy"}]
[{"$f":"IF($K$63=\"tak\",\"Uzupełnij nazwę wskaźnika\",\"Nie dotyczy\")","v":"Nie dotyczy"},null,{"$f":"IF($A$68=\"nie dotyczy\",\"Nie dotyczy\",\"Uzupełnij jednostkę miary\")","v":"Nie dotyczy"},"307.",{"$f":"IF($A$68=\"nie dotyczy\",0,\" \")","v":0},null,{"$f":"IF($A$68=\"nie dotyczy\",0,IF(G$4=\"nie dotyczy\",0,\" \"))","v":0},null,null,{"$f":"IF($A$68=\"nie dotyczy\",0,IF(J$4=\"nie dotyczy\",0,\" \"))","v":0},null,null,{"$f":"IF($A$68=\"nie dotyczy\",0,IF(M$4=\"nie dotyczy\",0,\" \"))","v":0},null,null,{"$f":"IF($A$68=\"nie dotyczy\",0,IF(P$4=\"nie dotyczy\",0,\" \"))","v":0},null,null,{"$f":"IF($A$68=\"nie dotyczy\",0,IF(S$4=\"nie dotyczy\",0,\" \"))","v":0},null,null,{"$f":"IF($A$68=\"nie dotyczy\",0,IF(V$4=\"nie dotyczy\",0,\" \"))","v":0},null,null,{"$f":"IF($A$68=\"nie dotyczy\",0,IF(Y$4=\"nie dotyczy\",0,\" \"))","v":0},null,null,{"$f":"IF($A$68=\"nie dotyczy\",0,IF(AB$4=\"nie dotyczy\",0,\" \"))","v":0},null,null,{"$f":"IF($A$68=\"nie dotyczy\",0,IF(AE$4=\"nie dotyczy\",0,\" \"))","v":0},null,null,{"$f":"IF($A$68=\"nie dotyczy\",0,IF(AH$4=\"nie dotyczy\",0,\" \"))","v":0},null,null,"308.",{"$f":"IF($A$68=\"nie dotyczy\",0,\" \")","v":0},null,null,{"$f":"AO65","v":"Należy wskazać nazwę wskaźnika, określić jednostkę miary, wartości wskaźnika oraz podać uzasadnienie."}]
["Uzasadnienie dla doboru wskaźnika rezultatu, (metodologia, sposób obliczenia oraz uzasadnienie i weryfikacja wartości docelowych dla wskaźnika rezultatu. Należy wskazać również nazwę dokumentu źródłowego dostępnego u przedsiębiorcy na podstawie, którego wnioskodawca przedstawił wartość bazową wskaźnika)"]
["309.",{"$f":"$B$9","v":"Uzasadnienie:"},{"$f":"IF($A$68=\"nie dotyczy\",\"Nie dotyczy\",\" \")","v":"Nie dotyczy"}]
[{"$f":"IF($K$63=\"tak\",\"Uzupełnij nazwę wskaźnika\",\"Nie dotyczy\")","v":"Nie dotyczy"},null,{"$f":"IF($A$65=\"nie dotyczy\",\"Nie dotyczy\",\"Uzupełnij jednostkę miary\")","v":"Nie dotyczy"},"310.",{"$f":"IF($A$65=\"nie dotyczy\",0,\" \")","v":0},null,{"$f":"IF($A$65=\"nie dotyczy\",0,IF(G$4=\"nie dotyczy\",0,\" \"))","v":0},null,null,{"$f":"IF($A$65=\"nie dotyczy\",0,IF(J$4=\"nie dotyczy\",0,\" \"))","v":0},null,null,{"$f":"IF($A$65=\"nie dotyczy\",0,IF(M$4=\"nie dotyczy\",0,\" \"))","v":0},null,null,{"$f":"IF($A$65=\"nie dotyczy\",0,IF(P$4=\"nie dotyczy\",0,\" \"))","v":0},null,null,{"$f":"IF($A$65=\"nie dotyczy\",0,IF(S$4=\"nie dotyczy\",0,\" \"))","v":0},null,null,{"$f":"IF($A$65=\"nie dotyczy\",0,IF(V$4=\"nie dotyczy\",0,\" \"))","v":0},null,null,{"$f":"IF($A$65=\"nie dotyczy\",0,IF(Y$4=\"nie dotyczy\",0,\" \"))","v":0},null,null,{"$f":"IF($A$65=\"nie dotyczy\",0,IF(AB$4=\"nie dotyczy\",0,\" \"))","v":0},null,null,{"$f":"IF($A$65=\"nie dotyczy\",0,IF(AE$4=\"nie dotyczy\",0,\" \"))","v":0},null,null,{"$f":"IF($A$65=\"nie dotyczy\",0,IF(AH$4=\"nie dotyczy\",0,\" \"))","v":0},null,null,"311.",{"$f":"IF($A$65=\"nie dotyczy\",0,\" \")","v":0},null,null,"Należy wskazać nazwę wskaźnika, określić jednostkę miary, wartości wskaźnika oraz podać uzasadnienie."]
["Uzasadnienie dla doboru wskaźnika rezultatu, (metodologia, sposób obliczenia oraz uzasadnienie i weryfikacja wartości docelowych dla wskaźnika rezultatu. Należy wskazać również nazwę dokumentu źródłowego dostępnego u przedsiębiorcy na podstawie, którego wnioskodawca przedstawił wartość bazową wskaźnika)"]
["312.",{"$f":"$B$9","v":"Uzasadnienie:"},{"$f":"IF($A$65=\"nie dotyczy\",\"Nie dotyczy\",\" \")","v":"Nie dotyczy"}]
[{"$f":"IF($K$63=\"tak\",\"Uzupełnij nazwę wskaźnika\",\"Nie dotyczy\")","v":"Nie dotyczy"},null,{"$f":"IF($A$65=\"nie dotyczy\",\"Nie dotyczy\",\"Uzupełnij jednostkę miary\")","v":"Nie dotyczy"},"313.",{"$f":"IF($A$65=\"nie dotyczy\",0,\" \")","v":0},null,{"$f":"IF($A$65=\"nie dotyczy\",0,IF(G$4=\"nie dotyczy\",0,\" \"))","v":0},null,null,{"$f":"IF($A$65=\"nie dotyczy\",0,IF(J$4=\"nie dotyczy\",0,\" \"))","v":0},null,null,{"$f":"IF($A$65=\"nie dotyczy\",0,IF(M$4=\"nie dotyczy\",0,\" \"))","v":0},null,null,{"$f":"IF($A$65=\"nie dotyczy\",0,IF(P$4=\"nie dotyczy\",0,\" \"))","v":0},null,null,{"$f":"IF($A$65=\"nie dotyczy\",0,IF(S$4=\"nie dotyczy\",0,\" \"))","v":0},null,null,{"$f":"IF($A$65=\"nie dotyczy\",0,IF(V$4=\"nie dotyczy\",0,\" \"))","v":0},null,null,{"$f":"IF($A$65=\"nie dotyczy\",0,IF(Y$4=\"nie dotyczy\",0,\" \"))","v":0},null,null,{"$f":"IF($A$65=\"nie dotyczy\",0,IF(AB$4=\"nie dotyczy\",0,\" \"))","v":0},null,null,{"$f":"IF($A$65=\"nie dotyczy\",0,IF(AE$4=\"nie dotyczy\",0,\" \"))","v":0},null,null,{"$f":"IF($A$65=\"nie dotyczy\",0,IF(AH$4=\"nie dotyczy\",0,\" \"))","v":0},null,null,"314.",{"$f":"IF($A$65=\"nie dotyczy\",0,\" \")","v":0},null,null,"Należy wskazać nazwę wskaźnika, określić jednostkę miary, wartości wskaźnika oraz podać uzasadnienie."]
["Uzasadnienie dla doboru wskaźnika rezultatu, (metodologia, sposób obliczenia oraz uzasadnienie i weryfikacja wartości docelowych dla wskaźnika rezultatu. Należy wskazać również nazwę dokumentu źródłowego dostępnego u przedsiębiorcy na podstawie, którego wnioskodawca przedstawił wartość bazową wskaźnika)"]
["315.",{"$f":"$B$9","v":"Uzasadnienie:"},{"$f":"IF($A$65=\"nie dotyczy\",\"Nie dotyczy\",\" \")","v":"Nie dotyczy"}]
[{"$f":"IF($K$63=\"tak\",\"Uzupełnij nazwę wskaźnika\",\"Nie dotyczy\")","v":"Nie dotyczy"},null,{"$f":"IF($A$65=\"nie dotyczy\",\"Nie dotyczy\",\"Uzupełnij jednostkę miary\")","v":"Nie dotyczy"},"316.",{"$f":"IF($A$65=\"nie dotyczy\",0,\" \")","v":0},null,{"$f":"IF($A$65=\"nie dotyczy\",0,IF(G$4=\"nie dotyczy\",0,\" \"))","v":0},null,null,{"$f":"IF($A$65=\"nie dotyczy\",0,IF(J$4=\"nie dotyczy\",0,\" \"))","v":0},null,null,{"$f":"IF($A$65=\"nie dotyczy\",0,IF(M$4=\"nie dotyczy\",0,\" \"))","v":0},null,null,{"$f":"IF($A$65=\"nie dotyczy\",0,IF(P$4=\"nie dotyczy\",0,\" \"))","v":0},null,null,{"$f":"IF($A$65=\"nie dotyczy\",0,IF(S$4=\"nie dotyczy\",0,\" \"))","v":0},null,null,{"$f":"IF($A$65=\"nie dotyczy\",0,IF(V$4=\"nie dotyczy\",0,\" \"))","v":0},null,null,{"$f":"IF($A$65=\"nie dotyczy\",0,IF(Y$4=\"nie dotyczy\",0,\" \"))","v":0},null,null,{"$f":"IF($A$65=\"nie dotyczy\",0,IF(AB$4=\"nie dotyczy\",0,\" \"))","v":0},null,null,{"$f":"IF($A$65=\"nie dotyczy\",0,IF(AE$4=\"nie dotyczy\",0,\" \"))","v":0},null,null,{"$f":"IF($A$65=\"nie dotyczy\",0,IF(AH$4=\"nie dotyczy\",0,\" \"))","v":0},null,null,"317.",{"$f":"IF($A$65=\"nie dotyczy\",0,\" \")","v":0},null,null,"Należy wskazać nazwę wskaźnika, określić jednostkę miary, wartości wskaźnika oraz podać uzasadnienie."]
["Uzasadnienie dla doboru wskaźnika rezultatu, (metodologia, sposób obliczenia oraz uzasadnienie i weryfikacja wartości docelowych dla wskaźnika rezultatu. Należy wskazać również nazwę dokumentu źródłowego dostępnego u przedsiębiorcy na podstawie, którego wnioskodawca przedstawił wartość bazową wskaźnika)"]
["318.",{"$f":"$B$9","v":"Uzasadnienie:"},{"$f":"IF($A$65=\"nie dotyczy\",\"Nie dotyczy\",\" \")","v":"Nie dotyczy"}]
[{"$f":"IF($K$63=\"tak\",\"Uzupełnij nazwę wskaźnika\",\"Nie dotyczy\")","v":"Nie dotyczy"},null,{"$f":"IF($A$65=\"nie dotyczy\",\"Nie dotyczy\",\"Uzupełnij jednostkę miary\")","v":"Nie dotyczy"},"319.",{"$f":"IF($A$65=\"nie dotyczy\",0,\" \")","v":0},null,{"$f":"IF($A$65=\"nie dotyczy\",0,IF(G$4=\"nie dotyczy\",0,\" \"))","v":0},null,null,{"$f":"IF($A$65=\"nie dotyczy\",0,IF(J$4=\"nie dotyczy\",0,\" \"))","v":0},null,null,{"$f":"IF($A$65=\"nie dotyczy\",0,IF(M$4=\"nie dotyczy\",0,\" \"))","v":0},null,null,{"$f":"IF($A$65=\"nie dotyczy\",0,IF(P$4=\"nie dotyczy\",0,\" \"))","v":0},null,null,{"$f":"IF($A$65=\"nie dotyczy\",0,IF(S$4=\"nie dotyczy\",0,\" \"))","v":0},null,null,{"$f":"IF($A$65=\"nie dotyczy\",0,IF(V$4=\"nie dotyczy\",0,\" \"))","v":0},null,null,{"$f":"IF($A$65=\"nie dotyczy\",0,IF(Y$4=\"nie dotyczy\",0,\" \"))","v":0},null,null,{"$f":"IF($A$65=\"nie dotyczy\",0,IF(AB$4=\"nie dotyczy\",0,\" \"))","v":0},null,null,{"$f":"IF($A$65=\"nie dotyczy\",0,IF(AE$4=\"nie dotyczy\",0,\" \"))","v":0},null,null,{"$f":"IF($A$65=\"nie dotyczy\",0,IF(AH$4=\"nie dotyczy\",0,\" \"))","v":0},null,null,"320.",{"$f":"IF($A$65=\"nie dotyczy\",0,\" \")","v":0},null,null,"Należy wskazać nazwę wskaźnika, określić jednostkę miary, wartości wskaźnika oraz podać uzasadnienie."]
["Uzasadnienie dla doboru wskaźnika rezultatu, (metodologia, sposób obliczenia oraz uzasadnienie i weryfikacja wartości docelowych dla wskaźnika rezultatu. Należy wskazać również nazwę dokumentu źródłowego dostępnego u przedsiębiorcy na podstawie, którego wnioskodawca przedstawił wartość bazową wskaźnika)"]
["321.",{"$f":"$B$9","v":"Uzasadnienie:"},{"$f":"IF($A$65=\"nie dotyczy\",\"Nie dotyczy\",\" \")","v":"Nie dotyczy"}]
[{"$f":"IF($K$63=\"tak\",\"Uzupełnij nazwę wskaźnika\",\"Nie dotyczy\")","v":"Nie dotyczy"},null,{"$f":"IF($A$65=\"nie dotyczy\",\"Nie dotyczy\",\"Uzupełnij jednostkę miary\")","v":"Nie dotyczy"},"322.",{"$f":"IF($A$65=\"nie dotyczy\",0,\" \")","v":0},null,{"$f":"IF($A$65=\"nie dotyczy\",0,IF(G$4=\"nie dotyczy\",0,\" \"))","v":0},null,null,{"$f":"IF($A$65=\"nie dotyczy\",0,IF(J$4=\"nie dotyczy\",0,\" \"))","v":0},null,null,{"$f":"IF($A$65=\"nie dotyczy\",0,IF(M$4=\"nie dotyczy\",0,\" \"))","v":0},null,null,{"$f":"IF($A$65=\"nie dotyczy\",0,IF(P$4=\"nie dotyczy\",0,\" \"))","v":0},null,null,{"$f":"IF($A$65=\"nie dotyczy\",0,IF(S$4=\"nie dotyczy\",0,\" \"))","v":0},null,null,{"$f":"IF($A$65=\"nie dotyczy\",0,IF(V$4=\"nie dotyczy\",0,\" \"))","v":0},null,null,{"$f":"IF($A$65=\"nie dotyczy\",0,IF(Y$4=\"nie dotyczy\",0,\" \"))","v":0},null,null,{"$f":"IF($A$65=\"nie dotyczy\",0,IF(AB$4=\"nie dotyczy\",0,\" \"))","v":0},null,null,{"$f":"IF($A$65=\"nie dotyczy\",0,IF(AE$4=\"nie dotyczy\",0,\" \"))","v":0},null,null,{"$f":"IF($A$65=\"nie dotyczy\",0,IF(AH$4=\"nie dotyczy\",0,\" \"))","v":0},null,null,"323.",{"$f":"IF($A$65=\"nie dotyczy\",0,\" \")","v":0},null,null,"Należy wskazać nazwę wskaźnika, określić jednostkę miary, wartości wskaźnika oraz podać uzasadnienie."]
["Uzasadnienie dla doboru wskaźnika rezultatu, (metodologia, sposób obliczenia oraz uzasadnienie i weryfikacja wartości docelowych dla wskaźnika rezultatu. Należy wskazać również nazwę dokumentu źródłowego dostępnego u przedsiębiorcy na podstawie, którego wnioskodawca przedstawił wartość bazową wskaźnika)"]
["324.",{"$f":"$B$9","v":"Uzasadnienie:"},{"$f":"IF($A$65=\"nie dotyczy\",\"Nie dotyczy\",\" \")","v":"Nie dotyczy"}]

{"sheet":"IX. Powiazanie projektu","index":13,"n_rows":34,"n_cols":37,"rows_kept":34,"cut":false,"hidden":false,"merged":[[33,1,33,32],[5,22,5,27],[3,17,3,21],[3,22,3,27],[4,12,4,16],[4,17,4,21],[4,22,4,27],[6,0,6,1],[7,0,7,1],[3,2,3,6],[3,7,3,11],[5,2,5,6],[6,2,6,6],[7,2,7,6],[5,7,5,11],[4,0,4,1],[4,2,4,6],[4,7,4,11],[6,7,6,11],[7,7,7,11],[8,22,8,27],[13,0,13,32],[14,24,14,32],[14,0,14,22],[2,0,2,22],[2,24,2,32],[0,0,0,32],[1,0,1,32],[3,0,3,1],[3,28,3,32],[12,28,12,32],[8,0,8,1],[8,2,8,6],[8,7,8,11],[8,12,8,16],[8,17,8,21],[5,12,5,16],[6,12,6,16],[7,12,7,16],[6,22,6,27],[7,22,7,27],[5,17,5,21],[6,17,6,21],[7,17,7,21],[10,12,10,16],[10,17,10,21],[4,28,4,32],[3,12,3,16],[15,1,15,32],[5,28,5,32],[6,28,6,32],[7,28,7,32],[8,28,8,32],[12,0,12,1],[12,2,12,6],[12,7,12,11],[12,12,12,16],[12,17,12,21],[12,22,12,27],[10,22,10,27],[10,28,10,32],[9,17,9,21],[9,22,9,27],[9,28,9,32],[10,0,10,1],[10,2,10,6],[10,7,10,11],[5,0,5,1],[14,34,16,34],[17,34,19,34],[20,34,22,34],[23,34,25,34],[29,34,31,34],[29,35,31,35],[23,35,25,35],[26,34,28,34],[0,33,0,35],[14,33,16,33],[17,33,19,33],[20,33,22,33],[3,35,12,35],[14,35,16,35],[17,35,19,35],[20,35,22,35],[13,33,13,35],[3,36,12,36],[14,36,16,36],[17,36,19,36],[20,36,22,36],[23,36,25,36],[26,36,28,36],[29,36,31,36],[11,0,11,1],[11,2,11,6],[11,7,11,11],[11,12,11,16],[11,17,11,21],[11,22,11,27],[11,28,11,32],[9,0,9,1],[9,2,9,6],[9,7,9,11],[9,12,9,16],[26,35,28,35],[23,33,25,33],[26,33,28,33],[29,33,31,33],[3,33,12,33],[3,34,12,34],[30,1,30,32],[31,0,31,32],[26,0,26,22],[27,1,27,32],[28,0,28,32],[29,0,29,22],[26,24,26,32],[29,24,29,32],[16,0,16,32],[25,0,25,32],[17,0,17,22],[17,24,17,32],[18,1,18,32],[19,0,19,32],[20,0,20,22],[20,24,20,32],[21,1,21,32],[22,0,22,32],[23,0,23,22],[23,24,23,32],[24,1,24,32]]}
["IX. UDZIELONA POMOC, POWIĄZANIE PROJEKTU Z INNYMI PROJEKTAMI WNIOSKODAWCY I STRATEGIAMI",null,null,null,null,null,null,null,null,null,null,null,null,null,null,null,null,null,null,null,null,null,null,null,null,null,null,null,null,null,null,null,null,"Uwagi/komentarze Ekspertów"]
[null,null,null,null,null,null,null,null,null,null,null,null,null,null,null,null,null,null,null,null,null,null,null,null,null,null,null,null,null,null,null,null,null,{"$f":"'I. Informacje o projekcie'!$AH$2","v":"Ekspert od innowacyjności 1"},{"$f":"'I. Informacje o projekcie'!$AI$2","v":"Ekspert od innowacyjności 2"},{"$f":"'I. Informacje o projekcie'!$AJ$2","v":"Ekspert finansowy"},{"$f":"'I. Informacje o projekcie'!$AK$2","v":"Uwagi MFiPR"}]
["Wnioskodawca uzyskał pomoc na podstawie Rozporządzenia COVID-1910  lub inną pomoc przyznaną po dniu 31 stycznia 2020 r. ",null,null,null,null,null,null,null,null,null,null,null,null,null,null,null,null,null,null,null,null,null,null,"325."]
["Lp.",null,"Tytuł projektu",null,null,null,null,"Nazwa Programu",null,null,null,null,"Źródło finansowania",null,null,null,null,"Kwota dofinansowania (PLN)",null,null,null,null,"Kwota wydatków całkowitych (PLN)",null,null,null,null,null,"Opis powiązań/zakres projektu"]
[null,null,"326.",null,null,null,null,"327.",null,null,null,null,"328.",null,null,null,null,"329.",null,null,null,null,"330.",null,null,null,null,null,"331."]
["1.",null,{"$f":"IF($Y$3=\"nie\",\"Nie dotyczy\",\" \")","v":" "},null,null,null,null,{"$f":"IF($Y$3=\"nie\",\"Nie dotyczy\",\" \")","v":" "},null,null,null,null,{"$f":"IF($Y$3=\"nie\",\"Nie dotyczy\",\" \")","v":" "},null,null,null,null,{"$f":"IF($Y$3=\"nie\",\"Nie dotyczy\",\" \")","v":" "},null,null,null,null,{"$f":"IF($Y$3=\"nie\",\"Nie dotyczy\",\" \")","v":" "},null,null,null,null,null,{"$f":"IF($Y$3=\"nie\",\"Nie dotyczy\",\" \")","v":" "}]
["2.",null," ",null,null,null,null,{"$f":"IF($C7=\"nie dotyczy\",\"Nie dotyczy\",\" \")","v":" "},null,null,null,null,{"$f":"IF($C7=\"nie dotyczy\",\"Nie dotyczy\",\" \")","v":" "},null,null,null,null,{"$f":"IF($C7=\"nie dotyczy\",\"Nie dotyczy\",\" \")","v":" "},null,null,null,null,{"$f":"IF($C7=\"nie dotyczy\",\"Nie dotyczy\",\" \")","v":" "},null,null,null,null,null,{"$f":"IF($C7=\"nie dotyczy\",\"Nie dotyczy\",\" \")","v":" "}]
["3.",null," ",null,null,null,null," ",null,null,null,null," ",null,null,null,null," ",null,null,null,null," ",null,null,null,null,null," "]
["4.",null," ",null,null,null,null," ",null,null,null,null," ",null,null,null,null," ",null,null,null,null," ",null,null,null,null,null," "]
["5.",null," ",null,null,null,null," ",null,null,null,null," ",null,null,null,null," ",null,null,null,null," ",null,null,null,null,null," "]
["6.",null," ",null,null,null,null," ",null,null,null,null," ",null,null,null,null," ",null,null,null,null," ",null,null,null,null,null," "]
["7.",null," ",null,null,null,null," ",null,null,null,null," ",null,null,null,null," ",null,null,null,null," ",null,null,null,null,null," "]
["8.",null," ",null,null,null,null," ",null,null,null,null," ",null,null,null,null," ",null,null,null,null," ",null,null,null,null,null," "]
["Powiązanie ze strategiami:"]
["Strategia UE Morza Bałtyckiego",null,null,null,null,null,null,null,null,null,null,null,null,null,null,null,null,null,null,null,null,null,null,"332."]
["333.","Uzasadnienie wyboru strategii "]
[{"$f":"IF($Y15=\"tak\",\"Uzupełnij uzasadnienie\",\"Nie dotyczy\")","v":"Nie dotyczy"}]
["Strategia rozwoju Społeczno-Gospodarczego Polski Wschodniej do roku 2020 (dla następujących województw: lubelskie, podkarpackie, podlaskie, świętokrzyskie, warmińsko-mazurskie)",null,null,null,null,null,null,null,null,null,null,null,null,null,null,null,null,null,null,null,null,null,null,"334."]
["335.","Uzasadnienie wyboru strategii"]
[{"$f":"IF($Y18=\"tak\",\"Uzupełnij uzasadnienie\",\"Nie dotyczy\")","v":"Nie dotyczy"}]
["Strategia Rozwoju Polski Południowej do roku 2020 (dla następujących województw: małopolskie, śląskie)",null,null,null,null,null,null,null,null,null,null,null,null,null,null,null,null,null,null,null,null,null,null,"336."]
["337.","Uzasadnienie wyboru strategii "]
[{"$f":"IF($Y21=\"tak\",\"Uzupełnij uzasadnienie\",\"Nie dotyczy\")","v":"Nie dotyczy"}]
["Strategia Rozwoju Polski Zachodniej do roku 2020 (dla następujących województw: dolnośląskie, lubuskie, opolskie, wielkopolskie, zachodniopomorskie)",null,null,null,null,null,null,null,null,null,null,null,null,null,null,null,null,null,null,null,null,null,null,"338."]
["339.","Uzasadnienie wyboru strategii"]
[{"$f":"IF($Y24=\"tak\",\"Uzupełnij uzasadnienie\",\"Nie dotyczy\")","v":"Nie dotyczy"}]
["Strategia Rozwoju Polski Centralnej do rok 2020 (dla następujących województw: mazowieckie, łódzkie)",null,null,null,null,null,null,null,null,null,null,null,null,null,null,null,null,null,null,null,null,null,null,"340."]
["341.","Uzasadnienie wyboru strategii "]
[{"$f":"IF($Y27=\"tak\",\"Uzupełnij uzasadnienie\",\"Nie dotyczy\")","v":"Nie dotyczy"}]
["Strategia Europa 2020",null,null,null,null,null,null,null,null,null,null,null,null,null,null,null,null,null,null,null,null,null,null,"342."]
["343.","Uzasadnienie wyboru strategii"]
[{"$f":"IF($Y30=\"tak\",\"Uzupełnij uzasadnienie\",\"Nie dotyczy\")","v":"Nie dotyczy"}]
[]
[10,"Rozporządzenie Ministra Funduszy i Polityki Regionalnej w sprawie udzielania pomocy na działalność badawczo-rozwojową związaną z wystąpieniem pandemii COVID-19, pomocy inwestycyjnej na infrastrukturę służącą do testowania i przygotowania do masowej produkcji produktów służących zwalczaniu pandemii COVID-19 oraz pomocy inwestycyjnej na produkcję produktów służących zwalczaniu pandemii COVID-19, w ramach programów operacyjnych na lata 2014-2020."]

{"sheet":"X. Zakres R-F","index":14,"n_rows":99,"n_cols":31,"rows_kept":99,"cut":false,"hidden":false,"merged":[[0,27,1,29],[43,27,44,29],[86,27,88,29],[104,0,104,2],[0,0,0,4],[43,0,43,5],[87,0,87,26],[94,0,94,2],[95,0,95,1],[96,0,96,1],[85,0,85,2],[97,0,97,1],[98,0,98,1],[101,0,101,1],[102,0,102,1],[103,0,103,1],[99,0,99,1],[100,0,100,1],[1,0,1,4]]}
["X. ZAKRES RZECZOWO-FINANSOWY",null,null,null,null,null,null,null,null,null,null,null,null,null,null,null,null,null,null,null,null,null,null,null,null,null,null,"Uwagi/komentarze Ekspertów"]
["ZAKRES RZECZOWY"]
["Numer zadania","Nazwa zadania","Opis działań planowanych do realizacji w ramach wskazanych zadań/ czas realizacji/ podmiot działania","Wydatki rzeczywiście ponoszone","Wydatki rozliczane ryczałtowo",null,null,null,null,null,null,null,null,null,null,null,null,null,null,null,null,null,null,null,null,null,null,{"$f":"'I. Informacje o projekcie'!$AH$2","v":"Ekspert od innowacyjności 1"},{"$f":"'I. Informacje o projekcie'!$AI$2","v":"Ekspert od innowacyjności 2"},{"$f":"'I. Informacje o projekcie'!$AJ$2","v":"Ekspert finansowy"},{"$f":"'I. Informacje o projekcie'!$AK$2","v":"Uwagi MFiPR"}]
[1,{"$f":"'IV. Wykaz wydatków'!E3","v":0},{"$f":"'IV. Wykaz wydatków'!C5","v":0},"T","N"]
[2,{"$f":"'IV. Wykaz wydatków'!E15","v":0},{"$f":"'IV. Wykaz wydatków'!C17","v":0},"T","N"]
[3,{"$f":"'IV. Wykaz wydatków'!E27","v":0},{"$f":"'IV. Wykaz wydatków'!C29","v":0},"T","N"]
[4,{"$f":"'IV. Wykaz wydatków'!E39","v":0},{"$f":"'IV. Wykaz wydatków'!C41","v":0},"T","N"]
[5,{"$f":"'IV. Wykaz wydatków'!E51","v":0},{"$f":"'IV. Wykaz wydatków'!C53","v":0},"T","N"]
[6,{"$f":"'IV. Wykaz wydatków'!E63","v":0},{"$f":"'IV. Wykaz wydatków'!C65","v":0},"T","N"]
[7,{"$f":"'IV. Wykaz wydatków'!E75","v":0},{"$f":"'IV. Wykaz wydatków'!C77","v":0},"T","N"]
[8,{"$f":"'IV. Wykaz wydatków'!E87","v":0},{"$f":"'IV. Wykaz wydatków'!C89","v":0},"T","N"]
[9,{"$f":"'IV. Wykaz wydatków'!E99","v":0},{"$f":"'IV. Wykaz wydatków'!C101","v":0},"T","N"]
[10,{"$f":"'IV. Wykaz wydatków'!E111","v":0},{"$f":"'IV. Wykaz wydatków'!C113","v":0},"T","N"]
[11,{"$f":"'IV. Wykaz wydatków'!E123","v":0},{"$f":"'IV. Wykaz wydatków'!C125","v":0},"T","N"]
[12,{"$f":"'IV. Wykaz wydatków'!E135","v":0},{"$f":"'IV. Wykaz wydatków'!C137","v":0},"T","N"]
[13,{"$f":"'IV. Wykaz wydatków'!E147","v":0},{"$f":"'IV. Wykaz wydatków'!C149","v":0},"T","N"]
[14,{"$f":"'IV. Wykaz wydatków'!E159","v":0},{"$f":"'IV. Wykaz wydatków'!C161","v":0},"T","N"]
[15,{"$f":"'IV. Wykaz wydatków'!E171","v":0},{"$f":"'IV. Wykaz wydatków'!C173","v":0},"T","N"]
[16,{"$f":"'IV. Wykaz wydatków'!E183","v":0},{"$f":"'IV. Wykaz wydatków'!C185","v":0},"T","N"]
[17,{"$f":"'IV. Wykaz wydatków'!E195","v":0},{"$f":"'IV. Wykaz wydatków'!C197","v":0},"T","N"]
[18,{"$f":"'IV. Wykaz wydatków'!E207","v":0},{"$f":"'IV. Wykaz wydatków'!C209","v":0},"T","N"]
[19,{"$f":"'IV. Wykaz wydatków'!E219","v":0},{"$f":"'IV. Wykaz wydatków'!C221","v":0},"T","N"]
[20,{"$f":"'IV. Wykaz wydatków'!E231","v":0},{"$f":"'IV. Wykaz wydatków'!C233","v":0},"T","N"]
[21,{"$f":"'IV. Wykaz wydatków'!E243","v":0},{"$f":"'IV. Wykaz wydatków'!C245","v":0},"T","N"]
[22,{"$f":"'IV. Wykaz wydatków'!E255","v":0},{"$f":"'IV. Wykaz wydatków'!C257","v":0},"T","N"]
[23,{"$f":"'IV. Wykaz wydatków'!E267","v":0},{"$f":"'IV. Wykaz wydatków'!C269","v":0},"T","N"]
[24,{"$f":"'IV. Wykaz wydatków'!E279","v":0},{"$f":"'IV. Wykaz wydatków'!C281","v":0},"T","N"]
[25,{"$f":"'IV. Wykaz wydatków'!E291","v":0},{"$f":"'IV. Wykaz wydatków'!C293","v":0},"T","N"]
[26,{"$f":"'IV. Wykaz wydatków'!E303","v":0},{"$f":"'IV. Wykaz wydatków'!C305","v":0},"T","N"]
[27,{"$f":"'IV. Wykaz wydatków'!E315","v":0},{"$f":"'IV. Wykaz wydatków'!C317","v":0},"T","N"]
[28,{"$f":"'IV. Wykaz wydatków'!E327","v":0},{"$f":"'IV. Wykaz wydatków'!C329","v":0},"T","N"]
[29,{"$f":"'IV. Wykaz wydatków'!E339","v":0},{"$f":"'IV. Wykaz wydatków'!C341","v":0},"T","N"]
[30,{"$f":"'IV. Wykaz wydatków'!E351","v":0},{"$f":"'IV. Wykaz wydatków'!C353","v":0},"T","N"]
[31,{"$f":"'IV. Wykaz wydatków'!E363","v":0},{"$f":"'IV. Wykaz wydatków'!C365","v":0},"T","N"]
[32,{"$f":"'IV. Wykaz wydatków'!E375","v":0},{"$f":"'IV. Wykaz wydatków'!C377","v":0},"T","N"]
[33,{"$f":"'IV. Wykaz wydatków'!E387","v":0},{"$f":"'IV. Wykaz wydatków'!C389","v":0},"T","N"]
[34,{"$f":"'IV. Wykaz wydatków'!E399","v":0},{"$f":"'IV. Wykaz wydatków'!C401","v":0},"T","N"]
[35,{"$f":"'IV. Wykaz wydatków'!E411","v":0},{"$f":"'IV. Wykaz wydatków'!C413","v":0},"T","N"]
[36,{"$f":"'IV. Wykaz wydatków'!E423","v":0},{"$f":"'IV. Wykaz wydatków'!C425","v":0},"T","N"]
[37,{"$f":"'IV. Wykaz wydatków'!E435","v":0},{"$f":"'IV. Wykaz wydatków'!C437","v":0},"T","N"]
[38,{"$f":"'IV. Wykaz wydatków'!E447","v":0},{"$f":"'IV. Wykaz wydatków'!C449","v":0},"T","N"]
[39,{"$f":"'IV. Wykaz wydatków'!E459","v":0},{"$f":"'IV. Wykaz wydatków'!C461","v":0},"T","N"]
[40,{"$f":"'IV. Wykaz wydatków'!E471","v":0},{"$f":"'IV. Wykaz wydatków'!C473","v":0},"T","N"]
["WYDATKI RZECZYWIŚCIE PONOSZONE"]
["Numer zadania","Kategoria kosztów","Nazwa kosztu","Wydatki ogółem","Wydatki kwalifikowalne","Dofinansowanie"]
[1,{"$f":"CONCATENATE(B4,IF('I. Informacje o projekcie'!$A$39=Słowniki!$H$8,Słowniki!$B$750,Słowniki!$B$749))","v":"0 - regiony słabiej rozwinięte"},{"$f":"C4","v":0},{"$f":"'IV. Wykaz wydatków'!C7","v":0},{"$f":"'IV. Wykaz wydatków'!C9","v":0},{"$f":"E46*('V. Aspekty Finansowe'!$N$7+IF('V. Aspekty Finansowe'!$AC$8=\"tak\",'V. Aspekty Finansowe'!$M$9,0))","v":0}]
[2,{"$f":"CONCATENATE(B5,IF('I. Informacje o projekcie'!$A$39=Słowniki!$H$8,Słowniki!$B$750,Słowniki!$B$749))","v":"0 - regiony słabiej rozwinięte"},0,{"$f":"'IV. Wykaz wydatków'!C19","v":0},{"$f":"'IV. Wykaz wydatków'!C21","v":0},{"$f":"E47*('V. Aspekty Finansowe'!$N$7+IF('V. Aspekty Finansowe'!$AC$8=\"tak\",'V. Aspekty Finansowe'!$M$9,0))","v":0}]
[3,{"$f":"CONCATENATE(B6,IF('I. Informacje o projekcie'!$A$39=Słowniki!$H$8,Słowniki!$B$750,Słowniki!$B$749))","v":"0 - regiony słabiej rozwinięte"},0,{"$f":"'IV. Wykaz wydatków'!C31","v":0},{"$f":"'IV. Wykaz wydatków'!C33","v":0},{"$f":"E48*('V. Aspekty Finansowe'!$N$7+IF('V. Aspekty Finansowe'!$AC$8=\"tak\",'V. Aspekty Finansowe'!$M$9,0))","v":0}]
[4,{"$f":"CONCATENATE(B7,IF('I. Informacje o projekcie'!$A$39=Słowniki!$H$8,Słowniki!$B$750,Słowniki!$B$749))","v":"0 - regiony słabiej rozwinięte"},0,{"$f":"'IV. Wykaz wydatków'!C43","v":0},{"$f":"'IV. Wykaz wydatków'!C45","v":0},{"$f":"E49*('V. Aspekty Finansowe'!$N$7+IF('V. Aspekty Finansowe'!$AC$8=\"tak\",'V. Aspekty Finansowe'!$M$9,0))","v":0}]
[5,{"$f":"CONCATENATE(B8,IF('I. Informacje o projekcie'!$A$39=Słowniki!$H$8,Słowniki!$B$750,Słowniki!$B$749))","v":"0 - regiony słabiej rozwinięte"},0,{"$f":"'IV. Wykaz wydatków'!C55","v":0},{"$f":"'IV. Wykaz wydatków'!C57","v":0},{"$f":"E50*('V. Aspekty Finansowe'!$N$7+IF('V. Aspekty Finansowe'!$AC$8=\"tak\",'V. Aspekty Finansowe'!$M$9,0))","v":0}]
[6,{"$f":"CONCATENATE(B9,IF('I. Informacje o projekcie'!$A$39=Słowniki!$H$8,Słowniki!$B$750,Słowniki!$B$749))","v":"0 - regiony słabiej rozwinięte"},0,{"$f":"'IV. Wykaz wydatków'!C67","v":0},{"$f":"'IV. Wykaz wydatków'!C69","v":0},{"$f":"E51*('V. Aspekty Finansowe'!$N$7+IF('V. Aspekty Finansowe'!$AC$8=\"tak\",'V. Aspekty Finansowe'!$M$9,0))","v":0}]
[7,{"$f":"CONCATENATE(B10,IF('I. Informacje o projekcie'!$A$39=Słowniki!$H$8,Słowniki!$B$750,Słowniki!$B$749))","v":"0 - regiony słabiej rozwinięte"},0,{"$f":"'IV. Wykaz wydatków'!C79","v":0},{"$f":"'IV. Wykaz wydatków'!C81","v":0},{"$f":"E52*('V. Aspekty Finansowe'!$N$7+IF('V. Aspekty Finansowe'!$AC$8=\"tak\",'V. Aspekty Finansowe'!$M$9,0))","v":0}]
[8,{"$f":"CONCATENATE(B11,IF('I. Informacje o projekcie'!$A$39=Słowniki!$H$8,Słowniki!$B$750,Słowniki!$B$749))","v":"0 - regiony słabiej rozwinięte"},0,{"$f":"'IV. Wykaz wydatków'!C91","v":0},{"$f":"'IV. Wykaz wydatków'!C93","v":0},{"$f":"E53*('V. Aspekty Finansowe'!$N$7+IF('V. Aspekty Finansowe'!$AC$8=\"tak\",'V. Aspekty Finansowe'!$M$9,0))","v":0}]
[9,{"$f":"CONCATENATE(B12,IF('I. Informacje o projekcie'!$A$39=Słowniki!$H$8,Słowniki!$B$750,Słowniki!$B$749))","v":"0 - regiony słabiej rozwinięte"},0,{"$f":"'IV. Wykaz wydatków'!C103","v":0},{"$f":"'IV. Wykaz wydatków'!C105","v":0},{"$f":"E54*('V. Aspekty Finansowe'!$N$7+IF('V. Aspekty Finansowe'!$AC$8=\"tak\",'V. Aspekty Finansowe'!$M$9,0))","v":0}]
[10,{"$f":"CONCATENATE(B13,IF('I. Informacje o projekcie'!$A$39=Słowniki!$H$8,Słowniki!$B$750,Słowniki!$B$749))","v":"0 - regiony słabiej rozwinięte"},0,{"$f":"'IV. Wykaz wydatków'!C115","v":0},{"$f":"'IV. Wykaz wydatków'!C117","v":0},{"$f":"E55*('V. Aspekty Finansowe'!$N$7+IF('V. Aspekty Finansowe'!$AC$8=\"tak\",'V. Aspekty Finansowe'!$M$9,0))","v":0}]
[11,{"$f":"CONCATENATE(B14,IF('I. Informacje o projekcie'!$A$39=Słowniki!$H$8,Słowniki!$B$750,Słowniki!$B$749))","v":"0 - regiony słabiej rozwinięte"},0,{"$f":"'IV. Wykaz wydatków'!C127","v":0},{"$f":"'IV. Wykaz wydatków'!C129","v":0},{"$f":"E56*('V. Aspekty Finansowe'!$N$7+IF('V. Aspekty Finansowe'!$AC$8=\"tak\",'V. Aspekty Finansowe'!$M$9,0))","v":0}]
[12,{"$f":"CONCATENATE(B15,IF('I. Informacje o projekcie'!$A$39=Słowniki!$H$8,Słowniki!$B$750,Słowniki!$B$749))","v":"0 - regiony słabiej rozwinięte"},0,{"$f":"'IV. Wykaz wydatków'!C139","v":0},{"$f":"'IV. Wykaz wydatków'!C141","v":0},{"$f":"E57*('V. Aspekty Finansowe'!$N$7+IF('V. Aspekty Finansowe'!$AC$8=\"tak\",'V. Aspekty Finansowe'!$M$9,0))","v":0}]
[13,{"$f":"CONCATENATE(B16,IF('I. Informacje o projekcie'!$A$39=Słowniki!$H$8,Słowniki!$B$750,Słowniki!$B$749))","v":"0 - regiony słabiej rozwinięte"},0,{"$f":"'IV. Wykaz wydatków'!C151","v":0},{"$f":"'IV. Wykaz wydatków'!C153","v":0},{"$f":"E58*('V. Aspekty Finansowe'!$N$7+IF('V. Aspekty Finansowe'!$AC$8=\"tak\",'V. Aspekty Finansowe'!$M$9,0))","v":0}]
[14,{"$f":"CONCATENATE(B17,IF('I. Informacje o projekcie'!$A$39=Słowniki!$H$8,Słowniki!$B$750,Słowniki!$B$749))","v":"0 - regiony słabiej rozwinięte"},0,{"$f":"'IV. Wykaz wydatków'!C163","v":0},{"$f":"'IV. Wykaz wydatków'!C165","v":0},{"$f":"E59*('V. Aspekty Finansowe'!$N$7+IF('V. Aspekty Finansowe'!$AC$8=\"tak\",'V. Aspekty Finansowe'!$M$9,0))","v":0}]
[15,{"$f":"CONCATENATE(B18,IF('I. Informacje o projekcie'!$A$39=Słowniki!$H$8,Słowniki!$B$750,Słowniki!$B$749))","v":"0 - regiony słabiej rozwinięte"},0,{"$f":"'IV. Wykaz wydatków'!C175","v":0},{"$f":"'IV. Wykaz wydatków'!C177","v":0},{"$f":"E60*('V. Aspekty Finansowe'!$N$7+IF('V. Aspekty Finansowe'!$AC$8=\"tak\",'V. Aspekty Finansowe'!$M$9,0))","v":0}]
[16,{"$f":"CONCATENATE(B19,IF('I. Informacje o projekcie'!$A$39=Słowniki!$H$8,Słowniki!$B$750,Słowniki!$B$749))","v":"0 - regiony słabiej rozwinięte"},0,{"$f":"'IV. Wykaz wydatków'!C187","v":0},{"$f":"'IV. Wykaz wydatków'!C189","v":0},{"$f":"E61*('V. Aspekty Finansowe'!$N$7+IF('V. Aspekty Finansowe'!$AC$8=\"tak\",'V. Aspekty Finansowe'!$M$9,0))","v":0}]
[17,{"$f":"CONCATENATE(B20,IF('I. Informacje o projekcie'!$A$39=Słowniki!$H$8,Słowniki!$B$750,Słowniki!$B$749))","v":"0 - regiony słabiej rozwinięte"},0,{"$f":"'IV. Wykaz wydatków'!C199","v":0},{"$f":"'IV. Wykaz wydatków'!C201","v":0},{"$f":"E62*('V. Aspekty Finansowe'!$N$7+IF('V. Aspekty Finansowe'!$AC$8=\"tak\",'V. Aspekty Finansowe'!$M$9,0))","v":0}]
[18,{"$f":"CONCATENATE(B21,IF('I. Informacje o projekcie'!$A$39=Słowniki!$H$8,Słowniki!$B$750,Słowniki!$B$749))","v":"0 - regiony słabiej rozwinięte"},0,{"$f":"'IV. Wykaz wydatków'!C211","v":0},{"$f":"'IV. Wykaz wydatków'!C213","v":0},{"$f":"E63*('V. Aspekty Finansowe'!$N$7+IF('V. Aspekty Finansowe'!$AC$8=\"tak\",'V. Aspekty Finansowe'!$M$9,0))","v":0}]
[19,{"$f":"CONCATENATE(B22,IF('I. Informacje o projekcie'!$A$39=Słowniki!$H$8,Słowniki!$B$750,Słowniki!$B$749))","v":"0 - regiony słabiej rozwinięte"},0,{"$f":"'IV. Wykaz wydatków'!C223","v":0},{"$f":"'IV. Wykaz wydatków'!C225","v":0},{"$f":"E64*('V. Aspekty Finansowe'!$N$7+IF('V. Aspekty Finansowe'!$AC$8=\"tak\",'V. Aspekty Finansowe'!$M$9,0))","v":0}]
[20,{"$f":"CONCATENATE(B23,IF('I. Informacje o projekcie'!$A$39=Słowniki!$H$8,Słowniki!$B$750,Słowniki!$B$749))","v":"0 - regiony słabiej rozwinięte"},0,{"$f":"'IV. Wykaz wydatków'!C235","v":0},{"$f":"'IV. Wykaz wydatków'!C237","v":0},{"$f":"E65*('V. Aspekty Finansowe'!$N$7+IF('V. Aspekty Finansowe'!$AC$8=\"tak\",'V. Aspekty Finansowe'!$M$9,0))","v":0}]
[21,{"$f":"CONCATENATE(B24,IF('I. Informacje o projekcie'!$A$39=Słowniki!$H$8,Słowniki!$B$750,Słowniki!$B$749))","v":"0 - regiony słabiej rozwinięte"},0,{"$f":"'IV. Wykaz wydatków'!C247","v":0},{"$f":"'IV. Wykaz wydatków'!C249","v":0},{"$f":"E66*('V. Aspekty Finansowe'!$N$7+IF('V. Aspekty Finansowe'!$AC$8=\"tak\",'V. Aspekty Finansowe'!$M$9,0))","v":0}]
[22,{"$f":"CONCATENATE(B25,IF('I. Informacje o projekcie'!$A$39=Słowniki!$H$8,Słowniki!$B$750,Słowniki!$B$749))","v":"0 - regiony słabiej rozwinięte"},0,{"$f":"'IV. Wykaz wydatków'!C259","v":0},{"$f":"'IV. Wykaz wydatków'!C261","v":0},{"$f":"E67*('V. Aspekty Finansowe'!$N$7+IF('V. Aspekty Finansowe'!$AC$8=\"tak\",'V. Aspekty Finansowe'!$M$9,0))","v":0}]
[23,{"$f":"CONCATENATE(B26,IF('I. Informacje o projekcie'!$A$39=Słowniki!$H$8,Słowniki!$B$750,Słowniki!$B$749))","v":"0 - regiony słabiej rozwinięte"},0,{"$f":"'IV. Wykaz wydatków'!C271","v":0},{"$f":"'IV. Wykaz wydatków'!C273","v":0},{"$f":"E68*('V. Aspekty Finansowe'!$N$7+IF('V. Aspekty Finansowe'!$AC$8=\"tak\",'V. Aspekty Finansowe'!$M$9,0))","v":0}]
[24,{"$f":"CONCATENATE(B27,IF('I. Informacje o projekcie'!$A$39=Słowniki!$H$8,Słowniki!$B$750,Słowniki!$B$749))","v":"0 - regiony słabiej rozwinięte"},0,{"$f":"'IV. Wykaz wydatków'!C283","v":0},{"$f":"'IV. Wykaz wydatków'!C285","v":0},{"$f":"E69*('V. Aspekty Finansowe'!$N$7+IF('V. Aspekty Finansowe'!$AC$8=\"tak\",'V. Aspekty Finansowe'!$M$9,0))","v":0}]
[25,{"$f":"CONCATENATE(B28,IF('I. Informacje o projekcie'!$A$39=Słowniki!$H$8,Słowniki!$B$750,Słowniki!$B$749))","v":"0 - regiony słabiej rozwinięte"},0,{"$f":"'IV. Wykaz wydatków'!C295","v":0},{"$f":"'IV. Wykaz wydatków'!C297","v":0},{"$f":"E70*('V. Aspekty Finansowe'!$N$7+IF('V. Aspekty Finansowe'!$AC$8=\"tak\",'V. Aspekty Finansowe'!$M$9,0))","v":0}]
[26,{"$f":"CONCATENATE(B29,IF('I. Informacje o projekcie'!$A$39=Słowniki!$H$8,Słowniki!$B$750,Słowniki!$B$749))","v":"0 - regiony słabiej rozwinięte"},0,{"$f":"'IV. Wykaz wydatków'!C307","v":0},{"$f":"'IV. Wykaz wydatków'!C309","v":0},{"$f":"E71*('V. Aspekty Finansowe'!$N$7+IF('V. Aspekty Finansowe'!$AC$8=\"tak\",'V. Aspekty Finansowe'!$M$9,0))","v":0}]
[27,{"$f":"CONCATENATE(B30,IF('I. Informacje o projekcie'!$A$39=Słowniki!$H$8,Słowniki!$B$750,Słowniki!$B$749))","v":"0 - regiony słabiej rozwinięte"},0,{"$f":"'IV. Wykaz wydatków'!C319","v":0},{"$f":"'IV. Wykaz wydatków'!C321","v":0},{"$f":"E72*('V. Aspekty Finansowe'!$N$7+IF('V. Aspekty Finansowe'!$AC$8=\"tak\",'V. Aspekty Finansowe'!$M$9,0))","v":0}]
[28,{"$f":"CONCATENATE(B31,IF('I. Informacje o projekcie'!$A$39=Słowniki!$H$8,Słowniki!$B$750,Słowniki!$B$749))","v":"0 - regiony słabiej rozwinięte"},0,{"$f":"'IV. Wykaz wydatków'!C331","v":0},{"$f":"'IV. Wykaz wydatków'!C333","v":0},{"$f":"E73*('V. Aspekty Finansowe'!$N$7+IF('V. Aspekty Finansowe'!$AC$8=\"tak\",'V. Aspekty Finansowe'!$M$9,0))","v":0}]
[29,{"$f":"CONCATENATE(B32,IF('I. Informacje o projekcie'!$A$39=Słowniki!$H$8,Słowniki!$B$750,Słowniki!$B$749))","v":"0 - regiony słabiej rozwinięte"},0,{"$f":"'IV. Wykaz wydatków'!C343","v":0},{"$f":"'IV. Wykaz wydatków'!C345","v":0},{"$f":"E74*('V. Aspekty Finansowe'!$N$7+IF('V. Aspekty Finansowe'!$AC$8=\"tak\",'V. Aspekty Finansowe'!$M$9,0))","v":0}]
[30,{"$f":"CONCATENATE(B33,IF('I. Informacje o projekcie'!$A$39=Słowniki!$H$8,Słowniki!$B$750,Słowniki!$B$749))","v":"0 - regiony słabiej rozwinięte"},0,{"$f":"'IV. Wykaz wydatków'!C355","v":0},{"$f":"'IV. Wykaz wydatków'!C357","v":0},{"$f":"E75*('V. Aspekty Finansowe'!$N$7+IF('V. Aspekty Finansowe'!$AC$8=\"tak\",'V. Aspekty Finansowe'!$M$9,0))","v":0}]
[31,{"$f":"CONCATENATE(B34,IF('I. Informacje o projekcie'!$A$39=Słowniki!$H$8,Słowniki!$B$750,Słowniki!$B$749))","v":"0 - regiony słabiej rozwinięte"},0,{"$f":"'IV. Wykaz wydatków'!C367","v":0},{"$f":"'IV. Wykaz wydatków'!C369","v":0},{"$f":"E76*('V. Aspekty Finansowe'!$N$7+IF('V. Aspekty Finansowe'!$AC$8=\"tak\",'V. Aspekty Finansowe'!$M$9,0))","v":0}]
[32,{"$f":"CONCATENATE(B35,IF('I. Informacje o projekcie'!$A$39=Słowniki!$H$8,Słowniki!$B$750,Słowniki!$B$749))","v":"0 - regiony słabiej rozwinięte"},0,{"$f":"'IV. Wykaz wydatków'!C379","v":0},{"$f":"'IV. Wykaz wydatków'!C381","v":0},{"$f":"E77*('V. Aspekty Finansowe'!$N$7+IF('V. Aspekty Finansowe'!$AC$8=\"tak\",'V. Aspekty Finansowe'!$M$9,0))","v":0}]
[33,{"$f":"CONCATENATE(B36,IF('I. Informacje o projekcie'!$A$39=Słowniki!$H$8,Słowniki!$B$750,Słowniki!$B$749))","v":"0 - regiony słabiej rozwinięte"},0,{"$f":"'IV. Wykaz wydatków'!C391","v":0},{"$f":"'IV. Wykaz wydatków'!C393","v":0},{"$f":"E78*('V. Aspekty Finansowe'!$N$7+IF('V. Aspekty Finansowe'!$AC$8=\"tak\",'V. Aspekty Finansowe'!$M$9,0))","v":0}]
[34,{"$f":"CONCATENATE(B37,IF('I. Informacje o projekcie'!$A$39=Słowniki!$H$8,Słowniki!$B$750,Słowniki!$B$749))","v":"0 - regiony słabiej rozwinięte"},0,{"$f":"'IV. Wykaz wydatków'!C403","v":0},{"$f":"'IV. Wykaz wydatków'!C405","v":0},{"$f":"E79*('V. Aspekty Finansowe'!$N$7+IF('V. Aspekty Finansowe'!$AC$8=\"tak\",'V. Aspekty Finansowe'!$M$9,0))","v":0}]
[35,{"$f":"CONCATENATE(B38,IF('I. Informacje o projekcie'!$A$39=Słowniki!$H$8,Słowniki!$B$750,Słowniki!$B$749))","v":"0 - regiony słabiej rozwinięte"},0,{"$f":"'IV. Wykaz wydatków'!C415","v":0},{"$f":"'IV. Wykaz wydatków'!C417","v":0},{"$f":"E80*('V. Aspekty Finansowe'!$N$7+IF('V. Aspekty Finansowe'!$AC$8=\"tak\",'V. Aspekty Finansowe'!$M$9,0))","v":0}]
[36,{"$f":"CONCATENATE(B39,IF('I. Informacje o projekcie'!$A$39=Słowniki!$H$8,Słowniki!$B$750,Słowniki!$B$749))","v":"0 - regiony słabiej rozwinięte"},0,{"$f":"'IV. Wykaz wydatków'!C427","v":0},{"$f":"'IV. Wykaz wydatków'!C429","v":0},{"$f":"E81*('V. Aspekty Finansowe'!$N$7+IF('V. Aspekty Finansowe'!$AC$8=\"tak\",'V. Aspekty Finansowe'!$M$9,0))","v":0}]
[37,{"$f":"CONCATENATE(B40,IF('I. Informacje o projekcie'!$A$39=Słowniki!$H$8,Słowniki!$B$750,Słowniki!$B$749))","v":"0 - regiony słabiej rozwinięte"},0,{"$f":"'IV. Wykaz wydatków'!C439","v":0},{"$f":"'IV. Wykaz wydatków'!C441","v":0},{"$f":"E82*('V. Aspekty Finansowe'!$N$7+IF('V. Aspekty Finansowe'!$AC$8=\"tak\",'V. Aspekty Finansowe'!$M$9,0))","v":0}]
[38,{"$f":"CONCATENATE(B41,IF('I. Informacje o projekcie'!$A$39=Słowniki!$H$8,Słowniki!$B$750,Słowniki!$B$749))","v":"0 - regiony słabiej rozwinięte"},0,{"$f":"'IV. Wykaz wydatków'!C451","v":0},{"$f":"'IV. Wykaz wydatków'!C453","v":0},{"$f":"E83*('V. Aspekty Finansowe'!$N$7+IF('V. Aspekty Finansowe'!$AC$8=\"tak\",'V. Aspekty Finansowe'!$M$9,0))","v":0}]
[39,{"$f":"CONCATENATE(B42,IF('I. Informacje o projekcie'!$A$39=Słowniki!$H$8,Słowniki!$B$750,Słowniki!$B$749))","v":"0 - regiony słabiej rozwinięte"},0,{"$f":"'IV. Wykaz wydatków'!C463","v":0},{"$f":"'IV. Wykaz wydatków'!C465","v":0},{"$f":"E84*('V. Aspekty Finansowe'!$N$7+IF('V. Aspekty Finansowe'!$AC$8=\"tak\",'V. Aspekty Finansowe'!$M$9,0))","v":0}]
[40,{"$f":"CONCATENATE(B43,IF('I. Informacje o projekcie'!$A$39=Słowniki!$H$8,Słowniki!$B$750,Słowniki!$B$749))","v":"0 - regiony słabiej rozwinięte"},0,{"$f":"'IV. Wykaz wydatków'!C475","v":0},{"$f":"'IV. Wykaz wydatków'!C477","v":0},{"$f":"E85*('V. Aspekty Finansowe'!$N$7+IF('V. Aspekty Finansowe'!$AC$8=\"tak\",'V. Aspekty Finansowe'!$M$9,0))","v":0}]
["Razem:",null,null,{"$f":"SUM(D46:D85)","v":0},{"$f":"SUM(E46:E85)","v":0},{"$f":"SUM(F46:F85)","v":0}]
[null,null,null,{"$f":"IF(D86='Fiszka projektu'!$K$60,\" \",\"SUMA WPROWADZONYCH KWOT NIEZGODNA Z CZ. IV ASPEKTY FINANSOWE\")","v":" "},{"$f":"IF(E86='Fiszka projektu'!$K$62,\" \",\"SUMA WPROWADZONYCH KWOT NIEZGODNA Z CZ. IV ASPEKTY FINANSOWE\")","v":" "},{"$f":"IF(F86='Fiszka projektu'!$K$64,\" \",\"SUMA WPROWADZONYCH KWOT NIEZGODNA Z CZ. IV ASPEKTY FINANSOWE\")","v":" "}]
["WYDATKI ROZLICZANE RYCZAŁTOWO"]
["Numer zadania","Rodzaj ryczałtu","Nazwa ryczałtu","Wydatki ogółem","Wydatki kwalifikowalne","Dofinansowanie","Liczba stawek","Nazwa wskaźnika 1","Wartość wskaźnika 1","Nazwa wskaźnika 2","Wartość wskaźnika 2","Nazwa wskaźnika 3","Wartość wskaźnika 3","Nazwa wskaźnika 4","Wartość wskaźnika 4","Nazwa wskaźnika 5","Wartość wskaźnika 5","Nazwa wskaźnika 6","Wartość wskaźnika 6","Nazwa wskaźnika 7","Wartość wskaźnika 7","Nazwa wskaźnika 8","Wartość wskaźnika 8","Nazwa wskaźnika 9","Wartość wskaźnika 9","Nazwa wskaźnika 10","Wartość wskaźnika 10"]
[]
[]
[]
[]
[]
["KATEGORIE KOSZTÓW PODLEGAJĄCYCH LIMITOM"]
["Nazwa kategorii",null,"Wydatki kwalifikowalne"]
["wydatki poniesione na zakup gruntów",null,0]
["wkład rzeczowy",null,0]
["cross-financing",null,0]

{"sheet":"XI. Deklaracja wnioskodawcy","index":15,"n_rows":60,"n_cols":37,"rows_kept":60,"cut":false,"hidden":false,"merged":[[0,33,0,35],[0,0,1,32],[21,1,21,32],[20,33,21,33],[22,33,23,33],[23,1,23,32],[7,1,7,32],[17,1,17,32],[18,1,18,32],[8,1,8,32],[9,1,9,32],[10,1,10,32],[12,1,12,32],[11,1,11,32],[13,1,13,32],[14,1,14,32],[59,1,59,32],[56,1,56,32],[57,1,57,32],[58,1,58,32],[36,1,36,32],[53,16,53,30],[37,1,37,32],[38,1,38,32],[39,1,39,32],[43,1,43,32],[44,1,44,32],[45,1,45,32],[32,1,32,32],[30,1,30,32],[29,1,29,32],[47,1,47,32],[40,1,40,32],[33,1,33,32],[34,1,34,32],[35,1,35,32],[16,1,16,32],[2,1,2,32],[3,1,3,32],[5,1,5,32],[6,1,6,32],[4,1,4,32],[10,0,11,0],[41,1,41,32],[42,1,42,32],[53,3,53,12],[15,1,15,32],[19,1,19,32],[48,0,52,32],[20,1,20,32],[22,1,22,32],[24,1,24,32],[26,1,26,32],[27,1,27,32],[25,1,25,32],[46,1,46,32],[28,1,28,32],[31,1,31,32]]}
["XI. DEKLARACJA WNIOSKODAWCY:",null,null,null,null,null,null,null,null,null,null,null,null,null,null,null,null,null,null,null,null,null,null,null,null,null,null,null,null,null,null,null,null,"Uwagi/komentarze Ekspertów"]
[null,null,null,null,null,null,null,null,null,null,null,null,null,null,null,null,null,null,null,null,null,null,null,null,null,null,null,null,null,null,null,null,null,{"$f":"'I. Informacje o projekcie'!$AH$2","v":"Ekspert od innowacyjności 1"},{"$f":"'I. Informacje o projekcie'!$AI$2","v":"Ekspert od innowacyjności 2"},{"$f":"'I. Informacje o projekcie'!$AJ$2","v":"Ekspert finansowy"},{"$f":"'I. Informacje o projekcie'!$AK$2","v":"Uwagi MFiPR"}]
["1.","Oświadczam, że jestem świadomy skutków niezachowania wskazanej w Regulaminie Konkursu formy komunikacji z Instytucją Zarządzającą w trakcie konkursu. "]
["2.","Oświadczam, że jestem świadomy odpowiedzialności karnej za podanie fałszywych danych lub złożenie fałszywych oświadczeń."]
[null,"Zgodnie z art. 297 § 1 kodeksu karnego: „Kto, w celu uzyskania dla siebie lub kogo innego, od banku lub jednostki organizacyjnej prowadzącej podobną działalność gospodarczą na podstawie ustawy albo od organu lub instytucji dysponujących środkami publicznymi - kredytu, pożyczki pieniężnej, poręczenia, gwarancji, akredytywy, dotacji, subwencji, potwierdzenia przez bank zobowiązania wynikającego z poręczenia lub z gwarancji lub podobnego świadczenia pieniężnego na określony cel gospodarczy, elektronicznego instrumentu płatniczego lub zamówienia publicznego, przedkłada podrobiony, przerobiony, poświadczający nieprawdę albo nierzetelny dokument albo nierzetelne, pisemne oświadczenie dotyczące okoliczności o istotnym znaczeniu dla uzyskania wymienionego wsparcia finansowego, instrumentu płatniczego lub zamówienia, podlega karze pozbawienia wolności od 3 miesięcy do lat 5”."]
["3.","Oświadczam, że zapoznałem/zapoznałam się z Regulaminem Konkursu i akceptuję jego zasady.\n"]
["4.","Oświadczam, iż informacje w niniejszym wniosku są zgodne ze stanem faktycznym i prawnym oraz że jestem świadomy(a) odpowiedzialności karnej za składanie fałszywych oświadczeń. \n"]
["5.","Oświadczam, że zakres kosztów kwalifikowanych projektu nie był i nie będzie dofinansowany z innych środków publicznych."]
["6.","Oświadczam, że projekt jest zgodny z właściwymi przepisami prawa unijnego i krajowego, w szczególności dotyczącymi zamówień publicznych oraz pomocy publicznej.\n"]
["7.","Oświadczam, że Wnioskodawca zapewni wystarczające środki finansowe gwarantujące płynną i terminową realizację projektu przedstawionego w niniejszym wniosku.\n"]
["8.","Oświadczam, że Wnioskodawca (wybierz z listy rowijanej): "]
[]
["9.","Oświadczam, że Wnioskodawca oraz jednostka gospodarcza11, w skład której wchodzi Wnioskodawca (jeśli dotyczy) nie pozostają pod zarządem komisarycznym, nie znajdują się w toku likwidacji lub postępowania upadłościowego."]
["10.","Oświadczam, że nie zalegam w opłacaniu składek na ubezpieczenie społeczne, ubezpieczenie zdrowotne, Fundusz Pracy i Fundusz Gwarantowanych Świadczeń Pracowniczych oraz podatków i innych należności publicznoprawnych 12."]
["11.","Zobowiązuję się do zapewnienia trwałości i utrzymania rezultatów projektu przez okres minimum 5 lat  lub 3 lat w przypadku MSP (trwałość operacji rozumiana zgodnie z art. 71 Rozporządzenia Parlamentu Europejskiego i Rady (UE) nr 1303/2013 z dnia 17 grudnia 2013 r.)."]
["12.","Oświadczam, że przy określaniu statusu przedsiębiorstwa uwzględniłem istniejące powiązania, partnerstwo z innymi przedsiębiorstwami, łączenie lub podział przedsiębiorstwa."]
["13.","Oświadczam, że nie zachodzą wobec mnie przesłanki określone w art. 71 ust. 2 rozporządzenia Parlamentu Europejskiego i Rady (UE) nr 1303/2013 (dotyczy przedsiębiorców innych niż MSP)."]
["14.","Oświadczam, że przedmiot projektu nie dotyczy rodzajów działalności wykluczonych \nz możliwości uzyskania dofinansowania, o których mowa w art. 3 ust 3 rozporządzenia Parlamentu Europejskiego i Rady (UE) Nr 1301/2013 z dnia 17 grudnia 2013 r. w sprawie Europejskiego Funduszu Rozwoju Regionalnego i przepisów szczególnych dotyczących celu \"Inwestycje na rzecz wzrostu i zatrudnienia\" oraz w sprawie uchylenia rozporządzenia (WE) nr 1080/2006 (Dz. Urz. L 347 z 20.12.2013 r., str. 289, z późn. zm.).\n"]
["15.","Oświadczam, że projekt nie został zakończony w rozumieniu art. 65 ust. 6 Rozporządzenia Parlamentu Europejskiego i Rady (UE) nr 1303/2013 z dnia 17 grudnia 2013 r. "]
["16.","Oświadczam, iż uzyskanie wsparcia w ramach projektu objętego niniejszym wnioskiem \no dofinansowanie nie spowoduje utraty więcej niż 100 miejsc pracy w istniejących lokalizacjach wnioskodawcy na terytorium UE (dotyczy przedsiębiorstw innych niż MSP).\n"]
["17.","Oświadczam, że (wybierz z listy rozwijanej):"]
[null,"nie znajduje się w trudnej sytuacji w rozumieniu unijnych przepisów dotyczących pomocy państwa (w szczególności rozporządzenia Komisji (UE) Nr 651/2014 z dnia 17 czerwca 2014 r. uznającego niektóre rodzaje pomocy za zgodne z rynkiem wewnętrznym w zastosowaniu art. 107 i 108 Traktatu)."]
["18.","Oświadczam, że (wybierz z listy rozwijanej):"]
[]
["19.","Oświadczam, że projekt nie obejmuje przedsięwzięć będących częścią operacji, które zostały objęte lub powinny były zostać objęte procedurą odzyskiwania zgodnie z art. 71 Rozporządzenia Parlamentu Europejskiego i Rady (UE) nr 1303/2013 z dnia 17 grudnia 2013 r.  w następstwie przeniesienia działalności produkcyjnej poza obszar objęty programem."]
["20.","Oświadczam, iż realizowany przeze mnie projekt jest/będzie zgodny z planami zagospodarowania przestrzennego (dotyczy sytuacji, gdy Wnioskodawca oczekuje na wydanie decyzji)."]
["21.","Oświadczam, że projekt (wybierz z listy rozwijanej):"]
[]
["22.","Oświadczam, że projekt jest zgodny z zasadami horyzontalnymi wymienionymi w art. 7 i 8 rozporządzenia Parlamentu Europejskiego i Rady (UE) nr 1303/2013 z dnia 17 grudnia 2013 r. ustanawiającego wspólne przepisy dotyczące Europejskiego Funduszu Rozwoju Regionalnego, Europejskiego Funduszu Społecznego, Funduszu Spójności, Europejskiego Funduszu Rolnego na rzecz Rozwoju Obszarów Wiejskich oraz Europejskiego Funduszu Morskiego i Rybackiego oraz ustanawiającego przepisy ogólne dotyczące Europejskiego Funduszu Rozwoju Regionalnego, Europejskiego Funduszu Społecznego, Funduszu Spójności i Europejskiego Funduszu Morskiego i Rybackiego oraz uchylające rozporządzenie Rady (WE) nr 1083/2006 (Dz. Urz. UE L 347 z 20.12.2013, str. 320, z późn. zm.)."]
["23.","Oświadczam, że jestem przygotowany do realizacji inwestycji i posiadam wszelkie wymagane stosownymi przepisami prawa pozwolenia konieczne do realizacji przedmiotu projektu lub pozyskam te dokumenty najpóźniej przed wypłatą dofinansowania."]
["24.","Oświadczam, że w przypadku konieczności poprawy dokumentacji aplikacyjnej nie wprowadzę innych zmian do wniosku o dofinansowanie, niż wskazane w wezwaniu."]
["25.","Wyrażam zgodę na udzielanie informacji na potrzeby ewaluacji przeprowadzanych przez Instytucję Zarządzającą lub inną uprawnioną instytucję lub jednostkę organizacyjną."]
["26.","Wyrażam zgodę na udostępnienie niniejszego wniosku podmiotom dokonującym ewaluacji, z zastrzeżeniem ochrony informacji w nim zawartych. "]
["27.","Wyrażam zgodę na kontrolę w miejscu realizacji projektu oraz za pośrednictwem środków komunikacji na odległość na potrzeby oceny przed podpisaniem umowy o dofinansowanie, przeprowadzaną przez Instytucję Zarządzającą, Instytucję Organizującą Konkurs lub inną upoważnioną instytucję lub jednostkę organizacyjną."]
["28.","Wyrażam zgodę na przekazywanie upoważnionemu przez MFiPR podmiotowi zewnętrznemu niezbędnych dokumentów oraz informacji w celu weryfikacji statusu MŚP oraz trudnej sytuacji, o której mowa art. 2 pkt 18 rozporządzenia Komisji (UE) nr 651/2014 z dnia 17 czerwca 2014 r. uznającego niektóre rodzaje pomocy za zgodne z rynkiem wewnętrznym w zastosowaniu art. 107 i 108 Traktatu. Ponadto wyrażam zgodę na przekazanie przez MFiPR upoważnionemu podmiotowi zewnętrznemu dokumentów, które zostały złożone na etapie ubiegania się o dofinansowanie w celu weryfikacji statusu MŚP oraz trudnej sytuacji."]
["29.","Przyjmuję do wiadomości, że:"]
["a)","Administratorem danych wnioskodawców/beneficjentów zbieranych i przetwarzanych w celu udziału tych osób w naborze wniosków o dofinansowanie w ramach Programu Operacyjnego Inteligentny Rozwój 2014-2020,  jest Minister Funduszy i Polityki Regionalnej z siedzibą przy ul. Wspólnej 2/4, 00-926 w Warszawie;"]
["b)","Osobom, które we wniosku o dofinansowanie podały swoje dane osobowe przysługuje prawo wglądu do treści tych danych oraz ich poprawienia. Podanie danych jest dobrowolne, ale konieczne do realizacji ww. celu w ramach wdrażania POIR;"]
["c)","Osobom, które we wniosku o dofinansowanie podały swoje dane osobowe przysługuje prawo do wniesienia sprzeciwu wobec dalszego przetwarzania;"]
["d)","Osobom, które we wniosku o dofinansowanie podały swoje dane osobowe przysługuje prawo wniesienia skargi do organu nadzorczego;"]
["e)","Dane osobowe są przetwarzane na podstawie przepisów ustawy z dnia 11 lipca 2014 r. \no zasadach realizacji programów w zakresie polityki spójności finansowanych w perspektywie finansowej 2014–2020;\n"]
["f)","Okres przetwarzania danych jest zgodny z art. 140 ust. 1 Rozporządzenia Parlamentu Europejskiego i Rady (UE) nr 1303/2013 z dnia 17 grudnia 2013 r. oraz jednocześnie nie krótszy niż 10 lat od dnia przyznania ostatniej pomocy w ramach programu pomocowego;"]
["g)","Dane kontaktowe do Inspektora Ochrony Danych - IOD@mfipr.gov.pl. "]
["30.","Ze względu na ubieganie się o pomocy inwestycyjną na infrastrukturę służącą do testowania i przygotowania do masowej produkcji wyrobów służących do zwalczania pandemii COVID-19 zobowiązuję się do:"]
["a)","zakończenia projektu w terminie maksymalnie 6 miesięcy od dnia udzielenia pomocy;"]
["b)","zwrotu 25 % kwoty pomocy za każdy miesiąc opóźnienia z przyczyn innych niż pozostające poza jego kontrolą, jeżeli projekt nie zostanie zakończony w terminie, o którym mowa w lit. a;"]
["c)","pobierania rynkowej ceny za usługi świadczone przez infrastrukturę;"]
["d)","udzielania dostępu do infrastruktury służącej do testowania i przygotowania do masowej produkcji szeregowi użytkowników na przejrzystych i niedyskryminacyjnych zasadach z możliwością zastrzeżenia możliwości przyznania preferencyjnego dostępu na bardziej korzystnych warunkach przedsiębiorcom, którzy sfinansują co najmniej 10 % kosztów inwestycji w infrastrukturę. "]
[]
[]
[]
[]
[]
[null,null,null,"aktualna data",null,null,null,null,null,null,null,null,null,null,null,null,"czytelny/e podpis/y Wnioskodawcy 13 pieczęć imienna i firmowa"]
[]
[]
[11,"Jednostka gospodarcza – grupa przedsiębiorstw tworzących jeden podmiot gospodarczy w rozumieniu orzecznictwa europejskiego z zakresu prawa konkurencji."]
[12,"W przypadku, gdy w związku z wystąpieniem pandemii COVID-19 w 2020 r. Wnioskodawca skorzysta z instrumentów wsparcia w ramach pakietu ustaw składających się na tzw. Tarczę antykryzysową, w zakresie zwolnienia czy przesunięcia terminów uiszczania danin publicznych, np.:\n zwolnienie ze składek ZUS na 3 miesiące;\n odroczenie terminu płatności lub rozłożenie na raty należności ZUS;\n umorzenie całości lub części zaległości podatkowej;\n odroczenie terminu zapłaty zaliczek na podatek od wypłacanych wynagrodzeń,\nzłożenie do właściwego organu wniosku o ulgę jest uznawane jako spełnienie wymogu niezalegania z uiszczaniem należności, o których mowa w oświadczeniu Wnioskodawcy.\nInstytucja może zwrócić się do Wnioskodawcy o przedstawienie kopii takiego wniosku, potwierdzonej za zgodność z oryginałem."]
[13,"osoba/osoby upoważnione do reprezentowania Wnioskodawcy zgodnie z dokumentem rejestrowym"]
["*","niewłaściwe skreślić"]

{"sheet":"XII. Załączniki","index":16,"n_rows":26,"n_cols":37,"rows_kept":26,"cut":false,"hidden":false,"merged":[[7,1,7,32],[5,1,5,32],[6,1,6,32],[25,1,25,32],[13,1,13,32],[14,1,14,32],[15,1,15,32],[0,33,0,35],[2,1,2,32],[3,1,3,32],[0,0,1,32],[4,1,4,32]]}
["XII. ZAŁĄCZNIKI",null,null,null,null,null,null,null,null,null,null,null,null,null,null,null,null,null,null,null,null,null,null,null,null,null,null,null,null,null,null,null,null,"Uwagi/komentarze Ekspertów"]
[null,null,null,null,null,null,null,null,null,null,null,null,null,null,null,null,null,null,null,null,null,null,null,null,null,null,null,null,null,null,null,null,null,{"$f":"'I. Informacje o projekcie'!$AH$2","v":"Ekspert od innowacyjności 1"},{"$f":"'I. Informacje o projekcie'!$AI$2","v":"Ekspert od innowacyjności 2"},{"$f":"'I. Informacje o projekcie'!$AJ$2","v":"Ekspert finansowy"},{"$f":"'I. Informacje o projekcie'!$AK$2","v":"Uwagi MFiPR"}]
["1.","Formularz informacji przedstawianych przy ubieganiu się o pomoc rekompensującą negatywne konsekwencje ekonomiczne z powodu COVID-19."]
["2.","Kompletne sprawozdania finansowe Wnioskodawcy oraz podmiotów powiązanych/partnerskich (w przypadku wykazania powiązań/partnerstwa) za okres 3 ostatnich zatwierdzonych okresów obrachunkowych albo skonsolidowane sprawozdania finansowe za ww. okresy sporządzane zgodnie z ustawą o rachunkowości/Międzynarodowymi Standardami Rachunkowości  (lub oświadczenie, że wnioskodawca/podmiot powiązany/w partnerstwie nie ma obowiązku sporządzania sprawozdań finansowych na podstawie ustawy o rachunkowości). W przypadku braku obowiązku, zgodnie z ustawą o rachunkowości, sporządzenia sprawozdań finansowych należy przedłożyć wyciągi z ksiąg rachunkowych/finansowych potwierdzające wskazane we wniosku dane."]
["3.","Oświadczenie dotyczące kwalifikowalności podatku VAT składane w związku z aplikowaniem do programu PO IR14  (obligatoryjne jedynie w przypadku, gdy wnioskodawca występuje o refundację części poniesionego w ramach projektu podatku VAT)."]
["4.","Pełnomocnictwo upoważniające przedstawiciela Wnioskodawcy do działania w jego imieniu i na jego rzecz podpisane przez osoby uprawnione do reprezentowania Przedsiębiorstwa (jeśli dotyczy)."]
["5.","Inne dokumenty: np. Formularz KRS-ZM – zmiana przedmiotu działalności gospodarczej, dokumenty potwierdzające zewnętrzne finansowanie (jeśli dotyczy)."]
["6.","Upoważnienie dla banku do przekazywania informacji objętych tajemnicą bankową, celem potwierdzenia autentyczności dokumentów potwierdzających zewnętrzne finansowanie (np. promesy kredytowej, pożyczkowej itd.) u podmiotów je wydających."]
[]
[]
[]
[]
[]
[]
[]
[]
[]
[]
[]
[]
[]
[]
[]
[]
[]
[14,"Wzór Oświadczenia o kwalifikowalności podatku VAT dostępny jest na stronie internetowej POIR wraz z ogłoszeniem o naborze "]